Workbook

Sheet 使い方
C2: 令和８年３月版 給与・賞与計算エクセル
C5: ①はじめに
C6: 本ソフトは給与賞与の「源泉所得税」「雇用保険料」「社会保険料」を自動計算するためのものです。
C7: 本ソフトは、細心の注意を払って作成しておりますが、計算の正確さを保証するものではありません。使用する際は、自己の責任の下でのご使用をご了承ください。
C9: ②使い方
C10: ・「基本情報シート」に基本的情報を入力後、「給与計算シート」もしくは「賞与計算シート」の白い部分に必要事項を入力してください。
C11: ・保護されている部分は解除が可能です。
C13: ③賞与に対する社会保険料の計算についての注意事項
C15: ・健康保険の標準賞与額の一人当たりの上限は年度（4月1日から翌年の3月31日まで）の賞与累計額573万円までです。今年度賞与累計額が573万円にさしかかる人がいる場合は適宜健康保険の額を修正してください。
C17: ・厚生年金の標準賞与額の一人あたりの上限は１ヶ月に１５０万円までです。１ヶ月に2回賞与を支給して合計が１５０万円を超える場合は適宜厚生年金の額を修正してください。１回の賞与が１５０万円を超える場合は自動で１５０万円の標準賞与額として厚生年金が計算されます。
C19: ④賞与の計算期間が6ヶ月を超える場合の注意事項
C20: ・賞与の計算期間が6ヶ月を超えて、かつ、前月給与がない場合 ・賞与の計算期間が6ヶ月を超えて、かつ、賞与が前月給与の10倍相当以上の場合
C21: この場合の源泉所得税の計算については本ソフトでは対応しておりません。別途源泉所得税の計算が必要になります。

Sheet 基本情報
B2: 年月 | D2: 令和８年３月 | F2: ※シートの保護は解除できます。
B3: 営業所の場所 | D3: 東京
B4: 事業の種類 | D4: 一般の事業
L5: 社会保険標準報酬月額 参考表
B6: NO. | C6: 名前 | D6: 甲・乙区分 | E6: 扶養人数 | F6: 雇用保険 加入○× | G6: 社会保険区分 | J6: 交通費 手当 （非課税分）
G7: 標準報酬月額 | H7: 健康保険 | I7: 厚生年金 | L7: 標準報酬月額 | M7: 円以上 | N7: ～ | O7: 円未満
B8: 1 | C8: 給与一郎 | D8: 甲欄 | E8: 2 | F8: × | G8: 560000 | H8: 介護保険あり | I8: 一般、坑内員・船員 | L8: =リスト表!D4 -> 58000 | M8: =INDIRECT(基本情報!$D$3 & "!C" & ROW(C11)) -> 0 | N8: ～ | O8: =INDIRECT(基本情報!$D$3 & "!E" & ROW(E11)) -> 63000
B9: 2 | C9: 給与二郎 | D9: 甲欄 | E9: 1 | F9: ○ | G9: 300000 | H9: 介護保険なし | I9: 一般、坑内員・船員 | L9: =リスト表!D5 -> 68000 | M9: =INDIRECT(基本情報!$D$3 & "!C" & ROW(C12)) -> 63000 | N9: ～ | O9: =INDIRECT(基本情報!$D$3 & "!E" & ROW(E12)) -> 73000
B10: 3 | C10: 給与三郎 | D10: 乙欄 | E10: 0 | L10: =リスト表!D6 -> 78000 | M10: =INDIRECT(基本情報!$D$3 & "!C" & ROW(C13)) -> 73000 | N10: ～ | O10: =INDIRECT(基本情報!$D$3 & "!E" & ROW(E13)) -> 83000
B11: 4 | L11: =リスト表!D7 -> 88000 | M11: =INDIRECT(基本情報!$D$3 & "!C" & ROW(C14)) -> 83000 | N11: ～ | O11: =INDIRECT(基本情報!$D$3 & "!E" & ROW(E14)) -> 93000
B12: 5 | L12: =リスト表!D8 -> 98000 | M12: =INDIRECT(基本情報!$D$3 & "!C" & ROW(C15)) -> 93000 | N12: ～ | O12: =INDIRECT(基本情報!$D$3 & "!E" & ROW(E15)) -> 101000
B13: 6 | L13: =リスト表!D9 -> 104000 | M13: =INDIRECT(基本情報!$D$3 & "!C" & ROW(C16)) -> 101000 | N13: ～ | O13: =INDIRECT(基本情報!$D$3 & "!E" & ROW(E16)) -> 107000
B14: 7 | L14: =リスト表!D10 -> 110000 | M14: =INDIRECT(基本情報!$D$3 & "!C" & ROW(C17)) -> 107000 | N14: ～ | O14: =INDIRECT(基本情報!$D$3 & "!E" & ROW(E17)) -> 114000
B15: 8 | L15: =リスト表!D11 -> 118000 | M15: =INDIRECT(基本情報!$D$3 & "!C" & ROW(C18)) -> 114000 | N15: ～ | O15: =INDIRECT(基本情報!$D$3 & "!E" & ROW(E18)) -> 122000
B16: 9 | L16: =リスト表!D12 -> 126000 | M16: =INDIRECT(基本情報!$D$3 & "!C" & ROW(C19)) -> 122000 | N16: ～ | O16: =INDIRECT(基本情報!$D$3 & "!E" & ROW(E19)) -> 130000
B17: 10 | L17: =リスト表!D13 -> 134000 | M17: =INDIRECT(基本情報!$D$3 & "!C" & ROW(C20)) -> 130000 | N17: ～ | O17: =INDIRECT(基本情報!$D$3 & "!E" & ROW(E20)) -> 138000
B18: 11 | L18: =リスト表!D14 -> 142000 | M18: =INDIRECT(基本情報!$D$3 & "!C" & ROW(C21)) -> 138000 | N18: ～ | O18: =INDIRECT(基本情報!$D$3 & "!E" & ROW(E21)) -> 146000
B19: 12 | L19: =リスト表!D15 -> 150000 | M19: =INDIRECT(基本情報!$D$3 & "!C" & ROW(C22)) -> 146000 | N19: ～ | O19: =INDIRECT(基本情報!$D$3 & "!E" & ROW(E22)) -> 155000
B20: 13 | L20: =リスト表!D16 -> 160000 | M20: =INDIRECT(基本情報!$D$3 & "!C" & ROW(C23)) -> 155000 | N20: ～ | O20: =INDIRECT(基本情報!$D$3 & "!E" & ROW(E23)) -> 165000
B21: 14 | L21: =リスト表!D17 -> 170000 | M21: =INDIRECT(基本情報!$D$3 & "!C" & ROW(C24)) -> 165000 | N21: ～ | O21: =INDIRECT(基本情報!$D$3 & "!E" & ROW(E24)) -> 175000
B22: 15 | L22: =リスト表!D18 -> 180000 | M22: =INDIRECT(基本情報!$D$3 & "!C" & ROW(C25)) -> 175000 | N22: ～ | O22: =INDIRECT(基本情報!$D$3 & "!E" & ROW(E25)) -> 185000
B23: 16 | L23: =リスト表!D19 -> 190000 | M23: =INDIRECT(基本情報!$D$3 & "!C" & ROW(C26)) -> 185000 | N23: ～ | O23: =INDIRECT(基本情報!$D$3 & "!E" & ROW(E26)) -> 195000
B24: 17 | L24: =リスト表!D20 -> 200000 | M24: =INDIRECT(基本情報!$D$3 & "!C" & ROW(C27)) -> 195000 | N24: ～ | O24: =INDIRECT(基本情報!$D$3 & "!E" & ROW(E27)) -> 210000
B25: 18 | L25: =リスト表!D21 -> 220000 | M25: =INDIRECT(基本情報!$D$3 & "!C" & ROW(C28)) -> 210000 | N25: ～ | O25: =INDIRECT(基本情報!$D$3 & "!E" & ROW(E28)) -> 230000
B26: 19 | L26: =リスト表!D22 -> 240000 | M26: =INDIRECT(基本情報!$D$3 & "!C" & ROW(C29)) -> 230000 | N26: ～ | O26: =INDIRECT(基本情報!$D$3 & "!E" & ROW(E29)) -> 250000
B27: 20 | L27: =リスト表!D23 -> 260000 | M27: =INDIRECT(基本情報!$D$3 & "!C" & ROW(C30)) -> 250000 | N27: ～ | O27: =INDIRECT(基本情報!$D$3 & "!E" & ROW(E30)) -> 270000
B28: 21 | L28: =リスト表!D24 -> 280000 | M28: =INDIRECT(基本情報!$D$3 & "!C" & ROW(C31)) -> 270000 | N28: ～ | O28: =INDIRECT(基本情報!$D$3 & "!E" & ROW(E31)) -> 290000
B29: 22 | L29: =リスト表!D25 -> 300000 | M29: =INDIRECT(基本情報!$D$3 & "!C" & ROW(C32)) -> 290000 | N29: ～ | O29: =INDIRECT(基本情報!$D$3 & "!E" & ROW(E32)) -> 310000
B30: 23 | L30: =リスト表!D26 -> 320000 | M30: =INDIRECT(基本情報!$D$3 & "!C" & ROW(C33)) -> 310000 | N30: ～ | O30: =INDIRECT(基本情報!$D$3 & "!E" & ROW(E33)) -> 330000
B31: 24 | L31: =リスト表!D27 -> 340000 | M31: =INDIRECT(基本情報!$D$3 & "!C" & ROW(C34)) -> 330000 | N31: ～ | O31: =INDIRECT(基本情報!$D$3 & "!E" & ROW(E34)) -> 350000
B32: 25 | L32: =リスト表!D28 -> 360000 | M32: =INDIRECT(基本情報!$D$3 & "!C" & ROW(C35)) -> 350000 | N32: ～ | O32: =INDIRECT(基本情報!$D$3 & "!E" & ROW(E35)) -> 370000
B33: 26 | L33: =リスト表!D29 -> 380000 | M33: =INDIRECT(基本情報!$D$3 & "!C" & ROW(C36)) -> 370000 | N33: ～ | O33: =INDIRECT(基本情報!$D$3 & "!E" & ROW(E36)) -> 395000
B34: 27 | L34: =リスト表!D30 -> 410000 | M34: =INDIRECT(基本情報!$D$3 & "!C" & ROW(C37)) -> 395000 | N34: ～ | O34: =INDIRECT(基本情報!$D$3 & "!E" & ROW(E37)) -> 425000
B35: 28 | L35: =リスト表!D31 -> 440000 | M35: =INDIRECT(基本情報!$D$3 & "!C" & ROW(C38)) -> 425000 | N35: ～ | O35: =INDIRECT(基本情報!$D$3 & "!E" & ROW(E38)) -> 455000
B36: 29 | L36: =リスト表!D32 -> 470000 | M36: =INDIRECT(基本情報!$D$3 & "!C" & ROW(C39)) -> 455000 | N36: ～ | O36: =INDIRECT(基本情報!$D$3 & "!E" & ROW(E39)) -> 485000
B37: 30 | L37: =リスト表!D33 -> 500000 | M37: =INDIRECT(基本情報!$D$3 & "!C" & ROW(C40)) -> 485000 | N37: ～ | O37: =INDIRECT(基本情報!$D$3 & "!E" & ROW(E40)) -> 515000
L38: =リスト表!D34 -> 530000 | M38: =INDIRECT(基本情報!$D$3 & "!C" & ROW(C41)) -> 515000 | N38: ～ | O38: =INDIRECT(基本情報!$D$3 & "!E" & ROW(E41)) -> 545000
L39: =リスト表!D35 -> 560000 | M39: =INDIRECT(基本情報!$D$3 & "!C" & ROW(C42)) -> 545000 | N39: ～ | O39: =INDIRECT(基本情報!$D$3 & "!E" & ROW(E42)) -> 575000
L40: =リスト表!D36 -> 590000 | M40: =INDIRECT(基本情報!$D$3 & "!C" & ROW(C43)) -> 575000 | N40: ～ | O40: =INDIRECT(基本情報!$D$3 & "!E" & ROW(E43)) -> 605000
L41: =リスト表!D37 -> 620000 | M41: =INDIRECT(基本情報!$D$3 & "!C" & ROW(C44)) -> 605000 | N41: ～ | O41: =INDIRECT(基本情報!$D$3 & "!E" & ROW(E44)) -> 635000
L42: =リスト表!D38 -> 650000 | M42: =INDIRECT(基本情報!$D$3 & "!C" & ROW(C45)) -> 635000 | N42: ～ | O42: =INDIRECT(基本情報!$D$3 & "!E" & ROW(E45)) -> 665000
L43: =リスト表!D39 -> 680000 | M43: =INDIRECT(基本情報!$D$3 & "!C" & ROW(C46)) -> 665000 | N43: ～ | O43: =INDIRECT(基本情報!$D$3 & "!E" & ROW(E46)) -> 695000
L44: =リスト表!D40 -> 710000 | M44: =INDIRECT(基本情報!$D$3 & "!C" & ROW(C47)) -> 695000 | N44: ～ | O44: =INDIRECT(基本情報!$D$3 & "!E" & ROW(E47)) -> 730000
L45: =リスト表!D41 -> 750000 | M45: =INDIRECT(基本情報!$D$3 & "!C" & ROW(C48)) -> 730000 | N45: ～ | O45: =INDIRECT(基本情報!$D$3 & "!E" & ROW(E48)) -> 770000
L46: =リスト表!D42 -> 790000 | M46: =INDIRECT(基本情報!$D$3 & "!C" & ROW(C49)) -> 770000 | N46: ～ | O46: =INDIRECT(基本情報!$D$3 & "!E" & ROW(E49)) -> 810000
L47: =リスト表!D43 -> 830000 | M47: =INDIRECT(基本情報!$D$3 & "!C" & ROW(C50)) -> 810000 | N47: ～ | O47: =INDIRECT(基本情報!$D$3 & "!E" & ROW(E50)) -> 855000
L48: =リスト表!D44 -> 880000 | M48: =INDIRECT(基本情報!$D$3 & "!C" & ROW(C51)) -> 855000 | N48: ～ | O48: =INDIRECT(基本情報!$D$3 & "!E" & ROW(E51)) -> 905000
L49: =リスト表!D45 -> 930000 | M49: =INDIRECT(基本情報!$D$3 & "!C" & ROW(C52)) -> 905000 | N49: ～ | O49: =INDIRECT(基本情報!$D$3 & "!E" & ROW(E52)) -> 955000
L50: =リスト表!D46 -> 980000 | M50: =INDIRECT(基本情報!$D$3 & "!C" & ROW(C53)) -> 955000 | N50: ～ | O50: =INDIRECT(基本情報!$D$3 & "!E" & ROW(E53)) -> 1005000
L51: =リスト表!D47 -> 1030000 | M51: =INDIRECT(基本情報!$D$3 & "!C" & ROW(C54)) -> 1005000 | N51: ～ | O51: =INDIRECT(基本情報!$D$3 & "!E" & ROW(E54)) -> 1055000
L52: =リスト表!D48 -> 1090000 | M52: =INDIRECT(基本情報!$D$3 & "!C" & ROW(C55)) -> 1055000 | N52: ～ | O52: =INDIRECT(基本情報!$D$3 & "!E" & ROW(E55)) -> 1115000
L53: =リスト表!D49 -> 1150000 | M53: =INDIRECT(基本情報!$D$3 & "!C" & ROW(C56)) -> 1115000 | N53: ～ | O53: =INDIRECT(基本情報!$D$3 & "!E" & ROW(E56)) -> 1175000
L54: =リスト表!D50 -> 1210000 | M54: =INDIRECT(基本情報!$D$3 & "!C" & ROW(C57)) -> 1175000 | N54: ～ | O54: =INDIRECT(基本情報!$D$3 & "!E" & ROW(E57)) -> 1235000
L55: =リスト表!D51 -> 1270000 | M55: =INDIRECT(基本情報!$D$3 & "!C" & ROW(C58)) -> 1235000 | N55: ～ | O55: =INDIRECT(基本情報!$D$3 & "!E" & ROW(E58)) -> 1295000
L56: =リスト表!D52 -> 1330000 | M56: =INDIRECT(基本情報!$D$3 & "!C" & ROW(C59)) -> 1295000 | N56: ～ | O56: =INDIRECT(基本情報!$D$3 & "!E" & ROW(E59)) -> 1355000
L57: =リスト表!D53 -> 1390000 | M57: =INDIRECT(基本情報!$D$3 & "!C" & ROW(C60)) -> 1355000 | N57: ～ | O57: =INDIRECT(基本情報!$D$3 & "!E" & ROW(E60)) -> 0

Sheet 給与計算
B2: =基本情報!D2 -> 令和８年３月 | D2: 給与計算 | G2: ※シートの保護は解除できます。
B3: 集計 | D3: =D6 -> 本給 | E3: =E6 -> 他手当1 （課税） | F3: =F6 -> 他手当2 （課税） | G3: =G6 -> 課税支給額 | H3: =H6 -> 交通費 手当 （非課税） | I3: =I6 -> 総支給額 | J3: =J7 -> 雇用保険 | K3: 健康保険 | L3: （子育て支援） | M3: 厚生年金 | N3: 社会保険合計 | O3: 社会保険料控除後の給与等の額 | P3: 源泉所得税 | Q3: =Q6 -> その他 住民税等 | R3: 差引支給額
D4: =SUM(D8:D37) -> 900000 | E4: =SUM(E8:E37) -> 50000 | F4: 0 | G4: 950000 | H4: 8000 | I4: 958000 | J4: 1666 | K4: 46891 | L4: 989 | M4: 78690 | N4: =SUM(N8:N37) -> 127247 | O4: 822753 | P4: 22353 | Q4: =SUM(Q8:Q37) -> 58000 | R4: 750400
B6: NO. | C6: 名前 | D6: 本給 | E6: 他手当1 （課税） | F6: 他手当2 （課税） | G6: 課税支給額 | H6: 交通費 手当 （非課税） | I6: 総支給額 | J6: 社会保険 | O6: 参考 | P6: 源泉所得税 | Q6: その他 住民税等 | R6: 差引支給額 | S6: 備考
J7: 雇用保険 | K7: 健康保険 | L7: （子育て支援） | M7: 厚生年金 | N7: 社会保険合計 | O7: 社会保険料控除後の給与等の額
B8: 1 | C8: =IF(基本情報!C8="","",基本情報!C8) -> 給与一郎 | D8: 500000 | E8: 50000 | G8: =SUM(D8:F8) -> 550000 | H8: 5000 | I8: =SUM(G8:H8) -> 555000 | J8: =MAX(IF(基本情報!F8="○",ROUNDUP(I8*IF(基本情報!$D$4="",0,VLOOKUP(基本情報!$D$4,雇用保険料率!$C:$D,2,0))-0.5,0),0),0) -> 0 | K8: =IF(OR(基本情報!$D$3="",基本情報!H8=""),0,HLOOKUP(基本情報!H8,計算シート!$Q$4:$S$34,ROW(計算シート!Q5)-3,0)) -> 32116 | L8: =IF(OR(基本情報!$D$3="",基本情報!H8=""),0,HLOOKUP("子供子育て支援金",計算シート!$AE$4:$AF$34,ROW(計算シート!R5)-3,0)) -> 644 | M8: =IF(OR(基本情報!$D$3="",基本情報!I8=""),0,HLOOKUP(基本情報!I8,計算シート!$T$4:$V$34,ROW(計算シート!Q5)-3,0)) -> 51240 | N8: =J8+K8+M8 -> 83356 | O8: =MAX(G8-N8,0) -> 466644 | P8: =IF(基本情報!D8="","",HLOOKUP(基本情報!D8,計算シート!$E$4:$G$34,ROW(計算シート!E5)-3,0)) -> 14580 | Q8: 35000 | R8: =I8-N8-IF(P8="",0,P8)-Q8 -> 422064
B9: 2 | C9: =IF(基本情報!C9="","",基本情報!C9) -> 給与二郎 | D9: 300000 | G9: 300000 | H9: 3000 | I9: =SUM(G9:H9) -> 303000 | J9: =MAX(IF(基本情報!F9="○",ROUNDUP(I9*IF(基本情報!$D$4="",0,VLOOKUP(基本情報!$D$4,雇用保険料率!$C:$D,2,0))-0.5,0),0),0) -> 1666 | K9: =IF(OR(基本情報!$D$3="",基本情報!H9=""),0,HLOOKUP(基本情報!H9,計算シート!$Q$4:$S$34,ROW(計算シート!Q6)-3,0)) -> 14775 | L9: =IF(OR(基本情報!$D$3="",基本情報!H9=""),0,HLOOKUP("子供子育て支援金",計算シート!$AE$4:$AF$34,ROW(計算シート!R6)-3,0)) -> 345 | M9: =IF(OR(基本情報!$D$3="",基本情報!I9=""),0,HLOOKUP(基本情報!I9,計算シート!$T$4:$V$34,ROW(計算シート!Q6)-3,0)) -> 27450 | N9: =J9+K9+M9 -> 43891 | O9: =MAX(G9-N9,0) -> 256109 | P9: =IF(基本情報!D9="","",HLOOKUP(基本情報!D9,計算シート!$E$4:$G$34,ROW(計算シート!E6)-3,0)) -> 4710 | Q9: 23000 | R9: 231399
B10: 3 | C10: =IF(基本情報!C10="","",基本情報!C10) -> 給与三郎 | D10: 100000 | G10: 100000 | I10: 100000 | J10: =MAX(IF(基本情報!F10="○",ROUNDUP(I10*IF(基本情報!$D$4="",0,VLOOKUP(基本情報!$D$4,雇用保険料率!$C:$D,2,0))-0.5,0),0),0) -> 0 | K10: =IF(OR(基本情報!$D$3="",基本情報!H10=""),0,HLOOKUP(基本情報!H10,計算シート!$Q$4:$S$34,ROW(計算シート!Q7)-3,0)) -> 0 | L10: =IF(OR(基本情報!$D$3="",基本情報!H10=""),0,HLOOKUP("子供子育て支援金",計算シート!$AE$4:$AF$34,ROW(計算シート!R7)-3,0)) -> 0 | M10: =IF(OR(基本情報!$D$3="",基本情報!I10=""),0,HLOOKUP(基本情報!I10,計算シート!$T$4:$V$34,ROW(計算シート!Q7)-3,0)) -> 0 | N10: 0 | O10: =MAX(G10-N10,0) -> 100000 | P10: =IF(基本情報!D10="","",HLOOKUP(基本情報!D10,計算シート!$E$4:$G$34,ROW(計算シート!E7)-3,0)) -> 3063 | R10: 96937
B11: 4 | C11: =IF(基本情報!C11="","",基本情報!C11) ->  | G11: 0 | I11: 0 | J11: =MAX(IF(基本情報!F11="○",ROUNDUP(I11*IF(基本情報!$D$4="",0,VLOOKUP(基本情報!$D$4,雇用保険料率!$C:$D,2,0))-0.5,0),0),0) -> 0 | K11: =IF(OR(基本情報!$D$3="",基本情報!H11=""),0,HLOOKUP(基本情報!H11,計算シート!$Q$4:$S$34,ROW(計算シート!Q8)-3,0)) -> 0 | L11: =IF(OR(基本情報!$D$3="",基本情報!H11=""),0,HLOOKUP("子供子育て支援金",計算シート!$AE$4:$AF$34,ROW(計算シート!R8)-3,0)) -> 0 | M11: =IF(OR(基本情報!$D$3="",基本情報!I11=""),0,HLOOKUP(基本情報!I11,計算シート!$T$4:$V$34,ROW(計算シート!Q8)-3,0)) -> 0 | N11: 0 | O11: 0 | P11: =IF(基本情報!D11="","",HLOOKUP(基本情報!D11,計算シート!$E$4:$G$34,ROW(計算シート!E8)-3,0)) ->  | R11: 0
B12: 5 | C12: =IF(基本情報!C12="","",基本情報!C12) ->  | G12: 0 | I12: 0 | J12: =MAX(IF(基本情報!F12="○",ROUNDUP(I12*IF(基本情報!$D$4="",0,VLOOKUP(基本情報!$D$4,雇用保険料率!$C:$D,2,0))-0.5,0),0),0) -> 0 | K12: =IF(OR(基本情報!$D$3="",基本情報!H12=""),0,HLOOKUP(基本情報!H12,計算シート!$Q$4:$S$34,ROW(計算シート!Q9)-3,0)) -> 0 | L12: =IF(OR(基本情報!$D$3="",基本情報!H12=""),0,HLOOKUP("子供子育て支援金",計算シート!$AE$4:$AF$34,ROW(計算シート!R9)-3,0)) -> 0 | M12: =IF(OR(基本情報!$D$3="",基本情報!I12=""),0,HLOOKUP(基本情報!I12,計算シート!$T$4:$V$34,ROW(計算シート!Q9)-3,0)) -> 0 | N12: 0 | O12: 0 | P12: =IF(基本情報!D12="","",HLOOKUP(基本情報!D12,計算シート!$E$4:$G$34,ROW(計算シート!E9)-3,0)) ->  | R12: 0
B13: 6 | C13: =IF(基本情報!C13="","",基本情報!C13) ->  | G13: 0 | I13: 0 | J13: =MAX(IF(基本情報!F13="○",ROUNDUP(I13*IF(基本情報!$D$4="",0,VLOOKUP(基本情報!$D$4,雇用保険料率!$C:$D,2,0))-0.5,0),0),0) -> 0 | K13: =IF(OR(基本情報!$D$3="",基本情報!H13=""),0,HLOOKUP(基本情報!H13,計算シート!$Q$4:$S$34,ROW(計算シート!Q10)-3,0)) -> 0 | L13: =IF(OR(基本情報!$D$3="",基本情報!H13=""),0,HLOOKUP("子供子育て支援金",計算シート!$AE$4:$AF$34,ROW(計算シート!R10)-3,0)) -> 0 | M13: =IF(OR(基本情報!$D$3="",基本情報!I13=""),0,HLOOKUP(基本情報!I13,計算シート!$T$4:$V$34,ROW(計算シート!Q10)-3,0)) -> 0 | N13: 0 | O13: 0 | P13: =IF(基本情報!D13="","",HLOOKUP(基本情報!D13,計算シート!$E$4:$G$34,ROW(計算シート!E10)-3,0)) ->  | R13: 0
B14: 7 | C14: =IF(基本情報!C14="","",基本情報!C14) ->  | G14: 0 | I14: 0 | J14: =MAX(IF(基本情報!F14="○",ROUNDUP(I14*IF(基本情報!$D$4="",0,VLOOKUP(基本情報!$D$4,雇用保険料率!$C:$D,2,0))-0.5,0),0),0) -> 0 | K14: =IF(OR(基本情報!$D$3="",基本情報!H14=""),0,HLOOKUP(基本情報!H14,計算シート!$Q$4:$S$34,ROW(計算シート!Q11)-3,0)) -> 0 | L14: =IF(OR(基本情報!$D$3="",基本情報!H14=""),0,HLOOKUP("子供子育て支援金",計算シート!$AE$4:$AF$34,ROW(計算シート!R11)-3,0)) -> 0 | M14: =IF(OR(基本情報!$D$3="",基本情報!I14=""),0,HLOOKUP(基本情報!I14,計算シート!$T$4:$V$34,ROW(計算シート!Q11)-3,0)) -> 0 | N14: 0 | O14: 0 | P14: =IF(基本情報!D14="","",HLOOKUP(基本情報!D14,計算シート!$E$4:$G$34,ROW(計算シート!E11)-3,0)) ->  | R14: 0
B15: 8 | C15: =IF(基本情報!C15="","",基本情報!C15) ->  | G15: 0 | I15: 0 | J15: =MAX(IF(基本情報!F15="○",ROUNDUP(I15*IF(基本情報!$D$4="",0,VLOOKUP(基本情報!$D$4,雇用保険料率!$C:$D,2,0))-0.5,0),0),0) -> 0 | K15: =IF(OR(基本情報!$D$3="",基本情報!H15=""),0,HLOOKUP(基本情報!H15,計算シート!$Q$4:$S$34,ROW(計算シート!Q12)-3,0)) -> 0 | L15: =IF(OR(基本情報!$D$3="",基本情報!H15=""),0,HLOOKUP("子供子育て支援金",計算シート!$AE$4:$AF$34,ROW(計算シート!R12)-3,0)) -> 0 | M15: =IF(OR(基本情報!$D$3="",基本情報!I15=""),0,HLOOKUP(基本情報!I15,計算シート!$T$4:$V$34,ROW(計算シート!Q12)-3,0)) -> 0 | N15: 0 | O15: 0 | P15: =IF(基本情報!D15="","",HLOOKUP(基本情報!D15,計算シート!$E$4:$G$34,ROW(計算シート!E12)-3,0)) ->  | R15: 0
B16: 9 | C16: =IF(基本情報!C16="","",基本情報!C16) ->  | G16: 0 | I16: 0 | J16: =MAX(IF(基本情報!F16="○",ROUNDUP(I16*IF(基本情報!$D$4="",0,VLOOKUP(基本情報!$D$4,雇用保険料率!$C:$D,2,0))-0.5,0),0),0) -> 0 | K16: =IF(OR(基本情報!$D$3="",基本情報!H16=""),0,HLOOKUP(基本情報!H16,計算シート!$Q$4:$S$34,ROW(計算シート!Q13)-3,0)) -> 0 | L16: =IF(OR(基本情報!$D$3="",基本情報!H16=""),0,HLOOKUP("子供子育て支援金",計算シート!$AE$4:$AF$34,ROW(計算シート!R13)-3,0)) -> 0 | M16: =IF(OR(基本情報!$D$3="",基本情報!I16=""),0,HLOOKUP(基本情報!I16,計算シート!$T$4:$V$34,ROW(計算シート!Q13)-3,0)) -> 0 | N16: 0 | O16: 0 | P16: =IF(基本情報!D16="","",HLOOKUP(基本情報!D16,計算シート!$E$4:$G$34,ROW(計算シート!E13)-3,0)) ->  | R16: 0
B17: 10 | C17: =IF(基本情報!C17="","",基本情報!C17) ->  | G17: 0 | I17: 0 | J17: =MAX(IF(基本情報!F17="○",ROUNDUP(I17*IF(基本情報!$D$4="",0,VLOOKUP(基本情報!$D$4,雇用保険料率!$C:$D,2,0))-0.5,0),0),0) -> 0 | K17: =IF(OR(基本情報!$D$3="",基本情報!H17=""),0,HLOOKUP(基本情報!H17,計算シート!$Q$4:$S$34,ROW(計算シート!Q14)-3,0)) -> 0 | L17: =IF(OR(基本情報!$D$3="",基本情報!H17=""),0,HLOOKUP("子供子育て支援金",計算シート!$AE$4:$AF$34,ROW(計算シート!R14)-3,0)) -> 0 | M17: =IF(OR(基本情報!$D$3="",基本情報!I17=""),0,HLOOKUP(基本情報!I17,計算シート!$T$4:$V$34,ROW(計算シート!Q14)-3,0)) -> 0 | N17: 0 | O17: 0 | P17: =IF(基本情報!D17="","",HLOOKUP(基本情報!D17,計算シート!$E$4:$G$34,ROW(計算シート!E14)-3,0)) ->  | R17: 0
B18: 11 | C18: =IF(基本情報!C18="","",基本情報!C18) ->  | G18: 0 | I18: 0 | J18: =MAX(IF(基本情報!F18="○",ROUNDUP(I18*IF(基本情報!$D$4="",0,VLOOKUP(基本情報!$D$4,雇用保険料率!$C:$D,2,0))-0.5,0),0),0) -> 0 | K18: =IF(OR(基本情報!$D$3="",基本情報!H18=""),0,HLOOKUP(基本情報!H18,計算シート!$Q$4:$S$34,ROW(計算シート!Q15)-3,0)) -> 0 | L18: =IF(OR(基本情報!$D$3="",基本情報!H18=""),0,HLOOKUP("子供子育て支援金",計算シート!$AE$4:$AF$34,ROW(計算シート!R15)-3,0)) -> 0 | M18: =IF(OR(基本情報!$D$3="",基本情報!I18=""),0,HLOOKUP(基本情報!I18,計算シート!$T$4:$V$34,ROW(計算シート!Q15)-3,0)) -> 0 | N18: 0 | O18: 0 | P18: =IF(基本情報!D18="","",HLOOKUP(基本情報!D18,計算シート!$E$4:$G$34,ROW(計算シート!E15)-3,0)) ->  | R18: 0
B19: 12 | C19: =IF(基本情報!C19="","",基本情報!C19) ->  | G19: 0 | I19: 0 | J19: =MAX(IF(基本情報!F19="○",ROUNDUP(I19*IF(基本情報!$D$4="",0,VLOOKUP(基本情報!$D$4,雇用保険料率!$C:$D,2,0))-0.5,0),0),0) -> 0 | K19: =IF(OR(基本情報!$D$3="",基本情報!H19=""),0,HLOOKUP(基本情報!H19,計算シート!$Q$4:$S$34,ROW(計算シート!Q16)-3,0)) -> 0 | L19: =IF(OR(基本情報!$D$3="",基本情報!H19=""),0,HLOOKUP("子供子育て支援金",計算シート!$AE$4:$AF$34,ROW(計算シート!R16)-3,0)) -> 0 | M19: =IF(OR(基本情報!$D$3="",基本情報!I19=""),0,HLOOKUP(基本情報!I19,計算シート!$T$4:$V$34,ROW(計算シート!Q16)-3,0)) -> 0 | N19: 0 | O19: 0 | P19: =IF(基本情報!D19="","",HLOOKUP(基本情報!D19,計算シート!$E$4:$G$34,ROW(計算シート!E16)-3,0)) ->  | R19: 0
B20: 13 | C20: =IF(基本情報!C20="","",基本情報!C20) ->  | G20: 0 | I20: 0 | J20: =MAX(IF(基本情報!F20="○",ROUNDUP(I20*IF(基本情報!$D$4="",0,VLOOKUP(基本情報!$D$4,雇用保険料率!$C:$D,2,0))-0.5,0),0),0) -> 0 | K20: =IF(OR(基本情報!$D$3="",基本情報!H20=""),0,HLOOKUP(基本情報!H20,計算シート!$Q$4:$S$34,ROW(計算シート!Q17)-3,0)) -> 0 | L20: =IF(OR(基本情報!$D$3="",基本情報!H20=""),0,HLOOKUP("子供子育て支援金",計算シート!$AE$4:$AF$34,ROW(計算シート!R17)-3,0)) -> 0 | M20: =IF(OR(基本情報!$D$3="",基本情報!I20=""),0,HLOOKUP(基本情報!I20,計算シート!$T$4:$V$34,ROW(計算シート!Q17)-3,0)) -> 0 | N20: 0 | O20: 0 | P20: =IF(基本情報!D20="","",HLOOKUP(基本情報!D20,計算シート!$E$4:$G$34,ROW(計算シート!E17)-3,0)) ->  | R20: 0
B21: 14 | C21: =IF(基本情報!C21="","",基本情報!C21) ->  | G21: 0 | I21: 0 | J21: =MAX(IF(基本情報!F21="○",ROUNDUP(I21*IF(基本情報!$D$4="",0,VLOOKUP(基本情報!$D$4,雇用保険料率!$C:$D,2,0))-0.5,0),0),0) -> 0 | K21: =IF(OR(基本情報!$D$3="",基本情報!H21=""),0,HLOOKUP(基本情報!H21,計算シート!$Q$4:$S$34,ROW(計算シート!Q18)-3,0)) -> 0 | L21: =IF(OR(基本情報!$D$3="",基本情報!H21=""),0,HLOOKUP("子供子育て支援金",計算シート!$AE$4:$AF$34,ROW(計算シート!R18)-3,0)) -> 0 | M21: =IF(OR(基本情報!$D$3="",基本情報!I21=""),0,HLOOKUP(基本情報!I21,計算シート!$T$4:$V$34,ROW(計算シート!Q18)-3,0)) -> 0 | N21: 0 | O21: 0 | P21: =IF(基本情報!D21="","",HLOOKUP(基本情報!D21,計算シート!$E$4:$G$34,ROW(計算シート!E18)-3,0)) ->  | R21: 0
B22: 15 | C22: =IF(基本情報!C22="","",基本情報!C22) ->  | G22: 0 | I22: 0 | J22: =MAX(IF(基本情報!F22="○",ROUNDUP(I22*IF(基本情報!$D$4="",0,VLOOKUP(基本情報!$D$4,雇用保険料率!$C:$D,2,0))-0.5,0),0),0) -> 0 | K22: =IF(OR(基本情報!$D$3="",基本情報!H22=""),0,HLOOKUP(基本情報!H22,計算シート!$Q$4:$S$34,ROW(計算シート!Q19)-3,0)) -> 0 | L22: =IF(OR(基本情報!$D$3="",基本情報!H22=""),0,HLOOKUP("子供子育て支援金",計算シート!$AE$4:$AF$34,ROW(計算シート!R19)-3,0)) -> 0 | M22: =IF(OR(基本情報!$D$3="",基本情報!I22=""),0,HLOOKUP(基本情報!I22,計算シート!$T$4:$V$34,ROW(計算シート!Q19)-3,0)) -> 0 | N22: 0 | O22: 0 | P22: =IF(基本情報!D22="","",HLOOKUP(基本情報!D22,計算シート!$E$4:$G$34,ROW(計算シート!E19)-3,0)) ->  | R22: 0
B23: 16 | C23: =IF(基本情報!C23="","",基本情報!C23) ->  | G23: 0 | I23: 0 | J23: =MAX(IF(基本情報!F23="○",ROUNDUP(I23*IF(基本情報!$D$4="",0,VLOOKUP(基本情報!$D$4,雇用保険料率!$C:$D,2,0))-0.5,0),0),0) -> 0 | K23: =IF(OR(基本情報!$D$3="",基本情報!H23=""),0,HLOOKUP(基本情報!H23,計算シート!$Q$4:$S$34,ROW(計算シート!Q20)-3,0)) -> 0 | L23: =IF(OR(基本情報!$D$3="",基本情報!H23=""),0,HLOOKUP("子供子育て支援金",計算シート!$AE$4:$AF$34,ROW(計算シート!R20)-3,0)) -> 0 | M23: =IF(OR(基本情報!$D$3="",基本情報!I23=""),0,HLOOKUP(基本情報!I23,計算シート!$T$4:$V$34,ROW(計算シート!Q20)-3,0)) -> 0 | N23: 0 | O23: 0 | P23: =IF(基本情報!D23="","",HLOOKUP(基本情報!D23,計算シート!$E$4:$G$34,ROW(計算シート!E20)-3,0)) ->  | R23: 0
B24: 17 | C24: =IF(基本情報!C24="","",基本情報!C24) ->  | G24: 0 | I24: 0 | J24: =MAX(IF(基本情報!F24="○",ROUNDUP(I24*IF(基本情報!$D$4="",0,VLOOKUP(基本情報!$D$4,雇用保険料率!$C:$D,2,0))-0.5,0),0),0) -> 0 | K24: =IF(OR(基本情報!$D$3="",基本情報!H24=""),0,HLOOKUP(基本情報!H24,計算シート!$Q$4:$S$34,ROW(計算シート!Q21)-3,0)) -> 0 | L24: =IF(OR(基本情報!$D$3="",基本情報!H24=""),0,HLOOKUP("子供子育て支援金",計算シート!$AE$4:$AF$34,ROW(計算シート!R21)-3,0)) -> 0 | M24: =IF(OR(基本情報!$D$3="",基本情報!I24=""),0,HLOOKUP(基本情報!I24,計算シート!$T$4:$V$34,ROW(計算シート!Q21)-3,0)) -> 0 | N24: 0 | O24: 0 | P24: =IF(基本情報!D24="","",HLOOKUP(基本情報!D24,計算シート!$E$4:$G$34,ROW(計算シート!E21)-3,0)) ->  | R24: 0
B25: 18 | C25: =IF(基本情報!C25="","",基本情報!C25) ->  | G25: 0 | I25: 0 | J25: =MAX(IF(基本情報!F25="○",ROUNDUP(I25*IF(基本情報!$D$4="",0,VLOOKUP(基本情報!$D$4,雇用保険料率!$C:$D,2,0))-0.5,0),0),0) -> 0 | K25: =IF(OR(基本情報!$D$3="",基本情報!H25=""),0,HLOOKUP(基本情報!H25,計算シート!$Q$4:$S$34,ROW(計算シート!Q22)-3,0)) -> 0 | L25: =IF(OR(基本情報!$D$3="",基本情報!H25=""),0,HLOOKUP("子供子育て支援金",計算シート!$AE$4:$AF$34,ROW(計算シート!R22)-3,0)) -> 0 | M25: =IF(OR(基本情報!$D$3="",基本情報!I25=""),0,HLOOKUP(基本情報!I25,計算シート!$T$4:$V$34,ROW(計算シート!Q22)-3,0)) -> 0 | N25: 0 | O25: 0 | P25: =IF(基本情報!D25="","",HLOOKUP(基本情報!D25,計算シート!$E$4:$G$34,ROW(計算シート!E22)-3,0)) ->  | R25: 0
B26: 19 | C26: =IF(基本情報!C26="","",基本情報!C26) ->  | G26: 0 | I26: 0 | J26: =MAX(IF(基本情報!F26="○",ROUNDUP(I26*IF(基本情報!$D$4="",0,VLOOKUP(基本情報!$D$4,雇用保険料率!$C:$D,2,0))-0.5,0),0),0) -> 0 | K26: =IF(OR(基本情報!$D$3="",基本情報!H26=""),0,HLOOKUP(基本情報!H26,計算シート!$Q$4:$S$34,ROW(計算シート!Q23)-3,0)) -> 0 | L26: =IF(OR(基本情報!$D$3="",基本情報!H26=""),0,HLOOKUP("子供子育て支援金",計算シート!$AE$4:$AF$34,ROW(計算シート!R23)-3,0)) -> 0 | M26: =IF(OR(基本情報!$D$3="",基本情報!I26=""),0,HLOOKUP(基本情報!I26,計算シート!$T$4:$V$34,ROW(計算シート!Q23)-3,0)) -> 0 | N26: 0 | O26: 0 | P26: =IF(基本情報!D26="","",HLOOKUP(基本情報!D26,計算シート!$E$4:$G$34,ROW(計算シート!E23)-3,0)) ->  | R26: 0
B27: 20 | C27: =IF(基本情報!C27="","",基本情報!C27) ->  | G27: 0 | I27: 0 | J27: =MAX(IF(基本情報!F27="○",ROUNDUP(I27*IF(基本情報!$D$4="",0,VLOOKUP(基本情報!$D$4,雇用保険料率!$C:$D,2,0))-0.5,0),0),0) -> 0 | K27: =IF(OR(基本情報!$D$3="",基本情報!H27=""),0,HLOOKUP(基本情報!H27,計算シート!$Q$4:$S$34,ROW(計算シート!Q24)-3,0)) -> 0 | L27: =IF(OR(基本情報!$D$3="",基本情報!H27=""),0,HLOOKUP("子供子育て支援金",計算シート!$AE$4:$AF$34,ROW(計算シート!R24)-3,0)) -> 0 | M27: =IF(OR(基本情報!$D$3="",基本情報!I27=""),0,HLOOKUP(基本情報!I27,計算シート!$T$4:$V$34,ROW(計算シート!Q24)-3,0)) -> 0 | N27: 0 | O27: 0 | P27: =IF(基本情報!D27="","",HLOOKUP(基本情報!D27,計算シート!$E$4:$G$34,ROW(計算シート!E24)-3,0)) ->  | R27: 0
B28: 21 | C28: =IF(基本情報!C28="","",基本情報!C28) ->  | G28: 0 | I28: 0 | J28: =MAX(IF(基本情報!F28="○",ROUNDUP(I28*IF(基本情報!$D$4="",0,VLOOKUP(基本情報!$D$4,雇用保険料率!$C:$D,2,0))-0.5,0),0),0) -> 0 | K28: =IF(OR(基本情報!$D$3="",基本情報!H28=""),0,HLOOKUP(基本情報!H28,計算シート!$Q$4:$S$34,ROW(計算シート!Q25)-3,0)) -> 0 | L28: =IF(OR(基本情報!$D$3="",基本情報!H28=""),0,HLOOKUP("子供子育て支援金",計算シート!$AE$4:$AF$34,ROW(計算シート!R25)-3,0)) -> 0 | M28: =IF(OR(基本情報!$D$3="",基本情報!I28=""),0,HLOOKUP(基本情報!I28,計算シート!$T$4:$V$34,ROW(計算シート!Q25)-3,0)) -> 0 | N28: 0 | O28: 0 | P28: =IF(基本情報!D28="","",HLOOKUP(基本情報!D28,計算シート!$E$4:$G$34,ROW(計算シート!E25)-3,0)) ->  | R28: 0
B29: 22 | C29: =IF(基本情報!C29="","",基本情報!C29) ->  | G29: 0 | I29: 0 | J29: =MAX(IF(基本情報!F29="○",ROUNDUP(I29*IF(基本情報!$D$4="",0,VLOOKUP(基本情報!$D$4,雇用保険料率!$C:$D,2,0))-0.5,0),0),0) -> 0 | K29: =IF(OR(基本情報!$D$3="",基本情報!H29=""),0,HLOOKUP(基本情報!H29,計算シート!$Q$4:$S$34,ROW(計算シート!Q26)-3,0)) -> 0 | L29: =IF(OR(基本情報!$D$3="",基本情報!H29=""),0,HLOOKUP("子供子育て支援金",計算シート!$AE$4:$AF$34,ROW(計算シート!R26)-3,0)) -> 0 | M29: =IF(OR(基本情報!$D$3="",基本情報!I29=""),0,HLOOKUP(基本情報!I29,計算シート!$T$4:$V$34,ROW(計算シート!Q26)-3,0)) -> 0 | N29: 0 | O29: 0 | P29: =IF(基本情報!D29="","",HLOOKUP(基本情報!D29,計算シート!$E$4:$G$34,ROW(計算シート!E26)-3,0)) ->  | R29: 0
B30: 23 | C30: =IF(基本情報!C30="","",基本情報!C30) ->  | G30: 0 | I30: 0 | J30: =MAX(IF(基本情報!F30="○",ROUNDUP(I30*IF(基本情報!$D$4="",0,VLOOKUP(基本情報!$D$4,雇用保険料率!$C:$D,2,0))-0.5,0),0),0) -> 0 | K30: =IF(OR(基本情報!$D$3="",基本情報!H30=""),0,HLOOKUP(基本情報!H30,計算シート!$Q$4:$S$34,ROW(計算シート!Q27)-3,0)) -> 0 | L30: =IF(OR(基本情報!$D$3="",基本情報!H30=""),0,HLOOKUP("子供子育て支援金",計算シート!$AE$4:$AF$34,ROW(計算シート!R27)-3,0)) -> 0 | M30: =IF(OR(基本情報!$D$3="",基本情報!I30=""),0,HLOOKUP(基本情報!I30,計算シート!$T$4:$V$34,ROW(計算シート!Q27)-3,0)) -> 0 | N30: 0 | O30: 0 | P30: =IF(基本情報!D30="","",HLOOKUP(基本情報!D30,計算シート!$E$4:$G$34,ROW(計算シート!E27)-3,0)) ->  | R30: 0
B31: 24 | C31: =IF(基本情報!C31="","",基本情報!C31) ->  | G31: 0 | I31: 0 | J31: =MAX(IF(基本情報!F31="○",ROUNDUP(I31*IF(基本情報!$D$4="",0,VLOOKUP(基本情報!$D$4,雇用保険料率!$C:$D,2,0))-0.5,0),0),0) -> 0 | K31: =IF(OR(基本情報!$D$3="",基本情報!H31=""),0,HLOOKUP(基本情報!H31,計算シート!$Q$4:$S$34,ROW(計算シート!Q28)-3,0)) -> 0 | L31: =IF(OR(基本情報!$D$3="",基本情報!H31=""),0,HLOOKUP("子供子育て支援金",計算シート!$AE$4:$AF$34,ROW(計算シート!R28)-3,0)) -> 0 | M31: =IF(OR(基本情報!$D$3="",基本情報!I31=""),0,HLOOKUP(基本情報!I31,計算シート!$T$4:$V$34,ROW(計算シート!Q28)-3,0)) -> 0 | N31: 0 | O31: 0 | P31: =IF(基本情報!D31="","",HLOOKUP(基本情報!D31,計算シート!$E$4:$G$34,ROW(計算シート!E28)-3,0)) ->  | R31: 0
B32: 25 | C32: =IF(基本情報!C32="","",基本情報!C32) ->  | G32: 0 | I32: 0 | J32: =MAX(IF(基本情報!F32="○",ROUNDUP(I32*IF(基本情報!$D$4="",0,VLOOKUP(基本情報!$D$4,雇用保険料率!$C:$D,2,0))-0.5,0),0),0) -> 0 | K32: =IF(OR(基本情報!$D$3="",基本情報!H32=""),0,HLOOKUP(基本情報!H32,計算シート!$Q$4:$S$34,ROW(計算シート!Q29)-3,0)) -> 0 | L32: =IF(OR(基本情報!$D$3="",基本情報!H32=""),0,HLOOKUP("子供子育て支援金",計算シート!$AE$4:$AF$34,ROW(計算シート!R29)-3,0)) -> 0 | M32: =IF(OR(基本情報!$D$3="",基本情報!I32=""),0,HLOOKUP(基本情報!I32,計算シート!$T$4:$V$34,ROW(計算シート!Q29)-3,0)) -> 0 | N32: 0 | O32: 0 | P32: =IF(基本情報!D32="","",HLOOKUP(基本情報!D32,計算シート!$E$4:$G$34,ROW(計算シート!E29)-3,0)) ->  | R32: 0
B33: 26 | C33: =IF(基本情報!C33="","",基本情報!C33) ->  | G33: 0 | I33: 0 | J33: =MAX(IF(基本情報!F33="○",ROUNDUP(I33*IF(基本情報!$D$4="",0,VLOOKUP(基本情報!$D$4,雇用保険料率!$C:$D,2,0))-0.5,0),0),0) -> 0 | K33: =IF(OR(基本情報!$D$3="",基本情報!H33=""),0,HLOOKUP(基本情報!H33,計算シート!$Q$4:$S$34,ROW(計算シート!Q30)-3,0)) -> 0 | L33: =IF(OR(基本情報!$D$3="",基本情報!H33=""),0,HLOOKUP("子供子育て支援金",計算シート!$AE$4:$AF$34,ROW(計算シート!R30)-3,0)) -> 0 | M33: =IF(OR(基本情報!$D$3="",基本情報!I33=""),0,HLOOKUP(基本情報!I33,計算シート!$T$4:$V$34,ROW(計算シート!Q30)-3,0)) -> 0 | N33: 0 | O33: 0 | P33: =IF(基本情報!D33="","",HLOOKUP(基本情報!D33,計算シート!$E$4:$G$34,ROW(計算シート!E30)-3,0)) ->  | R33: 0
B34: 27 | C34: =IF(基本情報!C34="","",基本情報!C34) ->  | G34: 0 | I34: 0 | J34: =MAX(IF(基本情報!F34="○",ROUNDUP(I34*IF(基本情報!$D$4="",0,VLOOKUP(基本情報!$D$4,雇用保険料率!$C:$D,2,0))-0.5,0),0),0) -> 0 | K34: =IF(OR(基本情報!$D$3="",基本情報!H34=""),0,HLOOKUP(基本情報!H34,計算シート!$Q$4:$S$34,ROW(計算シート!Q31)-3,0)) -> 0 | L34: =IF(OR(基本情報!$D$3="",基本情報!H34=""),0,HLOOKUP("子供子育て支援金",計算シート!$AE$4:$AF$34,ROW(計算シート!R31)-3,0)) -> 0 | M34: =IF(OR(基本情報!$D$3="",基本情報!I34=""),0,HLOOKUP(基本情報!I34,計算シート!$T$4:$V$34,ROW(計算シート!Q31)-3,0)) -> 0 | N34: 0 | O34: 0 | P34: =IF(基本情報!D34="","",HLOOKUP(基本情報!D34,計算シート!$E$4:$G$34,ROW(計算シート!E31)-3,0)) ->  | R34: 0
B35: 28 | C35: =IF(基本情報!C35="","",基本情報!C35) ->  | G35: 0 | I35: 0 | J35: =MAX(IF(基本情報!F35="○",ROUNDUP(I35*IF(基本情報!$D$4="",0,VLOOKUP(基本情報!$D$4,雇用保険料率!$C:$D,2,0))-0.5,0),0),0) -> 0 | K35: =IF(OR(基本情報!$D$3="",基本情報!H35=""),0,HLOOKUP(基本情報!H35,計算シート!$Q$4:$S$34,ROW(計算シート!Q32)-3,0)) -> 0 | L35: =IF(OR(基本情報!$D$3="",基本情報!H35=""),0,HLOOKUP("子供子育て支援金",計算シート!$AE$4:$AF$34,ROW(計算シート!R32)-3,0)) -> 0 | M35: =IF(OR(基本情報!$D$3="",基本情報!I35=""),0,HLOOKUP(基本情報!I35,計算シート!$T$4:$V$34,ROW(計算シート!Q32)-3,0)) -> 0 | N35: 0 | O35: 0 | P35: =IF(基本情報!D35="","",HLOOKUP(基本情報!D35,計算シート!$E$4:$G$34,ROW(計算シート!E32)-3,0)) ->  | R35: 0
B36: 29 | C36: =IF(基本情報!C36="","",基本情報!C36) ->  | G36: 0 | I36: 0 | J36: =MAX(IF(基本情報!F36="○",ROUNDUP(I36*IF(基本情報!$D$4="",0,VLOOKUP(基本情報!$D$4,雇用保険料率!$C:$D,2,0))-0.5,0),0),0) -> 0 | K36: =IF(OR(基本情報!$D$3="",基本情報!H36=""),0,HLOOKUP(基本情報!H36,計算シート!$Q$4:$S$34,ROW(計算シート!Q33)-3,0)) -> 0 | L36: =IF(OR(基本情報!$D$3="",基本情報!H36=""),0,HLOOKUP("子供子育て支援金",計算シート!$AE$4:$AF$34,ROW(計算シート!R33)-3,0)) -> 0 | M36: =IF(OR(基本情報!$D$3="",基本情報!I36=""),0,HLOOKUP(基本情報!I36,計算シート!$T$4:$V$34,ROW(計算シート!Q33)-3,0)) -> 0 | N36: 0 | O36: 0 | P36: =IF(基本情報!D36="","",HLOOKUP(基本情報!D36,計算シート!$E$4:$G$34,ROW(計算シート!E33)-3,0)) ->  | R36: 0
B37: 30 | C37: =IF(基本情報!C37="","",基本情報!C37) ->  | G37: 0 | I37: 0 | J37: =MAX(IF(基本情報!F37="○",ROUNDUP(I37*IF(基本情報!$D$4="",0,VLOOKUP(基本情報!$D$4,雇用保険料率!$C:$D,2,0))-0.5,0),0),0) -> 0 | K37: =IF(OR(基本情報!$D$3="",基本情報!H37=""),0,HLOOKUP(基本情報!H37,計算シート!$Q$4:$S$34,ROW(計算シート!Q34)-3,0)) -> 0 | L37: =IF(OR(基本情報!$D$3="",基本情報!H37=""),0,HLOOKUP("子供子育て支援金",計算シート!$AE$4:$AF$34,ROW(計算シート!R34)-3,0)) -> 0 | M37: =IF(OR(基本情報!$D$3="",基本情報!I37=""),0,HLOOKUP(基本情報!I37,計算シート!$T$4:$V$34,ROW(計算シート!Q34)-3,0)) -> 0 | N37: 0 | O37: 0 | P37: =IF(基本情報!D37="","",HLOOKUP(基本情報!D37,計算シート!$E$4:$G$34,ROW(計算シート!E34)-3,0)) ->  | R37: 0

Sheet 賞与計算
B2: =基本情報!D2 -> 令和８年３月 | E2: ※シートの保護は解除できます。
B3: 賞与計算 | E3: 集計 | F3: =F6 -> 賞与金額 | G3: =G7 -> 雇用保険 | H3: =H7 -> 健康保険 | I3: （子育て支援金） | J3: =J7 -> 厚生年金 | K3: =K7 -> 社会保険合計 | L3: =L6 -> 社会保険料控除後の総支給額 | M3: =M6 -> 源泉所得税 | N3: =N6 -> 差引支給額
F4: =SUM(F8:F37) -> 900000 | G4: =SUM(G8:G37) -> 1650 | H4: 43450 | I4: 920 | J4: 73200 | K4: =SUM(K8:K37) -> 118300 | L4: 781700 | M4: 81501 | N4: 700199
B6: NO. | C6: 名前 | D6: 前月の社会保険料控除後の給与 | E6: 税率 | F6: 賞与金額 | G6: 社会保険 | L6: 社会保険料控除後の総支給額 | M6: 源泉所得税 | N6: 差引支給額 | O6: 備考
G7: 雇用保険 | H7: 健康保険 | I7: （子育て支援） | J7: 厚生年金 | K7: 社会保険合計
B8: 1 | C8: =IF(基本情報!C8="","",基本情報!C8) -> 給与一郎 | D8: 466112 | E8: =IF(D8="",0,IF(基本情報!D8="",0,IF(基本情報!D8="甲欄",IF(基本情報!E8>7,計算シート!O5,HLOOKUP(基本情報!E8,計算シート!$H$4:$P$34,ROW(計算シート!H5)-3,0))&"%",計算シート!P5&"%"))) -> 14.294% | F8: 500000 | G8: =MAX(IF(基本情報!F8="○",ROUNDUP((F8)*IF(基本情報!$D$4="",0,VLOOKUP(基本情報!$D$4,雇用保険料率!$C:$D,2,0))-0.5,0),0),0) -> 0 | H8: =IF(OR(基本情報!$D$3="",基本情報!H8=""),0,HLOOKUP(基本情報!H8,計算シート!$Y$4:$AA$34,ROW(計算シート!Y5)-3,0)) -> 28675 | I8: =IF(OR(基本情報!$D$3="",基本情報!H8=""),0,HLOOKUP("子供子育て支援金",計算シート!$AG$4:$AH$34,ROW(計算シート!R5)-3,0)) -> 575 | J8: =IF(OR(基本情報!$D$3="",基本情報!I8=""),0,HLOOKUP(基本情報!I8,計算シート!$AB$4:$AD$34,ROW(計算シート!Y5)-3,0)) -> 45750 | K8: =G8+H8+J8 -> 74425 | L8: =F8-G8-H8-J8 -> 425575 | M8: =IF(D8="","",ROUNDDOWN(E8*L8,0)) -> 60831 | N8: =L8-IF(M8="",0,M8) -> 364744
B9: 2 | C9: =IF(基本情報!C9="","",基本情報!C9) -> 給与二郎 | D9: 256830 | E9: =IF(D9="",0,IF(基本情報!D9="",0,IF(基本情報!D9="甲欄",IF(基本情報!E9>7,計算シート!O6,HLOOKUP(基本情報!E9,計算シート!$H$4:$P$34,ROW(計算シート!H6)-3,0))&"%",計算シート!P6&"%"))) -> 4.084% | F9: 300000 | G9: =MAX(IF(基本情報!F9="○",ROUNDUP((F9)*IF(基本情報!$D$4="",0,VLOOKUP(基本情報!$D$4,雇用保険料率!$C:$D,2,0))-0.5,0),0),0) -> 1650 | H9: =IF(OR(基本情報!$D$3="",基本情報!H9=""),0,HLOOKUP(基本情報!H9,計算シート!$Y$4:$AA$34,ROW(計算シート!Y6)-3,0)) -> 14775 | I9: =IF(OR(基本情報!$D$3="",基本情報!H9=""),0,HLOOKUP("子供子育て支援金",計算シート!$AG$4:$AH$34,ROW(計算シート!R6)-3,0)) -> 345 | J9: =IF(OR(基本情報!$D$3="",基本情報!I9=""),0,HLOOKUP(基本情報!I9,計算シート!$AB$4:$AD$34,ROW(計算シート!Y6)-3,0)) -> 27450 | K9: =G9+H9+J9 -> 43875 | L9: 256125 | M9: 10460 | N9: =L9-IF(M9="",0,M9) -> 245665
B10: 3 | C10: =IF(基本情報!C10="","",基本情報!C10) -> 給与三郎 | D10: 100000 | E10: =IF(D10="",0,IF(基本情報!D10="",0,IF(基本情報!D10="甲欄",IF(基本情報!E10>7,計算シート!O7,HLOOKUP(基本情報!E10,計算シート!$H$4:$P$34,ROW(計算シート!H7)-3,0))&"%",計算シート!P7&"%"))) -> 10.21% | F10: 100000 | G10: =MAX(IF(基本情報!F10="○",ROUNDUP((F10)*IF(基本情報!$D$4="",0,VLOOKUP(基本情報!$D$4,雇用保険料率!$C:$D,2,0))-0.5,0),0),0) -> 0 | H10: =IF(OR(基本情報!$D$3="",基本情報!H10=""),0,HLOOKUP(基本情報!H10,計算シート!$Y$4:$AA$34,ROW(計算シート!Y7)-3,0)) -> 0 | I10: =IF(OR(基本情報!$D$3="",基本情報!H10=""),0,HLOOKUP("子供子育て支援金",計算シート!$AG$4:$AH$34,ROW(計算シート!R7)-3,0)) -> 0 | J10: =IF(OR(基本情報!$D$3="",基本情報!I10=""),0,HLOOKUP(基本情報!I10,計算シート!$AB$4:$AD$34,ROW(計算シート!Y7)-3,0)) -> 0 | K10: 0 | L10: 100000 | M10: 10210 | N10: 89790
B11: 4 | C11: =IF(基本情報!C11="","",基本情報!C11) ->  | E11: =IF(D11="",0,IF(基本情報!D11="",0,IF(基本情報!D11="甲欄",IF(基本情報!E11>7,計算シート!O8,HLOOKUP(基本情報!E11,計算シート!$H$4:$P$34,ROW(計算シート!H8)-3,0))&"%",計算シート!P8&"%"))) -> 0 | G11: =MAX(IF(基本情報!F11="○",ROUNDUP((F11)*IF(基本情報!$D$4="",0,VLOOKUP(基本情報!$D$4,雇用保険料率!$C:$D,2,0))-0.5,0),0),0) -> 0 | H11: =IF(OR(基本情報!$D$3="",基本情報!H11=""),0,HLOOKUP(基本情報!H11,計算シート!$Y$4:$AA$34,ROW(計算シート!Y8)-3,0)) -> 0 | I11: =IF(OR(基本情報!$D$3="",基本情報!H11=""),0,HLOOKUP("子供子育て支援金",計算シート!$AG$4:$AH$34,ROW(計算シート!R8)-3,0)) -> 0 | J11: =IF(OR(基本情報!$D$3="",基本情報!I11=""),0,HLOOKUP(基本情報!I11,計算シート!$AB$4:$AD$34,ROW(計算シート!Y8)-3,0)) -> 0 | K11: 0 | L11: 0 | N11: 0
B12: 5 | C12: =IF(基本情報!C12="","",基本情報!C12) ->  | E12: =IF(D12="",0,IF(基本情報!D12="",0,IF(基本情報!D12="甲欄",IF(基本情報!E12>7,計算シート!O9,HLOOKUP(基本情報!E12,計算シート!$H$4:$P$34,ROW(計算シート!H9)-3,0))&"%",計算シート!P9&"%"))) -> 0 | G12: =MAX(IF(基本情報!F12="○",ROUNDUP((F12)*IF(基本情報!$D$4="",0,VLOOKUP(基本情報!$D$4,雇用保険料率!$C:$D,2,0))-0.5,0),0),0) -> 0 | H12: =IF(OR(基本情報!$D$3="",基本情報!H12=""),0,HLOOKUP(基本情報!H12,計算シート!$Y$4:$AA$34,ROW(計算シート!Y9)-3,0)) -> 0 | I12: =IF(OR(基本情報!$D$3="",基本情報!H12=""),0,HLOOKUP("子供子育て支援金",計算シート!$AG$4:$AH$34,ROW(計算シート!R9)-3,0)) -> 0 | J12: =IF(OR(基本情報!$D$3="",基本情報!I12=""),0,HLOOKUP(基本情報!I12,計算シート!$AB$4:$AD$34,ROW(計算シート!Y9)-3,0)) -> 0 | K12: 0 | L12: 0 | N12: 0
B13: 6 | C13: =IF(基本情報!C13="","",基本情報!C13) ->  | E13: =IF(D13="",0,IF(基本情報!D13="",0,IF(基本情報!D13="甲欄",IF(基本情報!E13>7,計算シート!O10,HLOOKUP(基本情報!E13,計算シート!$H$4:$P$34,ROW(計算シート!H10)-3,0))&"%",計算シート!P10&"%"))) -> 0 | G13: =MAX(IF(基本情報!F13="○",ROUNDUP((F13)*IF(基本情報!$D$4="",0,VLOOKUP(基本情報!$D$4,雇用保険料率!$C:$D,2,0))-0.5,0),0),0) -> 0 | H13: =IF(OR(基本情報!$D$3="",基本情報!H13=""),0,HLOOKUP(基本情報!H13,計算シート!$Y$4:$AA$34,ROW(計算シート!Y10)-3,0)) -> 0 | I13: =IF(OR(基本情報!$D$3="",基本情報!H13=""),0,HLOOKUP("子供子育て支援金",計算シート!$AG$4:$AH$34,ROW(計算シート!R10)-3,0)) -> 0 | J13: =IF(OR(基本情報!$D$3="",基本情報!I13=""),0,HLOOKUP(基本情報!I13,計算シート!$AB$4:$AD$34,ROW(計算シート!Y10)-3,0)) -> 0 | K13: 0 | L13: 0 | N13: 0
B14: 7 | C14: =IF(基本情報!C14="","",基本情報!C14) ->  | E14: =IF(D14="",0,IF(基本情報!D14="",0,IF(基本情報!D14="甲欄",IF(基本情報!E14>7,計算シート!O11,HLOOKUP(基本情報!E14,計算シート!$H$4:$P$34,ROW(計算シート!H11)-3,0))&"%",計算シート!P11&"%"))) -> 0 | G14: =MAX(IF(基本情報!F14="○",ROUNDUP((F14)*IF(基本情報!$D$4="",0,VLOOKUP(基本情報!$D$4,雇用保険料率!$C:$D,2,0))-0.5,0),0),0) -> 0 | H14: =IF(OR(基本情報!$D$3="",基本情報!H14=""),0,HLOOKUP(基本情報!H14,計算シート!$Y$4:$AA$34,ROW(計算シート!Y11)-3,0)) -> 0 | I14: =IF(OR(基本情報!$D$3="",基本情報!H14=""),0,HLOOKUP("子供子育て支援金",計算シート!$AG$4:$AH$34,ROW(計算シート!R11)-3,0)) -> 0 | J14: =IF(OR(基本情報!$D$3="",基本情報!I14=""),0,HLOOKUP(基本情報!I14,計算シート!$AB$4:$AD$34,ROW(計算シート!Y11)-3,0)) -> 0 | K14: 0 | L14: 0 | N14: 0
B15: 8 | C15: =IF(基本情報!C15="","",基本情報!C15) ->  | E15: =IF(D15="",0,IF(基本情報!D15="",0,IF(基本情報!D15="甲欄",IF(基本情報!E15>7,計算シート!O12,HLOOKUP(基本情報!E15,計算シート!$H$4:$P$34,ROW(計算シート!H12)-3,0))&"%",計算シート!P12&"%"))) -> 0 | G15: =MAX(IF(基本情報!F15="○",ROUNDUP((F15)*IF(基本情報!$D$4="",0,VLOOKUP(基本情報!$D$4,雇用保険料率!$C:$D,2,0))-0.5,0),0),0) -> 0 | H15: =IF(OR(基本情報!$D$3="",基本情報!H15=""),0,HLOOKUP(基本情報!H15,計算シート!$Y$4:$AA$34,ROW(計算シート!Y12)-3,0)) -> 0 | I15: =IF(OR(基本情報!$D$3="",基本情報!H15=""),0,HLOOKUP("子供子育て支援金",計算シート!$AG$4:$AH$34,ROW(計算シート!R12)-3,0)) -> 0 | J15: =IF(OR(基本情報!$D$3="",基本情報!I15=""),0,HLOOKUP(基本情報!I15,計算シート!$AB$4:$AD$34,ROW(計算シート!Y12)-3,0)) -> 0 | K15: 0 | L15: 0 | N15: 0
B16: 9 | C16: =IF(基本情報!C16="","",基本情報!C16) ->  | E16: =IF(D16="",0,IF(基本情報!D16="",0,IF(基本情報!D16="甲欄",IF(基本情報!E16>7,計算シート!O13,HLOOKUP(基本情報!E16,計算シート!$H$4:$P$34,ROW(計算シート!H13)-3,0))&"%",計算シート!P13&"%"))) -> 0 | G16: =MAX(IF(基本情報!F16="○",ROUNDUP((F16)*IF(基本情報!$D$4="",0,VLOOKUP(基本情報!$D$4,雇用保険料率!$C:$D,2,0))-0.5,0),0),0) -> 0 | H16: =IF(OR(基本情報!$D$3="",基本情報!H16=""),0,HLOOKUP(基本情報!H16,計算シート!$Y$4:$AA$34,ROW(計算シート!Y13)-3,0)) -> 0 | I16: =IF(OR(基本情報!$D$3="",基本情報!H16=""),0,HLOOKUP("子供子育て支援金",計算シート!$AG$4:$AH$34,ROW(計算シート!R13)-3,0)) -> 0 | J16: =IF(OR(基本情報!$D$3="",基本情報!I16=""),0,HLOOKUP(基本情報!I16,計算シート!$AB$4:$AD$34,ROW(計算シート!Y13)-3,0)) -> 0 | K16: 0 | L16: 0 | N16: 0
B17: 10 | C17: =IF(基本情報!C17="","",基本情報!C17) ->  | E17: =IF(D17="",0,IF(基本情報!D17="",0,IF(基本情報!D17="甲欄",IF(基本情報!E17>7,計算シート!O14,HLOOKUP(基本情報!E17,計算シート!$H$4:$P$34,ROW(計算シート!H14)-3,0))&"%",計算シート!P14&"%"))) -> 0 | G17: =MAX(IF(基本情報!F17="○",ROUNDUP((F17)*IF(基本情報!$D$4="",0,VLOOKUP(基本情報!$D$4,雇用保険料率!$C:$D,2,0))-0.5,0),0),0) -> 0 | H17: =IF(OR(基本情報!$D$3="",基本情報!H17=""),0,HLOOKUP(基本情報!H17,計算シート!$Y$4:$AA$34,ROW(計算シート!Y14)-3,0)) -> 0 | I17: =IF(OR(基本情報!$D$3="",基本情報!H17=""),0,HLOOKUP("子供子育て支援金",計算シート!$AG$4:$AH$34,ROW(計算シート!R14)-3,0)) -> 0 | J17: =IF(OR(基本情報!$D$3="",基本情報!I17=""),0,HLOOKUP(基本情報!I17,計算シート!$AB$4:$AD$34,ROW(計算シート!Y14)-3,0)) -> 0 | K17: 0 | L17: 0 | N17: 0
B18: 11 | C18: =IF(基本情報!C18="","",基本情報!C18) ->  | E18: =IF(D18="",0,IF(基本情報!D18="",0,IF(基本情報!D18="甲欄",IF(基本情報!E18>7,計算シート!O15,HLOOKUP(基本情報!E18,計算シート!$H$4:$P$34,ROW(計算シート!H15)-3,0))&"%",計算シート!P15&"%"))) -> 0 | G18: =MAX(IF(基本情報!F18="○",ROUNDUP((F18)*IF(基本情報!$D$4="",0,VLOOKUP(基本情報!$D$4,雇用保険料率!$C:$D,2,0))-0.5,0),0),0) -> 0 | H18: =IF(OR(基本情報!$D$3="",基本情報!H18=""),0,HLOOKUP(基本情報!H18,計算シート!$Y$4:$AA$34,ROW(計算シート!Y15)-3,0)) -> 0 | I18: =IF(OR(基本情報!$D$3="",基本情報!H18=""),0,HLOOKUP("子供子育て支援金",計算シート!$AG$4:$AH$34,ROW(計算シート!R15)-3,0)) -> 0 | J18: =IF(OR(基本情報!$D$3="",基本情報!I18=""),0,HLOOKUP(基本情報!I18,計算シート!$AB$4:$AD$34,ROW(計算シート!Y15)-3,0)) -> 0 | K18: 0 | L18: 0 | N18: 0
B19: 12 | C19: =IF(基本情報!C19="","",基本情報!C19) ->  | E19: =IF(D19="",0,IF(基本情報!D19="",0,IF(基本情報!D19="甲欄",IF(基本情報!E19>7,計算シート!O16,HLOOKUP(基本情報!E19,計算シート!$H$4:$P$34,ROW(計算シート!H16)-3,0))&"%",計算シート!P16&"%"))) -> 0 | G19: =MAX(IF(基本情報!F19="○",ROUNDUP((F19)*IF(基本情報!$D$4="",0,VLOOKUP(基本情報!$D$4,雇用保険料率!$C:$D,2,0))-0.5,0),0),0) -> 0 | H19: =IF(OR(基本情報!$D$3="",基本情報!H19=""),0,HLOOKUP(基本情報!H19,計算シート!$Y$4:$AA$34,ROW(計算シート!Y16)-3,0)) -> 0 | I19: =IF(OR(基本情報!$D$3="",基本情報!H19=""),0,HLOOKUP("子供子育て支援金",計算シート!$AG$4:$AH$34,ROW(計算シート!R16)-3,0)) -> 0 | J19: =IF(OR(基本情報!$D$3="",基本情報!I19=""),0,HLOOKUP(基本情報!I19,計算シート!$AB$4:$AD$34,ROW(計算シート!Y16)-3,0)) -> 0 | K19: 0 | L19: 0 | N19: 0
B20: 13 | C20: =IF(基本情報!C20="","",基本情報!C20) ->  | E20: =IF(D20="",0,IF(基本情報!D20="",0,IF(基本情報!D20="甲欄",IF(基本情報!E20>7,計算シート!O17,HLOOKUP(基本情報!E20,計算シート!$H$4:$P$34,ROW(計算シート!H17)-3,0))&"%",計算シート!P17&"%"))) -> 0 | G20: =MAX(IF(基本情報!F20="○",ROUNDUP((F20)*IF(基本情報!$D$4="",0,VLOOKUP(基本情報!$D$4,雇用保険料率!$C:$D,2,0))-0.5,0),0),0) -> 0 | H20: =IF(OR(基本情報!$D$3="",基本情報!H20=""),0,HLOOKUP(基本情報!H20,計算シート!$Y$4:$AA$34,ROW(計算シート!Y17)-3,0)) -> 0 | I20: =IF(OR(基本情報!$D$3="",基本情報!H20=""),0,HLOOKUP("子供子育て支援金",計算シート!$AG$4:$AH$34,ROW(計算シート!R17)-3,0)) -> 0 | J20: =IF(OR(基本情報!$D$3="",基本情報!I20=""),0,HLOOKUP(基本情報!I20,計算シート!$AB$4:$AD$34,ROW(計算シート!Y17)-3,0)) -> 0 | K20: 0 | L20: 0 | N20: 0
B21: 14 | C21: =IF(基本情報!C21="","",基本情報!C21) ->  | E21: =IF(D21="",0,IF(基本情報!D21="",0,IF(基本情報!D21="甲欄",IF(基本情報!E21>7,計算シート!O18,HLOOKUP(基本情報!E21,計算シート!$H$4:$P$34,ROW(計算シート!H18)-3,0))&"%",計算シート!P18&"%"))) -> 0 | G21: =MAX(IF(基本情報!F21="○",ROUNDUP((F21)*IF(基本情報!$D$4="",0,VLOOKUP(基本情報!$D$4,雇用保険料率!$C:$D,2,0))-0.5,0),0),0) -> 0 | H21: =IF(OR(基本情報!$D$3="",基本情報!H21=""),0,HLOOKUP(基本情報!H21,計算シート!$Y$4:$AA$34,ROW(計算シート!Y18)-3,0)) -> 0 | I21: =IF(OR(基本情報!$D$3="",基本情報!H21=""),0,HLOOKUP("子供子育て支援金",計算シート!$AG$4:$AH$34,ROW(計算シート!R18)-3,0)) -> 0 | J21: =IF(OR(基本情報!$D$3="",基本情報!I21=""),0,HLOOKUP(基本情報!I21,計算シート!$AB$4:$AD$34,ROW(計算シート!Y18)-3,0)) -> 0 | K21: 0 | L21: 0 | N21: 0
B22: 15 | C22: =IF(基本情報!C22="","",基本情報!C22) ->  | E22: =IF(D22="",0,IF(基本情報!D22="",0,IF(基本情報!D22="甲欄",IF(基本情報!E22>7,計算シート!O19,HLOOKUP(基本情報!E22,計算シート!$H$4:$P$34,ROW(計算シート!H19)-3,0))&"%",計算シート!P19&"%"))) -> 0 | G22: =MAX(IF(基本情報!F22="○",ROUNDUP((F22)*IF(基本情報!$D$4="",0,VLOOKUP(基本情報!$D$4,雇用保険料率!$C:$D,2,0))-0.5,0),0),0) -> 0 | H22: =IF(OR(基本情報!$D$3="",基本情報!H22=""),0,HLOOKUP(基本情報!H22,計算シート!$Y$4:$AA$34,ROW(計算シート!Y19)-3,0)) -> 0 | I22: =IF(OR(基本情報!$D$3="",基本情報!H22=""),0,HLOOKUP("子供子育て支援金",計算シート!$AG$4:$AH$34,ROW(計算シート!R19)-3,0)) -> 0 | J22: =IF(OR(基本情報!$D$3="",基本情報!I22=""),0,HLOOKUP(基本情報!I22,計算シート!$AB$4:$AD$34,ROW(計算シート!Y19)-3,0)) -> 0 | K22: 0 | L22: 0 | N22: 0
B23: 16 | C23: =IF(基本情報!C23="","",基本情報!C23) ->  | E23: =IF(D23="",0,IF(基本情報!D23="",0,IF(基本情報!D23="甲欄",IF(基本情報!E23>7,計算シート!O20,HLOOKUP(基本情報!E23,計算シート!$H$4:$P$34,ROW(計算シート!H20)-3,0))&"%",計算シート!P20&"%"))) -> 0 | G23: =MAX(IF(基本情報!F23="○",ROUNDUP((F23)*IF(基本情報!$D$4="",0,VLOOKUP(基本情報!$D$4,雇用保険料率!$C:$D,2,0))-0.5,0),0),0) -> 0 | H23: =IF(OR(基本情報!$D$3="",基本情報!H23=""),0,HLOOKUP(基本情報!H23,計算シート!$Y$4:$AA$34,ROW(計算シート!Y20)-3,0)) -> 0 | I23: =IF(OR(基本情報!$D$3="",基本情報!H23=""),0,HLOOKUP("子供子育て支援金",計算シート!$AG$4:$AH$34,ROW(計算シート!R20)-3,0)) -> 0 | J23: =IF(OR(基本情報!$D$3="",基本情報!I23=""),0,HLOOKUP(基本情報!I23,計算シート!$AB$4:$AD$34,ROW(計算シート!Y20)-3,0)) -> 0 | K23: 0 | L23: 0 | N23: 0
B24: 17 | C24: =IF(基本情報!C24="","",基本情報!C24) ->  | E24: =IF(D24="",0,IF(基本情報!D24="",0,IF(基本情報!D24="甲欄",IF(基本情報!E24>7,計算シート!O21,HLOOKUP(基本情報!E24,計算シート!$H$4:$P$34,ROW(計算シート!H21)-3,0))&"%",計算シート!P21&"%"))) -> 0 | G24: =MAX(IF(基本情報!F24="○",ROUNDUP((F24)*IF(基本情報!$D$4="",0,VLOOKUP(基本情報!$D$4,雇用保険料率!$C:$D,2,0))-0.5,0),0),0) -> 0 | H24: =IF(OR(基本情報!$D$3="",基本情報!H24=""),0,HLOOKUP(基本情報!H24,計算シート!$Y$4:$AA$34,ROW(計算シート!Y21)-3,0)) -> 0 | I24: =IF(OR(基本情報!$D$3="",基本情報!H24=""),0,HLOOKUP("子供子育て支援金",計算シート!$AG$4:$AH$34,ROW(計算シート!R21)-3,0)) -> 0 | J24: =IF(OR(基本情報!$D$3="",基本情報!I24=""),0,HLOOKUP(基本情報!I24,計算シート!$AB$4:$AD$34,ROW(計算シート!Y21)-3,0)) -> 0 | K24: 0 | L24: 0 | N24: 0
B25: 18 | C25: =IF(基本情報!C25="","",基本情報!C25) ->  | E25: =IF(D25="",0,IF(基本情報!D25="",0,IF(基本情報!D25="甲欄",IF(基本情報!E25>7,計算シート!O22,HLOOKUP(基本情報!E25,計算シート!$H$4:$P$34,ROW(計算シート!H22)-3,0))&"%",計算シート!P22&"%"))) -> 0 | G25: =MAX(IF(基本情報!F25="○",ROUNDUP((F25)*IF(基本情報!$D$4="",0,VLOOKUP(基本情報!$D$4,雇用保険料率!$C:$D,2,0))-0.5,0),0),0) -> 0 | H25: =IF(OR(基本情報!$D$3="",基本情報!H25=""),0,HLOOKUP(基本情報!H25,計算シート!$Y$4:$AA$34,ROW(計算シート!Y22)-3,0)) -> 0 | I25: =IF(OR(基本情報!$D$3="",基本情報!H25=""),0,HLOOKUP("子供子育て支援金",計算シート!$AG$4:$AH$34,ROW(計算シート!R22)-3,0)) -> 0 | J25: =IF(OR(基本情報!$D$3="",基本情報!I25=""),0,HLOOKUP(基本情報!I25,計算シート!$AB$4:$AD$34,ROW(計算シート!Y22)-3,0)) -> 0 | K25: 0 | L25: 0 | N25: 0
B26: 19 | C26: =IF(基本情報!C26="","",基本情報!C26) ->  | E26: =IF(D26="",0,IF(基本情報!D26="",0,IF(基本情報!D26="甲欄",IF(基本情報!E26>7,計算シート!O23,HLOOKUP(基本情報!E26,計算シート!$H$4:$P$34,ROW(計算シート!H23)-3,0))&"%",計算シート!P23&"%"))) -> 0 | G26: =MAX(IF(基本情報!F26="○",ROUNDUP((F26)*IF(基本情報!$D$4="",0,VLOOKUP(基本情報!$D$4,雇用保険料率!$C:$D,2,0))-0.5,0),0),0) -> 0 | H26: =IF(OR(基本情報!$D$3="",基本情報!H26=""),0,HLOOKUP(基本情報!H26,計算シート!$Y$4:$AA$34,ROW(計算シート!Y23)-3,0)) -> 0 | I26: =IF(OR(基本情報!$D$3="",基本情報!H26=""),0,HLOOKUP("子供子育て支援金",計算シート!$AG$4:$AH$34,ROW(計算シート!R23)-3,0)) -> 0 | J26: =IF(OR(基本情報!$D$3="",基本情報!I26=""),0,HLOOKUP(基本情報!I26,計算シート!$AB$4:$AD$34,ROW(計算シート!Y23)-3,0)) -> 0 | K26: 0 | L26: 0 | N26: 0
B27: 20 | C27: =IF(基本情報!C27="","",基本情報!C27) ->  | E27: =IF(D27="",0,IF(基本情報!D27="",0,IF(基本情報!D27="甲欄",IF(基本情報!E27>7,計算シート!O24,HLOOKUP(基本情報!E27,計算シート!$H$4:$P$34,ROW(計算シート!H24)-3,0))&"%",計算シート!P24&"%"))) -> 0 | G27: =MAX(IF(基本情報!F27="○",ROUNDUP((F27)*IF(基本情報!$D$4="",0,VLOOKUP(基本情報!$D$4,雇用保険料率!$C:$D,2,0))-0.5,0),0),0) -> 0 | H27: =IF(OR(基本情報!$D$3="",基本情報!H27=""),0,HLOOKUP(基本情報!H27,計算シート!$Y$4:$AA$34,ROW(計算シート!Y24)-3,0)) -> 0 | I27: =IF(OR(基本情報!$D$3="",基本情報!H27=""),0,HLOOKUP("子供子育て支援金",計算シート!$AG$4:$AH$34,ROW(計算シート!R24)-3,0)) -> 0 | J27: =IF(OR(基本情報!$D$3="",基本情報!I27=""),0,HLOOKUP(基本情報!I27,計算シート!$AB$4:$AD$34,ROW(計算シート!Y24)-3,0)) -> 0 | K27: 0 | L27: 0 | N27: 0
B28: 21 | C28: =IF(基本情報!C28="","",基本情報!C28) ->  | E28: =IF(D28="",0,IF(基本情報!D28="",0,IF(基本情報!D28="甲欄",IF(基本情報!E28>7,計算シート!O25,HLOOKUP(基本情報!E28,計算シート!$H$4:$P$34,ROW(計算シート!H25)-3,0))&"%",計算シート!P25&"%"))) -> 0 | G28: =MAX(IF(基本情報!F28="○",ROUNDUP((F28)*IF(基本情報!$D$4="",0,VLOOKUP(基本情報!$D$4,雇用保険料率!$C:$D,2,0))-0.5,0),0),0) -> 0 | H28: =IF(OR(基本情報!$D$3="",基本情報!H28=""),0,HLOOKUP(基本情報!H28,計算シート!$Y$4:$AA$34,ROW(計算シート!Y25)-3,0)) -> 0 | I28: =IF(OR(基本情報!$D$3="",基本情報!H28=""),0,HLOOKUP("子供子育て支援金",計算シート!$AG$4:$AH$34,ROW(計算シート!R25)-3,0)) -> 0 | J28: =IF(OR(基本情報!$D$3="",基本情報!I28=""),0,HLOOKUP(基本情報!I28,計算シート!$AB$4:$AD$34,ROW(計算シート!Y25)-3,0)) -> 0 | K28: 0 | L28: 0 | N28: 0
B29: 22 | C29: =IF(基本情報!C29="","",基本情報!C29) ->  | E29: =IF(D29="",0,IF(基本情報!D29="",0,IF(基本情報!D29="甲欄",IF(基本情報!E29>7,計算シート!O26,HLOOKUP(基本情報!E29,計算シート!$H$4:$P$34,ROW(計算シート!H26)-3,0))&"%",計算シート!P26&"%"))) -> 0 | G29: =MAX(IF(基本情報!F29="○",ROUNDUP((F29)*IF(基本情報!$D$4="",0,VLOOKUP(基本情報!$D$4,雇用保険料率!$C:$D,2,0))-0.5,0),0),0) -> 0 | H29: =IF(OR(基本情報!$D$3="",基本情報!H29=""),0,HLOOKUP(基本情報!H29,計算シート!$Y$4:$AA$34,ROW(計算シート!Y26)-3,0)) -> 0 | I29: =IF(OR(基本情報!$D$3="",基本情報!H29=""),0,HLOOKUP("子供子育て支援金",計算シート!$AG$4:$AH$34,ROW(計算シート!R26)-3,0)) -> 0 | J29: =IF(OR(基本情報!$D$3="",基本情報!I29=""),0,HLOOKUP(基本情報!I29,計算シート!$AB$4:$AD$34,ROW(計算シート!Y26)-3,0)) -> 0 | K29: 0 | L29: 0 | N29: 0
B30: 23 | C30: =IF(基本情報!C30="","",基本情報!C30) ->  | E30: =IF(D30="",0,IF(基本情報!D30="",0,IF(基本情報!D30="甲欄",IF(基本情報!E30>7,計算シート!O27,HLOOKUP(基本情報!E30,計算シート!$H$4:$P$34,ROW(計算シート!H27)-3,0))&"%",計算シート!P27&"%"))) -> 0 | G30: =MAX(IF(基本情報!F30="○",ROUNDUP((F30)*IF(基本情報!$D$4="",0,VLOOKUP(基本情報!$D$4,雇用保険料率!$C:$D,2,0))-0.5,0),0),0) -> 0 | H30: =IF(OR(基本情報!$D$3="",基本情報!H30=""),0,HLOOKUP(基本情報!H30,計算シート!$Y$4:$AA$34,ROW(計算シート!Y27)-3,0)) -> 0 | I30: =IF(OR(基本情報!$D$3="",基本情報!H30=""),0,HLOOKUP("子供子育て支援金",計算シート!$AG$4:$AH$34,ROW(計算シート!R27)-3,0)) -> 0 | J30: =IF(OR(基本情報!$D$3="",基本情報!I30=""),0,HLOOKUP(基本情報!I30,計算シート!$AB$4:$AD$34,ROW(計算シート!Y27)-3,0)) -> 0 | K30: 0 | L30: 0 | N30: 0
B31: 24 | C31: =IF(基本情報!C31="","",基本情報!C31) ->  | E31: =IF(D31="",0,IF(基本情報!D31="",0,IF(基本情報!D31="甲欄",IF(基本情報!E31>7,計算シート!O28,HLOOKUP(基本情報!E31,計算シート!$H$4:$P$34,ROW(計算シート!H28)-3,0))&"%",計算シート!P28&"%"))) -> 0 | G31: =MAX(IF(基本情報!F31="○",ROUNDUP((F31)*IF(基本情報!$D$4="",0,VLOOKUP(基本情報!$D$4,雇用保険料率!$C:$D,2,0))-0.5,0),0),0) -> 0 | H31: =IF(OR(基本情報!$D$3="",基本情報!H31=""),0,HLOOKUP(基本情報!H31,計算シート!$Y$4:$AA$34,ROW(計算シート!Y28)-3,0)) -> 0 | I31: =IF(OR(基本情報!$D$3="",基本情報!H31=""),0,HLOOKUP("子供子育て支援金",計算シート!$AG$4:$AH$34,ROW(計算シート!R28)-3,0)) -> 0 | J31: =IF(OR(基本情報!$D$3="",基本情報!I31=""),0,HLOOKUP(基本情報!I31,計算シート!$AB$4:$AD$34,ROW(計算シート!Y28)-3,0)) -> 0 | K31: 0 | L31: 0 | N31: 0
B32: 25 | C32: =IF(基本情報!C32="","",基本情報!C32) ->  | E32: =IF(D32="",0,IF(基本情報!D32="",0,IF(基本情報!D32="甲欄",IF(基本情報!E32>7,計算シート!O29,HLOOKUP(基本情報!E32,計算シート!$H$4:$P$34,ROW(計算シート!H29)-3,0))&"%",計算シート!P29&"%"))) -> 0 | G32: =MAX(IF(基本情報!F32="○",ROUNDUP((F32)*IF(基本情報!$D$4="",0,VLOOKUP(基本情報!$D$4,雇用保険料率!$C:$D,2,0))-0.5,0),0),0) -> 0 | H32: =IF(OR(基本情報!$D$3="",基本情報!H32=""),0,HLOOKUP(基本情報!H32,計算シート!$Y$4:$AA$34,ROW(計算シート!Y29)-3,0)) -> 0 | I32: =IF(OR(基本情報!$D$3="",基本情報!H32=""),0,HLOOKUP("子供子育て支援金",計算シート!$AG$4:$AH$34,ROW(計算シート!R29)-3,0)) -> 0 | J32: =IF(OR(基本情報!$D$3="",基本情報!I32=""),0,HLOOKUP(基本情報!I32,計算シート!$AB$4:$AD$34,ROW(計算シート!Y29)-3,0)) -> 0 | K32: 0 | L32: 0 | N32: 0
B33: 26 | C33: =IF(基本情報!C33="","",基本情報!C33) ->  | E33: =IF(D33="",0,IF(基本情報!D33="",0,IF(基本情報!D33="甲欄",IF(基本情報!E33>7,計算シート!O30,HLOOKUP(基本情報!E33,計算シート!$H$4:$P$34,ROW(計算シート!H30)-3,0))&"%",計算シート!P30&"%"))) -> 0 | G33: =MAX(IF(基本情報!F33="○",ROUNDUP((F33)*IF(基本情報!$D$4="",0,VLOOKUP(基本情報!$D$4,雇用保険料率!$C:$D,2,0))-0.5,0),0),0) -> 0 | H33: =IF(OR(基本情報!$D$3="",基本情報!H33=""),0,HLOOKUP(基本情報!H33,計算シート!$Y$4:$AA$34,ROW(計算シート!Y30)-3,0)) -> 0 | I33: =IF(OR(基本情報!$D$3="",基本情報!H33=""),0,HLOOKUP("子供子育て支援金",計算シート!$AG$4:$AH$34,ROW(計算シート!R30)-3,0)) -> 0 | J33: =IF(OR(基本情報!$D$3="",基本情報!I33=""),0,HLOOKUP(基本情報!I33,計算シート!$AB$4:$AD$34,ROW(計算シート!Y30)-3,0)) -> 0 | K33: 0 | L33: 0 | N33: 0
B34: 27 | C34: =IF(基本情報!C34="","",基本情報!C34) ->  | E34: =IF(D34="",0,IF(基本情報!D34="",0,IF(基本情報!D34="甲欄",IF(基本情報!E34>7,計算シート!O31,HLOOKUP(基本情報!E34,計算シート!$H$4:$P$34,ROW(計算シート!H31)-3,0))&"%",計算シート!P31&"%"))) -> 0 | G34: =MAX(IF(基本情報!F34="○",ROUNDUP((F34)*IF(基本情報!$D$4="",0,VLOOKUP(基本情報!$D$4,雇用保険料率!$C:$D,2,0))-0.5,0),0),0) -> 0 | H34: =IF(OR(基本情報!$D$3="",基本情報!H34=""),0,HLOOKUP(基本情報!H34,計算シート!$Y$4:$AA$34,ROW(計算シート!Y31)-3,0)) -> 0 | I34: =IF(OR(基本情報!$D$3="",基本情報!H34=""),0,HLOOKUP("子供子育て支援金",計算シート!$AG$4:$AH$34,ROW(計算シート!R31)-3,0)) -> 0 | J34: =IF(OR(基本情報!$D$3="",基本情報!I34=""),0,HLOOKUP(基本情報!I34,計算シート!$AB$4:$AD$34,ROW(計算シート!Y31)-3,0)) -> 0 | K34: 0 | L34: 0 | N34: 0
B35: 28 | C35: =IF(基本情報!C35="","",基本情報!C35) ->  | E35: =IF(D35="",0,IF(基本情報!D35="",0,IF(基本情報!D35="甲欄",IF(基本情報!E35>7,計算シート!O32,HLOOKUP(基本情報!E35,計算シート!$H$4:$P$34,ROW(計算シート!H32)-3,0))&"%",計算シート!P32&"%"))) -> 0 | G35: =MAX(IF(基本情報!F35="○",ROUNDUP((F35)*IF(基本情報!$D$4="",0,VLOOKUP(基本情報!$D$4,雇用保険料率!$C:$D,2,0))-0.5,0),0),0) -> 0 | H35: =IF(OR(基本情報!$D$3="",基本情報!H35=""),0,HLOOKUP(基本情報!H35,計算シート!$Y$4:$AA$34,ROW(計算シート!Y32)-3,0)) -> 0 | I35: =IF(OR(基本情報!$D$3="",基本情報!H35=""),0,HLOOKUP("子供子育て支援金",計算シート!$AG$4:$AH$34,ROW(計算シート!R32)-3,0)) -> 0 | J35: =IF(OR(基本情報!$D$3="",基本情報!I35=""),0,HLOOKUP(基本情報!I35,計算シート!$AB$4:$AD$34,ROW(計算シート!Y32)-3,0)) -> 0 | K35: 0 | L35: 0 | N35: 0
B36: 29 | C36: =IF(基本情報!C36="","",基本情報!C36) ->  | E36: =IF(D36="",0,IF(基本情報!D36="",0,IF(基本情報!D36="甲欄",IF(基本情報!E36>7,計算シート!O33,HLOOKUP(基本情報!E36,計算シート!$H$4:$P$34,ROW(計算シート!H33)-3,0))&"%",計算シート!P33&"%"))) -> 0 | G36: =MAX(IF(基本情報!F36="○",ROUNDUP((F36)*IF(基本情報!$D$4="",0,VLOOKUP(基本情報!$D$4,雇用保険料率!$C:$D,2,0))-0.5,0),0),0) -> 0 | H36: =IF(OR(基本情報!$D$3="",基本情報!H36=""),0,HLOOKUP(基本情報!H36,計算シート!$Y$4:$AA$34,ROW(計算シート!Y33)-3,0)) -> 0 | I36: =IF(OR(基本情報!$D$3="",基本情報!H36=""),0,HLOOKUP("子供子育て支援金",計算シート!$AG$4:$AH$34,ROW(計算シート!R33)-3,0)) -> 0 | J36: =IF(OR(基本情報!$D$3="",基本情報!I36=""),0,HLOOKUP(基本情報!I36,計算シート!$AB$4:$AD$34,ROW(計算シート!Y33)-3,0)) -> 0 | K36: 0 | L36: 0 | N36: 0
B37: 30 | C37: =IF(基本情報!C37="","",基本情報!C37) ->  | E37: =IF(D37="",0,IF(基本情報!D37="",0,IF(基本情報!D37="甲欄",IF(基本情報!E37>7,計算シート!O34,HLOOKUP(基本情報!E37,計算シート!$H$4:$P$34,ROW(計算シート!H34)-3,0))&"%",計算シート!P34&"%"))) -> 0 | G37: =MAX(IF(基本情報!F37="○",ROUNDUP((F37)*IF(基本情報!$D$4="",0,VLOOKUP(基本情報!$D$4,雇用保険料率!$C:$D,2,0))-0.5,0),0),0) -> 0 | H37: =IF(OR(基本情報!$D$3="",基本情報!H37=""),0,HLOOKUP(基本情報!H37,計算シート!$Y$4:$AA$34,ROW(計算シート!Y34)-3,0)) -> 0 | I37: =IF(OR(基本情報!$D$3="",基本情報!H37=""),0,HLOOKUP("子供子育て支援金",計算シート!$AG$4:$AH$34,ROW(計算シート!R34)-3,0)) -> 0 | J37: =IF(OR(基本情報!$D$3="",基本情報!I37=""),0,HLOOKUP(基本情報!I37,計算シート!$AB$4:$AD$34,ROW(計算シート!Y34)-3,0)) -> 0 | K37: 0 | L37: 0 | N37: 0

Sheet 計算シート (hidden)
C3: NO. | D3: 名前 | E3: 源泉徴収税額 | H3: 賞与税率 | Q3: 給与：社会保険（健康保険） | T3: 給与：社会保険（厚生年金） | Y3: 賞与：社会保険（健康保険) | AB3: 賞与：社会保険（厚生年金） | AE3: 給与：社会保険（子育て支援金） | AG3: 賞与：社会保険（子育て支援金)
E4: 甲欄 | F4: 乙欄 | G4: 乙欄（従たる給与についての扶養控除等申告書提出あり） | H4: 0 | I4: 1 | J4: 2 | K4: 3 | L4: 4 | M4: 5 | N4: 6 | O4: 7 | P4: 乙 | Q4: =リスト表!E4 -> 無し | R4: =リスト表!E5 -> 介護保険なし | S4: =リスト表!E6 -> 介護保険あり | T4: =リスト表!F4 -> 無し | U4: =リスト表!F5 -> 一般、坑内員・船員 | V4: =リスト表!F6 -> なし | W4: ＜一般の被保険者＞標準報酬月額88,000円未満、650,000円以上の場合 | X4: ＜坑内員・船員＞標準報酬月額88,000円未満、650,000円以上の場合 | Y4: =リスト表!E4 -> 無し | Z4: =リスト表!E5 -> 介護保険なし | AA4: =リスト表!E6 -> 介護保険あり | AB4: =リスト表!F4 -> 無し | AC4: =リスト表!F5 -> 一般、坑内員・船員 | AD4: =リスト表!F6 -> なし | AE4: =リスト表!E4 -> 無し | AF4: 子供子育て支援金 | AG4: =リスト表!E4 -> 無し | AH4: 子供子育て支援金
C5: 1 | D5: =給与計算!C8 -> 給与一郎 | E5: =MAX(IF(給与計算!O8>=税額基本情報!$D$6,MAX('計算シート ２'!E5:M5),IF(給与計算!O8<源泉月額表!$B$8,0,VLOOKUP(給与計算!O8,INDIRECT(税額基本情報!$D$42),IF(基本情報!E8>=8,10,基本情報!E8+3),1)))-IF(基本情報!E8>=8,(基本情報!E8-7)*税額基本情報!$D$23,0),0) -> 14580 | F5: =IF(給与計算!O8<源泉月額表!$B$8,ROUNDDOWN(給与計算!O8*税額基本情報!$D$29,0),IF(給与計算!O8=0,0,IF(給与計算!O8>=税額基本情報!$D$19,MAX('計算シート ２'!S5:U5),VLOOKUP(給与計算!O8,INDIRECT(税額基本情報!$D$42),11,1)))) -> 126200 | G5: =MAX(IF(給与計算!O8<源泉月額表!$B$8,ROUNDDOWN(給与計算!O8*3.063%,0),IF(給与計算!O8=0,0,IF(給与計算!O8>=税額基本情報!$D$19,MAX('計算シート ２'!S5:U5),VLOOKUP(給与計算!O8,INDIRECT(税額基本情報!$D$42),11,1))))-基本情報!E8*税額基本情報!$D$26,0) -> 122980 | H5: =IF(賞与計算!D8<源泉賞与表!$D$11*1000,0,INDEX(源泉賞与表!$B:$B,MATCH(賞与計算!D8/1000,源泉賞与表!$D:$D,1))) -> 16.336 | I5: =IF(賞与計算!D8<源泉賞与表!$F$11*1000,0,INDEX(源泉賞与表!$B:$B,MATCH(賞与計算!D8/1000,源泉賞与表!$F:$F,1))) -> 16.336 | J5: =IF(賞与計算!D8<源泉賞与表!$H$11*1000,0,INDEX(源泉賞与表!$B:$B,MATCH(賞与計算!D8/1000,源泉賞与表!$H:$H,1))) -> 14.294 | K5: =IF(賞与計算!D8<源泉賞与表!$J$11*1000,0,INDEX(源泉賞与表!$B:$B,MATCH(賞与計算!D8/1000,源泉賞与表!$J:$J,1))) -> 12.252 | L5: =IF(賞与計算!D8<源泉賞与表!$L$11*1000,0,INDEX(源泉賞与表!$B:$B,MATCH(賞与計算!D8/1000,源泉賞与表!$L:$L,1))) -> 10.21 | M5: =IF(賞与計算!D8<源泉賞与表!$N$11*1000,0,INDEX(源泉賞与表!$B:$B,MATCH(賞与計算!D8/1000,源泉賞与表!$N:$N,1))) -> 8.168 | N5: =IF(賞与計算!D8<源泉賞与表!$P$11*1000,0,INDEX(源泉賞与表!$B:$B,MATCH(賞与計算!D8/1000,源泉賞与表!$P:$P,1))) -> 6.126 | O5: =IF(賞与計算!D8<源泉賞与表!$R$11*1000,0,INDEX(源泉賞与表!$B:$B,MATCH(賞与計算!D8/1000,源泉賞与表!$R:$R,1))) -> 6.126 | P5: =IF(賞与計算!D8="","",IF(賞与計算!D8<源泉賞与表!$T$23*1000,10.21,INDEX(源泉賞与表!$B:$B,MATCH(賞与計算!D8/1000,源泉賞与表!$T:$T,1)))) -> 30.63 | Q5: 0 | R5: =IF(基本情報!G8="",0,ROUND(VLOOKUP(基本情報!G8,INDIRECT(基本情報!$D$3&"!$B$11:$I$70"),6,0)-0.1,0)) -> 27580 | S5: =IF(基本情報!G8="",0,ROUND(VLOOKUP(基本情報!G8,INDIRECT(基本情報!$D$3&"!$B$11:$I$70"),8,0)-0.1,0)) -> 32116 | T5: =Q5 -> 0 | U5: =IF(基本情報!G8="",0,ROUND(IF(OR(基本情報!G8<税額基本情報!$E$32,基本情報!G8>税額基本情報!$E$33),W5,VLOOKUP(基本情報!G8,INDIRECT(基本情報!$D$3&"!$B$14:$M$70"),12,0))-0.1,0)) -> 51240 | V5: =Q5 -> 0 | W5: =IF(基本情報!G8="",0,IF(基本情報!G8<税額基本情報!$E$32,税額基本情報!$F$32,IF(基本情報!G8>税額基本情報!$E$33,税額基本情報!$F$33,0))) -> 0 | X5: =IF(基本情報!G8="",0,IF(基本情報!G8<税額基本情報!$E$32,税額基本情報!$G$32,IF(基本情報!G8>税額基本情報!$E$33,税額基本情報!$G$33,0))) -> 0 | Y5: =Q5 -> 0 | Z5: =ROUND(IF(賞与計算!F8>税額基本情報!$D$39,税額基本情報!$D$39,ROUNDDOWN(賞与計算!F8,-3))*INDIRECT(基本情報!$D$3&"!$F$8")*0.5-0.1,0) -> 24625 | AA5: =ROUND(IF(賞与計算!F8>税額基本情報!$D$39,税額基本情報!$D$39,ROUNDDOWN(賞与計算!F8,-3))*INDIRECT(基本情報!$D$3&"!$H$8")/2-0.1,0) -> 28675 | AB5: =Q5 -> 0 | AC5: =ROUND(IF(賞与計算!F8>税額基本情報!$D$36,税額基本情報!$D$36,ROUNDDOWN(賞与計算!F8,-3))*INDIRECT(基本情報!$D$3&"!$L$8")/2-0.1,0) -> 45750 | AD5: =Q5 -> 0 | AE5: =Q5 -> 0 | AF5: =IF(基本情報!G8="",0,ROUND(VLOOKUP(基本情報!G8,INDIRECT(基本情報!$D$3&"!$B$11:$K$70"),10,0)-0.1,0)) -> 644 | AG5: =Q5 -> 0 | AH5: =ROUND(IF(賞与計算!F8>税額基本情報!$D$39,税額基本情報!$D$39,ROUNDDOWN(賞与計算!F8,-3))*INDIRECT(基本情報!$D$3&"!$J$8")*0.5-0.1,0) -> 575
C6: 2 | D6: =給与計算!C9 -> 給与二郎 | E6: =MAX(IF(給与計算!O9>=税額基本情報!$D$6,MAX('計算シート ２'!E6:M6),IF(給与計算!O9<源泉月額表!$B$8,0,VLOOKUP(給与計算!O9,INDIRECT(税額基本情報!$D$42),IF(基本情報!E9>=8,10,基本情報!E9+3),1)))-IF(基本情報!E9>=8,(基本情報!E9-7)*税額基本情報!$D$23,0),0) -> 4710 | F6: =IF(給与計算!O9<源泉月額表!$B$8,ROUNDDOWN(給与計算!O9*税額基本情報!$D$29,0),IF(給与計算!O9=0,0,IF(給与計算!O9>=税額基本情報!$D$19,MAX('計算シート ２'!S6:U6),VLOOKUP(給与計算!O9,INDIRECT(税額基本情報!$D$42),11,1)))) -> 37600 | G6: =MAX(IF(給与計算!O9<源泉月額表!$B$8,ROUNDDOWN(給与計算!O9*3.063%,0),IF(給与計算!O9=0,0,IF(給与計算!O9>=税額基本情報!$D$19,MAX('計算シート ２'!S6:U6),VLOOKUP(給与計算!O9,INDIRECT(税額基本情報!$D$42),11,1))))-基本情報!E9*税額基本情報!$D$26,0) -> 35990 | H6: =IF(賞与計算!D9<源泉賞与表!$D$11*1000,0,INDEX(源泉賞与表!$B:$B,MATCH(賞与計算!D9/1000,源泉賞与表!$D:$D,1))) -> 4.084 | I6: =IF(賞与計算!D9<源泉賞与表!$F$11*1000,0,INDEX(源泉賞与表!$B:$B,MATCH(賞与計算!D9/1000,源泉賞与表!$F:$F,1))) -> 4.084 | J6: =IF(賞与計算!D9<源泉賞与表!$H$11*1000,0,INDEX(源泉賞与表!$B:$B,MATCH(賞与計算!D9/1000,源泉賞与表!$H:$H,1))) -> 2.042 | K6: =IF(賞与計算!D9<源泉賞与表!$J$11*1000,0,INDEX(源泉賞与表!$B:$B,MATCH(賞与計算!D9/1000,源泉賞与表!$J:$J,1))) -> 2.042 | L6: =IF(賞与計算!D9<源泉賞与表!$L$11*1000,0,INDEX(源泉賞与表!$B:$B,MATCH(賞与計算!D9/1000,源泉賞与表!$L:$L,1))) -> 2.042 | M6: =IF(賞与計算!D9<源泉賞与表!$N$11*1000,0,INDEX(源泉賞与表!$B:$B,MATCH(賞与計算!D9/1000,源泉賞与表!$N:$N,1))) -> 2.042 | N6: =IF(賞与計算!D9<源泉賞与表!$P$11*1000,0,INDEX(源泉賞与表!$B:$B,MATCH(賞与計算!D9/1000,源泉賞与表!$P:$P,1))) -> 0 | O6: =IF(賞与計算!D9<源泉賞与表!$R$11*1000,0,INDEX(源泉賞与表!$B:$B,MATCH(賞与計算!D9/1000,源泉賞与表!$R:$R,1))) -> 0 | P6: =IF(賞与計算!D9="","",IF(賞与計算!D9<源泉賞与表!$T$23*1000,10.21,INDEX(源泉賞与表!$B:$B,MATCH(賞与計算!D9/1000,源泉賞与表!$T:$T,1)))) -> 20.42 | Q6: 0 | R6: =IF(基本情報!G9="",0,ROUND(VLOOKUP(基本情報!G9,INDIRECT(基本情報!$D$3&"!$B$11:$I$70"),6,0)-0.1,0)) -> 14775 | S6: =IF(基本情報!G9="",0,ROUND(VLOOKUP(基本情報!G9,INDIRECT(基本情報!$D$3&"!$B$11:$I$70"),8,0)-0.1,0)) -> 17205 | T6: =Q6 -> 0 | U6: =IF(基本情報!G9="",0,ROUND(IF(OR(基本情報!G9<税額基本情報!$E$32,基本情報!G9>税額基本情報!$E$33),W6,VLOOKUP(基本情報!G9,INDIRECT(基本情報!$D$3&"!$B$14:$M$70"),12,0))-0.1,0)) -> 27450 | V6: =Q6 -> 0 | W6: =IF(基本情報!G9="",0,IF(基本情報!G9<税額基本情報!$E$32,税額基本情報!$F$32,IF(基本情報!G9>税額基本情報!$E$33,税額基本情報!$F$33,0))) -> 0 | X6: =IF(基本情報!G9="",0,IF(基本情報!G9<税額基本情報!$E$32,税額基本情報!$G$32,IF(基本情報!G9>税額基本情報!$E$33,税額基本情報!$G$33,0))) -> 0 | Y6: =Q6 -> 0 | Z6: =ROUND(IF(賞与計算!F9>税額基本情報!$D$39,税額基本情報!$D$39,ROUNDDOWN(賞与計算!F9,-3))*INDIRECT(基本情報!$D$3&"!$F$8")*0.5-0.1,0) -> 14775 | AA6: =ROUND(IF(賞与計算!F9>税額基本情報!$D$39,税額基本情報!$D$39,ROUNDDOWN(賞与計算!F9,-3))*INDIRECT(基本情報!$D$3&"!$H$8")/2-0.1,0) -> 17205 | AB6: =Q6 -> 0 | AC6: =ROUND(IF(賞与計算!F9>税額基本情報!$D$36,税額基本情報!$D$36,ROUNDDOWN(賞与計算!F9,-3))*INDIRECT(基本情報!$D$3&"!$L$8")/2-0.1,0) -> 27450 | AD6: =Q6 -> 0 | AE6: =Q6 -> 0 | AF6: =IF(基本情報!G9="",0,ROUND(VLOOKUP(基本情報!G9,INDIRECT(基本情報!$D$3&"!$B$11:$K$70"),10,0)-0.1,0)) -> 345 | AG6: =Q6 -> 0 | AH6: =ROUND(IF(賞与計算!F9>税額基本情報!$D$39,税額基本情報!$D$39,ROUNDDOWN(賞与計算!F9,-3))*INDIRECT(基本情報!$D$3&"!$J$8")*0.5-0.1,0) -> 345
C7: 3 | D7: =給与計算!C10 -> 給与三郎 | E7: =MAX(IF(給与計算!O10>=税額基本情報!$D$6,MAX('計算シート ２'!E7:M7),IF(給与計算!O10<源泉月額表!$B$8,0,VLOOKUP(給与計算!O10,INDIRECT(税額基本情報!$D$42),IF(基本情報!E10>=8,10,基本情報!E10+3),1)))-IF(基本情報!E10>=8,(基本情報!E10-7)*税額基本情報!$D$23,0),0) -> 0 | F7: =IF(給与計算!O10<源泉月額表!$B$8,ROUNDDOWN(給与計算!O10*税額基本情報!$D$29,0),IF(給与計算!O10=0,0,IF(給与計算!O10>=税額基本情報!$D$19,MAX('計算シート ２'!S7:U7),VLOOKUP(給与計算!O10,INDIRECT(税額基本情報!$D$42),11,1)))) -> 3063 | G7: =MAX(IF(給与計算!O10<源泉月額表!$B$8,ROUNDDOWN(給与計算!O10*3.063%,0),IF(給与計算!O10=0,0,IF(給与計算!O10>=税額基本情報!$D$19,MAX('計算シート ２'!S7:U7),VLOOKUP(給与計算!O10,INDIRECT(税額基本情報!$D$42),11,1))))-基本情報!E10*税額基本情報!$D$26,0) -> 3063 | H7: =IF(賞与計算!D10<源泉賞与表!$D$11*1000,0,INDEX(源泉賞与表!$B:$B,MATCH(賞与計算!D10/1000,源泉賞与表!$D:$D,1))) -> 4.084 | I7: =IF(賞与計算!D10<源泉賞与表!$F$11*1000,0,INDEX(源泉賞与表!$B:$B,MATCH(賞与計算!D10/1000,源泉賞与表!$F:$F,1))) -> 0 | J7: =IF(賞与計算!D10<源泉賞与表!$H$11*1000,0,INDEX(源泉賞与表!$B:$B,MATCH(賞与計算!D10/1000,源泉賞与表!$H:$H,1))) -> 0 | K7: =IF(賞与計算!D10<源泉賞与表!$J$11*1000,0,INDEX(源泉賞与表!$B:$B,MATCH(賞与計算!D10/1000,源泉賞与表!$J:$J,1))) -> 0 | L7: =IF(賞与計算!D10<源泉賞与表!$L$11*1000,0,INDEX(源泉賞与表!$B:$B,MATCH(賞与計算!D10/1000,源泉賞与表!$L:$L,1))) -> 0 | M7: =IF(賞与計算!D10<源泉賞与表!$N$11*1000,0,INDEX(源泉賞与表!$B:$B,MATCH(賞与計算!D10/1000,源泉賞与表!$N:$N,1))) -> 0 | N7: =IF(賞与計算!D10<源泉賞与表!$P$11*1000,0,INDEX(源泉賞与表!$B:$B,MATCH(賞与計算!D10/1000,源泉賞与表!$P:$P,1))) -> 0 | O7: =IF(賞与計算!D10<源泉賞与表!$R$11*1000,0,INDEX(源泉賞与表!$B:$B,MATCH(賞与計算!D10/1000,源泉賞与表!$R:$R,1))) -> 0 | P7: =IF(賞与計算!D10="","",IF(賞与計算!D10<源泉賞与表!$T$23*1000,10.21,INDEX(源泉賞与表!$B:$B,MATCH(賞与計算!D10/1000,源泉賞与表!$T:$T,1)))) -> 10.21 | Q7: 0 | R7: =IF(基本情報!G10="",0,ROUND(VLOOKUP(基本情報!G10,INDIRECT(基本情報!$D$3&"!$B$11:$I$70"),6,0)-0.1,0)) -> 0 | S7: =IF(基本情報!G10="",0,ROUND(VLOOKUP(基本情報!G10,INDIRECT(基本情報!$D$3&"!$B$11:$I$70"),8,0)-0.1,0)) -> 0 | T7: 0 | U7: =IF(基本情報!G10="",0,ROUND(IF(OR(基本情報!G10<税額基本情報!$E$32,基本情報!G10>税額基本情報!$E$33),W7,VLOOKUP(基本情報!G10,INDIRECT(基本情報!$D$3&"!$B$14:$M$70"),12,0))-0.1,0)) -> 0 | V7: 0 | W7: =IF(基本情報!G10="",0,IF(基本情報!G10<税額基本情報!$E$32,税額基本情報!$F$32,IF(基本情報!G10>税額基本情報!$E$33,税額基本情報!$F$33,0))) -> 0 | X7: =IF(基本情報!G10="",0,IF(基本情報!G10<税額基本情報!$E$32,税額基本情報!$G$32,IF(基本情報!G10>税額基本情報!$E$33,税額基本情報!$G$33,0))) -> 0 | Y7: 0 | Z7: =ROUND(IF(賞与計算!F10>税額基本情報!$D$39,税額基本情報!$D$39,ROUNDDOWN(賞与計算!F10,-3))*INDIRECT(基本情報!$D$3&"!$F$8")*0.5-0.1,0) -> 4925 | AA7: =ROUND(IF(賞与計算!F10>税額基本情報!$D$39,税額基本情報!$D$39,ROUNDDOWN(賞与計算!F10,-3))*INDIRECT(基本情報!$D$3&"!$H$8")/2-0.1,0) -> 5735 | AB7: 0 | AC7: =ROUND(IF(賞与計算!F10>税額基本情報!$D$36,税額基本情報!$D$36,ROUNDDOWN(賞与計算!F10,-3))*INDIRECT(基本情報!$D$3&"!$L$8")/2-0.1,0) -> 9150 | AD7: 0 | AE7: 0 | AF7: =IF(基本情報!G10="",0,ROUND(VLOOKUP(基本情報!G10,INDIRECT(基本情報!$D$3&"!$B$11:$K$70"),10,0)-0.1,0)) -> 0 | AG7: 0 | AH7: =ROUND(IF(賞与計算!F10>税額基本情報!$D$39,税額基本情報!$D$39,ROUNDDOWN(賞与計算!F10,-3))*INDIRECT(基本情報!$D$3&"!$J$8")*0.5-0.1,0) -> 115
C8: 4 | D8: =給与計算!C11 ->  | E8: =MAX(IF(給与計算!O11>=税額基本情報!$D$6,MAX('計算シート ２'!E8:M8),IF(給与計算!O11<源泉月額表!$B$8,0,VLOOKUP(給与計算!O11,INDIRECT(税額基本情報!$D$42),IF(基本情報!E11>=8,10,基本情報!E11+3),1)))-IF(基本情報!E11>=8,(基本情報!E11-7)*税額基本情報!$D$23,0),0) -> 0 | F8: =IF(給与計算!O11<源泉月額表!$B$8,ROUNDDOWN(給与計算!O11*税額基本情報!$D$29,0),IF(給与計算!O11=0,0,IF(給与計算!O11>=税額基本情報!$D$19,MAX('計算シート ２'!S8:U8),VLOOKUP(給与計算!O11,INDIRECT(税額基本情報!$D$42),11,1)))) -> 0 | G8: =MAX(IF(給与計算!O11<源泉月額表!$B$8,ROUNDDOWN(給与計算!O11*3.063%,0),IF(給与計算!O11=0,0,IF(給与計算!O11>=税額基本情報!$D$19,MAX('計算シート ２'!S8:U8),VLOOKUP(給与計算!O11,INDIRECT(税額基本情報!$D$42),11,1))))-基本情報!E11*税額基本情報!$D$26,0) -> 0 | H8: =IF(賞与計算!D11<源泉賞与表!$D$11*1000,0,INDEX(源泉賞与表!$B:$B,MATCH(賞与計算!D11/1000,源泉賞与表!$D:$D,1))) -> 0 | I8: =IF(賞与計算!D11<源泉賞与表!$F$11*1000,0,INDEX(源泉賞与表!$B:$B,MATCH(賞与計算!D11/1000,源泉賞与表!$F:$F,1))) -> 0 | J8: =IF(賞与計算!D11<源泉賞与表!$H$11*1000,0,INDEX(源泉賞与表!$B:$B,MATCH(賞与計算!D11/1000,源泉賞与表!$H:$H,1))) -> 0 | K8: =IF(賞与計算!D11<源泉賞与表!$J$11*1000,0,INDEX(源泉賞与表!$B:$B,MATCH(賞与計算!D11/1000,源泉賞与表!$J:$J,1))) -> 0 | L8: =IF(賞与計算!D11<源泉賞与表!$L$11*1000,0,INDEX(源泉賞与表!$B:$B,MATCH(賞与計算!D11/1000,源泉賞与表!$L:$L,1))) -> 0 | M8: =IF(賞与計算!D11<源泉賞与表!$N$11*1000,0,INDEX(源泉賞与表!$B:$B,MATCH(賞与計算!D11/1000,源泉賞与表!$N:$N,1))) -> 0 | N8: =IF(賞与計算!D11<源泉賞与表!$P$11*1000,0,INDEX(源泉賞与表!$B:$B,MATCH(賞与計算!D11/1000,源泉賞与表!$P:$P,1))) -> 0 | O8: =IF(賞与計算!D11<源泉賞与表!$R$11*1000,0,INDEX(源泉賞与表!$B:$B,MATCH(賞与計算!D11/1000,源泉賞与表!$R:$R,1))) -> 0 | P8: =IF(賞与計算!D11="","",IF(賞与計算!D11<源泉賞与表!$T$23*1000,10.21,INDEX(源泉賞与表!$B:$B,MATCH(賞与計算!D11/1000,源泉賞与表!$T:$T,1)))) ->  | Q8: 0 | R8: =IF(基本情報!G11="",0,ROUND(VLOOKUP(基本情報!G11,INDIRECT(基本情報!$D$3&"!$B$11:$I$70"),6,0)-0.1,0)) -> 0 | S8: =IF(基本情報!G11="",0,ROUND(VLOOKUP(基本情報!G11,INDIRECT(基本情報!$D$3&"!$B$11:$I$70"),8,0)-0.1,0)) -> 0 | T8: 0 | U8: =IF(基本情報!G11="",0,ROUND(IF(OR(基本情報!G11<税額基本情報!$E$32,基本情報!G11>税額基本情報!$E$33),W8,VLOOKUP(基本情報!G11,INDIRECT(基本情報!$D$3&"!$B$14:$M$70"),12,0))-0.1,0)) -> 0 | V8: 0 | W8: =IF(基本情報!G11="",0,IF(基本情報!G11<税額基本情報!$E$32,税額基本情報!$F$32,IF(基本情報!G11>税額基本情報!$E$33,税額基本情報!$F$33,0))) -> 0 | X8: =IF(基本情報!G11="",0,IF(基本情報!G11<税額基本情報!$E$32,税額基本情報!$G$32,IF(基本情報!G11>税額基本情報!$E$33,税額基本情報!$G$33,0))) -> 0 | Y8: 0 | Z8: =ROUND(IF(賞与計算!F11>税額基本情報!$D$39,税額基本情報!$D$39,ROUNDDOWN(賞与計算!F11,-3))*INDIRECT(基本情報!$D$3&"!$F$8")*0.5-0.1,0) -> 0 | AA8: =ROUND(IF(賞与計算!F11>税額基本情報!$D$39,税額基本情報!$D$39,ROUNDDOWN(賞与計算!F11,-3))*INDIRECT(基本情報!$D$3&"!$H$8")/2-0.1,0) -> 0 | AB8: 0 | AC8: =ROUND(IF(賞与計算!F11>税額基本情報!$D$36,税額基本情報!$D$36,ROUNDDOWN(賞与計算!F11,-3))*INDIRECT(基本情報!$D$3&"!$L$8")/2-0.1,0) -> 0 | AD8: 0 | AE8: 0 | AF8: =IF(基本情報!G11="",0,ROUND(VLOOKUP(基本情報!G11,INDIRECT(基本情報!$D$3&"!$B$11:$K$70"),10,0)-0.1,0)) -> 0 | AG8: 0 | AH8: =ROUND(IF(賞与計算!F11>税額基本情報!$D$39,税額基本情報!$D$39,ROUNDDOWN(賞与計算!F11,-3))*INDIRECT(基本情報!$D$3&"!$J$8")*0.5-0.1,0) -> 0
C9: 5 | D9: =給与計算!C12 ->  | E9: =MAX(IF(給与計算!O12>=税額基本情報!$D$6,MAX('計算シート ２'!E9:M9),IF(給与計算!O12<源泉月額表!$B$8,0,VLOOKUP(給与計算!O12,INDIRECT(税額基本情報!$D$42),IF(基本情報!E12>=8,10,基本情報!E12+3),1)))-IF(基本情報!E12>=8,(基本情報!E12-7)*税額基本情報!$D$23,0),0) -> 0 | F9: =IF(給与計算!O12<源泉月額表!$B$8,ROUNDDOWN(給与計算!O12*税額基本情報!$D$29,0),IF(給与計算!O12=0,0,IF(給与計算!O12>=税額基本情報!$D$19,MAX('計算シート ２'!S9:U9),VLOOKUP(給与計算!O12,INDIRECT(税額基本情報!$D$42),11,1)))) -> 0 | G9: =MAX(IF(給与計算!O12<源泉月額表!$B$8,ROUNDDOWN(給与計算!O12*3.063%,0),IF(給与計算!O12=0,0,IF(給与計算!O12>=税額基本情報!$D$19,MAX('計算シート ２'!S9:U9),VLOOKUP(給与計算!O12,INDIRECT(税額基本情報!$D$42),11,1))))-基本情報!E12*税額基本情報!$D$26,0) -> 0 | H9: =IF(賞与計算!D12<源泉賞与表!$D$11*1000,0,INDEX(源泉賞与表!$B:$B,MATCH(賞与計算!D12/1000,源泉賞与表!$D:$D,1))) -> 0 | I9: =IF(賞与計算!D12<源泉賞与表!$F$11*1000,0,INDEX(源泉賞与表!$B:$B,MATCH(賞与計算!D12/1000,源泉賞与表!$F:$F,1))) -> 0 | J9: =IF(賞与計算!D12<源泉賞与表!$H$11*1000,0,INDEX(源泉賞与表!$B:$B,MATCH(賞与計算!D12/1000,源泉賞与表!$H:$H,1))) -> 0 | K9: =IF(賞与計算!D12<源泉賞与表!$J$11*1000,0,INDEX(源泉賞与表!$B:$B,MATCH(賞与計算!D12/1000,源泉賞与表!$J:$J,1))) -> 0 | L9: =IF(賞与計算!D12<源泉賞与表!$L$11*1000,0,INDEX(源泉賞与表!$B:$B,MATCH(賞与計算!D12/1000,源泉賞与表!$L:$L,1))) -> 0 | M9: =IF(賞与計算!D12<源泉賞与表!$N$11*1000,0,INDEX(源泉賞与表!$B:$B,MATCH(賞与計算!D12/1000,源泉賞与表!$N:$N,1))) -> 0 | N9: =IF(賞与計算!D12<源泉賞与表!$P$11*1000,0,INDEX(源泉賞与表!$B:$B,MATCH(賞与計算!D12/1000,源泉賞与表!$P:$P,1))) -> 0 | O9: =IF(賞与計算!D12<源泉賞与表!$R$11*1000,0,INDEX(源泉賞与表!$B:$B,MATCH(賞与計算!D12/1000,源泉賞与表!$R:$R,1))) -> 0 | P9: =IF(賞与計算!D12="","",IF(賞与計算!D12<源泉賞与表!$T$23*1000,10.21,INDEX(源泉賞与表!$B:$B,MATCH(賞与計算!D12/1000,源泉賞与表!$T:$T,1)))) ->  | Q9: 0 | R9: =IF(基本情報!G12="",0,ROUND(VLOOKUP(基本情報!G12,INDIRECT(基本情報!$D$3&"!$B$11:$I$70"),6,0)-0.1,0)) -> 0 | S9: =IF(基本情報!G12="",0,ROUND(VLOOKUP(基本情報!G12,INDIRECT(基本情報!$D$3&"!$B$11:$I$70"),8,0)-0.1,0)) -> 0 | T9: 0 | U9: =IF(基本情報!G12="",0,ROUND(IF(OR(基本情報!G12<税額基本情報!$E$32,基本情報!G12>税額基本情報!$E$33),W9,VLOOKUP(基本情報!G12,INDIRECT(基本情報!$D$3&"!$B$14:$M$70"),12,0))-0.1,0)) -> 0 | V9: 0 | W9: =IF(基本情報!G12="",0,IF(基本情報!G12<税額基本情報!$E$32,税額基本情報!$F$32,IF(基本情報!G12>税額基本情報!$E$33,税額基本情報!$F$33,0))) -> 0 | X9: =IF(基本情報!G12="",0,IF(基本情報!G12<税額基本情報!$E$32,税額基本情報!$G$32,IF(基本情報!G12>税額基本情報!$E$33,税額基本情報!$G$33,0))) -> 0 | Y9: 0 | Z9: =ROUND(IF(賞与計算!F12>税額基本情報!$D$39,税額基本情報!$D$39,ROUNDDOWN(賞与計算!F12,-3))*INDIRECT(基本情報!$D$3&"!$F$8")*0.5-0.1,0) -> 0 | AA9: =ROUND(IF(賞与計算!F12>税額基本情報!$D$39,税額基本情報!$D$39,ROUNDDOWN(賞与計算!F12,-3))*INDIRECT(基本情報!$D$3&"!$H$8")/2-0.1,0) -> 0 | AB9: 0 | AC9: =ROUND(IF(賞与計算!F12>税額基本情報!$D$36,税額基本情報!$D$36,ROUNDDOWN(賞与計算!F12,-3))*INDIRECT(基本情報!$D$3&"!$L$8")/2-0.1,0) -> 0 | AD9: 0 | AE9: 0 | AF9: =IF(基本情報!G12="",0,ROUND(VLOOKUP(基本情報!G12,INDIRECT(基本情報!$D$3&"!$B$11:$K$70"),10,0)-0.1,0)) -> 0 | AG9: 0 | AH9: =ROUND(IF(賞与計算!F12>税額基本情報!$D$39,税額基本情報!$D$39,ROUNDDOWN(賞与計算!F12,-3))*INDIRECT(基本情報!$D$3&"!$J$8")*0.5-0.1,0) -> 0
C10: 6 | D10: =給与計算!C13 ->  | E10: =MAX(IF(給与計算!O13>=税額基本情報!$D$6,MAX('計算シート ２'!E10:M10),IF(給与計算!O13<源泉月額表!$B$8,0,VLOOKUP(給与計算!O13,INDIRECT(税額基本情報!$D$42),IF(基本情報!E13>=8,10,基本情報!E13+3),1)))-IF(基本情報!E13>=8,(基本情報!E13-7)*税額基本情報!$D$23,0),0) -> 0 | F10: =IF(給与計算!O13<源泉月額表!$B$8,ROUNDDOWN(給与計算!O13*税額基本情報!$D$29,0),IF(給与計算!O13=0,0,IF(給与計算!O13>=税額基本情報!$D$19,MAX('計算シート ２'!S10:U10),VLOOKUP(給与計算!O13,INDIRECT(税額基本情報!$D$42),11,1)))) -> 0 | G10: =MAX(IF(給与計算!O13<源泉月額表!$B$8,ROUNDDOWN(給与計算!O13*3.063%,0),IF(給与計算!O13=0,0,IF(給与計算!O13>=税額基本情報!$D$19,MAX('計算シート ２'!S10:U10),VLOOKUP(給与計算!O13,INDIRECT(税額基本情報!$D$42),11,1))))-基本情報!E13*税額基本情報!$D$26,0) -> 0 | H10: =IF(賞与計算!D13<源泉賞与表!$D$11*1000,0,INDEX(源泉賞与表!$B:$B,MATCH(賞与計算!D13/1000,源泉賞与表!$D:$D,1))) -> 0 | I10: =IF(賞与計算!D13<源泉賞与表!$F$11*1000,0,INDEX(源泉賞与表!$B:$B,MATCH(賞与計算!D13/1000,源泉賞与表!$F:$F,1))) -> 0 | J10: =IF(賞与計算!D13<源泉賞与表!$H$11*1000,0,INDEX(源泉賞与表!$B:$B,MATCH(賞与計算!D13/1000,源泉賞与表!$H:$H,1))) -> 0 | K10: =IF(賞与計算!D13<源泉賞与表!$J$11*1000,0,INDEX(源泉賞与表!$B:$B,MATCH(賞与計算!D13/1000,源泉賞与表!$J:$J,1))) -> 0 | L10: =IF(賞与計算!D13<源泉賞与表!$L$11*1000,0,INDEX(源泉賞与表!$B:$B,MATCH(賞与計算!D13/1000,源泉賞与表!$L:$L,1))) -> 0 | M10: =IF(賞与計算!D13<源泉賞与表!$N$11*1000,0,INDEX(源泉賞与表!$B:$B,MATCH(賞与計算!D13/1000,源泉賞与表!$N:$N,1))) -> 0 | N10: =IF(賞与計算!D13<源泉賞与表!$P$11*1000,0,INDEX(源泉賞与表!$B:$B,MATCH(賞与計算!D13/1000,源泉賞与表!$P:$P,1))) -> 0 | O10: =IF(賞与計算!D13<源泉賞与表!$R$11*1000,0,INDEX(源泉賞与表!$B:$B,MATCH(賞与計算!D13/1000,源泉賞与表!$R:$R,1))) -> 0 | P10: =IF(賞与計算!D13="","",IF(賞与計算!D13<源泉賞与表!$T$23*1000,10.21,INDEX(源泉賞与表!$B:$B,MATCH(賞与計算!D13/1000,源泉賞与表!$T:$T,1)))) ->  | Q10: 0 | R10: =IF(基本情報!G13="",0,ROUND(VLOOKUP(基本情報!G13,INDIRECT(基本情報!$D$3&"!$B$11:$I$70"),6,0)-0.1,0)) -> 0 | S10: =IF(基本情報!G13="",0,ROUND(VLOOKUP(基本情報!G13,INDIRECT(基本情報!$D$3&"!$B$11:$I$70"),8,0)-0.1,0)) -> 0 | T10: 0 | U10: =IF(基本情報!G13="",0,ROUND(IF(OR(基本情報!G13<税額基本情報!$E$32,基本情報!G13>税額基本情報!$E$33),W10,VLOOKUP(基本情報!G13,INDIRECT(基本情報!$D$3&"!$B$14:$M$70"),12,0))-0.1,0)) -> 0 | V10: 0 | W10: =IF(基本情報!G13="",0,IF(基本情報!G13<税額基本情報!$E$32,税額基本情報!$F$32,IF(基本情報!G13>税額基本情報!$E$33,税額基本情報!$F$33,0))) -> 0 | X10: =IF(基本情報!G13="",0,IF(基本情報!G13<税額基本情報!$E$32,税額基本情報!$G$32,IF(基本情報!G13>税額基本情報!$E$33,税額基本情報!$G$33,0))) -> 0 | Y10: 0 | Z10: =ROUND(IF(賞与計算!F13>税額基本情報!$D$39,税額基本情報!$D$39,ROUNDDOWN(賞与計算!F13,-3))*INDIRECT(基本情報!$D$3&"!$F$8")*0.5-0.1,0) -> 0 | AA10: =ROUND(IF(賞与計算!F13>税額基本情報!$D$39,税額基本情報!$D$39,ROUNDDOWN(賞与計算!F13,-3))*INDIRECT(基本情報!$D$3&"!$H$8")/2-0.1,0) -> 0 | AB10: 0 | AC10: =ROUND(IF(賞与計算!F13>税額基本情報!$D$36,税額基本情報!$D$36,ROUNDDOWN(賞与計算!F13,-3))*INDIRECT(基本情報!$D$3&"!$L$8")/2-0.1,0) -> 0 | AD10: 0 | AE10: 0 | AF10: =IF(基本情報!G13="",0,ROUND(VLOOKUP(基本情報!G13,INDIRECT(基本情報!$D$3&"!$B$11:$K$70"),10,0)-0.1,0)) -> 0 | AG10: 0 | AH10: =ROUND(IF(賞与計算!F13>税額基本情報!$D$39,税額基本情報!$D$39,ROUNDDOWN(賞与計算!F13,-3))*INDIRECT(基本情報!$D$3&"!$J$8")*0.5-0.1,0) -> 0
C11: 7 | D11: =給与計算!C14 ->  | E11: =MAX(IF(給与計算!O14>=税額基本情報!$D$6,MAX('計算シート ２'!E11:M11),IF(給与計算!O14<源泉月額表!$B$8,0,VLOOKUP(給与計算!O14,INDIRECT(税額基本情報!$D$42),IF(基本情報!E14>=8,10,基本情報!E14+3),1)))-IF(基本情報!E14>=8,(基本情報!E14-7)*税額基本情報!$D$23,0),0) -> 0 | F11: =IF(給与計算!O14<源泉月額表!$B$8,ROUNDDOWN(給与計算!O14*税額基本情報!$D$29,0),IF(給与計算!O14=0,0,IF(給与計算!O14>=税額基本情報!$D$19,MAX('計算シート ２'!S11:U11),VLOOKUP(給与計算!O14,INDIRECT(税額基本情報!$D$42),11,1)))) -> 0 | G11: =MAX(IF(給与計算!O14<源泉月額表!$B$8,ROUNDDOWN(給与計算!O14*3.063%,0),IF(給与計算!O14=0,0,IF(給与計算!O14>=税額基本情報!$D$19,MAX('計算シート ２'!S11:U11),VLOOKUP(給与計算!O14,INDIRECT(税額基本情報!$D$42),11,1))))-基本情報!E14*税額基本情報!$D$26,0) -> 0 | H11: =IF(賞与計算!D14<源泉賞与表!$D$11*1000,0,INDEX(源泉賞与表!$B:$B,MATCH(賞与計算!D14/1000,源泉賞与表!$D:$D,1))) -> 0 | I11: =IF(賞与計算!D14<源泉賞与表!$F$11*1000,0,INDEX(源泉賞与表!$B:$B,MATCH(賞与計算!D14/1000,源泉賞与表!$F:$F,1))) -> 0 | J11: =IF(賞与計算!D14<源泉賞与表!$H$11*1000,0,INDEX(源泉賞与表!$B:$B,MATCH(賞与計算!D14/1000,源泉賞与表!$H:$H,1))) -> 0 | K11: =IF(賞与計算!D14<源泉賞与表!$J$11*1000,0,INDEX(源泉賞与表!$B:$B,MATCH(賞与計算!D14/1000,源泉賞与表!$J:$J,1))) -> 0 | L11: =IF(賞与計算!D14<源泉賞与表!$L$11*1000,0,INDEX(源泉賞与表!$B:$B,MATCH(賞与計算!D14/1000,源泉賞与表!$L:$L,1))) -> 0 | M11: =IF(賞与計算!D14<源泉賞与表!$N$11*1000,0,INDEX(源泉賞与表!$B:$B,MATCH(賞与計算!D14/1000,源泉賞与表!$N:$N,1))) -> 0 | N11: =IF(賞与計算!D14<源泉賞与表!$P$11*1000,0,INDEX(源泉賞与表!$B:$B,MATCH(賞与計算!D14/1000,源泉賞与表!$P:$P,1))) -> 0 | O11: =IF(賞与計算!D14<源泉賞与表!$R$11*1000,0,INDEX(源泉賞与表!$B:$B,MATCH(賞与計算!D14/1000,源泉賞与表!$R:$R,1))) -> 0 | P11: =IF(賞与計算!D14="","",IF(賞与計算!D14<源泉賞与表!$T$23*1000,10.21,INDEX(源泉賞与表!$B:$B,MATCH(賞与計算!D14/1000,源泉賞与表!$T:$T,1)))) ->  | Q11: 0 | R11: =IF(基本情報!G14="",0,ROUND(VLOOKUP(基本情報!G14,INDIRECT(基本情報!$D$3&"!$B$11:$I$70"),6,0)-0.1,0)) -> 0 | S11: =IF(基本情報!G14="",0,ROUND(VLOOKUP(基本情報!G14,INDIRECT(基本情報!$D$3&"!$B$11:$I$70"),8,0)-0.1,0)) -> 0 | T11: 0 | U11: =IF(基本情報!G14="",0,ROUND(IF(OR(基本情報!G14<税額基本情報!$E$32,基本情報!G14>税額基本情報!$E$33),W11,VLOOKUP(基本情報!G14,INDIRECT(基本情報!$D$3&"!$B$14:$M$70"),12,0))-0.1,0)) -> 0 | V11: 0 | W11: =IF(基本情報!G14="",0,IF(基本情報!G14<税額基本情報!$E$32,税額基本情報!$F$32,IF(基本情報!G14>税額基本情報!$E$33,税額基本情報!$F$33,0))) -> 0 | X11: =IF(基本情報!G14="",0,IF(基本情報!G14<税額基本情報!$E$32,税額基本情報!$G$32,IF(基本情報!G14>税額基本情報!$E$33,税額基本情報!$G$33,0))) -> 0 | Y11: 0 | Z11: =ROUND(IF(賞与計算!F14>税額基本情報!$D$39,税額基本情報!$D$39,ROUNDDOWN(賞与計算!F14,-3))*INDIRECT(基本情報!$D$3&"!$F$8")*0.5-0.1,0) -> 0 | AA11: =ROUND(IF(賞与計算!F14>税額基本情報!$D$39,税額基本情報!$D$39,ROUNDDOWN(賞与計算!F14,-3))*INDIRECT(基本情報!$D$3&"!$H$8")/2-0.1,0) -> 0 | AB11: 0 | AC11: =ROUND(IF(賞与計算!F14>税額基本情報!$D$36,税額基本情報!$D$36,ROUNDDOWN(賞与計算!F14,-3))*INDIRECT(基本情報!$D$3&"!$L$8")/2-0.1,0) -> 0 | AD11: 0 | AE11: 0 | AF11: =IF(基本情報!G14="",0,ROUND(VLOOKUP(基本情報!G14,INDIRECT(基本情報!$D$3&"!$B$11:$K$70"),10,0)-0.1,0)) -> 0 | AG11: 0 | AH11: =ROUND(IF(賞与計算!F14>税額基本情報!$D$39,税額基本情報!$D$39,ROUNDDOWN(賞与計算!F14,-3))*INDIRECT(基本情報!$D$3&"!$J$8")*0.5-0.1,0) -> 0
C12: 8 | D12: =給与計算!C15 ->  | E12: =MAX(IF(給与計算!O15>=税額基本情報!$D$6,MAX('計算シート ２'!E12:M12),IF(給与計算!O15<源泉月額表!$B$8,0,VLOOKUP(給与計算!O15,INDIRECT(税額基本情報!$D$42),IF(基本情報!E15>=8,10,基本情報!E15+3),1)))-IF(基本情報!E15>=8,(基本情報!E15-7)*税額基本情報!$D$23,0),0) -> 0 | F12: =IF(給与計算!O15<源泉月額表!$B$8,ROUNDDOWN(給与計算!O15*税額基本情報!$D$29,0),IF(給与計算!O15=0,0,IF(給与計算!O15>=税額基本情報!$D$19,MAX('計算シート ２'!S12:U12),VLOOKUP(給与計算!O15,INDIRECT(税額基本情報!$D$42),11,1)))) -> 0 | G12: =MAX(IF(給与計算!O15<源泉月額表!$B$8,ROUNDDOWN(給与計算!O15*3.063%,0),IF(給与計算!O15=0,0,IF(給与計算!O15>=税額基本情報!$D$19,MAX('計算シート ２'!S12:U12),VLOOKUP(給与計算!O15,INDIRECT(税額基本情報!$D$42),11,1))))-基本情報!E15*税額基本情報!$D$26,0) -> 0 | H12: =IF(賞与計算!D15<源泉賞与表!$D$11*1000,0,INDEX(源泉賞与表!$B:$B,MATCH(賞与計算!D15/1000,源泉賞与表!$D:$D,1))) -> 0 | I12: =IF(賞与計算!D15<源泉賞与表!$F$11*1000,0,INDEX(源泉賞与表!$B:$B,MATCH(賞与計算!D15/1000,源泉賞与表!$F:$F,1))) -> 0 | J12: =IF(賞与計算!D15<源泉賞与表!$H$11*1000,0,INDEX(源泉賞与表!$B:$B,MATCH(賞与計算!D15/1000,源泉賞与表!$H:$H,1))) -> 0 | K12: =IF(賞与計算!D15<源泉賞与表!$J$11*1000,0,INDEX(源泉賞与表!$B:$B,MATCH(賞与計算!D15/1000,源泉賞与表!$J:$J,1))) -> 0 | L12: =IF(賞与計算!D15<源泉賞与表!$L$11*1000,0,INDEX(源泉賞与表!$B:$B,MATCH(賞与計算!D15/1000,源泉賞与表!$L:$L,1))) -> 0 | M12: =IF(賞与計算!D15<源泉賞与表!$N$11*1000,0,INDEX(源泉賞与表!$B:$B,MATCH(賞与計算!D15/1000,源泉賞与表!$N:$N,1))) -> 0 | N12: =IF(賞与計算!D15<源泉賞与表!$P$11*1000,0,INDEX(源泉賞与表!$B:$B,MATCH(賞与計算!D15/1000,源泉賞与表!$P:$P,1))) -> 0 | O12: =IF(賞与計算!D15<源泉賞与表!$R$11*1000,0,INDEX(源泉賞与表!$B:$B,MATCH(賞与計算!D15/1000,源泉賞与表!$R:$R,1))) -> 0 | P12: =IF(賞与計算!D15="","",IF(賞与計算!D15<源泉賞与表!$T$23*1000,10.21,INDEX(源泉賞与表!$B:$B,MATCH(賞与計算!D15/1000,源泉賞与表!$T:$T,1)))) ->  | Q12: 0 | R12: =IF(基本情報!G15="",0,ROUND(VLOOKUP(基本情報!G15,INDIRECT(基本情報!$D$3&"!$B$11:$I$70"),6,0)-0.1,0)) -> 0 | S12: =IF(基本情報!G15="",0,ROUND(VLOOKUP(基本情報!G15,INDIRECT(基本情報!$D$3&"!$B$11:$I$70"),8,0)-0.1,0)) -> 0 | T12: 0 | U12: =IF(基本情報!G15="",0,ROUND(IF(OR(基本情報!G15<税額基本情報!$E$32,基本情報!G15>税額基本情報!$E$33),W12,VLOOKUP(基本情報!G15,INDIRECT(基本情報!$D$3&"!$B$14:$M$70"),12,0))-0.1,0)) -> 0 | V12: 0 | W12: =IF(基本情報!G15="",0,IF(基本情報!G15<税額基本情報!$E$32,税額基本情報!$F$32,IF(基本情報!G15>税額基本情報!$E$33,税額基本情報!$F$33,0))) -> 0 | X12: =IF(基本情報!G15="",0,IF(基本情報!G15<税額基本情報!$E$32,税額基本情報!$G$32,IF(基本情報!G15>税額基本情報!$E$33,税額基本情報!$G$33,0))) -> 0 | Y12: 0 | Z12: =ROUND(IF(賞与計算!F15>税額基本情報!$D$39,税額基本情報!$D$39,ROUNDDOWN(賞与計算!F15,-3))*INDIRECT(基本情報!$D$3&"!$F$8")*0.5-0.1,0) -> 0 | AA12: =ROUND(IF(賞与計算!F15>税額基本情報!$D$39,税額基本情報!$D$39,ROUNDDOWN(賞与計算!F15,-3))*INDIRECT(基本情報!$D$3&"!$H$8")/2-0.1,0) -> 0 | AB12: 0 | AC12: =ROUND(IF(賞与計算!F15>税額基本情報!$D$36,税額基本情報!$D$36,ROUNDDOWN(賞与計算!F15,-3))*INDIRECT(基本情報!$D$3&"!$L$8")/2-0.1,0) -> 0 | AD12: 0 | AE12: 0 | AF12: =IF(基本情報!G15="",0,ROUND(VLOOKUP(基本情報!G15,INDIRECT(基本情報!$D$3&"!$B$11:$K$70"),10,0)-0.1,0)) -> 0 | AG12: 0 | AH12: =ROUND(IF(賞与計算!F15>税額基本情報!$D$39,税額基本情報!$D$39,ROUNDDOWN(賞与計算!F15,-3))*INDIRECT(基本情報!$D$3&"!$J$8")*0.5-0.1,0) -> 0
C13: 9 | D13: =給与計算!C16 ->  | E13: =MAX(IF(給与計算!O16>=税額基本情報!$D$6,MAX('計算シート ２'!E13:M13),IF(給与計算!O16<源泉月額表!$B$8,0,VLOOKUP(給与計算!O16,INDIRECT(税額基本情報!$D$42),IF(基本情報!E16>=8,10,基本情報!E16+3),1)))-IF(基本情報!E16>=8,(基本情報!E16-7)*税額基本情報!$D$23,0),0) -> 0 | F13: =IF(給与計算!O16<源泉月額表!$B$8,ROUNDDOWN(給与計算!O16*税額基本情報!$D$29,0),IF(給与計算!O16=0,0,IF(給与計算!O16>=税額基本情報!$D$19,MAX('計算シート ２'!S13:U13),VLOOKUP(給与計算!O16,INDIRECT(税額基本情報!$D$42),11,1)))) -> 0 | G13: =MAX(IF(給与計算!O16<源泉月額表!$B$8,ROUNDDOWN(給与計算!O16*3.063%,0),IF(給与計算!O16=0,0,IF(給与計算!O16>=税額基本情報!$D$19,MAX('計算シート ２'!S13:U13),VLOOKUP(給与計算!O16,INDIRECT(税額基本情報!$D$42),11,1))))-基本情報!E16*税額基本情報!$D$26,0) -> 0 | H13: =IF(賞与計算!D16<源泉賞与表!$D$11*1000,0,INDEX(源泉賞与表!$B:$B,MATCH(賞与計算!D16/1000,源泉賞与表!$D:$D,1))) -> 0 | I13: =IF(賞与計算!D16<源泉賞与表!$F$11*1000,0,INDEX(源泉賞与表!$B:$B,MATCH(賞与計算!D16/1000,源泉賞与表!$F:$F,1))) -> 0 | J13: =IF(賞与計算!D16<源泉賞与表!$H$11*1000,0,INDEX(源泉賞与表!$B:$B,MATCH(賞与計算!D16/1000,源泉賞与表!$H:$H,1))) -> 0 | K13: =IF(賞与計算!D16<源泉賞与表!$J$11*1000,0,INDEX(源泉賞与表!$B:$B,MATCH(賞与計算!D16/1000,源泉賞与表!$J:$J,1))) -> 0 | L13: =IF(賞与計算!D16<源泉賞与表!$L$11*1000,0,INDEX(源泉賞与表!$B:$B,MATCH(賞与計算!D16/1000,源泉賞与表!$L:$L,1))) -> 0 | M13: =IF(賞与計算!D16<源泉賞与表!$N$11*1000,0,INDEX(源泉賞与表!$B:$B,MATCH(賞与計算!D16/1000,源泉賞与表!$N:$N,1))) -> 0 | N13: =IF(賞与計算!D16<源泉賞与表!$P$11*1000,0,INDEX(源泉賞与表!$B:$B,MATCH(賞与計算!D16/1000,源泉賞与表!$P:$P,1))) -> 0 | O13: =IF(賞与計算!D16<源泉賞与表!$R$11*1000,0,INDEX(源泉賞与表!$B:$B,MATCH(賞与計算!D16/1000,源泉賞与表!$R:$R,1))) -> 0 | P13: =IF(賞与計算!D16="","",IF(賞与計算!D16<源泉賞与表!$T$23*1000,10.21,INDEX(源泉賞与表!$B:$B,MATCH(賞与計算!D16/1000,源泉賞与表!$T:$T,1)))) ->  | Q13: 0 | R13: =IF(基本情報!G16="",0,ROUND(VLOOKUP(基本情報!G16,INDIRECT(基本情報!$D$3&"!$B$11:$I$70"),6,0)-0.1,0)) -> 0 | S13: =IF(基本情報!G16="",0,ROUND(VLOOKUP(基本情報!G16,INDIRECT(基本情報!$D$3&"!$B$11:$I$70"),8,0)-0.1,0)) -> 0 | T13: 0 | U13: =IF(基本情報!G16="",0,ROUND(IF(OR(基本情報!G16<税額基本情報!$E$32,基本情報!G16>税額基本情報!$E$33),W13,VLOOKUP(基本情報!G16,INDIRECT(基本情報!$D$3&"!$B$14:$M$70"),12,0))-0.1,0)) -> 0 | V13: 0 | W13: =IF(基本情報!G16="",0,IF(基本情報!G16<税額基本情報!$E$32,税額基本情報!$F$32,IF(基本情報!G16>税額基本情報!$E$33,税額基本情報!$F$33,0))) -> 0 | X13: =IF(基本情報!G16="",0,IF(基本情報!G16<税額基本情報!$E$32,税額基本情報!$G$32,IF(基本情報!G16>税額基本情報!$E$33,税額基本情報!$G$33,0))) -> 0 | Y13: 0 | Z13: =ROUND(IF(賞与計算!F16>税額基本情報!$D$39,税額基本情報!$D$39,ROUNDDOWN(賞与計算!F16,-3))*INDIRECT(基本情報!$D$3&"!$F$8")*0.5-0.1,0) -> 0 | AA13: =ROUND(IF(賞与計算!F16>税額基本情報!$D$39,税額基本情報!$D$39,ROUNDDOWN(賞与計算!F16,-3))*INDIRECT(基本情報!$D$3&"!$H$8")/2-0.1,0) -> 0 | AB13: 0 | AC13: =ROUND(IF(賞与計算!F16>税額基本情報!$D$36,税額基本情報!$D$36,ROUNDDOWN(賞与計算!F16,-3))*INDIRECT(基本情報!$D$3&"!$L$8")/2-0.1,0) -> 0 | AD13: 0 | AE13: 0 | AF13: =IF(基本情報!G16="",0,ROUND(VLOOKUP(基本情報!G16,INDIRECT(基本情報!$D$3&"!$B$11:$K$70"),10,0)-0.1,0)) -> 0 | AG13: 0 | AH13: =ROUND(IF(賞与計算!F16>税額基本情報!$D$39,税額基本情報!$D$39,ROUNDDOWN(賞与計算!F16,-3))*INDIRECT(基本情報!$D$3&"!$J$8")*0.5-0.1,0) -> 0
C14: 10 | D14: =給与計算!C17 ->  | E14: =MAX(IF(給与計算!O17>=税額基本情報!$D$6,MAX('計算シート ２'!E14:M14),IF(給与計算!O17<源泉月額表!$B$8,0,VLOOKUP(給与計算!O17,INDIRECT(税額基本情報!$D$42),IF(基本情報!E17>=8,10,基本情報!E17+3),1)))-IF(基本情報!E17>=8,(基本情報!E17-7)*税額基本情報!$D$23,0),0) -> 0 | F14: =IF(給与計算!O17<源泉月額表!$B$8,ROUNDDOWN(給与計算!O17*税額基本情報!$D$29,0),IF(給与計算!O17=0,0,IF(給与計算!O17>=税額基本情報!$D$19,MAX('計算シート ２'!S14:U14),VLOOKUP(給与計算!O17,INDIRECT(税額基本情報!$D$42),11,1)))) -> 0 | G14: =MAX(IF(給与計算!O17<源泉月額表!$B$8,ROUNDDOWN(給与計算!O17*3.063%,0),IF(給与計算!O17=0,0,IF(給与計算!O17>=税額基本情報!$D$19,MAX('計算シート ２'!S14:U14),VLOOKUP(給与計算!O17,INDIRECT(税額基本情報!$D$42),11,1))))-基本情報!E17*税額基本情報!$D$26,0) -> 0 | H14: =IF(賞与計算!D17<源泉賞与表!$D$11*1000,0,INDEX(源泉賞与表!$B:$B,MATCH(賞与計算!D17/1000,源泉賞与表!$D:$D,1))) -> 0 | I14: =IF(賞与計算!D17<源泉賞与表!$F$11*1000,0,INDEX(源泉賞与表!$B:$B,MATCH(賞与計算!D17/1000,源泉賞与表!$F:$F,1))) -> 0 | J14: =IF(賞与計算!D17<源泉賞与表!$H$11*1000,0,INDEX(源泉賞与表!$B:$B,MATCH(賞与計算!D17/1000,源泉賞与表!$H:$H,1))) -> 0 | K14: =IF(賞与計算!D17<源泉賞与表!$J$11*1000,0,INDEX(源泉賞与表!$B:$B,MATCH(賞与計算!D17/1000,源泉賞与表!$J:$J,1))) -> 0 | L14: =IF(賞与計算!D17<源泉賞与表!$L$11*1000,0,INDEX(源泉賞与表!$B:$B,MATCH(賞与計算!D17/1000,源泉賞与表!$L:$L,1))) -> 0 | M14: =IF(賞与計算!D17<源泉賞与表!$N$11*1000,0,INDEX(源泉賞与表!$B:$B,MATCH(賞与計算!D17/1000,源泉賞与表!$N:$N,1))) -> 0 | N14: =IF(賞与計算!D17<源泉賞与表!$P$11*1000,0,INDEX(源泉賞与表!$B:$B,MATCH(賞与計算!D17/1000,源泉賞与表!$P:$P,1))) -> 0 | O14: =IF(賞与計算!D17<源泉賞与表!$R$11*1000,0,INDEX(源泉賞与表!$B:$B,MATCH(賞与計算!D17/1000,源泉賞与表!$R:$R,1))) -> 0 | P14: =IF(賞与計算!D17="","",IF(賞与計算!D17<源泉賞与表!$T$23*1000,10.21,INDEX(源泉賞与表!$B:$B,MATCH(賞与計算!D17/1000,源泉賞与表!$T:$T,1)))) ->  | Q14: 0 | R14: =IF(基本情報!G17="",0,ROUND(VLOOKUP(基本情報!G17,INDIRECT(基本情報!$D$3&"!$B$11:$I$70"),6,0)-0.1,0)) -> 0 | S14: =IF(基本情報!G17="",0,ROUND(VLOOKUP(基本情報!G17,INDIRECT(基本情報!$D$3&"!$B$11:$I$70"),8,0)-0.1,0)) -> 0 | T14: 0 | U14: =IF(基本情報!G17="",0,ROUND(IF(OR(基本情報!G17<税額基本情報!$E$32,基本情報!G17>税額基本情報!$E$33),W14,VLOOKUP(基本情報!G17,INDIRECT(基本情報!$D$3&"!$B$14:$M$70"),12,0))-0.1,0)) -> 0 | V14: 0 | W14: =IF(基本情報!G17="",0,IF(基本情報!G17<税額基本情報!$E$32,税額基本情報!$F$32,IF(基本情報!G17>税額基本情報!$E$33,税額基本情報!$F$33,0))) -> 0 | X14: =IF(基本情報!G17="",0,IF(基本情報!G17<税額基本情報!$E$32,税額基本情報!$G$32,IF(基本情報!G17>税額基本情報!$E$33,税額基本情報!$G$33,0))) -> 0 | Y14: 0 | Z14: =ROUND(IF(賞与計算!F17>税額基本情報!$D$39,税額基本情報!$D$39,ROUNDDOWN(賞与計算!F17,-3))*INDIRECT(基本情報!$D$3&"!$F$8")*0.5-0.1,0) -> 0 | AA14: =ROUND(IF(賞与計算!F17>税額基本情報!$D$39,税額基本情報!$D$39,ROUNDDOWN(賞与計算!F17,-3))*INDIRECT(基本情報!$D$3&"!$H$8")/2-0.1,0) -> 0 | AB14: 0 | AC14: =ROUND(IF(賞与計算!F17>税額基本情報!$D$36,税額基本情報!$D$36,ROUNDDOWN(賞与計算!F17,-3))*INDIRECT(基本情報!$D$3&"!$L$8")/2-0.1,0) -> 0 | AD14: 0 | AE14: 0 | AF14: =IF(基本情報!G17="",0,ROUND(VLOOKUP(基本情報!G17,INDIRECT(基本情報!$D$3&"!$B$11:$K$70"),10,0)-0.1,0)) -> 0 | AG14: 0 | AH14: =ROUND(IF(賞与計算!F17>税額基本情報!$D$39,税額基本情報!$D$39,ROUNDDOWN(賞与計算!F17,-3))*INDIRECT(基本情報!$D$3&"!$J$8")*0.5-0.1,0) -> 0
C15: 11 | D15: =給与計算!C18 ->  | E15: =MAX(IF(給与計算!O18>=税額基本情報!$D$6,MAX('計算シート ２'!E15:M15),IF(給与計算!O18<源泉月額表!$B$8,0,VLOOKUP(給与計算!O18,INDIRECT(税額基本情報!$D$42),IF(基本情報!E18>=8,10,基本情報!E18+3),1)))-IF(基本情報!E18>=8,(基本情報!E18-7)*税額基本情報!$D$23,0),0) -> 0 | F15: =IF(給与計算!O18<源泉月額表!$B$8,ROUNDDOWN(給与計算!O18*税額基本情報!$D$29,0),IF(給与計算!O18=0,0,IF(給与計算!O18>=税額基本情報!$D$19,MAX('計算シート ２'!S15:U15),VLOOKUP(給与計算!O18,INDIRECT(税額基本情報!$D$42),11,1)))) -> 0 | G15: =MAX(IF(給与計算!O18<源泉月額表!$B$8,ROUNDDOWN(給与計算!O18*3.063%,0),IF(給与計算!O18=0,0,IF(給与計算!O18>=税額基本情報!$D$19,MAX('計算シート ２'!S15:U15),VLOOKUP(給与計算!O18,INDIRECT(税額基本情報!$D$42),11,1))))-基本情報!E18*税額基本情報!$D$26,0) -> 0 | H15: =IF(賞与計算!D18<源泉賞与表!$D$11*1000,0,INDEX(源泉賞与表!$B:$B,MATCH(賞与計算!D18/1000,源泉賞与表!$D:$D,1))) -> 0 | I15: =IF(賞与計算!D18<源泉賞与表!$F$11*1000,0,INDEX(源泉賞与表!$B:$B,MATCH(賞与計算!D18/1000,源泉賞与表!$F:$F,1))) -> 0 | J15: =IF(賞与計算!D18<源泉賞与表!$H$11*1000,0,INDEX(源泉賞与表!$B:$B,MATCH(賞与計算!D18/1000,源泉賞与表!$H:$H,1))) -> 0 | K15: =IF(賞与計算!D18<源泉賞与表!$J$11*1000,0,INDEX(源泉賞与表!$B:$B,MATCH(賞与計算!D18/1000,源泉賞与表!$J:$J,1))) -> 0 | L15: =IF(賞与計算!D18<源泉賞与表!$L$11*1000,0,INDEX(源泉賞与表!$B:$B,MATCH(賞与計算!D18/1000,源泉賞与表!$L:$L,1))) -> 0 | M15: =IF(賞与計算!D18<源泉賞与表!$N$11*1000,0,INDEX(源泉賞与表!$B:$B,MATCH(賞与計算!D18/1000,源泉賞与表!$N:$N,1))) -> 0 | N15: =IF(賞与計算!D18<源泉賞与表!$P$11*1000,0,INDEX(源泉賞与表!$B:$B,MATCH(賞与計算!D18/1000,源泉賞与表!$P:$P,1))) -> 0 | O15: =IF(賞与計算!D18<源泉賞与表!$R$11*1000,0,INDEX(源泉賞与表!$B:$B,MATCH(賞与計算!D18/1000,源泉賞与表!$R:$R,1))) -> 0 | P15: =IF(賞与計算!D18="","",IF(賞与計算!D18<源泉賞与表!$T$23*1000,10.21,INDEX(源泉賞与表!$B:$B,MATCH(賞与計算!D18/1000,源泉賞与表!$T:$T,1)))) ->  | Q15: 0 | R15: =IF(基本情報!G18="",0,ROUND(VLOOKUP(基本情報!G18,INDIRECT(基本情報!$D$3&"!$B$11:$I$70"),6,0)-0.1,0)) -> 0 | S15: =IF(基本情報!G18="",0,ROUND(VLOOKUP(基本情報!G18,INDIRECT(基本情報!$D$3&"!$B$11:$I$70"),8,0)-0.1,0)) -> 0 | T15: 0 | U15: =IF(基本情報!G18="",0,ROUND(IF(OR(基本情報!G18<税額基本情報!$E$32,基本情報!G18>税額基本情報!$E$33),W15,VLOOKUP(基本情報!G18,INDIRECT(基本情報!$D$3&"!$B$14:$M$70"),12,0))-0.1,0)) -> 0 | V15: 0 | W15: =IF(基本情報!G18="",0,IF(基本情報!G18<税額基本情報!$E$32,税額基本情報!$F$32,IF(基本情報!G18>税額基本情報!$E$33,税額基本情報!$F$33,0))) -> 0 | X15: =IF(基本情報!G18="",0,IF(基本情報!G18<税額基本情報!$E$32,税額基本情報!$G$32,IF(基本情報!G18>税額基本情報!$E$33,税額基本情報!$G$33,0))) -> 0 | Y15: 0 | Z15: =ROUND(IF(賞与計算!F18>税額基本情報!$D$39,税額基本情報!$D$39,ROUNDDOWN(賞与計算!F18,-3))*INDIRECT(基本情報!$D$3&"!$F$8")*0.5-0.1,0) -> 0 | AA15: =ROUND(IF(賞与計算!F18>税額基本情報!$D$39,税額基本情報!$D$39,ROUNDDOWN(賞与計算!F18,-3))*INDIRECT(基本情報!$D$3&"!$H$8")/2-0.1,0) -> 0 | AB15: 0 | AC15: =ROUND(IF(賞与計算!F18>税額基本情報!$D$36,税額基本情報!$D$36,ROUNDDOWN(賞与計算!F18,-3))*INDIRECT(基本情報!$D$3&"!$L$8")/2-0.1,0) -> 0 | AD15: 0 | AE15: 0 | AF15: =IF(基本情報!G18="",0,ROUND(VLOOKUP(基本情報!G18,INDIRECT(基本情報!$D$3&"!$B$11:$K$70"),10,0)-0.1,0)) -> 0 | AG15: 0 | AH15: =ROUND(IF(賞与計算!F18>税額基本情報!$D$39,税額基本情報!$D$39,ROUNDDOWN(賞与計算!F18,-3))*INDIRECT(基本情報!$D$3&"!$J$8")*0.5-0.1,0) -> 0
C16: 12 | D16: =給与計算!C19 ->  | E16: =MAX(IF(給与計算!O19>=税額基本情報!$D$6,MAX('計算シート ２'!E16:M16),IF(給与計算!O19<源泉月額表!$B$8,0,VLOOKUP(給与計算!O19,INDIRECT(税額基本情報!$D$42),IF(基本情報!E19>=8,10,基本情報!E19+3),1)))-IF(基本情報!E19>=8,(基本情報!E19-7)*税額基本情報!$D$23,0),0) -> 0 | F16: =IF(給与計算!O19<源泉月額表!$B$8,ROUNDDOWN(給与計算!O19*税額基本情報!$D$29,0),IF(給与計算!O19=0,0,IF(給与計算!O19>=税額基本情報!$D$19,MAX('計算シート ２'!S16:U16),VLOOKUP(給与計算!O19,INDIRECT(税額基本情報!$D$42),11,1)))) -> 0 | G16: =MAX(IF(給与計算!O19<源泉月額表!$B$8,ROUNDDOWN(給与計算!O19*3.063%,0),IF(給与計算!O19=0,0,IF(給与計算!O19>=税額基本情報!$D$19,MAX('計算シート ２'!S16:U16),VLOOKUP(給与計算!O19,INDIRECT(税額基本情報!$D$42),11,1))))-基本情報!E19*税額基本情報!$D$26,0) -> 0 | H16: =IF(賞与計算!D19<源泉賞与表!$D$11*1000,0,INDEX(源泉賞与表!$B:$B,MATCH(賞与計算!D19/1000,源泉賞与表!$D:$D,1))) -> 0 | I16: =IF(賞与計算!D19<源泉賞与表!$F$11*1000,0,INDEX(源泉賞与表!$B:$B,MATCH(賞与計算!D19/1000,源泉賞与表!$F:$F,1))) -> 0 | J16: =IF(賞与計算!D19<源泉賞与表!$H$11*1000,0,INDEX(源泉賞与表!$B:$B,MATCH(賞与計算!D19/1000,源泉賞与表!$H:$H,1))) -> 0 | K16: =IF(賞与計算!D19<源泉賞与表!$J$11*1000,0,INDEX(源泉賞与表!$B:$B,MATCH(賞与計算!D19/1000,源泉賞与表!$J:$J,1))) -> 0 | L16: =IF(賞与計算!D19<源泉賞与表!$L$11*1000,0,INDEX(源泉賞与表!$B:$B,MATCH(賞与計算!D19/1000,源泉賞与表!$L:$L,1))) -> 0 | M16: =IF(賞与計算!D19<源泉賞与表!$N$11*1000,0,INDEX(源泉賞与表!$B:$B,MATCH(賞与計算!D19/1000,源泉賞与表!$N:$N,1))) -> 0 | N16: =IF(賞与計算!D19<源泉賞与表!$P$11*1000,0,INDEX(源泉賞与表!$B:$B,MATCH(賞与計算!D19/1000,源泉賞与表!$P:$P,1))) -> 0 | O16: =IF(賞与計算!D19<源泉賞与表!$R$11*1000,0,INDEX(源泉賞与表!$B:$B,MATCH(賞与計算!D19/1000,源泉賞与表!$R:$R,1))) -> 0 | P16: =IF(賞与計算!D19="","",IF(賞与計算!D19<源泉賞与表!$T$23*1000,10.21,INDEX(源泉賞与表!$B:$B,MATCH(賞与計算!D19/1000,源泉賞与表!$T:$T,1)))) ->  | Q16: 0 | R16: =IF(基本情報!G19="",0,ROUND(VLOOKUP(基本情報!G19,INDIRECT(基本情報!$D$3&"!$B$11:$I$70"),6,0)-0.1,0)) -> 0 | S16: =IF(基本情報!G19="",0,ROUND(VLOOKUP(基本情報!G19,INDIRECT(基本情報!$D$3&"!$B$11:$I$70"),8,0)-0.1,0)) -> 0 | T16: 0 | U16: =IF(基本情報!G19="",0,ROUND(IF(OR(基本情報!G19<税額基本情報!$E$32,基本情報!G19>税額基本情報!$E$33),W16,VLOOKUP(基本情報!G19,INDIRECT(基本情報!$D$3&"!$B$14:$M$70"),12,0))-0.1,0)) -> 0 | V16: 0 | W16: =IF(基本情報!G19="",0,IF(基本情報!G19<税額基本情報!$E$32,税額基本情報!$F$32,IF(基本情報!G19>税額基本情報!$E$33,税額基本情報!$F$33,0))) -> 0 | X16: =IF(基本情報!G19="",0,IF(基本情報!G19<税額基本情報!$E$32,税額基本情報!$G$32,IF(基本情報!G19>税額基本情報!$E$33,税額基本情報!$G$33,0))) -> 0 | Y16: 0 | Z16: =ROUND(IF(賞与計算!F19>税額基本情報!$D$39,税額基本情報!$D$39,ROUNDDOWN(賞与計算!F19,-3))*INDIRECT(基本情報!$D$3&"!$F$8")*0.5-0.1,0) -> 0 | AA16: =ROUND(IF(賞与計算!F19>税額基本情報!$D$39,税額基本情報!$D$39,ROUNDDOWN(賞与計算!F19,-3))*INDIRECT(基本情報!$D$3&"!$H$8")/2-0.1,0) -> 0 | AB16: 0 | AC16: =ROUND(IF(賞与計算!F19>税額基本情報!$D$36,税額基本情報!$D$36,ROUNDDOWN(賞与計算!F19,-3))*INDIRECT(基本情報!$D$3&"!$L$8")/2-0.1,0) -> 0 | AD16: 0 | AE16: 0 | AF16: =IF(基本情報!G19="",0,ROUND(VLOOKUP(基本情報!G19,INDIRECT(基本情報!$D$3&"!$B$11:$K$70"),10,0)-0.1,0)) -> 0 | AG16: 0 | AH16: =ROUND(IF(賞与計算!F19>税額基本情報!$D$39,税額基本情報!$D$39,ROUNDDOWN(賞与計算!F19,-3))*INDIRECT(基本情報!$D$3&"!$J$8")*0.5-0.1,0) -> 0
C17: 13 | D17: =給与計算!C20 ->  | E17: =MAX(IF(給与計算!O20>=税額基本情報!$D$6,MAX('計算シート ２'!E17:M17),IF(給与計算!O20<源泉月額表!$B$8,0,VLOOKUP(給与計算!O20,INDIRECT(税額基本情報!$D$42),IF(基本情報!E20>=8,10,基本情報!E20+3),1)))-IF(基本情報!E20>=8,(基本情報!E20-7)*税額基本情報!$D$23,0),0) -> 0 | F17: =IF(給与計算!O20<源泉月額表!$B$8,ROUNDDOWN(給与計算!O20*税額基本情報!$D$29,0),IF(給与計算!O20=0,0,IF(給与計算!O20>=税額基本情報!$D$19,MAX('計算シート ２'!S17:U17),VLOOKUP(給与計算!O20,INDIRECT(税額基本情報!$D$42),11,1)))) -> 0 | G17: =MAX(IF(給与計算!O20<源泉月額表!$B$8,ROUNDDOWN(給与計算!O20*3.063%,0),IF(給与計算!O20=0,0,IF(給与計算!O20>=税額基本情報!$D$19,MAX('計算シート ２'!S17:U17),VLOOKUP(給与計算!O20,INDIRECT(税額基本情報!$D$42),11,1))))-基本情報!E20*税額基本情報!$D$26,0) -> 0 | H17: =IF(賞与計算!D20<源泉賞与表!$D$11*1000,0,INDEX(源泉賞与表!$B:$B,MATCH(賞与計算!D20/1000,源泉賞与表!$D:$D,1))) -> 0 | I17: =IF(賞与計算!D20<源泉賞与表!$F$11*1000,0,INDEX(源泉賞与表!$B:$B,MATCH(賞与計算!D20/1000,源泉賞与表!$F:$F,1))) -> 0 | J17: =IF(賞与計算!D20<源泉賞与表!$H$11*1000,0,INDEX(源泉賞与表!$B:$B,MATCH(賞与計算!D20/1000,源泉賞与表!$H:$H,1))) -> 0 | K17: =IF(賞与計算!D20<源泉賞与表!$J$11*1000,0,INDEX(源泉賞与表!$B:$B,MATCH(賞与計算!D20/1000,源泉賞与表!$J:$J,1))) -> 0 | L17: =IF(賞与計算!D20<源泉賞与表!$L$11*1000,0,INDEX(源泉賞与表!$B:$B,MATCH(賞与計算!D20/1000,源泉賞与表!$L:$L,1))) -> 0 | M17: =IF(賞与計算!D20<源泉賞与表!$N$11*1000,0,INDEX(源泉賞与表!$B:$B,MATCH(賞与計算!D20/1000,源泉賞与表!$N:$N,1))) -> 0 | N17: =IF(賞与計算!D20<源泉賞与表!$P$11*1000,0,INDEX(源泉賞与表!$B:$B,MATCH(賞与計算!D20/1000,源泉賞与表!$P:$P,1))) -> 0 | O17: =IF(賞与計算!D20<源泉賞与表!$R$11*1000,0,INDEX(源泉賞与表!$B:$B,MATCH(賞与計算!D20/1000,源泉賞与表!$R:$R,1))) -> 0 | P17: =IF(賞与計算!D20="","",IF(賞与計算!D20<源泉賞与表!$T$23*1000,10.21,INDEX(源泉賞与表!$B:$B,MATCH(賞与計算!D20/1000,源泉賞与表!$T:$T,1)))) ->  | Q17: 0 | R17: =IF(基本情報!G20="",0,ROUND(VLOOKUP(基本情報!G20,INDIRECT(基本情報!$D$3&"!$B$11:$I$70"),6,0)-0.1,0)) -> 0 | S17: =IF(基本情報!G20="",0,ROUND(VLOOKUP(基本情報!G20,INDIRECT(基本情報!$D$3&"!$B$11:$I$70"),8,0)-0.1,0)) -> 0 | T17: 0 | U17: =IF(基本情報!G20="",0,ROUND(IF(OR(基本情報!G20<税額基本情報!$E$32,基本情報!G20>税額基本情報!$E$33),W17,VLOOKUP(基本情報!G20,INDIRECT(基本情報!$D$3&"!$B$14:$M$70"),12,0))-0.1,0)) -> 0 | V17: 0 | W17: =IF(基本情報!G20="",0,IF(基本情報!G20<税額基本情報!$E$32,税額基本情報!$F$32,IF(基本情報!G20>税額基本情報!$E$33,税額基本情報!$F$33,0))) -> 0 | X17: =IF(基本情報!G20="",0,IF(基本情報!G20<税額基本情報!$E$32,税額基本情報!$G$32,IF(基本情報!G20>税額基本情報!$E$33,税額基本情報!$G$33,0))) -> 0 | Y17: 0 | Z17: =ROUND(IF(賞与計算!F20>税額基本情報!$D$39,税額基本情報!$D$39,ROUNDDOWN(賞与計算!F20,-3))*INDIRECT(基本情報!$D$3&"!$F$8")*0.5-0.1,0) -> 0 | AA17: =ROUND(IF(賞与計算!F20>税額基本情報!$D$39,税額基本情報!$D$39,ROUNDDOWN(賞与計算!F20,-3))*INDIRECT(基本情報!$D$3&"!$H$8")/2-0.1,0) -> 0 | AB17: 0 | AC17: =ROUND(IF(賞与計算!F20>税額基本情報!$D$36,税額基本情報!$D$36,ROUNDDOWN(賞与計算!F20,-3))*INDIRECT(基本情報!$D$3&"!$L$8")/2-0.1,0) -> 0 | AD17: 0 | AE17: 0 | AF17: =IF(基本情報!G20="",0,ROUND(VLOOKUP(基本情報!G20,INDIRECT(基本情報!$D$3&"!$B$11:$K$70"),10,0)-0.1,0)) -> 0 | AG17: 0 | AH17: =ROUND(IF(賞与計算!F20>税額基本情報!$D$39,税額基本情報!$D$39,ROUNDDOWN(賞与計算!F20,-3))*INDIRECT(基本情報!$D$3&"!$J$8")*0.5-0.1,0) -> 0
C18: 14 | D18: =給与計算!C21 ->  | E18: =MAX(IF(給与計算!O21>=税額基本情報!$D$6,MAX('計算シート ２'!E18:M18),IF(給与計算!O21<源泉月額表!$B$8,0,VLOOKUP(給与計算!O21,INDIRECT(税額基本情報!$D$42),IF(基本情報!E21>=8,10,基本情報!E21+3),1)))-IF(基本情報!E21>=8,(基本情報!E21-7)*税額基本情報!$D$23,0),0) -> 0 | F18: =IF(給与計算!O21<源泉月額表!$B$8,ROUNDDOWN(給与計算!O21*税額基本情報!$D$29,0),IF(給与計算!O21=0,0,IF(給与計算!O21>=税額基本情報!$D$19,MAX('計算シート ２'!S18:U18),VLOOKUP(給与計算!O21,INDIRECT(税額基本情報!$D$42),11,1)))) -> 0 | G18: =MAX(IF(給与計算!O21<源泉月額表!$B$8,ROUNDDOWN(給与計算!O21*3.063%,0),IF(給与計算!O21=0,0,IF(給与計算!O21>=税額基本情報!$D$19,MAX('計算シート ２'!S18:U18),VLOOKUP(給与計算!O21,INDIRECT(税額基本情報!$D$42),11,1))))-基本情報!E21*税額基本情報!$D$26,0) -> 0 | H18: =IF(賞与計算!D21<源泉賞与表!$D$11*1000,0,INDEX(源泉賞与表!$B:$B,MATCH(賞与計算!D21/1000,源泉賞与表!$D:$D,1))) -> 0 | I18: =IF(賞与計算!D21<源泉賞与表!$F$11*1000,0,INDEX(源泉賞与表!$B:$B,MATCH(賞与計算!D21/1000,源泉賞与表!$F:$F,1))) -> 0 | J18: =IF(賞与計算!D21<源泉賞与表!$H$11*1000,0,INDEX(源泉賞与表!$B:$B,MATCH(賞与計算!D21/1000,源泉賞与表!$H:$H,1))) -> 0 | K18: =IF(賞与計算!D21<源泉賞与表!$J$11*1000,0,INDEX(源泉賞与表!$B:$B,MATCH(賞与計算!D21/1000,源泉賞与表!$J:$J,1))) -> 0 | L18: =IF(賞与計算!D21<源泉賞与表!$L$11*1000,0,INDEX(源泉賞与表!$B:$B,MATCH(賞与計算!D21/1000,源泉賞与表!$L:$L,1))) -> 0 | M18: =IF(賞与計算!D21<源泉賞与表!$N$11*1000,0,INDEX(源泉賞与表!$B:$B,MATCH(賞与計算!D21/1000,源泉賞与表!$N:$N,1))) -> 0 | N18: =IF(賞与計算!D21<源泉賞与表!$P$11*1000,0,INDEX(源泉賞与表!$B:$B,MATCH(賞与計算!D21/1000,源泉賞与表!$P:$P,1))) -> 0 | O18: =IF(賞与計算!D21<源泉賞与表!$R$11*1000,0,INDEX(源泉賞与表!$B:$B,MATCH(賞与計算!D21/1000,源泉賞与表!$R:$R,1))) -> 0 | P18: =IF(賞与計算!D21="","",IF(賞与計算!D21<源泉賞与表!$T$23*1000,10.21,INDEX(源泉賞与表!$B:$B,MATCH(賞与計算!D21/1000,源泉賞与表!$T:$T,1)))) ->  | Q18: 0 | R18: =IF(基本情報!G21="",0,ROUND(VLOOKUP(基本情報!G21,INDIRECT(基本情報!$D$3&"!$B$11:$I$70"),6,0)-0.1,0)) -> 0 | S18: =IF(基本情報!G21="",0,ROUND(VLOOKUP(基本情報!G21,INDIRECT(基本情報!$D$3&"!$B$11:$I$70"),8,0)-0.1,0)) -> 0 | T18: 0 | U18: =IF(基本情報!G21="",0,ROUND(IF(OR(基本情報!G21<税額基本情報!$E$32,基本情報!G21>税額基本情報!$E$33),W18,VLOOKUP(基本情報!G21,INDIRECT(基本情報!$D$3&"!$B$14:$M$70"),12,0))-0.1,0)) -> 0 | V18: 0 | W18: =IF(基本情報!G21="",0,IF(基本情報!G21<税額基本情報!$E$32,税額基本情報!$F$32,IF(基本情報!G21>税額基本情報!$E$33,税額基本情報!$F$33,0))) -> 0 | X18: =IF(基本情報!G21="",0,IF(基本情報!G21<税額基本情報!$E$32,税額基本情報!$G$32,IF(基本情報!G21>税額基本情報!$E$33,税額基本情報!$G$33,0))) -> 0 | Y18: 0 | Z18: =ROUND(IF(賞与計算!F21>税額基本情報!$D$39,税額基本情報!$D$39,ROUNDDOWN(賞与計算!F21,-3))*INDIRECT(基本情報!$D$3&"!$F$8")*0.5-0.1,0) -> 0 | AA18: =ROUND(IF(賞与計算!F21>税額基本情報!$D$39,税額基本情報!$D$39,ROUNDDOWN(賞与計算!F21,-3))*INDIRECT(基本情報!$D$3&"!$H$8")/2-0.1,0) -> 0 | AB18: 0 | AC18: =ROUND(IF(賞与計算!F21>税額基本情報!$D$36,税額基本情報!$D$36,ROUNDDOWN(賞与計算!F21,-3))*INDIRECT(基本情報!$D$3&"!$L$8")/2-0.1,0) -> 0 | AD18: 0 | AE18: 0 | AF18: =IF(基本情報!G21="",0,ROUND(VLOOKUP(基本情報!G21,INDIRECT(基本情報!$D$3&"!$B$11:$K$70"),10,0)-0.1,0)) -> 0 | AG18: 0 | AH18: =ROUND(IF(賞与計算!F21>税額基本情報!$D$39,税額基本情報!$D$39,ROUNDDOWN(賞与計算!F21,-3))*INDIRECT(基本情報!$D$3&"!$J$8")*0.5-0.1,0) -> 0
C19: 15 | D19: =給与計算!C22 ->  | E19: =MAX(IF(給与計算!O22>=税額基本情報!$D$6,MAX('計算シート ２'!E19:M19),IF(給与計算!O22<源泉月額表!$B$8,0,VLOOKUP(給与計算!O22,INDIRECT(税額基本情報!$D$42),IF(基本情報!E22>=8,10,基本情報!E22+3),1)))-IF(基本情報!E22>=8,(基本情報!E22-7)*税額基本情報!$D$23,0),0) -> 0 | F19: =IF(給与計算!O22<源泉月額表!$B$8,ROUNDDOWN(給与計算!O22*税額基本情報!$D$29,0),IF(給与計算!O22=0,0,IF(給与計算!O22>=税額基本情報!$D$19,MAX('計算シート ２'!S19:U19),VLOOKUP(給与計算!O22,INDIRECT(税額基本情報!$D$42),11,1)))) -> 0 | G19: =MAX(IF(給与計算!O22<源泉月額表!$B$8,ROUNDDOWN(給与計算!O22*3.063%,0),IF(給与計算!O22=0,0,IF(給与計算!O22>=税額基本情報!$D$19,MAX('計算シート ２'!S19:U19),VLOOKUP(給与計算!O22,INDIRECT(税額基本情報!$D$42),11,1))))-基本情報!E22*税額基本情報!$D$26,0) -> 0 | H19: =IF(賞与計算!D22<源泉賞与表!$D$11*1000,0,INDEX(源泉賞与表!$B:$B,MATCH(賞与計算!D22/1000,源泉賞与表!$D:$D,1))) -> 0 | I19: =IF(賞与計算!D22<源泉賞与表!$F$11*1000,0,INDEX(源泉賞与表!$B:$B,MATCH(賞与計算!D22/1000,源泉賞与表!$F:$F,1))) -> 0 | J19: =IF(賞与計算!D22<源泉賞与表!$H$11*1000,0,INDEX(源泉賞与表!$B:$B,MATCH(賞与計算!D22/1000,源泉賞与表!$H:$H,1))) -> 0 | K19: =IF(賞与計算!D22<源泉賞与表!$J$11*1000,0,INDEX(源泉賞与表!$B:$B,MATCH(賞与計算!D22/1000,源泉賞与表!$J:$J,1))) -> 0 | L19: =IF(賞与計算!D22<源泉賞与表!$L$11*1000,0,INDEX(源泉賞与表!$B:$B,MATCH(賞与計算!D22/1000,源泉賞与表!$L:$L,1))) -> 0 | M19: =IF(賞与計算!D22<源泉賞与表!$N$11*1000,0,INDEX(源泉賞与表!$B:$B,MATCH(賞与計算!D22/1000,源泉賞与表!$N:$N,1))) -> 0 | N19: =IF(賞与計算!D22<源泉賞与表!$P$11*1000,0,INDEX(源泉賞与表!$B:$B,MATCH(賞与計算!D22/1000,源泉賞与表!$P:$P,1))) -> 0 | O19: =IF(賞与計算!D22<源泉賞与表!$R$11*1000,0,INDEX(源泉賞与表!$B:$B,MATCH(賞与計算!D22/1000,源泉賞与表!$R:$R,1))) -> 0 | P19: =IF(賞与計算!D22="","",IF(賞与計算!D22<源泉賞与表!$T$23*1000,10.21,INDEX(源泉賞与表!$B:$B,MATCH(賞与計算!D22/1000,源泉賞与表!$T:$T,1)))) ->  | Q19: 0 | R19: =IF(基本情報!G22="",0,ROUND(VLOOKUP(基本情報!G22,INDIRECT(基本情報!$D$3&"!$B$11:$I$70"),6,0)-0.1,0)) -> 0 | S19: =IF(基本情報!G22="",0,ROUND(VLOOKUP(基本情報!G22,INDIRECT(基本情報!$D$3&"!$B$11:$I$70"),8,0)-0.1,0)) -> 0 | T19: 0 | U19: =IF(基本情報!G22="",0,ROUND(IF(OR(基本情報!G22<税額基本情報!$E$32,基本情報!G22>税額基本情報!$E$33),W19,VLOOKUP(基本情報!G22,INDIRECT(基本情報!$D$3&"!$B$14:$M$70"),12,0))-0.1,0)) -> 0 | V19: 0 | W19: =IF(基本情報!G22="",0,IF(基本情報!G22<税額基本情報!$E$32,税額基本情報!$F$32,IF(基本情報!G22>税額基本情報!$E$33,税額基本情報!$F$33,0))) -> 0 | X19: =IF(基本情報!G22="",0,IF(基本情報!G22<税額基本情報!$E$32,税額基本情報!$G$32,IF(基本情報!G22>税額基本情報!$E$33,税額基本情報!$G$33,0))) -> 0 | Y19: 0 | Z19: =ROUND(IF(賞与計算!F22>税額基本情報!$D$39,税額基本情報!$D$39,ROUNDDOWN(賞与計算!F22,-3))*INDIRECT(基本情報!$D$3&"!$F$8")*0.5-0.1,0) -> 0 | AA19: =ROUND(IF(賞与計算!F22>税額基本情報!$D$39,税額基本情報!$D$39,ROUNDDOWN(賞与計算!F22,-3))*INDIRECT(基本情報!$D$3&"!$H$8")/2-0.1,0) -> 0 | AB19: 0 | AC19: =ROUND(IF(賞与計算!F22>税額基本情報!$D$36,税額基本情報!$D$36,ROUNDDOWN(賞与計算!F22,-3))*INDIRECT(基本情報!$D$3&"!$L$8")/2-0.1,0) -> 0 | AD19: 0 | AE19: 0 | AF19: =IF(基本情報!G22="",0,ROUND(VLOOKUP(基本情報!G22,INDIRECT(基本情報!$D$3&"!$B$11:$K$70"),10,0)-0.1,0)) -> 0 | AG19: 0 | AH19: =ROUND(IF(賞与計算!F22>税額基本情報!$D$39,税額基本情報!$D$39,ROUNDDOWN(賞与計算!F22,-3))*INDIRECT(基本情報!$D$3&"!$J$8")*0.5-0.1,0) -> 0
C20: 16 | D20: =給与計算!C23 ->  | E20: =MAX(IF(給与計算!O23>=税額基本情報!$D$6,MAX('計算シート ２'!E20:M20),IF(給与計算!O23<源泉月額表!$B$8,0,VLOOKUP(給与計算!O23,INDIRECT(税額基本情報!$D$42),IF(基本情報!E23>=8,10,基本情報!E23+3),1)))-IF(基本情報!E23>=8,(基本情報!E23-7)*税額基本情報!$D$23,0),0) -> 0 | F20: =IF(給与計算!O23<源泉月額表!$B$8,ROUNDDOWN(給与計算!O23*税額基本情報!$D$29,0),IF(給与計算!O23=0,0,IF(給与計算!O23>=税額基本情報!$D$19,MAX('計算シート ２'!S20:U20),VLOOKUP(給与計算!O23,INDIRECT(税額基本情報!$D$42),11,1)))) -> 0 | G20: =MAX(IF(給与計算!O23<源泉月額表!$B$8,ROUNDDOWN(給与計算!O23*3.063%,0),IF(給与計算!O23=0,0,IF(給与計算!O23>=税額基本情報!$D$19,MAX('計算シート ２'!S20:U20),VLOOKUP(給与計算!O23,INDIRECT(税額基本情報!$D$42),11,1))))-基本情報!E23*税額基本情報!$D$26,0) -> 0 | H20: =IF(賞与計算!D23<源泉賞与表!$D$11*1000,0,INDEX(源泉賞与表!$B:$B,MATCH(賞与計算!D23/1000,源泉賞与表!$D:$D,1))) -> 0 | I20: =IF(賞与計算!D23<源泉賞与表!$F$11*1000,0,INDEX(源泉賞与表!$B:$B,MATCH(賞与計算!D23/1000,源泉賞与表!$F:$F,1))) -> 0 | J20: =IF(賞与計算!D23<源泉賞与表!$H$11*1000,0,INDEX(源泉賞与表!$B:$B,MATCH(賞与計算!D23/1000,源泉賞与表!$H:$H,1))) -> 0 | K20: =IF(賞与計算!D23<源泉賞与表!$J$11*1000,0,INDEX(源泉賞与表!$B:$B,MATCH(賞与計算!D23/1000,源泉賞与表!$J:$J,1))) -> 0 | L20: =IF(賞与計算!D23<源泉賞与表!$L$11*1000,0,INDEX(源泉賞与表!$B:$B,MATCH(賞与計算!D23/1000,源泉賞与表!$L:$L,1))) -> 0 | M20: =IF(賞与計算!D23<源泉賞与表!$N$11*1000,0,INDEX(源泉賞与表!$B:$B,MATCH(賞与計算!D23/1000,源泉賞与表!$N:$N,1))) -> 0 | N20: =IF(賞与計算!D23<源泉賞与表!$P$11*1000,0,INDEX(源泉賞与表!$B:$B,MATCH(賞与計算!D23/1000,源泉賞与表!$P:$P,1))) -> 0 | O20: =IF(賞与計算!D23<源泉賞与表!$R$11*1000,0,INDEX(源泉賞与表!$B:$B,MATCH(賞与計算!D23/1000,源泉賞与表!$R:$R,1))) -> 0 | P20: =IF(賞与計算!D23="","",IF(賞与計算!D23<源泉賞与表!$T$23*1000,10.21,INDEX(源泉賞与表!$B:$B,MATCH(賞与計算!D23/1000,源泉賞与表!$T:$T,1)))) ->  | Q20: 0 | R20: =IF(基本情報!G23="",0,ROUND(VLOOKUP(基本情報!G23,INDIRECT(基本情報!$D$3&"!$B$11:$I$70"),6,0)-0.1,0)) -> 0 | S20: =IF(基本情報!G23="",0,ROUND(VLOOKUP(基本情報!G23,INDIRECT(基本情報!$D$3&"!$B$11:$I$70"),8,0)-0.1,0)) -> 0 | T20: 0 | U20: =IF(基本情報!G23="",0,ROUND(IF(OR(基本情報!G23<税額基本情報!$E$32,基本情報!G23>税額基本情報!$E$33),W20,VLOOKUP(基本情報!G23,INDIRECT(基本情報!$D$3&"!$B$14:$M$70"),12,0))-0.1,0)) -> 0 | V20: 0 | W20: =IF(基本情報!G23="",0,IF(基本情報!G23<税額基本情報!$E$32,税額基本情報!$F$32,IF(基本情報!G23>税額基本情報!$E$33,税額基本情報!$F$33,0))) -> 0 | X20: =IF(基本情報!G23="",0,IF(基本情報!G23<税額基本情報!$E$32,税額基本情報!$G$32,IF(基本情報!G23>税額基本情報!$E$33,税額基本情報!$G$33,0))) -> 0 | Y20: 0 | Z20: =ROUND(IF(賞与計算!F23>税額基本情報!$D$39,税額基本情報!$D$39,ROUNDDOWN(賞与計算!F23,-3))*INDIRECT(基本情報!$D$3&"!$F$8")*0.5-0.1,0) -> 0 | AA20: =ROUND(IF(賞与計算!F23>税額基本情報!$D$39,税額基本情報!$D$39,ROUNDDOWN(賞与計算!F23,-3))*INDIRECT(基本情報!$D$3&"!$H$8")/2-0.1,0) -> 0 | AB20: 0 | AC20: =ROUND(IF(賞与計算!F23>税額基本情報!$D$36,税額基本情報!$D$36,ROUNDDOWN(賞与計算!F23,-3))*INDIRECT(基本情報!$D$3&"!$L$8")/2-0.1,0) -> 0 | AD20: 0 | AE20: 0 | AF20: =IF(基本情報!G23="",0,ROUND(VLOOKUP(基本情報!G23,INDIRECT(基本情報!$D$3&"!$B$11:$K$70"),10,0)-0.1,0)) -> 0 | AG20: 0 | AH20: =ROUND(IF(賞与計算!F23>税額基本情報!$D$39,税額基本情報!$D$39,ROUNDDOWN(賞与計算!F23,-3))*INDIRECT(基本情報!$D$3&"!$J$8")*0.5-0.1,0) -> 0
C21: 17 | D21: =給与計算!C24 ->  | E21: =MAX(IF(給与計算!O24>=税額基本情報!$D$6,MAX('計算シート ２'!E21:M21),IF(給与計算!O24<源泉月額表!$B$8,0,VLOOKUP(給与計算!O24,INDIRECT(税額基本情報!$D$42),IF(基本情報!E24>=8,10,基本情報!E24+3),1)))-IF(基本情報!E24>=8,(基本情報!E24-7)*税額基本情報!$D$23,0),0) -> 0 | F21: =IF(給与計算!O24<源泉月額表!$B$8,ROUNDDOWN(給与計算!O24*税額基本情報!$D$29,0),IF(給与計算!O24=0,0,IF(給与計算!O24>=税額基本情報!$D$19,MAX('計算シート ２'!S21:U21),VLOOKUP(給与計算!O24,INDIRECT(税額基本情報!$D$42),11,1)))) -> 0 | G21: =MAX(IF(給与計算!O24<源泉月額表!$B$8,ROUNDDOWN(給与計算!O24*3.063%,0),IF(給与計算!O24=0,0,IF(給与計算!O24>=税額基本情報!$D$19,MAX('計算シート ２'!S21:U21),VLOOKUP(給与計算!O24,INDIRECT(税額基本情報!$D$42),11,1))))-基本情報!E24*税額基本情報!$D$26,0) -> 0 | H21: =IF(賞与計算!D24<源泉賞与表!$D$11*1000,0,INDEX(源泉賞与表!$B:$B,MATCH(賞与計算!D24/1000,源泉賞与表!$D:$D,1))) -> 0 | I21: =IF(賞与計算!D24<源泉賞与表!$F$11*1000,0,INDEX(源泉賞与表!$B:$B,MATCH(賞与計算!D24/1000,源泉賞与表!$F:$F,1))) -> 0 | J21: =IF(賞与計算!D24<源泉賞与表!$H$11*1000,0,INDEX(源泉賞与表!$B:$B,MATCH(賞与計算!D24/1000,源泉賞与表!$H:$H,1))) -> 0 | K21: =IF(賞与計算!D24<源泉賞与表!$J$11*1000,0,INDEX(源泉賞与表!$B:$B,MATCH(賞与計算!D24/1000,源泉賞与表!$J:$J,1))) -> 0 | L21: =IF(賞与計算!D24<源泉賞与表!$L$11*1000,0,INDEX(源泉賞与表!$B:$B,MATCH(賞与計算!D24/1000,源泉賞与表!$L:$L,1))) -> 0 | M21: =IF(賞与計算!D24<源泉賞与表!$N$11*1000,0,INDEX(源泉賞与表!$B:$B,MATCH(賞与計算!D24/1000,源泉賞与表!$N:$N,1))) -> 0 | N21: =IF(賞与計算!D24<源泉賞与表!$P$11*1000,0,INDEX(源泉賞与表!$B:$B,MATCH(賞与計算!D24/1000,源泉賞与表!$P:$P,1))) -> 0 | O21: =IF(賞与計算!D24<源泉賞与表!$R$11*1000,0,INDEX(源泉賞与表!$B:$B,MATCH(賞与計算!D24/1000,源泉賞与表!$R:$R,1))) -> 0 | P21: =IF(賞与計算!D24="","",IF(賞与計算!D24<源泉賞与表!$T$23*1000,10.21,INDEX(源泉賞与表!$B:$B,MATCH(賞与計算!D24/1000,源泉賞与表!$T:$T,1)))) ->  | Q21: 0 | R21: =IF(基本情報!G24="",0,ROUND(VLOOKUP(基本情報!G24,INDIRECT(基本情報!$D$3&"!$B$11:$I$70"),6,0)-0.1,0)) -> 0 | S21: =IF(基本情報!G24="",0,ROUND(VLOOKUP(基本情報!G24,INDIRECT(基本情報!$D$3&"!$B$11:$I$70"),8,0)-0.1,0)) -> 0 | T21: 0 | U21: =IF(基本情報!G24="",0,ROUND(IF(OR(基本情報!G24<税額基本情報!$E$32,基本情報!G24>税額基本情報!$E$33),W21,VLOOKUP(基本情報!G24,INDIRECT(基本情報!$D$3&"!$B$14:$M$70"),12,0))-0.1,0)) -> 0 | V21: 0 | W21: =IF(基本情報!G24="",0,IF(基本情報!G24<税額基本情報!$E$32,税額基本情報!$F$32,IF(基本情報!G24>税額基本情報!$E$33,税額基本情報!$F$33,0))) -> 0 | X21: =IF(基本情報!G24="",0,IF(基本情報!G24<税額基本情報!$E$32,税額基本情報!$G$32,IF(基本情報!G24>税額基本情報!$E$33,税額基本情報!$G$33,0))) -> 0 | Y21: 0 | Z21: =ROUND(IF(賞与計算!F24>税額基本情報!$D$39,税額基本情報!$D$39,ROUNDDOWN(賞与計算!F24,-3))*INDIRECT(基本情報!$D$3&"!$F$8")*0.5-0.1,0) -> 0 | AA21: =ROUND(IF(賞与計算!F24>税額基本情報!$D$39,税額基本情報!$D$39,ROUNDDOWN(賞与計算!F24,-3))*INDIRECT(基本情報!$D$3&"!$H$8")/2-0.1,0) -> 0 | AB21: 0 | AC21: =ROUND(IF(賞与計算!F24>税額基本情報!$D$36,税額基本情報!$D$36,ROUNDDOWN(賞与計算!F24,-3))*INDIRECT(基本情報!$D$3&"!$L$8")/2-0.1,0) -> 0 | AD21: 0 | AE21: 0 | AF21: =IF(基本情報!G24="",0,ROUND(VLOOKUP(基本情報!G24,INDIRECT(基本情報!$D$3&"!$B$11:$K$70"),10,0)-0.1,0)) -> 0 | AG21: 0 | AH21: =ROUND(IF(賞与計算!F24>税額基本情報!$D$39,税額基本情報!$D$39,ROUNDDOWN(賞与計算!F24,-3))*INDIRECT(基本情報!$D$3&"!$J$8")*0.5-0.1,0) -> 0
C22: 18 | D22: =給与計算!C25 ->  | E22: =MAX(IF(給与計算!O25>=税額基本情報!$D$6,MAX('計算シート ２'!E22:M22),IF(給与計算!O25<源泉月額表!$B$8,0,VLOOKUP(給与計算!O25,INDIRECT(税額基本情報!$D$42),IF(基本情報!E25>=8,10,基本情報!E25+3),1)))-IF(基本情報!E25>=8,(基本情報!E25-7)*税額基本情報!$D$23,0),0) -> 0 | F22: =IF(給与計算!O25<源泉月額表!$B$8,ROUNDDOWN(給与計算!O25*税額基本情報!$D$29,0),IF(給与計算!O25=0,0,IF(給与計算!O25>=税額基本情報!$D$19,MAX('計算シート ２'!S22:U22),VLOOKUP(給与計算!O25,INDIRECT(税額基本情報!$D$42),11,1)))) -> 0 | G22: =MAX(IF(給与計算!O25<源泉月額表!$B$8,ROUNDDOWN(給与計算!O25*3.063%,0),IF(給与計算!O25=0,0,IF(給与計算!O25>=税額基本情報!$D$19,MAX('計算シート ２'!S22:U22),VLOOKUP(給与計算!O25,INDIRECT(税額基本情報!$D$42),11,1))))-基本情報!E25*税額基本情報!$D$26,0) -> 0 | H22: =IF(賞与計算!D25<源泉賞与表!$D$11*1000,0,INDEX(源泉賞与表!$B:$B,MATCH(賞与計算!D25/1000,源泉賞与表!$D:$D,1))) -> 0 | I22: =IF(賞与計算!D25<源泉賞与表!$F$11*1000,0,INDEX(源泉賞与表!$B:$B,MATCH(賞与計算!D25/1000,源泉賞与表!$F:$F,1))) -> 0 | J22: =IF(賞与計算!D25<源泉賞与表!$H$11*1000,0,INDEX(源泉賞与表!$B:$B,MATCH(賞与計算!D25/1000,源泉賞与表!$H:$H,1))) -> 0 | K22: =IF(賞与計算!D25<源泉賞与表!$J$11*1000,0,INDEX(源泉賞与表!$B:$B,MATCH(賞与計算!D25/1000,源泉賞与表!$J:$J,1))) -> 0 | L22: =IF(賞与計算!D25<源泉賞与表!$L$11*1000,0,INDEX(源泉賞与表!$B:$B,MATCH(賞与計算!D25/1000,源泉賞与表!$L:$L,1))) -> 0 | M22: =IF(賞与計算!D25<源泉賞与表!$N$11*1000,0,INDEX(源泉賞与表!$B:$B,MATCH(賞与計算!D25/1000,源泉賞与表!$N:$N,1))) -> 0 | N22: =IF(賞与計算!D25<源泉賞与表!$P$11*1000,0,INDEX(源泉賞与表!$B:$B,MATCH(賞与計算!D25/1000,源泉賞与表!$P:$P,1))) -> 0 | O22: =IF(賞与計算!D25<源泉賞与表!$R$11*1000,0,INDEX(源泉賞与表!$B:$B,MATCH(賞与計算!D25/1000,源泉賞与表!$R:$R,1))) -> 0 | P22: =IF(賞与計算!D25="","",IF(賞与計算!D25<源泉賞与表!$T$23*1000,10.21,INDEX(源泉賞与表!$B:$B,MATCH(賞与計算!D25/1000,源泉賞与表!$T:$T,1)))) ->  | Q22: 0 | R22: =IF(基本情報!G25="",0,ROUND(VLOOKUP(基本情報!G25,INDIRECT(基本情報!$D$3&"!$B$11:$I$70"),6,0)-0.1,0)) -> 0 | S22: =IF(基本情報!G25="",0,ROUND(VLOOKUP(基本情報!G25,INDIRECT(基本情報!$D$3&"!$B$11:$I$70"),8,0)-0.1,0)) -> 0 | T22: 0 | U22: =IF(基本情報!G25="",0,ROUND(IF(OR(基本情報!G25<税額基本情報!$E$32,基本情報!G25>税額基本情報!$E$33),W22,VLOOKUP(基本情報!G25,INDIRECT(基本情報!$D$3&"!$B$14:$M$70"),12,0))-0.1,0)) -> 0 | V22: 0 | W22: =IF(基本情報!G25="",0,IF(基本情報!G25<税額基本情報!$E$32,税額基本情報!$F$32,IF(基本情報!G25>税額基本情報!$E$33,税額基本情報!$F$33,0))) -> 0 | X22: =IF(基本情報!G25="",0,IF(基本情報!G25<税額基本情報!$E$32,税額基本情報!$G$32,IF(基本情報!G25>税額基本情報!$E$33,税額基本情報!$G$33,0))) -> 0 | Y22: 0 | Z22: =ROUND(IF(賞与計算!F25>税額基本情報!$D$39,税額基本情報!$D$39,ROUNDDOWN(賞与計算!F25,-3))*INDIRECT(基本情報!$D$3&"!$F$8")*0.5-0.1,0) -> 0 | AA22: =ROUND(IF(賞与計算!F25>税額基本情報!$D$39,税額基本情報!$D$39,ROUNDDOWN(賞与計算!F25,-3))*INDIRECT(基本情報!$D$3&"!$H$8")/2-0.1,0) -> 0 | AB22: 0 | AC22: =ROUND(IF(賞与計算!F25>税額基本情報!$D$36,税額基本情報!$D$36,ROUNDDOWN(賞与計算!F25,-3))*INDIRECT(基本情報!$D$3&"!$L$8")/2-0.1,0) -> 0 | AD22: 0 | AE22: 0 | AF22: =IF(基本情報!G25="",0,ROUND(VLOOKUP(基本情報!G25,INDIRECT(基本情報!$D$3&"!$B$11:$K$70"),10,0)-0.1,0)) -> 0 | AG22: 0 | AH22: =ROUND(IF(賞与計算!F25>税額基本情報!$D$39,税額基本情報!$D$39,ROUNDDOWN(賞与計算!F25,-3))*INDIRECT(基本情報!$D$3&"!$J$8")*0.5-0.1,0) -> 0
C23: 19 | D23: =給与計算!C26 ->  | E23: =MAX(IF(給与計算!O26>=税額基本情報!$D$6,MAX('計算シート ２'!E23:M23),IF(給与計算!O26<源泉月額表!$B$8,0,VLOOKUP(給与計算!O26,INDIRECT(税額基本情報!$D$42),IF(基本情報!E26>=8,10,基本情報!E26+3),1)))-IF(基本情報!E26>=8,(基本情報!E26-7)*税額基本情報!$D$23,0),0) -> 0 | F23: =IF(給与計算!O26<源泉月額表!$B$8,ROUNDDOWN(給与計算!O26*税額基本情報!$D$29,0),IF(給与計算!O26=0,0,IF(給与計算!O26>=税額基本情報!$D$19,MAX('計算シート ２'!S23:U23),VLOOKUP(給与計算!O26,INDIRECT(税額基本情報!$D$42),11,1)))) -> 0 | G23: =MAX(IF(給与計算!O26<源泉月額表!$B$8,ROUNDDOWN(給与計算!O26*3.063%,0),IF(給与計算!O26=0,0,IF(給与計算!O26>=税額基本情報!$D$19,MAX('計算シート ２'!S23:U23),VLOOKUP(給与計算!O26,INDIRECT(税額基本情報!$D$42),11,1))))-基本情報!E26*税額基本情報!$D$26,0) -> 0 | H23: =IF(賞与計算!D26<源泉賞与表!$D$11*1000,0,INDEX(源泉賞与表!$B:$B,MATCH(賞与計算!D26/1000,源泉賞与表!$D:$D,1))) -> 0 | I23: =IF(賞与計算!D26<源泉賞与表!$F$11*1000,0,INDEX(源泉賞与表!$B:$B,MATCH(賞与計算!D26/1000,源泉賞与表!$F:$F,1))) -> 0 | J23: =IF(賞与計算!D26<源泉賞与表!$H$11*1000,0,INDEX(源泉賞与表!$B:$B,MATCH(賞与計算!D26/1000,源泉賞与表!$H:$H,1))) -> 0 | K23: =IF(賞与計算!D26<源泉賞与表!$J$11*1000,0,INDEX(源泉賞与表!$B:$B,MATCH(賞与計算!D26/1000,源泉賞与表!$J:$J,1))) -> 0 | L23: =IF(賞与計算!D26<源泉賞与表!$L$11*1000,0,INDEX(源泉賞与表!$B:$B,MATCH(賞与計算!D26/1000,源泉賞与表!$L:$L,1))) -> 0 | M23: =IF(賞与計算!D26<源泉賞与表!$N$11*1000,0,INDEX(源泉賞与表!$B:$B,MATCH(賞与計算!D26/1000,源泉賞与表!$N:$N,1))) -> 0 | N23: =IF(賞与計算!D26<源泉賞与表!$P$11*1000,0,INDEX(源泉賞与表!$B:$B,MATCH(賞与計算!D26/1000,源泉賞与表!$P:$P,1))) -> 0 | O23: =IF(賞与計算!D26<源泉賞与表!$R$11*1000,0,INDEX(源泉賞与表!$B:$B,MATCH(賞与計算!D26/1000,源泉賞与表!$R:$R,1))) -> 0 | P23: =IF(賞与計算!D26="","",IF(賞与計算!D26<源泉賞与表!$T$23*1000,10.21,INDEX(源泉賞与表!$B:$B,MATCH(賞与計算!D26/1000,源泉賞与表!$T:$T,1)))) ->  | Q23: 0 | R23: =IF(基本情報!G26="",0,ROUND(VLOOKUP(基本情報!G26,INDIRECT(基本情報!$D$3&"!$B$11:$I$70"),6,0)-0.1,0)) -> 0 | S23: =IF(基本情報!G26="",0,ROUND(VLOOKUP(基本情報!G26,INDIRECT(基本情報!$D$3&"!$B$11:$I$70"),8,0)-0.1,0)) -> 0 | T23: 0 | U23: =IF(基本情報!G26="",0,ROUND(IF(OR(基本情報!G26<税額基本情報!$E$32,基本情報!G26>税額基本情報!$E$33),W23,VLOOKUP(基本情報!G26,INDIRECT(基本情報!$D$3&"!$B$14:$M$70"),12,0))-0.1,0)) -> 0 | V23: 0 | W23: =IF(基本情報!G26="",0,IF(基本情報!G26<税額基本情報!$E$32,税額基本情報!$F$32,IF(基本情報!G26>税額基本情報!$E$33,税額基本情報!$F$33,0))) -> 0 | X23: =IF(基本情報!G26="",0,IF(基本情報!G26<税額基本情報!$E$32,税額基本情報!$G$32,IF(基本情報!G26>税額基本情報!$E$33,税額基本情報!$G$33,0))) -> 0 | Y23: 0 | Z23: =ROUND(IF(賞与計算!F26>税額基本情報!$D$39,税額基本情報!$D$39,ROUNDDOWN(賞与計算!F26,-3))*INDIRECT(基本情報!$D$3&"!$F$8")*0.5-0.1,0) -> 0 | AA23: =ROUND(IF(賞与計算!F26>税額基本情報!$D$39,税額基本情報!$D$39,ROUNDDOWN(賞与計算!F26,-3))*INDIRECT(基本情報!$D$3&"!$H$8")/2-0.1,0) -> 0 | AB23: 0 | AC23: =ROUND(IF(賞与計算!F26>税額基本情報!$D$36,税額基本情報!$D$36,ROUNDDOWN(賞与計算!F26,-3))*INDIRECT(基本情報!$D$3&"!$L$8")/2-0.1,0) -> 0 | AD23: 0 | AE23: 0 | AF23: =IF(基本情報!G26="",0,ROUND(VLOOKUP(基本情報!G26,INDIRECT(基本情報!$D$3&"!$B$11:$K$70"),10,0)-0.1,0)) -> 0 | AG23: 0 | AH23: =ROUND(IF(賞与計算!F26>税額基本情報!$D$39,税額基本情報!$D$39,ROUNDDOWN(賞与計算!F26,-3))*INDIRECT(基本情報!$D$3&"!$J$8")*0.5-0.1,0) -> 0
C24: 20 | D24: =給与計算!C27 ->  | E24: =MAX(IF(給与計算!O27>=税額基本情報!$D$6,MAX('計算シート ２'!E24:M24),IF(給与計算!O27<源泉月額表!$B$8,0,VLOOKUP(給与計算!O27,INDIRECT(税額基本情報!$D$42),IF(基本情報!E27>=8,10,基本情報!E27+3),1)))-IF(基本情報!E27>=8,(基本情報!E27-7)*税額基本情報!$D$23,0),0) -> 0 | F24: =IF(給与計算!O27<源泉月額表!$B$8,ROUNDDOWN(給与計算!O27*税額基本情報!$D$29,0),IF(給与計算!O27=0,0,IF(給与計算!O27>=税額基本情報!$D$19,MAX('計算シート ２'!S24:U24),VLOOKUP(給与計算!O27,INDIRECT(税額基本情報!$D$42),11,1)))) -> 0 | G24: =MAX(IF(給与計算!O27<源泉月額表!$B$8,ROUNDDOWN(給与計算!O27*3.063%,0),IF(給与計算!O27=0,0,IF(給与計算!O27>=税額基本情報!$D$19,MAX('計算シート ２'!S24:U24),VLOOKUP(給与計算!O27,INDIRECT(税額基本情報!$D$42),11,1))))-基本情報!E27*税額基本情報!$D$26,0) -> 0 | H24: =IF(賞与計算!D27<源泉賞与表!$D$11*1000,0,INDEX(源泉賞与表!$B:$B,MATCH(賞与計算!D27/1000,源泉賞与表!$D:$D,1))) -> 0 | I24: =IF(賞与計算!D27<源泉賞与表!$F$11*1000,0,INDEX(源泉賞与表!$B:$B,MATCH(賞与計算!D27/1000,源泉賞与表!$F:$F,1))) -> 0 | J24: =IF(賞与計算!D27<源泉賞与表!$H$11*1000,0,INDEX(源泉賞与表!$B:$B,MATCH(賞与計算!D27/1000,源泉賞与表!$H:$H,1))) -> 0 | K24: =IF(賞与計算!D27<源泉賞与表!$J$11*1000,0,INDEX(源泉賞与表!$B:$B,MATCH(賞与計算!D27/1000,源泉賞与表!$J:$J,1))) -> 0 | L24: =IF(賞与計算!D27<源泉賞与表!$L$11*1000,0,INDEX(源泉賞与表!$B:$B,MATCH(賞与計算!D27/1000,源泉賞与表!$L:$L,1))) -> 0 | M24: =IF(賞与計算!D27<源泉賞与表!$N$11*1000,0,INDEX(源泉賞与表!$B:$B,MATCH(賞与計算!D27/1000,源泉賞与表!$N:$N,1))) -> 0 | N24: =IF(賞与計算!D27<源泉賞与表!$P$11*1000,0,INDEX(源泉賞与表!$B:$B,MATCH(賞与計算!D27/1000,源泉賞与表!$P:$P,1))) -> 0 | O24: =IF(賞与計算!D27<源泉賞与表!$R$11*1000,0,INDEX(源泉賞与表!$B:$B,MATCH(賞与計算!D27/1000,源泉賞与表!$R:$R,1))) -> 0 | P24: =IF(賞与計算!D27="","",IF(賞与計算!D27<源泉賞与表!$T$23*1000,10.21,INDEX(源泉賞与表!$B:$B,MATCH(賞与計算!D27/1000,源泉賞与表!$T:$T,1)))) ->  | Q24: 0 | R24: =IF(基本情報!G27="",0,ROUND(VLOOKUP(基本情報!G27,INDIRECT(基本情報!$D$3&"!$B$11:$I$70"),6,0)-0.1,0)) -> 0 | S24: =IF(基本情報!G27="",0,ROUND(VLOOKUP(基本情報!G27,INDIRECT(基本情報!$D$3&"!$B$11:$I$70"),8,0)-0.1,0)) -> 0 | T24: 0 | U24: =IF(基本情報!G27="",0,ROUND(IF(OR(基本情報!G27<税額基本情報!$E$32,基本情報!G27>税額基本情報!$E$33),W24,VLOOKUP(基本情報!G27,INDIRECT(基本情報!$D$3&"!$B$14:$M$70"),12,0))-0.1,0)) -> 0 | V24: 0 | W24: =IF(基本情報!G27="",0,IF(基本情報!G27<税額基本情報!$E$32,税額基本情報!$F$32,IF(基本情報!G27>税額基本情報!$E$33,税額基本情報!$F$33,0))) -> 0 | X24: =IF(基本情報!G27="",0,IF(基本情報!G27<税額基本情報!$E$32,税額基本情報!$G$32,IF(基本情報!G27>税額基本情報!$E$33,税額基本情報!$G$33,0))) -> 0 | Y24: 0 | Z24: =ROUND(IF(賞与計算!F27>税額基本情報!$D$39,税額基本情報!$D$39,ROUNDDOWN(賞与計算!F27,-3))*INDIRECT(基本情報!$D$3&"!$F$8")*0.5-0.1,0) -> 0 | AA24: =ROUND(IF(賞与計算!F27>税額基本情報!$D$39,税額基本情報!$D$39,ROUNDDOWN(賞与計算!F27,-3))*INDIRECT(基本情報!$D$3&"!$H$8")/2-0.1,0) -> 0 | AB24: 0 | AC24: =ROUND(IF(賞与計算!F27>税額基本情報!$D$36,税額基本情報!$D$36,ROUNDDOWN(賞与計算!F27,-3))*INDIRECT(基本情報!$D$3&"!$L$8")/2-0.1,0) -> 0 | AD24: 0 | AE24: 0 | AF24: =IF(基本情報!G27="",0,ROUND(VLOOKUP(基本情報!G27,INDIRECT(基本情報!$D$3&"!$B$11:$K$70"),10,0)-0.1,0)) -> 0 | AG24: 0 | AH24: =ROUND(IF(賞与計算!F27>税額基本情報!$D$39,税額基本情報!$D$39,ROUNDDOWN(賞与計算!F27,-3))*INDIRECT(基本情報!$D$3&"!$J$8")*0.5-0.1,0) -> 0
C25: 21 | D25: =給与計算!C28 ->  | E25: =MAX(IF(給与計算!O28>=税額基本情報!$D$6,MAX('計算シート ２'!E25:M25),IF(給与計算!O28<源泉月額表!$B$8,0,VLOOKUP(給与計算!O28,INDIRECT(税額基本情報!$D$42),IF(基本情報!E28>=8,10,基本情報!E28+3),1)))-IF(基本情報!E28>=8,(基本情報!E28-7)*税額基本情報!$D$23,0),0) -> 0 | F25: =IF(給与計算!O28<源泉月額表!$B$8,ROUNDDOWN(給与計算!O28*税額基本情報!$D$29,0),IF(給与計算!O28=0,0,IF(給与計算!O28>=税額基本情報!$D$19,MAX('計算シート ２'!S25:U25),VLOOKUP(給与計算!O28,INDIRECT(税額基本情報!$D$42),11,1)))) -> 0 | G25: =MAX(IF(給与計算!O28<源泉月額表!$B$8,ROUNDDOWN(給与計算!O28*3.063%,0),IF(給与計算!O28=0,0,IF(給与計算!O28>=税額基本情報!$D$19,MAX('計算シート ２'!S25:U25),VLOOKUP(給与計算!O28,INDIRECT(税額基本情報!$D$42),11,1))))-基本情報!E28*税額基本情報!$D$26,0) -> 0 | H25: =IF(賞与計算!D28<源泉賞与表!$D$11*1000,0,INDEX(源泉賞与表!$B:$B,MATCH(賞与計算!D28/1000,源泉賞与表!$D:$D,1))) -> 0 | I25: =IF(賞与計算!D28<源泉賞与表!$F$11*1000,0,INDEX(源泉賞与表!$B:$B,MATCH(賞与計算!D28/1000,源泉賞与表!$F:$F,1))) -> 0 | J25: =IF(賞与計算!D28<源泉賞与表!$H$11*1000,0,INDEX(源泉賞与表!$B:$B,MATCH(賞与計算!D28/1000,源泉賞与表!$H:$H,1))) -> 0 | K25: =IF(賞与計算!D28<源泉賞与表!$J$11*1000,0,INDEX(源泉賞与表!$B:$B,MATCH(賞与計算!D28/1000,源泉賞与表!$J:$J,1))) -> 0 | L25: =IF(賞与計算!D28<源泉賞与表!$L$11*1000,0,INDEX(源泉賞与表!$B:$B,MATCH(賞与計算!D28/1000,源泉賞与表!$L:$L,1))) -> 0 | M25: =IF(賞与計算!D28<源泉賞与表!$N$11*1000,0,INDEX(源泉賞与表!$B:$B,MATCH(賞与計算!D28/1000,源泉賞与表!$N:$N,1))) -> 0 | N25: =IF(賞与計算!D28<源泉賞与表!$P$11*1000,0,INDEX(源泉賞与表!$B:$B,MATCH(賞与計算!D28/1000,源泉賞与表!$P:$P,1))) -> 0 | O25: =IF(賞与計算!D28<源泉賞与表!$R$11*1000,0,INDEX(源泉賞与表!$B:$B,MATCH(賞与計算!D28/1000,源泉賞与表!$R:$R,1))) -> 0 | P25: =IF(賞与計算!D28="","",IF(賞与計算!D28<源泉賞与表!$T$23*1000,10.21,INDEX(源泉賞与表!$B:$B,MATCH(賞与計算!D28/1000,源泉賞与表!$T:$T,1)))) ->  | Q25: 0 | R25: =IF(基本情報!G28="",0,ROUND(VLOOKUP(基本情報!G28,INDIRECT(基本情報!$D$3&"!$B$11:$I$70"),6,0)-0.1,0)) -> 0 | S25: =IF(基本情報!G28="",0,ROUND(VLOOKUP(基本情報!G28,INDIRECT(基本情報!$D$3&"!$B$11:$I$70"),8,0)-0.1,0)) -> 0 | T25: 0 | U25: =IF(基本情報!G28="",0,ROUND(IF(OR(基本情報!G28<税額基本情報!$E$32,基本情報!G28>税額基本情報!$E$33),W25,VLOOKUP(基本情報!G28,INDIRECT(基本情報!$D$3&"!$B$14:$M$70"),12,0))-0.1,0)) -> 0 | V25: 0 | W25: =IF(基本情報!G28="",0,IF(基本情報!G28<税額基本情報!$E$32,税額基本情報!$F$32,IF(基本情報!G28>税額基本情報!$E$33,税額基本情報!$F$33,0))) -> 0 | X25: =IF(基本情報!G28="",0,IF(基本情報!G28<税額基本情報!$E$32,税額基本情報!$G$32,IF(基本情報!G28>税額基本情報!$E$33,税額基本情報!$G$33,0))) -> 0 | Y25: 0 | Z25: =ROUND(IF(賞与計算!F28>税額基本情報!$D$39,税額基本情報!$D$39,ROUNDDOWN(賞与計算!F28,-3))*INDIRECT(基本情報!$D$3&"!$F$8")*0.5-0.1,0) -> 0 | AA25: =ROUND(IF(賞与計算!F28>税額基本情報!$D$39,税額基本情報!$D$39,ROUNDDOWN(賞与計算!F28,-3))*INDIRECT(基本情報!$D$3&"!$H$8")/2-0.1,0) -> 0 | AB25: 0 | AC25: =ROUND(IF(賞与計算!F28>税額基本情報!$D$36,税額基本情報!$D$36,ROUNDDOWN(賞与計算!F28,-3))*INDIRECT(基本情報!$D$3&"!$L$8")/2-0.1,0) -> 0 | AD25: 0 | AE25: 0 | AF25: =IF(基本情報!G28="",0,ROUND(VLOOKUP(基本情報!G28,INDIRECT(基本情報!$D$3&"!$B$11:$K$70"),10,0)-0.1,0)) -> 0 | AG25: 0 | AH25: =ROUND(IF(賞与計算!F28>税額基本情報!$D$39,税額基本情報!$D$39,ROUNDDOWN(賞与計算!F28,-3))*INDIRECT(基本情報!$D$3&"!$J$8")*0.5-0.1,0) -> 0
C26: 22 | D26: =給与計算!C29 ->  | E26: =MAX(IF(給与計算!O29>=税額基本情報!$D$6,MAX('計算シート ２'!E26:M26),IF(給与計算!O29<源泉月額表!$B$8,0,VLOOKUP(給与計算!O29,INDIRECT(税額基本情報!$D$42),IF(基本情報!E29>=8,10,基本情報!E29+3),1)))-IF(基本情報!E29>=8,(基本情報!E29-7)*税額基本情報!$D$23,0),0) -> 0 | F26: =IF(給与計算!O29<源泉月額表!$B$8,ROUNDDOWN(給与計算!O29*税額基本情報!$D$29,0),IF(給与計算!O29=0,0,IF(給与計算!O29>=税額基本情報!$D$19,MAX('計算シート ２'!S26:U26),VLOOKUP(給与計算!O29,INDIRECT(税額基本情報!$D$42),11,1)))) -> 0 | G26: =MAX(IF(給与計算!O29<源泉月額表!$B$8,ROUNDDOWN(給与計算!O29*3.063%,0),IF(給与計算!O29=0,0,IF(給与計算!O29>=税額基本情報!$D$19,MAX('計算シート ２'!S26:U26),VLOOKUP(給与計算!O29,INDIRECT(税額基本情報!$D$42),11,1))))-基本情報!E29*税額基本情報!$D$26,0) -> 0 | H26: =IF(賞与計算!D29<源泉賞与表!$D$11*1000,0,INDEX(源泉賞与表!$B:$B,MATCH(賞与計算!D29/1000,源泉賞与表!$D:$D,1))) -> 0 | I26: =IF(賞与計算!D29<源泉賞与表!$F$11*1000,0,INDEX(源泉賞与表!$B:$B,MATCH(賞与計算!D29/1000,源泉賞与表!$F:$F,1))) -> 0 | J26: =IF(賞与計算!D29<源泉賞与表!$H$11*1000,0,INDEX(源泉賞与表!$B:$B,MATCH(賞与計算!D29/1000,源泉賞与表!$H:$H,1))) -> 0 | K26: =IF(賞与計算!D29<源泉賞与表!$J$11*1000,0,INDEX(源泉賞与表!$B:$B,MATCH(賞与計算!D29/1000,源泉賞与表!$J:$J,1))) -> 0 | L26: =IF(賞与計算!D29<源泉賞与表!$L$11*1000,0,INDEX(源泉賞与表!$B:$B,MATCH(賞与計算!D29/1000,源泉賞与表!$L:$L,1))) -> 0 | M26: =IF(賞与計算!D29<源泉賞与表!$N$11*1000,0,INDEX(源泉賞与表!$B:$B,MATCH(賞与計算!D29/1000,源泉賞与表!$N:$N,1))) -> 0 | N26: =IF(賞与計算!D29<源泉賞与表!$P$11*1000,0,INDEX(源泉賞与表!$B:$B,MATCH(賞与計算!D29/1000,源泉賞与表!$P:$P,1))) -> 0 | O26: =IF(賞与計算!D29<源泉賞与表!$R$11*1000,0,INDEX(源泉賞与表!$B:$B,MATCH(賞与計算!D29/1000,源泉賞与表!$R:$R,1))) -> 0 | P26: =IF(賞与計算!D29="","",IF(賞与計算!D29<源泉賞与表!$T$23*1000,10.21,INDEX(源泉賞与表!$B:$B,MATCH(賞与計算!D29/1000,源泉賞与表!$T:$T,1)))) ->  | Q26: 0 | R26: =IF(基本情報!G29="",0,ROUND(VLOOKUP(基本情報!G29,INDIRECT(基本情報!$D$3&"!$B$11:$I$70"),6,0)-0.1,0)) -> 0 | S26: =IF(基本情報!G29="",0,ROUND(VLOOKUP(基本情報!G29,INDIRECT(基本情報!$D$3&"!$B$11:$I$70"),8,0)-0.1,0)) -> 0 | T26: 0 | U26: =IF(基本情報!G29="",0,ROUND(IF(OR(基本情報!G29<税額基本情報!$E$32,基本情報!G29>税額基本情報!$E$33),W26,VLOOKUP(基本情報!G29,INDIRECT(基本情報!$D$3&"!$B$14:$M$70"),12,0))-0.1,0)) -> 0 | V26: 0 | W26: =IF(基本情報!G29="",0,IF(基本情報!G29<税額基本情報!$E$32,税額基本情報!$F$32,IF(基本情報!G29>税額基本情報!$E$33,税額基本情報!$F$33,0))) -> 0 | X26: =IF(基本情報!G29="",0,IF(基本情報!G29<税額基本情報!$E$32,税額基本情報!$G$32,IF(基本情報!G29>税額基本情報!$E$33,税額基本情報!$G$33,0))) -> 0 | Y26: 0 | Z26: =ROUND(IF(賞与計算!F29>税額基本情報!$D$39,税額基本情報!$D$39,ROUNDDOWN(賞与計算!F29,-3))*INDIRECT(基本情報!$D$3&"!$F$8")*0.5-0.1,0) -> 0 | AA26: =ROUND(IF(賞与計算!F29>税額基本情報!$D$39,税額基本情報!$D$39,ROUNDDOWN(賞与計算!F29,-3))*INDIRECT(基本情報!$D$3&"!$H$8")/2-0.1,0) -> 0 | AB26: 0 | AC26: =ROUND(IF(賞与計算!F29>税額基本情報!$D$36,税額基本情報!$D$36,ROUNDDOWN(賞与計算!F29,-3))*INDIRECT(基本情報!$D$3&"!$L$8")/2-0.1,0) -> 0 | AD26: 0 | AE26: 0 | AF26: =IF(基本情報!G29="",0,ROUND(VLOOKUP(基本情報!G29,INDIRECT(基本情報!$D$3&"!$B$11:$K$70"),10,0)-0.1,0)) -> 0 | AG26: 0 | AH26: =ROUND(IF(賞与計算!F29>税額基本情報!$D$39,税額基本情報!$D$39,ROUNDDOWN(賞与計算!F29,-3))*INDIRECT(基本情報!$D$3&"!$J$8")*0.5-0.1,0) -> 0
C27: 23 | D27: =給与計算!C30 ->  | E27: =MAX(IF(給与計算!O30>=税額基本情報!$D$6,MAX('計算シート ２'!E27:M27),IF(給与計算!O30<源泉月額表!$B$8,0,VLOOKUP(給与計算!O30,INDIRECT(税額基本情報!$D$42),IF(基本情報!E30>=8,10,基本情報!E30+3),1)))-IF(基本情報!E30>=8,(基本情報!E30-7)*税額基本情報!$D$23,0),0) -> 0 | F27: =IF(給与計算!O30<源泉月額表!$B$8,ROUNDDOWN(給与計算!O30*税額基本情報!$D$29,0),IF(給与計算!O30=0,0,IF(給与計算!O30>=税額基本情報!$D$19,MAX('計算シート ２'!S27:U27),VLOOKUP(給与計算!O30,INDIRECT(税額基本情報!$D$42),11,1)))) -> 0 | G27: =MAX(IF(給与計算!O30<源泉月額表!$B$8,ROUNDDOWN(給与計算!O30*3.063%,0),IF(給与計算!O30=0,0,IF(給与計算!O30>=税額基本情報!$D$19,MAX('計算シート ２'!S27:U27),VLOOKUP(給与計算!O30,INDIRECT(税額基本情報!$D$42),11,1))))-基本情報!E30*税額基本情報!$D$26,0) -> 0 | H27: =IF(賞与計算!D30<源泉賞与表!$D$11*1000,0,INDEX(源泉賞与表!$B:$B,MATCH(賞与計算!D30/1000,源泉賞与表!$D:$D,1))) -> 0 | I27: =IF(賞与計算!D30<源泉賞与表!$F$11*1000,0,INDEX(源泉賞与表!$B:$B,MATCH(賞与計算!D30/1000,源泉賞与表!$F:$F,1))) -> 0 | J27: =IF(賞与計算!D30<源泉賞与表!$H$11*1000,0,INDEX(源泉賞与表!$B:$B,MATCH(賞与計算!D30/1000,源泉賞与表!$H:$H,1))) -> 0 | K27: =IF(賞与計算!D30<源泉賞与表!$J$11*1000,0,INDEX(源泉賞与表!$B:$B,MATCH(賞与計算!D30/1000,源泉賞与表!$J:$J,1))) -> 0 | L27: =IF(賞与計算!D30<源泉賞与表!$L$11*1000,0,INDEX(源泉賞与表!$B:$B,MATCH(賞与計算!D30/1000,源泉賞与表!$L:$L,1))) -> 0 | M27: =IF(賞与計算!D30<源泉賞与表!$N$11*1000,0,INDEX(源泉賞与表!$B:$B,MATCH(賞与計算!D30/1000,源泉賞与表!$N:$N,1))) -> 0 | N27: =IF(賞与計算!D30<源泉賞与表!$P$11*1000,0,INDEX(源泉賞与表!$B:$B,MATCH(賞与計算!D30/1000,源泉賞与表!$P:$P,1))) -> 0 | O27: =IF(賞与計算!D30<源泉賞与表!$R$11*1000,0,INDEX(源泉賞与表!$B:$B,MATCH(賞与計算!D30/1000,源泉賞与表!$R:$R,1))) -> 0 | P27: =IF(賞与計算!D30="","",IF(賞与計算!D30<源泉賞与表!$T$23*1000,10.21,INDEX(源泉賞与表!$B:$B,MATCH(賞与計算!D30/1000,源泉賞与表!$T:$T,1)))) ->  | Q27: 0 | R27: =IF(基本情報!G30="",0,ROUND(VLOOKUP(基本情報!G30,INDIRECT(基本情報!$D$3&"!$B$11:$I$70"),6,0)-0.1,0)) -> 0 | S27: =IF(基本情報!G30="",0,ROUND(VLOOKUP(基本情報!G30,INDIRECT(基本情報!$D$3&"!$B$11:$I$70"),8,0)-0.1,0)) -> 0 | T27: 0 | U27: =IF(基本情報!G30="",0,ROUND(IF(OR(基本情報!G30<税額基本情報!$E$32,基本情報!G30>税額基本情報!$E$33),W27,VLOOKUP(基本情報!G30,INDIRECT(基本情報!$D$3&"!$B$14:$M$70"),12,0))-0.1,0)) -> 0 | V27: 0 | W27: =IF(基本情報!G30="",0,IF(基本情報!G30<税額基本情報!$E$32,税額基本情報!$F$32,IF(基本情報!G30>税額基本情報!$E$33,税額基本情報!$F$33,0))) -> 0 | X27: =IF(基本情報!G30="",0,IF(基本情報!G30<税額基本情報!$E$32,税額基本情報!$G$32,IF(基本情報!G30>税額基本情報!$E$33,税額基本情報!$G$33,0))) -> 0 | Y27: 0 | Z27: =ROUND(IF(賞与計算!F30>税額基本情報!$D$39,税額基本情報!$D$39,ROUNDDOWN(賞与計算!F30,-3))*INDIRECT(基本情報!$D$3&"!$F$8")*0.5-0.1,0) -> 0 | AA27: =ROUND(IF(賞与計算!F30>税額基本情報!$D$39,税額基本情報!$D$39,ROUNDDOWN(賞与計算!F30,-3))*INDIRECT(基本情報!$D$3&"!$H$8")/2-0.1,0) -> 0 | AB27: 0 | AC27: =ROUND(IF(賞与計算!F30>税額基本情報!$D$36,税額基本情報!$D$36,ROUNDDOWN(賞与計算!F30,-3))*INDIRECT(基本情報!$D$3&"!$L$8")/2-0.1,0) -> 0 | AD27: 0 | AE27: 0 | AF27: =IF(基本情報!G30="",0,ROUND(VLOOKUP(基本情報!G30,INDIRECT(基本情報!$D$3&"!$B$11:$K$70"),10,0)-0.1,0)) -> 0 | AG27: 0 | AH27: =ROUND(IF(賞与計算!F30>税額基本情報!$D$39,税額基本情報!$D$39,ROUNDDOWN(賞与計算!F30,-3))*INDIRECT(基本情報!$D$3&"!$J$8")*0.5-0.1,0) -> 0
C28: 24 | D28: =給与計算!C31 ->  | E28: =MAX(IF(給与計算!O31>=税額基本情報!$D$6,MAX('計算シート ２'!E28:M28),IF(給与計算!O31<源泉月額表!$B$8,0,VLOOKUP(給与計算!O31,INDIRECT(税額基本情報!$D$42),IF(基本情報!E31>=8,10,基本情報!E31+3),1)))-IF(基本情報!E31>=8,(基本情報!E31-7)*税額基本情報!$D$23,0),0) -> 0 | F28: =IF(給与計算!O31<源泉月額表!$B$8,ROUNDDOWN(給与計算!O31*税額基本情報!$D$29,0),IF(給与計算!O31=0,0,IF(給与計算!O31>=税額基本情報!$D$19,MAX('計算シート ２'!S28:U28),VLOOKUP(給与計算!O31,INDIRECT(税額基本情報!$D$42),11,1)))) -> 0 | G28: =MAX(IF(給与計算!O31<源泉月額表!$B$8,ROUNDDOWN(給与計算!O31*3.063%,0),IF(給与計算!O31=0,0,IF(給与計算!O31>=税額基本情報!$D$19,MAX('計算シート ２'!S28:U28),VLOOKUP(給与計算!O31,INDIRECT(税額基本情報!$D$42),11,1))))-基本情報!E31*税額基本情報!$D$26,0) -> 0 | H28: =IF(賞与計算!D31<源泉賞与表!$D$11*1000,0,INDEX(源泉賞与表!$B:$B,MATCH(賞与計算!D31/1000,源泉賞与表!$D:$D,1))) -> 0 | I28: =IF(賞与計算!D31<源泉賞与表!$F$11*1000,0,INDEX(源泉賞与表!$B:$B,MATCH(賞与計算!D31/1000,源泉賞与表!$F:$F,1))) -> 0 | J28: =IF(賞与計算!D31<源泉賞与表!$H$11*1000,0,INDEX(源泉賞与表!$B:$B,MATCH(賞与計算!D31/1000,源泉賞与表!$H:$H,1))) -> 0 | K28: =IF(賞与計算!D31<源泉賞与表!$J$11*1000,0,INDEX(源泉賞与表!$B:$B,MATCH(賞与計算!D31/1000,源泉賞与表!$J:$J,1))) -> 0 | L28: =IF(賞与計算!D31<源泉賞与表!$L$11*1000,0,INDEX(源泉賞与表!$B:$B,MATCH(賞与計算!D31/1000,源泉賞与表!$L:$L,1))) -> 0 | M28: =IF(賞与計算!D31<源泉賞与表!$N$11*1000,0,INDEX(源泉賞与表!$B:$B,MATCH(賞与計算!D31/1000,源泉賞与表!$N:$N,1))) -> 0 | N28: =IF(賞与計算!D31<源泉賞与表!$P$11*1000,0,INDEX(源泉賞与表!$B:$B,MATCH(賞与計算!D31/1000,源泉賞与表!$P:$P,1))) -> 0 | O28: =IF(賞与計算!D31<源泉賞与表!$R$11*1000,0,INDEX(源泉賞与表!$B:$B,MATCH(賞与計算!D31/1000,源泉賞与表!$R:$R,1))) -> 0 | P28: =IF(賞与計算!D31="","",IF(賞与計算!D31<源泉賞与表!$T$23*1000,10.21,INDEX(源泉賞与表!$B:$B,MATCH(賞与計算!D31/1000,源泉賞与表!$T:$T,1)))) ->  | Q28: 0 | R28: =IF(基本情報!G31="",0,ROUND(VLOOKUP(基本情報!G31,INDIRECT(基本情報!$D$3&"!$B$11:$I$70"),6,0)-0.1,0)) -> 0 | S28: =IF(基本情報!G31="",0,ROUND(VLOOKUP(基本情報!G31,INDIRECT(基本情報!$D$3&"!$B$11:$I$70"),8,0)-0.1,0)) -> 0 | T28: 0 | U28: =IF(基本情報!G31="",0,ROUND(IF(OR(基本情報!G31<税額基本情報!$E$32,基本情報!G31>税額基本情報!$E$33),W28,VLOOKUP(基本情報!G31,INDIRECT(基本情報!$D$3&"!$B$14:$M$70"),12,0))-0.1,0)) -> 0 | V28: 0 | W28: =IF(基本情報!G31="",0,IF(基本情報!G31<税額基本情報!$E$32,税額基本情報!$F$32,IF(基本情報!G31>税額基本情報!$E$33,税額基本情報!$F$33,0))) -> 0 | X28: =IF(基本情報!G31="",0,IF(基本情報!G31<税額基本情報!$E$32,税額基本情報!$G$32,IF(基本情報!G31>税額基本情報!$E$33,税額基本情報!$G$33,0))) -> 0 | Y28: 0 | Z28: =ROUND(IF(賞与計算!F31>税額基本情報!$D$39,税額基本情報!$D$39,ROUNDDOWN(賞与計算!F31,-3))*INDIRECT(基本情報!$D$3&"!$F$8")*0.5-0.1,0) -> 0 | AA28: =ROUND(IF(賞与計算!F31>税額基本情報!$D$39,税額基本情報!$D$39,ROUNDDOWN(賞与計算!F31,-3))*INDIRECT(基本情報!$D$3&"!$H$8")/2-0.1,0) -> 0 | AB28: 0 | AC28: =ROUND(IF(賞与計算!F31>税額基本情報!$D$36,税額基本情報!$D$36,ROUNDDOWN(賞与計算!F31,-3))*INDIRECT(基本情報!$D$3&"!$L$8")/2-0.1,0) -> 0 | AD28: 0 | AE28: 0 | AF28: =IF(基本情報!G31="",0,ROUND(VLOOKUP(基本情報!G31,INDIRECT(基本情報!$D$3&"!$B$11:$K$70"),10,0)-0.1,0)) -> 0 | AG28: 0 | AH28: =ROUND(IF(賞与計算!F31>税額基本情報!$D$39,税額基本情報!$D$39,ROUNDDOWN(賞与計算!F31,-3))*INDIRECT(基本情報!$D$3&"!$J$8")*0.5-0.1,0) -> 0
C29: 25 | D29: =給与計算!C32 ->  | E29: =MAX(IF(給与計算!O32>=税額基本情報!$D$6,MAX('計算シート ２'!E29:M29),IF(給与計算!O32<源泉月額表!$B$8,0,VLOOKUP(給与計算!O32,INDIRECT(税額基本情報!$D$42),IF(基本情報!E32>=8,10,基本情報!E32+3),1)))-IF(基本情報!E32>=8,(基本情報!E32-7)*税額基本情報!$D$23,0),0) -> 0 | F29: =IF(給与計算!O32<源泉月額表!$B$8,ROUNDDOWN(給与計算!O32*税額基本情報!$D$29,0),IF(給与計算!O32=0,0,IF(給与計算!O32>=税額基本情報!$D$19,MAX('計算シート ２'!S29:U29),VLOOKUP(給与計算!O32,INDIRECT(税額基本情報!$D$42),11,1)))) -> 0 | G29: =MAX(IF(給与計算!O32<源泉月額表!$B$8,ROUNDDOWN(給与計算!O32*3.063%,0),IF(給与計算!O32=0,0,IF(給与計算!O32>=税額基本情報!$D$19,MAX('計算シート ２'!S29:U29),VLOOKUP(給与計算!O32,INDIRECT(税額基本情報!$D$42),11,1))))-基本情報!E32*税額基本情報!$D$26,0) -> 0 | H29: =IF(賞与計算!D32<源泉賞与表!$D$11*1000,0,INDEX(源泉賞与表!$B:$B,MATCH(賞与計算!D32/1000,源泉賞与表!$D:$D,1))) -> 0 | I29: =IF(賞与計算!D32<源泉賞与表!$F$11*1000,0,INDEX(源泉賞与表!$B:$B,MATCH(賞与計算!D32/1000,源泉賞与表!$F:$F,1))) -> 0 | J29: =IF(賞与計算!D32<源泉賞与表!$H$11*1000,0,INDEX(源泉賞与表!$B:$B,MATCH(賞与計算!D32/1000,源泉賞与表!$H:$H,1))) -> 0 | K29: =IF(賞与計算!D32<源泉賞与表!$J$11*1000,0,INDEX(源泉賞与表!$B:$B,MATCH(賞与計算!D32/1000,源泉賞与表!$J:$J,1))) -> 0 | L29: =IF(賞与計算!D32<源泉賞与表!$L$11*1000,0,INDEX(源泉賞与表!$B:$B,MATCH(賞与計算!D32/1000,源泉賞与表!$L:$L,1))) -> 0 | M29: =IF(賞与計算!D32<源泉賞与表!$N$11*1000,0,INDEX(源泉賞与表!$B:$B,MATCH(賞与計算!D32/1000,源泉賞与表!$N:$N,1))) -> 0 | N29: =IF(賞与計算!D32<源泉賞与表!$P$11*1000,0,INDEX(源泉賞与表!$B:$B,MATCH(賞与計算!D32/1000,源泉賞与表!$P:$P,1))) -> 0 | O29: =IF(賞与計算!D32<源泉賞与表!$R$11*1000,0,INDEX(源泉賞与表!$B:$B,MATCH(賞与計算!D32/1000,源泉賞与表!$R:$R,1))) -> 0 | P29: =IF(賞与計算!D32="","",IF(賞与計算!D32<源泉賞与表!$T$23*1000,10.21,INDEX(源泉賞与表!$B:$B,MATCH(賞与計算!D32/1000,源泉賞与表!$T:$T,1)))) ->  | Q29: 0 | R29: =IF(基本情報!G32="",0,ROUND(VLOOKUP(基本情報!G32,INDIRECT(基本情報!$D$3&"!$B$11:$I$70"),6,0)-0.1,0)) -> 0 | S29: =IF(基本情報!G32="",0,ROUND(VLOOKUP(基本情報!G32,INDIRECT(基本情報!$D$3&"!$B$11:$I$70"),8,0)-0.1,0)) -> 0 | T29: 0 | U29: =IF(基本情報!G32="",0,ROUND(IF(OR(基本情報!G32<税額基本情報!$E$32,基本情報!G32>税額基本情報!$E$33),W29,VLOOKUP(基本情報!G32,INDIRECT(基本情報!$D$3&"!$B$14:$M$70"),12,0))-0.1,0)) -> 0 | V29: 0 | W29: =IF(基本情報!G32="",0,IF(基本情報!G32<税額基本情報!$E$32,税額基本情報!$F$32,IF(基本情報!G32>税額基本情報!$E$33,税額基本情報!$F$33,0))) -> 0 | X29: =IF(基本情報!G32="",0,IF(基本情報!G32<税額基本情報!$E$32,税額基本情報!$G$32,IF(基本情報!G32>税額基本情報!$E$33,税額基本情報!$G$33,0))) -> 0 | Y29: 0 | Z29: =ROUND(IF(賞与計算!F32>税額基本情報!$D$39,税額基本情報!$D$39,ROUNDDOWN(賞与計算!F32,-3))*INDIRECT(基本情報!$D$3&"!$F$8")*0.5-0.1,0) -> 0 | AA29: =ROUND(IF(賞与計算!F32>税額基本情報!$D$39,税額基本情報!$D$39,ROUNDDOWN(賞与計算!F32,-3))*INDIRECT(基本情報!$D$3&"!$H$8")/2-0.1,0) -> 0 | AB29: 0 | AC29: =ROUND(IF(賞与計算!F32>税額基本情報!$D$36,税額基本情報!$D$36,ROUNDDOWN(賞与計算!F32,-3))*INDIRECT(基本情報!$D$3&"!$L$8")/2-0.1,0) -> 0 | AD29: 0 | AE29: 0 | AF29: =IF(基本情報!G32="",0,ROUND(VLOOKUP(基本情報!G32,INDIRECT(基本情報!$D$3&"!$B$11:$K$70"),10,0)-0.1,0)) -> 0 | AG29: 0 | AH29: =ROUND(IF(賞与計算!F32>税額基本情報!$D$39,税額基本情報!$D$39,ROUNDDOWN(賞与計算!F32,-3))*INDIRECT(基本情報!$D$3&"!$J$8")*0.5-0.1,0) -> 0
C30: 26 | D30: =給与計算!C33 ->  | E30: =MAX(IF(給与計算!O33>=税額基本情報!$D$6,MAX('計算シート ２'!E30:M30),IF(給与計算!O33<源泉月額表!$B$8,0,VLOOKUP(給与計算!O33,INDIRECT(税額基本情報!$D$42),IF(基本情報!E33>=8,10,基本情報!E33+3),1)))-IF(基本情報!E33>=8,(基本情報!E33-7)*税額基本情報!$D$23,0),0) -> 0 | F30: =IF(給与計算!O33<源泉月額表!$B$8,ROUNDDOWN(給与計算!O33*税額基本情報!$D$29,0),IF(給与計算!O33=0,0,IF(給与計算!O33>=税額基本情報!$D$19,MAX('計算シート ２'!S30:U30),VLOOKUP(給与計算!O33,INDIRECT(税額基本情報!$D$42),11,1)))) -> 0 | G30: =MAX(IF(給与計算!O33<源泉月額表!$B$8,ROUNDDOWN(給与計算!O33*3.063%,0),IF(給与計算!O33=0,0,IF(給与計算!O33>=税額基本情報!$D$19,MAX('計算シート ２'!S30:U30),VLOOKUP(給与計算!O33,INDIRECT(税額基本情報!$D$42),11,1))))-基本情報!E33*税額基本情報!$D$26,0) -> 0 | H30: =IF(賞与計算!D33<源泉賞与表!$D$11*1000,0,INDEX(源泉賞与表!$B:$B,MATCH(賞与計算!D33/1000,源泉賞与表!$D:$D,1))) -> 0 | I30: =IF(賞与計算!D33<源泉賞与表!$F$11*1000,0,INDEX(源泉賞与表!$B:$B,MATCH(賞与計算!D33/1000,源泉賞与表!$F:$F,1))) -> 0 | J30: =IF(賞与計算!D33<源泉賞与表!$H$11*1000,0,INDEX(源泉賞与表!$B:$B,MATCH(賞与計算!D33/1000,源泉賞与表!$H:$H,1))) -> 0 | K30: =IF(賞与計算!D33<源泉賞与表!$J$11*1000,0,INDEX(源泉賞与表!$B:$B,MATCH(賞与計算!D33/1000,源泉賞与表!$J:$J,1))) -> 0 | L30: =IF(賞与計算!D33<源泉賞与表!$L$11*1000,0,INDEX(源泉賞与表!$B:$B,MATCH(賞与計算!D33/1000,源泉賞与表!$L:$L,1))) -> 0 | M30: =IF(賞与計算!D33<源泉賞与表!$N$11*1000,0,INDEX(源泉賞与表!$B:$B,MATCH(賞与計算!D33/1000,源泉賞与表!$N:$N,1))) -> 0 | N30: =IF(賞与計算!D33<源泉賞与表!$P$11*1000,0,INDEX(源泉賞与表!$B:$B,MATCH(賞与計算!D33/1000,源泉賞与表!$P:$P,1))) -> 0 | O30: =IF(賞与計算!D33<源泉賞与表!$R$11*1000,0,INDEX(源泉賞与表!$B:$B,MATCH(賞与計算!D33/1000,源泉賞与表!$R:$R,1))) -> 0 | P30: =IF(賞与計算!D33="","",IF(賞与計算!D33<源泉賞与表!$T$23*1000,10.21,INDEX(源泉賞与表!$B:$B,MATCH(賞与計算!D33/1000,源泉賞与表!$T:$T,1)))) ->  | Q30: 0 | R30: =IF(基本情報!G33="",0,ROUND(VLOOKUP(基本情報!G33,INDIRECT(基本情報!$D$3&"!$B$11:$I$70"),6,0)-0.1,0)) -> 0 | S30: =IF(基本情報!G33="",0,ROUND(VLOOKUP(基本情報!G33,INDIRECT(基本情報!$D$3&"!$B$11:$I$70"),8,0)-0.1,0)) -> 0 | T30: 0 | U30: =IF(基本情報!G33="",0,ROUND(IF(OR(基本情報!G33<税額基本情報!$E$32,基本情報!G33>税額基本情報!$E$33),W30,VLOOKUP(基本情報!G33,INDIRECT(基本情報!$D$3&"!$B$14:$M$70"),12,0))-0.1,0)) -> 0 | V30: 0 | W30: =IF(基本情報!G33="",0,IF(基本情報!G33<税額基本情報!$E$32,税額基本情報!$F$32,IF(基本情報!G33>税額基本情報!$E$33,税額基本情報!$F$33,0))) -> 0 | X30: =IF(基本情報!G33="",0,IF(基本情報!G33<税額基本情報!$E$32,税額基本情報!$G$32,IF(基本情報!G33>税額基本情報!$E$33,税額基本情報!$G$33,0))) -> 0 | Y30: 0 | Z30: =ROUND(IF(賞与計算!F33>税額基本情報!$D$39,税額基本情報!$D$39,ROUNDDOWN(賞与計算!F33,-3))*INDIRECT(基本情報!$D$3&"!$F$8")*0.5-0.1,0) -> 0 | AA30: =ROUND(IF(賞与計算!F33>税額基本情報!$D$39,税額基本情報!$D$39,ROUNDDOWN(賞与計算!F33,-3))*INDIRECT(基本情報!$D$3&"!$H$8")/2-0.1,0) -> 0 | AB30: 0 | AC30: =ROUND(IF(賞与計算!F33>税額基本情報!$D$36,税額基本情報!$D$36,ROUNDDOWN(賞与計算!F33,-3))*INDIRECT(基本情報!$D$3&"!$L$8")/2-0.1,0) -> 0 | AD30: 0 | AE30: 0 | AF30: =IF(基本情報!G33="",0,ROUND(VLOOKUP(基本情報!G33,INDIRECT(基本情報!$D$3&"!$B$11:$K$70"),10,0)-0.1,0)) -> 0 | AG30: 0 | AH30: =ROUND(IF(賞与計算!F33>税額基本情報!$D$39,税額基本情報!$D$39,ROUNDDOWN(賞与計算!F33,-3))*INDIRECT(基本情報!$D$3&"!$J$8")*0.5-0.1,0) -> 0
C31: 27 | D31: =給与計算!C34 ->  | E31: =MAX(IF(給与計算!O34>=税額基本情報!$D$6,MAX('計算シート ２'!E31:M31),IF(給与計算!O34<源泉月額表!$B$8,0,VLOOKUP(給与計算!O34,INDIRECT(税額基本情報!$D$42),IF(基本情報!E34>=8,10,基本情報!E34+3),1)))-IF(基本情報!E34>=8,(基本情報!E34-7)*税額基本情報!$D$23,0),0) -> 0 | F31: =IF(給与計算!O34<源泉月額表!$B$8,ROUNDDOWN(給与計算!O34*税額基本情報!$D$29,0),IF(給与計算!O34=0,0,IF(給与計算!O34>=税額基本情報!$D$19,MAX('計算シート ２'!S31:U31),VLOOKUP(給与計算!O34,INDIRECT(税額基本情報!$D$42),11,1)))) -> 0 | G31: =MAX(IF(給与計算!O34<源泉月額表!$B$8,ROUNDDOWN(給与計算!O34*3.063%,0),IF(給与計算!O34=0,0,IF(給与計算!O34>=税額基本情報!$D$19,MAX('計算シート ２'!S31:U31),VLOOKUP(給与計算!O34,INDIRECT(税額基本情報!$D$42),11,1))))-基本情報!E34*税額基本情報!$D$26,0) -> 0 | H31: =IF(賞与計算!D34<源泉賞与表!$D$11*1000,0,INDEX(源泉賞与表!$B:$B,MATCH(賞与計算!D34/1000,源泉賞与表!$D:$D,1))) -> 0 | I31: =IF(賞与計算!D34<源泉賞与表!$F$11*1000,0,INDEX(源泉賞与表!$B:$B,MATCH(賞与計算!D34/1000,源泉賞与表!$F:$F,1))) -> 0 | J31: =IF(賞与計算!D34<源泉賞与表!$H$11*1000,0,INDEX(源泉賞与表!$B:$B,MATCH(賞与計算!D34/1000,源泉賞与表!$H:$H,1))) -> 0 | K31: =IF(賞与計算!D34<源泉賞与表!$J$11*1000,0,INDEX(源泉賞与表!$B:$B,MATCH(賞与計算!D34/1000,源泉賞与表!$J:$J,1))) -> 0 | L31: =IF(賞与計算!D34<源泉賞与表!$L$11*1000,0,INDEX(源泉賞与表!$B:$B,MATCH(賞与計算!D34/1000,源泉賞与表!$L:$L,1))) -> 0 | M31: =IF(賞与計算!D34<源泉賞与表!$N$11*1000,0,INDEX(源泉賞与表!$B:$B,MATCH(賞与計算!D34/1000,源泉賞与表!$N:$N,1))) -> 0 | N31: =IF(賞与計算!D34<源泉賞与表!$P$11*1000,0,INDEX(源泉賞与表!$B:$B,MATCH(賞与計算!D34/1000,源泉賞与表!$P:$P,1))) -> 0 | O31: =IF(賞与計算!D34<源泉賞与表!$R$11*1000,0,INDEX(源泉賞与表!$B:$B,MATCH(賞与計算!D34/1000,源泉賞与表!$R:$R,1))) -> 0 | P31: =IF(賞与計算!D34="","",IF(賞与計算!D34<源泉賞与表!$T$23*1000,10.21,INDEX(源泉賞与表!$B:$B,MATCH(賞与計算!D34/1000,源泉賞与表!$T:$T,1)))) ->  | Q31: 0 | R31: =IF(基本情報!G34="",0,ROUND(VLOOKUP(基本情報!G34,INDIRECT(基本情報!$D$3&"!$B$11:$I$70"),6,0)-0.1,0)) -> 0 | S31: =IF(基本情報!G34="",0,ROUND(VLOOKUP(基本情報!G34,INDIRECT(基本情報!$D$3&"!$B$11:$I$70"),8,0)-0.1,0)) -> 0 | T31: 0 | U31: =IF(基本情報!G34="",0,ROUND(IF(OR(基本情報!G34<税額基本情報!$E$32,基本情報!G34>税額基本情報!$E$33),W31,VLOOKUP(基本情報!G34,INDIRECT(基本情報!$D$3&"!$B$14:$M$70"),12,0))-0.1,0)) -> 0 | V31: 0 | W31: =IF(基本情報!G34="",0,IF(基本情報!G34<税額基本情報!$E$32,税額基本情報!$F$32,IF(基本情報!G34>税額基本情報!$E$33,税額基本情報!$F$33,0))) -> 0 | X31: =IF(基本情報!G34="",0,IF(基本情報!G34<税額基本情報!$E$32,税額基本情報!$G$32,IF(基本情報!G34>税額基本情報!$E$33,税額基本情報!$G$33,0))) -> 0 | Y31: 0 | Z31: =ROUND(IF(賞与計算!F34>税額基本情報!$D$39,税額基本情報!$D$39,ROUNDDOWN(賞与計算!F34,-3))*INDIRECT(基本情報!$D$3&"!$F$8")*0.5-0.1,0) -> 0 | AA31: =ROUND(IF(賞与計算!F34>税額基本情報!$D$39,税額基本情報!$D$39,ROUNDDOWN(賞与計算!F34,-3))*INDIRECT(基本情報!$D$3&"!$H$8")/2-0.1,0) -> 0 | AB31: 0 | AC31: =ROUND(IF(賞与計算!F34>税額基本情報!$D$36,税額基本情報!$D$36,ROUNDDOWN(賞与計算!F34,-3))*INDIRECT(基本情報!$D$3&"!$L$8")/2-0.1,0) -> 0 | AD31: 0 | AE31: 0 | AF31: =IF(基本情報!G34="",0,ROUND(VLOOKUP(基本情報!G34,INDIRECT(基本情報!$D$3&"!$B$11:$K$70"),10,0)-0.1,0)) -> 0 | AG31: 0 | AH31: =ROUND(IF(賞与計算!F34>税額基本情報!$D$39,税額基本情報!$D$39,ROUNDDOWN(賞与計算!F34,-3))*INDIRECT(基本情報!$D$3&"!$J$8")*0.5-0.1,0) -> 0
C32: 28 | D32: =給与計算!C35 ->  | E32: =MAX(IF(給与計算!O35>=税額基本情報!$D$6,MAX('計算シート ２'!E32:M32),IF(給与計算!O35<源泉月額表!$B$8,0,VLOOKUP(給与計算!O35,INDIRECT(税額基本情報!$D$42),IF(基本情報!E35>=8,10,基本情報!E35+3),1)))-IF(基本情報!E35>=8,(基本情報!E35-7)*税額基本情報!$D$23,0),0) -> 0 | F32: =IF(給与計算!O35<源泉月額表!$B$8,ROUNDDOWN(給与計算!O35*税額基本情報!$D$29,0),IF(給与計算!O35=0,0,IF(給与計算!O35>=税額基本情報!$D$19,MAX('計算シート ２'!S32:U32),VLOOKUP(給与計算!O35,INDIRECT(税額基本情報!$D$42),11,1)))) -> 0 | G32: =MAX(IF(給与計算!O35<源泉月額表!$B$8,ROUNDDOWN(給与計算!O35*3.063%,0),IF(給与計算!O35=0,0,IF(給与計算!O35>=税額基本情報!$D$19,MAX('計算シート ２'!S32:U32),VLOOKUP(給与計算!O35,INDIRECT(税額基本情報!$D$42),11,1))))-基本情報!E35*税額基本情報!$D$26,0) -> 0 | H32: =IF(賞与計算!D35<源泉賞与表!$D$11*1000,0,INDEX(源泉賞与表!$B:$B,MATCH(賞与計算!D35/1000,源泉賞与表!$D:$D,1))) -> 0 | I32: =IF(賞与計算!D35<源泉賞与表!$F$11*1000,0,INDEX(源泉賞与表!$B:$B,MATCH(賞与計算!D35/1000,源泉賞与表!$F:$F,1))) -> 0 | J32: =IF(賞与計算!D35<源泉賞与表!$H$11*1000,0,INDEX(源泉賞与表!$B:$B,MATCH(賞与計算!D35/1000,源泉賞与表!$H:$H,1))) -> 0 | K32: =IF(賞与計算!D35<源泉賞与表!$J$11*1000,0,INDEX(源泉賞与表!$B:$B,MATCH(賞与計算!D35/1000,源泉賞与表!$J:$J,1))) -> 0 | L32: =IF(賞与計算!D35<源泉賞与表!$L$11*1000,0,INDEX(源泉賞与表!$B:$B,MATCH(賞与計算!D35/1000,源泉賞与表!$L:$L,1))) -> 0 | M32: =IF(賞与計算!D35<源泉賞与表!$N$11*1000,0,INDEX(源泉賞与表!$B:$B,MATCH(賞与計算!D35/1000,源泉賞与表!$N:$N,1))) -> 0 | N32: =IF(賞与計算!D35<源泉賞与表!$P$11*1000,0,INDEX(源泉賞与表!$B:$B,MATCH(賞与計算!D35/1000,源泉賞与表!$P:$P,1))) -> 0 | O32: =IF(賞与計算!D35<源泉賞与表!$R$11*1000,0,INDEX(源泉賞与表!$B:$B,MATCH(賞与計算!D35/1000,源泉賞与表!$R:$R,1))) -> 0 | P32: =IF(賞与計算!D35="","",IF(賞与計算!D35<源泉賞与表!$T$23*1000,10.21,INDEX(源泉賞与表!$B:$B,MATCH(賞与計算!D35/1000,源泉賞与表!$T:$T,1)))) ->  | Q32: 0 | R32: =IF(基本情報!G35="",0,ROUND(VLOOKUP(基本情報!G35,INDIRECT(基本情報!$D$3&"!$B$11:$I$70"),6,0)-0.1,0)) -> 0 | S32: =IF(基本情報!G35="",0,ROUND(VLOOKUP(基本情報!G35,INDIRECT(基本情報!$D$3&"!$B$11:$I$70"),8,0)-0.1,0)) -> 0 | T32: 0 | U32: =IF(基本情報!G35="",0,ROUND(IF(OR(基本情報!G35<税額基本情報!$E$32,基本情報!G35>税額基本情報!$E$33),W32,VLOOKUP(基本情報!G35,INDIRECT(基本情報!$D$3&"!$B$14:$M$70"),12,0))-0.1,0)) -> 0 | V32: 0 | W32: =IF(基本情報!G35="",0,IF(基本情報!G35<税額基本情報!$E$32,税額基本情報!$F$32,IF(基本情報!G35>税額基本情報!$E$33,税額基本情報!$F$33,0))) -> 0 | X32: =IF(基本情報!G35="",0,IF(基本情報!G35<税額基本情報!$E$32,税額基本情報!$G$32,IF(基本情報!G35>税額基本情報!$E$33,税額基本情報!$G$33,0))) -> 0 | Y32: 0 | Z32: =ROUND(IF(賞与計算!F35>税額基本情報!$D$39,税額基本情報!$D$39,ROUNDDOWN(賞与計算!F35,-3))*INDIRECT(基本情報!$D$3&"!$F$8")*0.5-0.1,0) -> 0 | AA32: =ROUND(IF(賞与計算!F35>税額基本情報!$D$39,税額基本情報!$D$39,ROUNDDOWN(賞与計算!F35,-3))*INDIRECT(基本情報!$D$3&"!$H$8")/2-0.1,0) -> 0 | AB32: 0 | AC32: =ROUND(IF(賞与計算!F35>税額基本情報!$D$36,税額基本情報!$D$36,ROUNDDOWN(賞与計算!F35,-3))*INDIRECT(基本情報!$D$3&"!$L$8")/2-0.1,0) -> 0 | AD32: 0 | AE32: 0 | AF32: =IF(基本情報!G35="",0,ROUND(VLOOKUP(基本情報!G35,INDIRECT(基本情報!$D$3&"!$B$11:$K$70"),10,0)-0.1,0)) -> 0 | AG32: 0 | AH32: =ROUND(IF(賞与計算!F35>税額基本情報!$D$39,税額基本情報!$D$39,ROUNDDOWN(賞与計算!F35,-3))*INDIRECT(基本情報!$D$3&"!$J$8")*0.5-0.1,0) -> 0
C33: 29 | D33: =給与計算!C36 ->  | E33: =MAX(IF(給与計算!O36>=税額基本情報!$D$6,MAX('計算シート ２'!E33:M33),IF(給与計算!O36<源泉月額表!$B$8,0,VLOOKUP(給与計算!O36,INDIRECT(税額基本情報!$D$42),IF(基本情報!E36>=8,10,基本情報!E36+3),1)))-IF(基本情報!E36>=8,(基本情報!E36-7)*税額基本情報!$D$23,0),0) -> 0 | F33: =IF(給与計算!O36<源泉月額表!$B$8,ROUNDDOWN(給与計算!O36*税額基本情報!$D$29,0),IF(給与計算!O36=0,0,IF(給与計算!O36>=税額基本情報!$D$19,MAX('計算シート ２'!S33:U33),VLOOKUP(給与計算!O36,INDIRECT(税額基本情報!$D$42),11,1)))) -> 0 | G33: =MAX(IF(給与計算!O36<源泉月額表!$B$8,ROUNDDOWN(給与計算!O36*3.063%,0),IF(給与計算!O36=0,0,IF(給与計算!O36>=税額基本情報!$D$19,MAX('計算シート ２'!S33:U33),VLOOKUP(給与計算!O36,INDIRECT(税額基本情報!$D$42),11,1))))-基本情報!E36*税額基本情報!$D$26,0) -> 0 | H33: =IF(賞与計算!D36<源泉賞与表!$D$11*1000,0,INDEX(源泉賞与表!$B:$B,MATCH(賞与計算!D36/1000,源泉賞与表!$D:$D,1))) -> 0 | I33: =IF(賞与計算!D36<源泉賞与表!$F$11*1000,0,INDEX(源泉賞与表!$B:$B,MATCH(賞与計算!D36/1000,源泉賞与表!$F:$F,1))) -> 0 | J33: =IF(賞与計算!D36<源泉賞与表!$H$11*1000,0,INDEX(源泉賞与表!$B:$B,MATCH(賞与計算!D36/1000,源泉賞与表!$H:$H,1))) -> 0 | K33: =IF(賞与計算!D36<源泉賞与表!$J$11*1000,0,INDEX(源泉賞与表!$B:$B,MATCH(賞与計算!D36/1000,源泉賞与表!$J:$J,1))) -> 0 | L33: =IF(賞与計算!D36<源泉賞与表!$L$11*1000,0,INDEX(源泉賞与表!$B:$B,MATCH(賞与計算!D36/1000,源泉賞与表!$L:$L,1))) -> 0 | M33: =IF(賞与計算!D36<源泉賞与表!$N$11*1000,0,INDEX(源泉賞与表!$B:$B,MATCH(賞与計算!D36/1000,源泉賞与表!$N:$N,1))) -> 0 | N33: =IF(賞与計算!D36<源泉賞与表!$P$11*1000,0,INDEX(源泉賞与表!$B:$B,MATCH(賞与計算!D36/1000,源泉賞与表!$P:$P,1))) -> 0 | O33: =IF(賞与計算!D36<源泉賞与表!$R$11*1000,0,INDEX(源泉賞与表!$B:$B,MATCH(賞与計算!D36/1000,源泉賞与表!$R:$R,1))) -> 0 | P33: =IF(賞与計算!D36="","",IF(賞与計算!D36<源泉賞与表!$T$23*1000,10.21,INDEX(源泉賞与表!$B:$B,MATCH(賞与計算!D36/1000,源泉賞与表!$T:$T,1)))) ->  | Q33: 0 | R33: =IF(基本情報!G36="",0,ROUND(VLOOKUP(基本情報!G36,INDIRECT(基本情報!$D$3&"!$B$11:$I$70"),6,0)-0.1,0)) -> 0 | S33: =IF(基本情報!G36="",0,ROUND(VLOOKUP(基本情報!G36,INDIRECT(基本情報!$D$3&"!$B$11:$I$70"),8,0)-0.1,0)) -> 0 | T33: 0 | U33: =IF(基本情報!G36="",0,ROUND(IF(OR(基本情報!G36<税額基本情報!$E$32,基本情報!G36>税額基本情報!$E$33),W33,VLOOKUP(基本情報!G36,INDIRECT(基本情報!$D$3&"!$B$14:$M$70"),12,0))-0.1,0)) -> 0 | V33: 0 | W33: =IF(基本情報!G36="",0,IF(基本情報!G36<税額基本情報!$E$32,税額基本情報!$F$32,IF(基本情報!G36>税額基本情報!$E$33,税額基本情報!$F$33,0))) -> 0 | X33: =IF(基本情報!G36="",0,IF(基本情報!G36<税額基本情報!$E$32,税額基本情報!$G$32,IF(基本情報!G36>税額基本情報!$E$33,税額基本情報!$G$33,0))) -> 0 | Y33: 0 | Z33: =ROUND(IF(賞与計算!F36>税額基本情報!$D$39,税額基本情報!$D$39,ROUNDDOWN(賞与計算!F36,-3))*INDIRECT(基本情報!$D$3&"!$F$8")*0.5-0.1,0) -> 0 | AA33: =ROUND(IF(賞与計算!F36>税額基本情報!$D$39,税額基本情報!$D$39,ROUNDDOWN(賞与計算!F36,-3))*INDIRECT(基本情報!$D$3&"!$H$8")/2-0.1,0) -> 0 | AB33: 0 | AC33: =ROUND(IF(賞与計算!F36>税額基本情報!$D$36,税額基本情報!$D$36,ROUNDDOWN(賞与計算!F36,-3))*INDIRECT(基本情報!$D$3&"!$L$8")/2-0.1,0) -> 0 | AD33: 0 | AE33: 0 | AF33: =IF(基本情報!G36="",0,ROUND(VLOOKUP(基本情報!G36,INDIRECT(基本情報!$D$3&"!$B$11:$K$70"),10,0)-0.1,0)) -> 0 | AG33: 0 | AH33: =ROUND(IF(賞与計算!F36>税額基本情報!$D$39,税額基本情報!$D$39,ROUNDDOWN(賞与計算!F36,-3))*INDIRECT(基本情報!$D$3&"!$J$8")*0.5-0.1,0) -> 0
C34: 30 | D34: =給与計算!C37 ->  | E34: =MAX(IF(給与計算!O37>=税額基本情報!$D$6,MAX('計算シート ２'!E34:M34),IF(給与計算!O37<源泉月額表!$B$8,0,VLOOKUP(給与計算!O37,INDIRECT(税額基本情報!$D$42),IF(基本情報!E37>=8,10,基本情報!E37+3),1)))-IF(基本情報!E37>=8,(基本情報!E37-7)*税額基本情報!$D$23,0),0) -> 0 | F34: =IF(給与計算!O37<源泉月額表!$B$8,ROUNDDOWN(給与計算!O37*税額基本情報!$D$29,0),IF(給与計算!O37=0,0,IF(給与計算!O37>=税額基本情報!$D$19,MAX('計算シート ２'!S34:U34),VLOOKUP(給与計算!O37,INDIRECT(税額基本情報!$D$42),11,1)))) -> 0 | G34: =MAX(IF(給与計算!O37<源泉月額表!$B$8,ROUNDDOWN(給与計算!O37*3.063%,0),IF(給与計算!O37=0,0,IF(給与計算!O37>=税額基本情報!$D$19,MAX('計算シート ２'!S34:U34),VLOOKUP(給与計算!O37,INDIRECT(税額基本情報!$D$42),11,1))))-基本情報!E37*税額基本情報!$D$26,0) -> 0 | H34: =IF(賞与計算!D37<源泉賞与表!$D$11*1000,0,INDEX(源泉賞与表!$B:$B,MATCH(賞与計算!D37/1000,源泉賞与表!$D:$D,1))) -> 0 | I34: =IF(賞与計算!D37<源泉賞与表!$F$11*1000,0,INDEX(源泉賞与表!$B:$B,MATCH(賞与計算!D37/1000,源泉賞与表!$F:$F,1))) -> 0 | J34: =IF(賞与計算!D37<源泉賞与表!$H$11*1000,0,INDEX(源泉賞与表!$B:$B,MATCH(賞与計算!D37/1000,源泉賞与表!$H:$H,1))) -> 0 | K34: =IF(賞与計算!D37<源泉賞与表!$J$11*1000,0,INDEX(源泉賞与表!$B:$B,MATCH(賞与計算!D37/1000,源泉賞与表!$J:$J,1))) -> 0 | L34: =IF(賞与計算!D37<源泉賞与表!$L$11*1000,0,INDEX(源泉賞与表!$B:$B,MATCH(賞与計算!D37/1000,源泉賞与表!$L:$L,1))) -> 0 | M34: =IF(賞与計算!D37<源泉賞与表!$N$11*1000,0,INDEX(源泉賞与表!$B:$B,MATCH(賞与計算!D37/1000,源泉賞与表!$N:$N,1))) -> 0 | N34: =IF(賞与計算!D37<源泉賞与表!$P$11*1000,0,INDEX(源泉賞与表!$B:$B,MATCH(賞与計算!D37/1000,源泉賞与表!$P:$P,1))) -> 0 | O34: =IF(賞与計算!D37<源泉賞与表!$R$11*1000,0,INDEX(源泉賞与表!$B:$B,MATCH(賞与計算!D37/1000,源泉賞与表!$R:$R,1))) -> 0 | P34: =IF(賞与計算!D37="","",IF(賞与計算!D37<源泉賞与表!$T$23*1000,10.21,INDEX(源泉賞与表!$B:$B,MATCH(賞与計算!D37/1000,源泉賞与表!$T:$T,1)))) ->  | Q34: 0 | R34: =IF(基本情報!G37="",0,ROUND(VLOOKUP(基本情報!G37,INDIRECT(基本情報!$D$3&"!$B$11:$I$70"),6,0)-0.1,0)) -> 0 | S34: =IF(基本情報!G37="",0,ROUND(VLOOKUP(基本情報!G37,INDIRECT(基本情報!$D$3&"!$B$11:$I$70"),8,0)-0.1,0)) -> 0 | T34: 0 | U34: =IF(基本情報!G37="",0,ROUND(IF(OR(基本情報!G37<税額基本情報!$E$32,基本情報!G37>税額基本情報!$E$33),W34,VLOOKUP(基本情報!G37,INDIRECT(基本情報!$D$3&"!$B$14:$M$70"),12,0))-0.1,0)) -> 0 | V34: 0 | W34: =IF(基本情報!G37="",0,IF(基本情報!G37<税額基本情報!$E$32,税額基本情報!$F$32,IF(基本情報!G37>税額基本情報!$E$33,税額基本情報!$F$33,0))) -> 0 | X34: =IF(基本情報!G37="",0,IF(基本情報!G37<税額基本情報!$E$32,税額基本情報!$G$32,IF(基本情報!G37>税額基本情報!$E$33,税額基本情報!$G$33,0))) -> 0 | Y34: 0 | Z34: =ROUND(IF(賞与計算!F37>税額基本情報!$D$39,税額基本情報!$D$39,ROUNDDOWN(賞与計算!F37,-3))*INDIRECT(基本情報!$D$3&"!$F$8")*0.5-0.1,0) -> 0 | AA34: =ROUND(IF(賞与計算!F37>税額基本情報!$D$39,税額基本情報!$D$39,ROUNDDOWN(賞与計算!F37,-3))*INDIRECT(基本情報!$D$3&"!$H$8")/2-0.1,0) -> 0 | AB34: 0 | AC34: =ROUND(IF(賞与計算!F37>税額基本情報!$D$36,税額基本情報!$D$36,ROUNDDOWN(賞与計算!F37,-3))*INDIRECT(基本情報!$D$3&"!$L$8")/2-0.1,0) -> 0 | AD34: 0 | AE34: 0 | AF34: =IF(基本情報!G37="",0,ROUND(VLOOKUP(基本情報!G37,INDIRECT(基本情報!$D$3&"!$B$11:$K$70"),10,0)-0.1,0)) -> 0 | AG34: 0 | AH34: =ROUND(IF(賞与計算!F37>税額基本情報!$D$39,税額基本情報!$D$39,ROUNDDOWN(賞与計算!F37,-3))*INDIRECT(基本情報!$D$3&"!$J$8")*0.5-0.1,0) -> 0

Sheet 計算シート ２ (hidden)
C3: NO. | D3: 名前 | E3: 月額74万円超えた場合の源泉徴収税額（甲欄） | S3: 月額74万円超えた場合の税額表（乙欄)
E4: =税額基本情報!C6 -> 740000円超 | F4: =税額基本情報!C7 -> 790000円超 | G4: =税額基本情報!C8 -> 960000円超 | H4: =税額基本情報!C9 -> 1710000円超 | I4: =税額基本情報!C10 -> 2130000円超 | J4: =税額基本情報!C11 -> 2170000円超 | K4: =税額基本情報!C12 -> 2210000円超 | L4: =税額基本情報!C13 -> 2250000円超 | M4: =税額基本情報!C14 -> 3500000円超 | S4: =税額基本情報!C19 -> 740000円超 | T4: =税額基本情報!C20 -> 1710000円超 | U4: =税額基本情報!C21 -> 1710000円超
C5: 1 | D5: =給与計算!C8 -> 給与一郎 | E5: =IF(AND(給与計算!O8>=税額基本情報!$D$6,給与計算!O8<税額基本情報!$D$7),VLOOKUP(給与計算!O8,税額基本情報!$D$6:$M$14,IF(基本情報!E8>=8,10,基本情報!E8+3),1)+ROUNDDOWN((給与計算!O8-税額基本情報!$D$6)*税額基本情報!$E$6,0),0) -> 0 | F5: =IF(AND(給与計算!O8>=税額基本情報!$D$7,給与計算!O8<税額基本情報!$D$8),VLOOKUP(給与計算!O8,税額基本情報!$D$6:$M$14,IF(基本情報!E8>=8,10,基本情報!E8+3),1)+ROUNDDOWN((給与計算!O8-税額基本情報!$D$7)*税額基本情報!$E$7,0),0) -> 0 | G5: =IF(AND(給与計算!O8>=税額基本情報!$D$8,給与計算!O8<税額基本情報!$D$9),VLOOKUP(給与計算!O8,税額基本情報!$D$6:$M$14,IF(基本情報!E8>=8,10,基本情報!E8+3),1)+ROUNDDOWN((給与計算!O8-税額基本情報!$D$8)*税額基本情報!$E$8,0),0) -> 0 | H5: =IF(AND(給与計算!$O8>=税額基本情報!$D$9,給与計算!$O8<税額基本情報!$D$10),VLOOKUP(給与計算!$O8,税額基本情報!$D$6:$M$14,IF(基本情報!$E8>=8,10,基本情報!$E8+3),1)+ROUNDDOWN((給与計算!$O8-税額基本情報!$D$9)*税額基本情報!$E$9,0),0) -> 0 | I5: =IF(AND(給与計算!$O8>=税額基本情報!$D$10,給与計算!$O8<税額基本情報!$D$11),VLOOKUP(給与計算!$O8,税額基本情報!$D$6:$M$14,IF(基本情報!$E8>=8,10,基本情報!$E8+3),1)+ROUNDDOWN((給与計算!$O8-税額基本情報!$D$10)*税額基本情報!$E$10,0),0) -> 0 | J5: =IF(AND(給与計算!$O8>=税額基本情報!$D$11,給与計算!$O8<税額基本情報!$D$12),VLOOKUP(給与計算!$O8,税額基本情報!$D$6:$M$14,IF(基本情報!$E8>=8,10,基本情報!$E8+3),1)+ROUNDDOWN((給与計算!$O8-税額基本情報!$D$11)*税額基本情報!$E$11,0),0) -> 0 | K5: =IF(AND(給与計算!$O8>=税額基本情報!$D$12,給与計算!$O8<税額基本情報!$D$13),VLOOKUP(給与計算!$O8,税額基本情報!$D$6:$M$14,IF(基本情報!$E8>=8,10,基本情報!$E8+3),1)+ROUNDDOWN((給与計算!$O8-税額基本情報!$D$12)*税額基本情報!$E$12,0),0) -> 0 | L5: =IF(AND(給与計算!$O8>=税額基本情報!$D$13,給与計算!$O8<税額基本情報!$D$14),VLOOKUP(給与計算!$O8,税額基本情報!$D$6:$M$14,IF(基本情報!$E8>=8,10,基本情報!$E8+3),1)+ROUNDDOWN((給与計算!$O8-税額基本情報!$D$13)*税額基本情報!$E$13,0),0) -> 0 | M5: =IF(給与計算!O8>=税額基本情報!$D$14,VLOOKUP(給与計算!O8,税額基本情報!$D$6:$M$14,IF(基本情報!E8>=8,10,基本情報!E8+3),1)+ROUNDDOWN((給与計算!O8-税額基本情報!$D$14)*税額基本情報!$E$14,0),0) -> 0 | S5: =IF(AND(給与計算!$O8>=税額基本情報!$D$19,給与計算!$O8<税額基本情報!$D$20),税額基本情報!$F$19+ROUNDDOWN((給与計算!$O8-税額基本情報!$D$19)*税額基本情報!$E$19,0),0) -> 0 | T5: =IF(AND(給与計算!$O8>=税額基本情報!$D$20,給与計算!$O8<税額基本情報!$D$21),税額基本情報!$F$20+ROUNDDOWN((給与計算!$O8-税額基本情報!$D$20)*税額基本情報!$E$20,0),0) -> 0 | U5: =IF(給与計算!O8>=税額基本情報!$D$21,税額基本情報!$F$21+ROUNDDOWN((給与計算!O8-税額基本情報!$D$21)*税額基本情報!$E$21,0),0) -> 0
C6: 2 | D6: =給与計算!C9 -> 給与二郎 | E6: =IF(AND(給与計算!O9>=税額基本情報!$D$6,給与計算!O9<税額基本情報!$D$7),VLOOKUP(給与計算!O9,税額基本情報!$D$6:$M$14,IF(基本情報!E9>=8,10,基本情報!E9+3),1)+ROUNDDOWN((給与計算!O9-税額基本情報!$D$6)*税額基本情報!$E$6,0),0) -> 0 | F6: =IF(AND(給与計算!O9>=税額基本情報!$D$7,給与計算!O9<税額基本情報!$D$8),VLOOKUP(給与計算!O9,税額基本情報!$D$6:$M$14,IF(基本情報!E9>=8,10,基本情報!E9+3),1)+ROUNDDOWN((給与計算!O9-税額基本情報!$D$7)*税額基本情報!$E$7,0),0) -> 0 | G6: =IF(AND(給与計算!O9>=税額基本情報!$D$8,給与計算!O9<税額基本情報!$D$9),VLOOKUP(給与計算!O9,税額基本情報!$D$6:$M$14,IF(基本情報!E9>=8,10,基本情報!E9+3),1)+ROUNDDOWN((給与計算!O9-税額基本情報!$D$8)*税額基本情報!$E$8,0),0) -> 0 | H6: =IF(AND(給与計算!$O9>=税額基本情報!$D$9,給与計算!$O9<税額基本情報!$D$10),VLOOKUP(給与計算!$O9,税額基本情報!$D$6:$M$14,IF(基本情報!$E9>=8,10,基本情報!$E9+3),1)+ROUNDDOWN((給与計算!$O9-税額基本情報!$D$9)*税額基本情報!$E$9,0),0) -> 0 | I6: =IF(AND(給与計算!$O9>=税額基本情報!$D$10,給与計算!$O9<税額基本情報!$D$11),VLOOKUP(給与計算!$O9,税額基本情報!$D$6:$M$14,IF(基本情報!$E9>=8,10,基本情報!$E9+3),1)+ROUNDDOWN((給与計算!$O9-税額基本情報!$D$10)*税額基本情報!$E$10,0),0) -> 0 | J6: =IF(AND(給与計算!$O9>=税額基本情報!$D$11,給与計算!$O9<税額基本情報!$D$12),VLOOKUP(給与計算!$O9,税額基本情報!$D$6:$M$14,IF(基本情報!$E9>=8,10,基本情報!$E9+3),1)+ROUNDDOWN((給与計算!$O9-税額基本情報!$D$11)*税額基本情報!$E$11,0),0) -> 0 | K6: =IF(AND(給与計算!$O9>=税額基本情報!$D$12,給与計算!$O9<税額基本情報!$D$13),VLOOKUP(給与計算!$O9,税額基本情報!$D$6:$M$14,IF(基本情報!$E9>=8,10,基本情報!$E9+3),1)+ROUNDDOWN((給与計算!$O9-税額基本情報!$D$12)*税額基本情報!$E$12,0),0) -> 0 | L6: =IF(AND(給与計算!$O9>=税額基本情報!$D$13,給与計算!$O9<税額基本情報!$D$14),VLOOKUP(給与計算!$O9,税額基本情報!$D$6:$M$14,IF(基本情報!$E9>=8,10,基本情報!$E9+3),1)+ROUNDDOWN((給与計算!$O9-税額基本情報!$D$13)*税額基本情報!$E$13,0),0) -> 0 | M6: =IF(給与計算!O9>=税額基本情報!$D$14,VLOOKUP(給与計算!O9,税額基本情報!$D$6:$M$14,IF(基本情報!E9>=8,10,基本情報!E9+3),1)+ROUNDDOWN((給与計算!O9-税額基本情報!$D$14)*税額基本情報!$E$14,0),0) -> 0 | S6: =IF(AND(給与計算!$O9>=税額基本情報!$D$19,給与計算!$O9<税額基本情報!$D$20),税額基本情報!$F$19+ROUNDDOWN((給与計算!$O9-税額基本情報!$D$19)*税額基本情報!$E$19,0),0) -> 0 | T6: =IF(AND(給与計算!$O9>=税額基本情報!$D$20,給与計算!$O9<税額基本情報!$D$21),税額基本情報!$F$20+ROUNDDOWN((給与計算!$O9-税額基本情報!$D$20)*税額基本情報!$E$20,0),0) -> 0 | U6: =IF(給与計算!O9>=税額基本情報!$D$21,税額基本情報!$F$21+ROUNDDOWN((給与計算!O9-税額基本情報!$D$21)*税額基本情報!$E$21,0),0) -> 0
C7: 3 | D7: =給与計算!C10 -> 給与三郎 | E7: =IF(AND(給与計算!O10>=税額基本情報!$D$6,給与計算!O10<税額基本情報!$D$7),VLOOKUP(給与計算!O10,税額基本情報!$D$6:$M$14,IF(基本情報!E10>=8,10,基本情報!E10+3),1)+ROUNDDOWN((給与計算!O10-税額基本情報!$D$6)*税額基本情報!$E$6,0),0) -> 0 | F7: =IF(AND(給与計算!O10>=税額基本情報!$D$7,給与計算!O10<税額基本情報!$D$8),VLOOKUP(給与計算!O10,税額基本情報!$D$6:$M$14,IF(基本情報!E10>=8,10,基本情報!E10+3),1)+ROUNDDOWN((給与計算!O10-税額基本情報!$D$7)*税額基本情報!$E$7,0),0) -> 0 | G7: =IF(AND(給与計算!O10>=税額基本情報!$D$8,給与計算!O10<税額基本情報!$D$9),VLOOKUP(給与計算!O10,税額基本情報!$D$6:$M$14,IF(基本情報!E10>=8,10,基本情報!E10+3),1)+ROUNDDOWN((給与計算!O10-税額基本情報!$D$8)*税額基本情報!$E$8,0),0) -> 0 | H7: =IF(AND(給与計算!$O10>=税額基本情報!$D$9,給与計算!$O10<税額基本情報!$D$10),VLOOKUP(給与計算!$O10,税額基本情報!$D$6:$M$14,IF(基本情報!$E10>=8,10,基本情報!$E10+3),1)+ROUNDDOWN((給与計算!$O10-税額基本情報!$D$9)*税額基本情報!$E$9,0),0) -> 0 | I7: =IF(AND(給与計算!$O10>=税額基本情報!$D$10,給与計算!$O10<税額基本情報!$D$11),VLOOKUP(給与計算!$O10,税額基本情報!$D$6:$M$14,IF(基本情報!$E10>=8,10,基本情報!$E10+3),1)+ROUNDDOWN((給与計算!$O10-税額基本情報!$D$10)*税額基本情報!$E$10,0),0) -> 0 | J7: =IF(AND(給与計算!$O10>=税額基本情報!$D$11,給与計算!$O10<税額基本情報!$D$12),VLOOKUP(給与計算!$O10,税額基本情報!$D$6:$M$14,IF(基本情報!$E10>=8,10,基本情報!$E10+3),1)+ROUNDDOWN((給与計算!$O10-税額基本情報!$D$11)*税額基本情報!$E$11,0),0) -> 0 | K7: =IF(AND(給与計算!$O10>=税額基本情報!$D$12,給与計算!$O10<税額基本情報!$D$13),VLOOKUP(給与計算!$O10,税額基本情報!$D$6:$M$14,IF(基本情報!$E10>=8,10,基本情報!$E10+3),1)+ROUNDDOWN((給与計算!$O10-税額基本情報!$D$12)*税額基本情報!$E$12,0),0) -> 0 | L7: =IF(AND(給与計算!$O10>=税額基本情報!$D$13,給与計算!$O10<税額基本情報!$D$14),VLOOKUP(給与計算!$O10,税額基本情報!$D$6:$M$14,IF(基本情報!$E10>=8,10,基本情報!$E10+3),1)+ROUNDDOWN((給与計算!$O10-税額基本情報!$D$13)*税額基本情報!$E$13,0),0) -> 0 | M7: =IF(給与計算!O10>=税額基本情報!$D$14,VLOOKUP(給与計算!O10,税額基本情報!$D$6:$M$14,IF(基本情報!E10>=8,10,基本情報!E10+3),1)+ROUNDDOWN((給与計算!O10-税額基本情報!$D$14)*税額基本情報!$E$14,0),0) -> 0 | S7: =IF(AND(給与計算!$O10>=税額基本情報!$D$19,給与計算!$O10<税額基本情報!$D$20),税額基本情報!$F$19+ROUNDDOWN((給与計算!$O10-税額基本情報!$D$19)*税額基本情報!$E$19,0),0) -> 0 | T7: =IF(AND(給与計算!$O10>=税額基本情報!$D$20,給与計算!$O10<税額基本情報!$D$21),税額基本情報!$F$20+ROUNDDOWN((給与計算!$O10-税額基本情報!$D$20)*税額基本情報!$E$20,0),0) -> 0 | U7: =IF(給与計算!O10>=税額基本情報!$D$21,税額基本情報!$F$21+ROUNDDOWN((給与計算!O10-税額基本情報!$D$21)*税額基本情報!$E$21,0),0) -> 0
C8: 4 | D8: =給与計算!C11 ->  | E8: =IF(AND(給与計算!O11>=税額基本情報!$D$6,給与計算!O11<税額基本情報!$D$7),VLOOKUP(給与計算!O11,税額基本情報!$D$6:$M$14,IF(基本情報!E11>=8,10,基本情報!E11+3),1)+ROUNDDOWN((給与計算!O11-税額基本情報!$D$6)*税額基本情報!$E$6,0),0) -> 0 | F8: =IF(AND(給与計算!O11>=税額基本情報!$D$7,給与計算!O11<税額基本情報!$D$8),VLOOKUP(給与計算!O11,税額基本情報!$D$6:$M$14,IF(基本情報!E11>=8,10,基本情報!E11+3),1)+ROUNDDOWN((給与計算!O11-税額基本情報!$D$7)*税額基本情報!$E$7,0),0) -> 0 | G8: =IF(AND(給与計算!O11>=税額基本情報!$D$8,給与計算!O11<税額基本情報!$D$9),VLOOKUP(給与計算!O11,税額基本情報!$D$6:$M$14,IF(基本情報!E11>=8,10,基本情報!E11+3),1)+ROUNDDOWN((給与計算!O11-税額基本情報!$D$8)*税額基本情報!$E$8,0),0) -> 0 | H8: =IF(AND(給与計算!$O11>=税額基本情報!$D$9,給与計算!$O11<税額基本情報!$D$10),VLOOKUP(給与計算!$O11,税額基本情報!$D$6:$M$14,IF(基本情報!$E11>=8,10,基本情報!$E11+3),1)+ROUNDDOWN((給与計算!$O11-税額基本情報!$D$9)*税額基本情報!$E$9,0),0) -> 0 | I8: =IF(AND(給与計算!$O11>=税額基本情報!$D$10,給与計算!$O11<税額基本情報!$D$11),VLOOKUP(給与計算!$O11,税額基本情報!$D$6:$M$14,IF(基本情報!$E11>=8,10,基本情報!$E11+3),1)+ROUNDDOWN((給与計算!$O11-税額基本情報!$D$10)*税額基本情報!$E$10,0),0) -> 0 | J8: =IF(AND(給与計算!$O11>=税額基本情報!$D$11,給与計算!$O11<税額基本情報!$D$12),VLOOKUP(給与計算!$O11,税額基本情報!$D$6:$M$14,IF(基本情報!$E11>=8,10,基本情報!$E11+3),1)+ROUNDDOWN((給与計算!$O11-税額基本情報!$D$11)*税額基本情報!$E$11,0),0) -> 0 | K8: =IF(AND(給与計算!$O11>=税額基本情報!$D$12,給与計算!$O11<税額基本情報!$D$13),VLOOKUP(給与計算!$O11,税額基本情報!$D$6:$M$14,IF(基本情報!$E11>=8,10,基本情報!$E11+3),1)+ROUNDDOWN((給与計算!$O11-税額基本情報!$D$12)*税額基本情報!$E$12,0),0) -> 0 | L8: =IF(AND(給与計算!$O11>=税額基本情報!$D$13,給与計算!$O11<税額基本情報!$D$14),VLOOKUP(給与計算!$O11,税額基本情報!$D$6:$M$14,IF(基本情報!$E11>=8,10,基本情報!$E11+3),1)+ROUNDDOWN((給与計算!$O11-税額基本情報!$D$13)*税額基本情報!$E$13,0),0) -> 0 | M8: =IF(給与計算!O11>=税額基本情報!$D$14,VLOOKUP(給与計算!O11,税額基本情報!$D$6:$M$14,IF(基本情報!E11>=8,10,基本情報!E11+3),1)+ROUNDDOWN((給与計算!O11-税額基本情報!$D$14)*税額基本情報!$E$14,0),0) -> 0 | S8: =IF(AND(給与計算!$O11>=税額基本情報!$D$19,給与計算!$O11<税額基本情報!$D$20),税額基本情報!$F$19+ROUNDDOWN((給与計算!$O11-税額基本情報!$D$19)*税額基本情報!$E$19,0),0) -> 0 | T8: =IF(AND(給与計算!$O11>=税額基本情報!$D$20,給与計算!$O11<税額基本情報!$D$21),税額基本情報!$F$20+ROUNDDOWN((給与計算!$O11-税額基本情報!$D$20)*税額基本情報!$E$20,0),0) -> 0 | U8: =IF(給与計算!O11>=税額基本情報!$D$21,税額基本情報!$F$21+ROUNDDOWN((給与計算!O11-税額基本情報!$D$21)*税額基本情報!$E$21,0),0) -> 0
C9: 5 | D9: =給与計算!C12 ->  | E9: =IF(AND(給与計算!O12>=税額基本情報!$D$6,給与計算!O12<税額基本情報!$D$7),VLOOKUP(給与計算!O12,税額基本情報!$D$6:$M$14,IF(基本情報!E12>=8,10,基本情報!E12+3),1)+ROUNDDOWN((給与計算!O12-税額基本情報!$D$6)*税額基本情報!$E$6,0),0) -> 0 | F9: =IF(AND(給与計算!O12>=税額基本情報!$D$7,給与計算!O12<税額基本情報!$D$8),VLOOKUP(給与計算!O12,税額基本情報!$D$6:$M$14,IF(基本情報!E12>=8,10,基本情報!E12+3),1)+ROUNDDOWN((給与計算!O12-税額基本情報!$D$7)*税額基本情報!$E$7,0),0) -> 0 | G9: =IF(AND(給与計算!O12>=税額基本情報!$D$8,給与計算!O12<税額基本情報!$D$9),VLOOKUP(給与計算!O12,税額基本情報!$D$6:$M$14,IF(基本情報!E12>=8,10,基本情報!E12+3),1)+ROUNDDOWN((給与計算!O12-税額基本情報!$D$8)*税額基本情報!$E$8,0),0) -> 0 | H9: =IF(AND(給与計算!$O12>=税額基本情報!$D$9,給与計算!$O12<税額基本情報!$D$10),VLOOKUP(給与計算!$O12,税額基本情報!$D$6:$M$14,IF(基本情報!$E12>=8,10,基本情報!$E12+3),1)+ROUNDDOWN((給与計算!$O12-税額基本情報!$D$9)*税額基本情報!$E$9,0),0) -> 0 | I9: =IF(AND(給与計算!$O12>=税額基本情報!$D$10,給与計算!$O12<税額基本情報!$D$11),VLOOKUP(給与計算!$O12,税額基本情報!$D$6:$M$14,IF(基本情報!$E12>=8,10,基本情報!$E12+3),1)+ROUNDDOWN((給与計算!$O12-税額基本情報!$D$10)*税額基本情報!$E$10,0),0) -> 0 | J9: =IF(AND(給与計算!$O12>=税額基本情報!$D$11,給与計算!$O12<税額基本情報!$D$12),VLOOKUP(給与計算!$O12,税額基本情報!$D$6:$M$14,IF(基本情報!$E12>=8,10,基本情報!$E12+3),1)+ROUNDDOWN((給与計算!$O12-税額基本情報!$D$11)*税額基本情報!$E$11,0),0) -> 0 | K9: =IF(AND(給与計算!$O12>=税額基本情報!$D$12,給与計算!$O12<税額基本情報!$D$13),VLOOKUP(給与計算!$O12,税額基本情報!$D$6:$M$14,IF(基本情報!$E12>=8,10,基本情報!$E12+3),1)+ROUNDDOWN((給与計算!$O12-税額基本情報!$D$12)*税額基本情報!$E$12,0),0) -> 0 | L9: =IF(AND(給与計算!$O12>=税額基本情報!$D$13,給与計算!$O12<税額基本情報!$D$14),VLOOKUP(給与計算!$O12,税額基本情報!$D$6:$M$14,IF(基本情報!$E12>=8,10,基本情報!$E12+3),1)+ROUNDDOWN((給与計算!$O12-税額基本情報!$D$13)*税額基本情報!$E$13,0),0) -> 0 | M9: =IF(給与計算!O12>=税額基本情報!$D$14,VLOOKUP(給与計算!O12,税額基本情報!$D$6:$M$14,IF(基本情報!E12>=8,10,基本情報!E12+3),1)+ROUNDDOWN((給与計算!O12-税額基本情報!$D$14)*税額基本情報!$E$14,0),0) -> 0 | S9: =IF(AND(給与計算!$O12>=税額基本情報!$D$19,給与計算!$O12<税額基本情報!$D$20),税額基本情報!$F$19+ROUNDDOWN((給与計算!$O12-税額基本情報!$D$19)*税額基本情報!$E$19,0),0) -> 0 | T9: =IF(AND(給与計算!$O12>=税額基本情報!$D$20,給与計算!$O12<税額基本情報!$D$21),税額基本情報!$F$20+ROUNDDOWN((給与計算!$O12-税額基本情報!$D$20)*税額基本情報!$E$20,0),0) -> 0 | U9: =IF(給与計算!O12>=税額基本情報!$D$21,税額基本情報!$F$21+ROUNDDOWN((給与計算!O12-税額基本情報!$D$21)*税額基本情報!$E$21,0),0) -> 0
C10: 6 | D10: =給与計算!C13 ->  | E10: =IF(AND(給与計算!O13>=税額基本情報!$D$6,給与計算!O13<税額基本情報!$D$7),VLOOKUP(給与計算!O13,税額基本情報!$D$6:$M$14,IF(基本情報!E13>=8,10,基本情報!E13+3),1)+ROUNDDOWN((給与計算!O13-税額基本情報!$D$6)*税額基本情報!$E$6,0),0) -> 0 | F10: =IF(AND(給与計算!O13>=税額基本情報!$D$7,給与計算!O13<税額基本情報!$D$8),VLOOKUP(給与計算!O13,税額基本情報!$D$6:$M$14,IF(基本情報!E13>=8,10,基本情報!E13+3),1)+ROUNDDOWN((給与計算!O13-税額基本情報!$D$7)*税額基本情報!$E$7,0),0) -> 0 | G10: =IF(AND(給与計算!O13>=税額基本情報!$D$8,給与計算!O13<税額基本情報!$D$9),VLOOKUP(給与計算!O13,税額基本情報!$D$6:$M$14,IF(基本情報!E13>=8,10,基本情報!E13+3),1)+ROUNDDOWN((給与計算!O13-税額基本情報!$D$8)*税額基本情報!$E$8,0),0) -> 0 | H10: =IF(AND(給与計算!$O13>=税額基本情報!$D$9,給与計算!$O13<税額基本情報!$D$10),VLOOKUP(給与計算!$O13,税額基本情報!$D$6:$M$14,IF(基本情報!$E13>=8,10,基本情報!$E13+3),1)+ROUNDDOWN((給与計算!$O13-税額基本情報!$D$9)*税額基本情報!$E$9,0),0) -> 0 | I10: =IF(AND(給与計算!$O13>=税額基本情報!$D$10,給与計算!$O13<税額基本情報!$D$11),VLOOKUP(給与計算!$O13,税額基本情報!$D$6:$M$14,IF(基本情報!$E13>=8,10,基本情報!$E13+3),1)+ROUNDDOWN((給与計算!$O13-税額基本情報!$D$10)*税額基本情報!$E$10,0),0) -> 0 | J10: =IF(AND(給与計算!$O13>=税額基本情報!$D$11,給与計算!$O13<税額基本情報!$D$12),VLOOKUP(給与計算!$O13,税額基本情報!$D$6:$M$14,IF(基本情報!$E13>=8,10,基本情報!$E13+3),1)+ROUNDDOWN((給与計算!$O13-税額基本情報!$D$11)*税額基本情報!$E$11,0),0) -> 0 | K10: =IF(AND(給与計算!$O13>=税額基本情報!$D$12,給与計算!$O13<税額基本情報!$D$13),VLOOKUP(給与計算!$O13,税額基本情報!$D$6:$M$14,IF(基本情報!$E13>=8,10,基本情報!$E13+3),1)+ROUNDDOWN((給与計算!$O13-税額基本情報!$D$12)*税額基本情報!$E$12,0),0) -> 0 | L10: =IF(AND(給与計算!$O13>=税額基本情報!$D$13,給与計算!$O13<税額基本情報!$D$14),VLOOKUP(給与計算!$O13,税額基本情報!$D$6:$M$14,IF(基本情報!$E13>=8,10,基本情報!$E13+3),1)+ROUNDDOWN((給与計算!$O13-税額基本情報!$D$13)*税額基本情報!$E$13,0),0) -> 0 | M10: =IF(給与計算!O13>=税額基本情報!$D$14,VLOOKUP(給与計算!O13,税額基本情報!$D$6:$M$14,IF(基本情報!E13>=8,10,基本情報!E13+3),1)+ROUNDDOWN((給与計算!O13-税額基本情報!$D$14)*税額基本情報!$E$14,0),0) -> 0 | S10: =IF(AND(給与計算!$O13>=税額基本情報!$D$19,給与計算!$O13<税額基本情報!$D$20),税額基本情報!$F$19+ROUNDDOWN((給与計算!$O13-税額基本情報!$D$19)*税額基本情報!$E$19,0),0) -> 0 | T10: =IF(AND(給与計算!$O13>=税額基本情報!$D$20,給与計算!$O13<税額基本情報!$D$21),税額基本情報!$F$20+ROUNDDOWN((給与計算!$O13-税額基本情報!$D$20)*税額基本情報!$E$20,0),0) -> 0 | U10: =IF(給与計算!O13>=税額基本情報!$D$21,税額基本情報!$F$21+ROUNDDOWN((給与計算!O13-税額基本情報!$D$21)*税額基本情報!$E$21,0),0) -> 0
C11: 7 | D11: =給与計算!C14 ->  | E11: =IF(AND(給与計算!O14>=税額基本情報!$D$6,給与計算!O14<税額基本情報!$D$7),VLOOKUP(給与計算!O14,税額基本情報!$D$6:$M$14,IF(基本情報!E14>=8,10,基本情報!E14+3),1)+ROUNDDOWN((給与計算!O14-税額基本情報!$D$6)*税額基本情報!$E$6,0),0) -> 0 | F11: =IF(AND(給与計算!O14>=税額基本情報!$D$7,給与計算!O14<税額基本情報!$D$8),VLOOKUP(給与計算!O14,税額基本情報!$D$6:$M$14,IF(基本情報!E14>=8,10,基本情報!E14+3),1)+ROUNDDOWN((給与計算!O14-税額基本情報!$D$7)*税額基本情報!$E$7,0),0) -> 0 | G11: =IF(AND(給与計算!O14>=税額基本情報!$D$8,給与計算!O14<税額基本情報!$D$9),VLOOKUP(給与計算!O14,税額基本情報!$D$6:$M$14,IF(基本情報!E14>=8,10,基本情報!E14+3),1)+ROUNDDOWN((給与計算!O14-税額基本情報!$D$8)*税額基本情報!$E$8,0),0) -> 0 | H11: =IF(AND(給与計算!$O14>=税額基本情報!$D$9,給与計算!$O14<税額基本情報!$D$10),VLOOKUP(給与計算!$O14,税額基本情報!$D$6:$M$14,IF(基本情報!$E14>=8,10,基本情報!$E14+3),1)+ROUNDDOWN((給与計算!$O14-税額基本情報!$D$9)*税額基本情報!$E$9,0),0) -> 0 | I11: =IF(AND(給与計算!$O14>=税額基本情報!$D$10,給与計算!$O14<税額基本情報!$D$11),VLOOKUP(給与計算!$O14,税額基本情報!$D$6:$M$14,IF(基本情報!$E14>=8,10,基本情報!$E14+3),1)+ROUNDDOWN((給与計算!$O14-税額基本情報!$D$10)*税額基本情報!$E$10,0),0) -> 0 | J11: =IF(AND(給与計算!$O14>=税額基本情報!$D$11,給与計算!$O14<税額基本情報!$D$12),VLOOKUP(給与計算!$O14,税額基本情報!$D$6:$M$14,IF(基本情報!$E14>=8,10,基本情報!$E14+3),1)+ROUNDDOWN((給与計算!$O14-税額基本情報!$D$11)*税額基本情報!$E$11,0),0) -> 0 | K11: =IF(AND(給与計算!$O14>=税額基本情報!$D$12,給与計算!$O14<税額基本情報!$D$13),VLOOKUP(給与計算!$O14,税額基本情報!$D$6:$M$14,IF(基本情報!$E14>=8,10,基本情報!$E14+3),1)+ROUNDDOWN((給与計算!$O14-税額基本情報!$D$12)*税額基本情報!$E$12,0),0) -> 0 | L11: =IF(AND(給与計算!$O14>=税額基本情報!$D$13,給与計算!$O14<税額基本情報!$D$14),VLOOKUP(給与計算!$O14,税額基本情報!$D$6:$M$14,IF(基本情報!$E14>=8,10,基本情報!$E14+3),1)+ROUNDDOWN((給与計算!$O14-税額基本情報!$D$13)*税額基本情報!$E$13,0),0) -> 0 | M11: =IF(給与計算!O14>=税額基本情報!$D$14,VLOOKUP(給与計算!O14,税額基本情報!$D$6:$M$14,IF(基本情報!E14>=8,10,基本情報!E14+3),1)+ROUNDDOWN((給与計算!O14-税額基本情報!$D$14)*税額基本情報!$E$14,0),0) -> 0 | S11: =IF(AND(給与計算!$O14>=税額基本情報!$D$19,給与計算!$O14<税額基本情報!$D$20),税額基本情報!$F$19+ROUNDDOWN((給与計算!$O14-税額基本情報!$D$19)*税額基本情報!$E$19,0),0) -> 0 | T11: =IF(AND(給与計算!$O14>=税額基本情報!$D$20,給与計算!$O14<税額基本情報!$D$21),税額基本情報!$F$20+ROUNDDOWN((給与計算!$O14-税額基本情報!$D$20)*税額基本情報!$E$20,0),0) -> 0 | U11: =IF(給与計算!O14>=税額基本情報!$D$21,税額基本情報!$F$21+ROUNDDOWN((給与計算!O14-税額基本情報!$D$21)*税額基本情報!$E$21,0),0) -> 0
C12: 8 | D12: =給与計算!C15 ->  | E12: =IF(AND(給与計算!O15>=税額基本情報!$D$6,給与計算!O15<税額基本情報!$D$7),VLOOKUP(給与計算!O15,税額基本情報!$D$6:$M$14,IF(基本情報!E15>=8,10,基本情報!E15+3),1)+ROUNDDOWN((給与計算!O15-税額基本情報!$D$6)*税額基本情報!$E$6,0),0) -> 0 | F12: =IF(AND(給与計算!O15>=税額基本情報!$D$7,給与計算!O15<税額基本情報!$D$8),VLOOKUP(給与計算!O15,税額基本情報!$D$6:$M$14,IF(基本情報!E15>=8,10,基本情報!E15+3),1)+ROUNDDOWN((給与計算!O15-税額基本情報!$D$7)*税額基本情報!$E$7,0),0) -> 0 | G12: =IF(AND(給与計算!O15>=税額基本情報!$D$8,給与計算!O15<税額基本情報!$D$9),VLOOKUP(給与計算!O15,税額基本情報!$D$6:$M$14,IF(基本情報!E15>=8,10,基本情報!E15+3),1)+ROUNDDOWN((給与計算!O15-税額基本情報!$D$8)*税額基本情報!$E$8,0),0) -> 0 | H12: =IF(AND(給与計算!$O15>=税額基本情報!$D$9,給与計算!$O15<税額基本情報!$D$10),VLOOKUP(給与計算!$O15,税額基本情報!$D$6:$M$14,IF(基本情報!$E15>=8,10,基本情報!$E15+3),1)+ROUNDDOWN((給与計算!$O15-税額基本情報!$D$9)*税額基本情報!$E$9,0),0) -> 0 | I12: =IF(AND(給与計算!$O15>=税額基本情報!$D$10,給与計算!$O15<税額基本情報!$D$11),VLOOKUP(給与計算!$O15,税額基本情報!$D$6:$M$14,IF(基本情報!$E15>=8,10,基本情報!$E15+3),1)+ROUNDDOWN((給与計算!$O15-税額基本情報!$D$10)*税額基本情報!$E$10,0),0) -> 0 | J12: =IF(AND(給与計算!$O15>=税額基本情報!$D$11,給与計算!$O15<税額基本情報!$D$12),VLOOKUP(給与計算!$O15,税額基本情報!$D$6:$M$14,IF(基本情報!$E15>=8,10,基本情報!$E15+3),1)+ROUNDDOWN((給与計算!$O15-税額基本情報!$D$11)*税額基本情報!$E$11,0),0) -> 0 | K12: =IF(AND(給与計算!$O15>=税額基本情報!$D$12,給与計算!$O15<税額基本情報!$D$13),VLOOKUP(給与計算!$O15,税額基本情報!$D$6:$M$14,IF(基本情報!$E15>=8,10,基本情報!$E15+3),1)+ROUNDDOWN((給与計算!$O15-税額基本情報!$D$12)*税額基本情報!$E$12,0),0) -> 0 | L12: =IF(AND(給与計算!$O15>=税額基本情報!$D$13,給与計算!$O15<税額基本情報!$D$14),VLOOKUP(給与計算!$O15,税額基本情報!$D$6:$M$14,IF(基本情報!$E15>=8,10,基本情報!$E15+3),1)+ROUNDDOWN((給与計算!$O15-税額基本情報!$D$13)*税額基本情報!$E$13,0),0) -> 0 | M12: =IF(給与計算!O15>=税額基本情報!$D$14,VLOOKUP(給与計算!O15,税額基本情報!$D$6:$M$14,IF(基本情報!E15>=8,10,基本情報!E15+3),1)+ROUNDDOWN((給与計算!O15-税額基本情報!$D$14)*税額基本情報!$E$14,0),0) -> 0 | S12: =IF(AND(給与計算!$O15>=税額基本情報!$D$19,給与計算!$O15<税額基本情報!$D$20),税額基本情報!$F$19+ROUNDDOWN((給与計算!$O15-税額基本情報!$D$19)*税額基本情報!$E$19,0),0) -> 0 | T12: =IF(AND(給与計算!$O15>=税額基本情報!$D$20,給与計算!$O15<税額基本情報!$D$21),税額基本情報!$F$20+ROUNDDOWN((給与計算!$O15-税額基本情報!$D$20)*税額基本情報!$E$20,0),0) -> 0 | U12: =IF(給与計算!O15>=税額基本情報!$D$21,税額基本情報!$F$21+ROUNDDOWN((給与計算!O15-税額基本情報!$D$21)*税額基本情報!$E$21,0),0) -> 0
C13: 9 | D13: =給与計算!C16 ->  | E13: =IF(AND(給与計算!O16>=税額基本情報!$D$6,給与計算!O16<税額基本情報!$D$7),VLOOKUP(給与計算!O16,税額基本情報!$D$6:$M$14,IF(基本情報!E16>=8,10,基本情報!E16+3),1)+ROUNDDOWN((給与計算!O16-税額基本情報!$D$6)*税額基本情報!$E$6,0),0) -> 0 | F13: =IF(AND(給与計算!O16>=税額基本情報!$D$7,給与計算!O16<税額基本情報!$D$8),VLOOKUP(給与計算!O16,税額基本情報!$D$6:$M$14,IF(基本情報!E16>=8,10,基本情報!E16+3),1)+ROUNDDOWN((給与計算!O16-税額基本情報!$D$7)*税額基本情報!$E$7,0),0) -> 0 | G13: =IF(AND(給与計算!O16>=税額基本情報!$D$8,給与計算!O16<税額基本情報!$D$9),VLOOKUP(給与計算!O16,税額基本情報!$D$6:$M$14,IF(基本情報!E16>=8,10,基本情報!E16+3),1)+ROUNDDOWN((給与計算!O16-税額基本情報!$D$8)*税額基本情報!$E$8,0),0) -> 0 | H13: =IF(AND(給与計算!$O16>=税額基本情報!$D$9,給与計算!$O16<税額基本情報!$D$10),VLOOKUP(給与計算!$O16,税額基本情報!$D$6:$M$14,IF(基本情報!$E16>=8,10,基本情報!$E16+3),1)+ROUNDDOWN((給与計算!$O16-税額基本情報!$D$9)*税額基本情報!$E$9,0),0) -> 0 | I13: =IF(AND(給与計算!$O16>=税額基本情報!$D$10,給与計算!$O16<税額基本情報!$D$11),VLOOKUP(給与計算!$O16,税額基本情報!$D$6:$M$14,IF(基本情報!$E16>=8,10,基本情報!$E16+3),1)+ROUNDDOWN((給与計算!$O16-税額基本情報!$D$10)*税額基本情報!$E$10,0),0) -> 0 | J13: =IF(AND(給与計算!$O16>=税額基本情報!$D$11,給与計算!$O16<税額基本情報!$D$12),VLOOKUP(給与計算!$O16,税額基本情報!$D$6:$M$14,IF(基本情報!$E16>=8,10,基本情報!$E16+3),1)+ROUNDDOWN((給与計算!$O16-税額基本情報!$D$11)*税額基本情報!$E$11,0),0) -> 0 | K13: =IF(AND(給与計算!$O16>=税額基本情報!$D$12,給与計算!$O16<税額基本情報!$D$13),VLOOKUP(給与計算!$O16,税額基本情報!$D$6:$M$14,IF(基本情報!$E16>=8,10,基本情報!$E16+3),1)+ROUNDDOWN((給与計算!$O16-税額基本情報!$D$12)*税額基本情報!$E$12,0),0) -> 0 | L13: =IF(AND(給与計算!$O16>=税額基本情報!$D$13,給与計算!$O16<税額基本情報!$D$14),VLOOKUP(給与計算!$O16,税額基本情報!$D$6:$M$14,IF(基本情報!$E16>=8,10,基本情報!$E16+3),1)+ROUNDDOWN((給与計算!$O16-税額基本情報!$D$13)*税額基本情報!$E$13,0),0) -> 0 | M13: =IF(給与計算!O16>=税額基本情報!$D$14,VLOOKUP(給与計算!O16,税額基本情報!$D$6:$M$14,IF(基本情報!E16>=8,10,基本情報!E16+3),1)+ROUNDDOWN((給与計算!O16-税額基本情報!$D$14)*税額基本情報!$E$14,0),0) -> 0 | S13: =IF(AND(給与計算!$O16>=税額基本情報!$D$19,給与計算!$O16<税額基本情報!$D$20),税額基本情報!$F$19+ROUNDDOWN((給与計算!$O16-税額基本情報!$D$19)*税額基本情報!$E$19,0),0) -> 0 | T13: =IF(AND(給与計算!$O16>=税額基本情報!$D$20,給与計算!$O16<税額基本情報!$D$21),税額基本情報!$F$20+ROUNDDOWN((給与計算!$O16-税額基本情報!$D$20)*税額基本情報!$E$20,0),0) -> 0 | U13: =IF(給与計算!O16>=税額基本情報!$D$21,税額基本情報!$F$21+ROUNDDOWN((給与計算!O16-税額基本情報!$D$21)*税額基本情報!$E$21,0),0) -> 0
C14: 10 | D14: =給与計算!C17 ->  | E14: =IF(AND(給与計算!O17>=税額基本情報!$D$6,給与計算!O17<税額基本情報!$D$7),VLOOKUP(給与計算!O17,税額基本情報!$D$6:$M$14,IF(基本情報!E17>=8,10,基本情報!E17+3),1)+ROUNDDOWN((給与計算!O17-税額基本情報!$D$6)*税額基本情報!$E$6,0),0) -> 0 | F14: =IF(AND(給与計算!O17>=税額基本情報!$D$7,給与計算!O17<税額基本情報!$D$8),VLOOKUP(給与計算!O17,税額基本情報!$D$6:$M$14,IF(基本情報!E17>=8,10,基本情報!E17+3),1)+ROUNDDOWN((給与計算!O17-税額基本情報!$D$7)*税額基本情報!$E$7,0),0) -> 0 | G14: =IF(AND(給与計算!O17>=税額基本情報!$D$8,給与計算!O17<税額基本情報!$D$9),VLOOKUP(給与計算!O17,税額基本情報!$D$6:$M$14,IF(基本情報!E17>=8,10,基本情報!E17+3),1)+ROUNDDOWN((給与計算!O17-税額基本情報!$D$8)*税額基本情報!$E$8,0),0) -> 0 | H14: =IF(AND(給与計算!$O17>=税額基本情報!$D$9,給与計算!$O17<税額基本情報!$D$10),VLOOKUP(給与計算!$O17,税額基本情報!$D$6:$M$14,IF(基本情報!$E17>=8,10,基本情報!$E17+3),1)+ROUNDDOWN((給与計算!$O17-税額基本情報!$D$9)*税額基本情報!$E$9,0),0) -> 0 | I14: =IF(AND(給与計算!$O17>=税額基本情報!$D$10,給与計算!$O17<税額基本情報!$D$11),VLOOKUP(給与計算!$O17,税額基本情報!$D$6:$M$14,IF(基本情報!$E17>=8,10,基本情報!$E17+3),1)+ROUNDDOWN((給与計算!$O17-税額基本情報!$D$10)*税額基本情報!$E$10,0),0) -> 0 | J14: =IF(AND(給与計算!$O17>=税額基本情報!$D$11,給与計算!$O17<税額基本情報!$D$12),VLOOKUP(給与計算!$O17,税額基本情報!$D$6:$M$14,IF(基本情報!$E17>=8,10,基本情報!$E17+3),1)+ROUNDDOWN((給与計算!$O17-税額基本情報!$D$11)*税額基本情報!$E$11,0),0) -> 0 | K14: =IF(AND(給与計算!$O17>=税額基本情報!$D$12,給与計算!$O17<税額基本情報!$D$13),VLOOKUP(給与計算!$O17,税額基本情報!$D$6:$M$14,IF(基本情報!$E17>=8,10,基本情報!$E17+3),1)+ROUNDDOWN((給与計算!$O17-税額基本情報!$D$12)*税額基本情報!$E$12,0),0) -> 0 | L14: =IF(AND(給与計算!$O17>=税額基本情報!$D$13,給与計算!$O17<税額基本情報!$D$14),VLOOKUP(給与計算!$O17,税額基本情報!$D$6:$M$14,IF(基本情報!$E17>=8,10,基本情報!$E17+3),1)+ROUNDDOWN((給与計算!$O17-税額基本情報!$D$13)*税額基本情報!$E$13,0),0) -> 0 | M14: =IF(給与計算!O17>=税額基本情報!$D$14,VLOOKUP(給与計算!O17,税額基本情報!$D$6:$M$14,IF(基本情報!E17>=8,10,基本情報!E17+3),1)+ROUNDDOWN((給与計算!O17-税額基本情報!$D$14)*税額基本情報!$E$14,0),0) -> 0 | S14: =IF(AND(給与計算!$O17>=税額基本情報!$D$19,給与計算!$O17<税額基本情報!$D$20),税額基本情報!$F$19+ROUNDDOWN((給与計算!$O17-税額基本情報!$D$19)*税額基本情報!$E$19,0),0) -> 0 | T14: =IF(AND(給与計算!$O17>=税額基本情報!$D$20,給与計算!$O17<税額基本情報!$D$21),税額基本情報!$F$20+ROUNDDOWN((給与計算!$O17-税額基本情報!$D$20)*税額基本情報!$E$20,0),0) -> 0 | U14: =IF(給与計算!O17>=税額基本情報!$D$21,税額基本情報!$F$21+ROUNDDOWN((給与計算!O17-税額基本情報!$D$21)*税額基本情報!$E$21,0),0) -> 0
C15: 11 | D15: =給与計算!C18 ->  | E15: =IF(AND(給与計算!O18>=税額基本情報!$D$6,給与計算!O18<税額基本情報!$D$7),VLOOKUP(給与計算!O18,税額基本情報!$D$6:$M$14,IF(基本情報!E18>=8,10,基本情報!E18+3),1)+ROUNDDOWN((給与計算!O18-税額基本情報!$D$6)*税額基本情報!$E$6,0),0) -> 0 | F15: =IF(AND(給与計算!O18>=税額基本情報!$D$7,給与計算!O18<税額基本情報!$D$8),VLOOKUP(給与計算!O18,税額基本情報!$D$6:$M$14,IF(基本情報!E18>=8,10,基本情報!E18+3),1)+ROUNDDOWN((給与計算!O18-税額基本情報!$D$7)*税額基本情報!$E$7,0),0) -> 0 | G15: =IF(AND(給与計算!O18>=税額基本情報!$D$8,給与計算!O18<税額基本情報!$D$9),VLOOKUP(給与計算!O18,税額基本情報!$D$6:$M$14,IF(基本情報!E18>=8,10,基本情報!E18+3),1)+ROUNDDOWN((給与計算!O18-税額基本情報!$D$8)*税額基本情報!$E$8,0),0) -> 0 | H15: =IF(AND(給与計算!$O18>=税額基本情報!$D$9,給与計算!$O18<税額基本情報!$D$10),VLOOKUP(給与計算!$O18,税額基本情報!$D$6:$M$14,IF(基本情報!$E18>=8,10,基本情報!$E18+3),1)+ROUNDDOWN((給与計算!$O18-税額基本情報!$D$9)*税額基本情報!$E$9,0),0) -> 0 | I15: =IF(AND(給与計算!$O18>=税額基本情報!$D$10,給与計算!$O18<税額基本情報!$D$11),VLOOKUP(給与計算!$O18,税額基本情報!$D$6:$M$14,IF(基本情報!$E18>=8,10,基本情報!$E18+3),1)+ROUNDDOWN((給与計算!$O18-税額基本情報!$D$10)*税額基本情報!$E$10,0),0) -> 0 | J15: =IF(AND(給与計算!$O18>=税額基本情報!$D$11,給与計算!$O18<税額基本情報!$D$12),VLOOKUP(給与計算!$O18,税額基本情報!$D$6:$M$14,IF(基本情報!$E18>=8,10,基本情報!$E18+3),1)+ROUNDDOWN((給与計算!$O18-税額基本情報!$D$11)*税額基本情報!$E$11,0),0) -> 0 | K15: =IF(AND(給与計算!$O18>=税額基本情報!$D$12,給与計算!$O18<税額基本情報!$D$13),VLOOKUP(給与計算!$O18,税額基本情報!$D$6:$M$14,IF(基本情報!$E18>=8,10,基本情報!$E18+3),1)+ROUNDDOWN((給与計算!$O18-税額基本情報!$D$12)*税額基本情報!$E$12,0),0) -> 0 | L15: =IF(AND(給与計算!$O18>=税額基本情報!$D$13,給与計算!$O18<税額基本情報!$D$14),VLOOKUP(給与計算!$O18,税額基本情報!$D$6:$M$14,IF(基本情報!$E18>=8,10,基本情報!$E18+3),1)+ROUNDDOWN((給与計算!$O18-税額基本情報!$D$13)*税額基本情報!$E$13,0),0) -> 0 | M15: =IF(給与計算!O18>=税額基本情報!$D$14,VLOOKUP(給与計算!O18,税額基本情報!$D$6:$M$14,IF(基本情報!E18>=8,10,基本情報!E18+3),1)+ROUNDDOWN((給与計算!O18-税額基本情報!$D$14)*税額基本情報!$E$14,0),0) -> 0 | S15: =IF(AND(給与計算!$O18>=税額基本情報!$D$19,給与計算!$O18<税額基本情報!$D$20),税額基本情報!$F$19+ROUNDDOWN((給与計算!$O18-税額基本情報!$D$19)*税額基本情報!$E$19,0),0) -> 0 | T15: =IF(AND(給与計算!$O18>=税額基本情報!$D$20,給与計算!$O18<税額基本情報!$D$21),税額基本情報!$F$20+ROUNDDOWN((給与計算!$O18-税額基本情報!$D$20)*税額基本情報!$E$20,0),0) -> 0 | U15: =IF(給与計算!O18>=税額基本情報!$D$21,税額基本情報!$F$21+ROUNDDOWN((給与計算!O18-税額基本情報!$D$21)*税額基本情報!$E$21,0),0) -> 0
C16: 12 | D16: =給与計算!C19 ->  | E16: =IF(AND(給与計算!O19>=税額基本情報!$D$6,給与計算!O19<税額基本情報!$D$7),VLOOKUP(給与計算!O19,税額基本情報!$D$6:$M$14,IF(基本情報!E19>=8,10,基本情報!E19+3),1)+ROUNDDOWN((給与計算!O19-税額基本情報!$D$6)*税額基本情報!$E$6,0),0) -> 0 | F16: =IF(AND(給与計算!O19>=税額基本情報!$D$7,給与計算!O19<税額基本情報!$D$8),VLOOKUP(給与計算!O19,税額基本情報!$D$6:$M$14,IF(基本情報!E19>=8,10,基本情報!E19+3),1)+ROUNDDOWN((給与計算!O19-税額基本情報!$D$7)*税額基本情報!$E$7,0),0) -> 0 | G16: =IF(AND(給与計算!O19>=税額基本情報!$D$8,給与計算!O19<税額基本情報!$D$9),VLOOKUP(給与計算!O19,税額基本情報!$D$6:$M$14,IF(基本情報!E19>=8,10,基本情報!E19+3),1)+ROUNDDOWN((給与計算!O19-税額基本情報!$D$8)*税額基本情報!$E$8,0),0) -> 0 | H16: =IF(AND(給与計算!$O19>=税額基本情報!$D$9,給与計算!$O19<税額基本情報!$D$10),VLOOKUP(給与計算!$O19,税額基本情報!$D$6:$M$14,IF(基本情報!$E19>=8,10,基本情報!$E19+3),1)+ROUNDDOWN((給与計算!$O19-税額基本情報!$D$9)*税額基本情報!$E$9,0),0) -> 0 | I16: =IF(AND(給与計算!$O19>=税額基本情報!$D$10,給与計算!$O19<税額基本情報!$D$11),VLOOKUP(給与計算!$O19,税額基本情報!$D$6:$M$14,IF(基本情報!$E19>=8,10,基本情報!$E19+3),1)+ROUNDDOWN((給与計算!$O19-税額基本情報!$D$10)*税額基本情報!$E$10,0),0) -> 0 | J16: =IF(AND(給与計算!$O19>=税額基本情報!$D$11,給与計算!$O19<税額基本情報!$D$12),VLOOKUP(給与計算!$O19,税額基本情報!$D$6:$M$14,IF(基本情報!$E19>=8,10,基本情報!$E19+3),1)+ROUNDDOWN((給与計算!$O19-税額基本情報!$D$11)*税額基本情報!$E$11,0),0) -> 0 | K16: =IF(AND(給与計算!$O19>=税額基本情報!$D$12,給与計算!$O19<税額基本情報!$D$13),VLOOKUP(給与計算!$O19,税額基本情報!$D$6:$M$14,IF(基本情報!$E19>=8,10,基本情報!$E19+3),1)+ROUNDDOWN((給与計算!$O19-税額基本情報!$D$12)*税額基本情報!$E$12,0),0) -> 0 | L16: =IF(AND(給与計算!$O19>=税額基本情報!$D$13,給与計算!$O19<税額基本情報!$D$14),VLOOKUP(給与計算!$O19,税額基本情報!$D$6:$M$14,IF(基本情報!$E19>=8,10,基本情報!$E19+3),1)+ROUNDDOWN((給与計算!$O19-税額基本情報!$D$13)*税額基本情報!$E$13,0),0) -> 0 | M16: =IF(給与計算!O19>=税額基本情報!$D$14,VLOOKUP(給与計算!O19,税額基本情報!$D$6:$M$14,IF(基本情報!E19>=8,10,基本情報!E19+3),1)+ROUNDDOWN((給与計算!O19-税額基本情報!$D$14)*税額基本情報!$E$14,0),0) -> 0 | S16: =IF(AND(給与計算!$O19>=税額基本情報!$D$19,給与計算!$O19<税額基本情報!$D$20),税額基本情報!$F$19+ROUNDDOWN((給与計算!$O19-税額基本情報!$D$19)*税額基本情報!$E$19,0),0) -> 0 | T16: =IF(AND(給与計算!$O19>=税額基本情報!$D$20,給与計算!$O19<税額基本情報!$D$21),税額基本情報!$F$20+ROUNDDOWN((給与計算!$O19-税額基本情報!$D$20)*税額基本情報!$E$20,0),0) -> 0 | U16: =IF(給与計算!O19>=税額基本情報!$D$21,税額基本情報!$F$21+ROUNDDOWN((給与計算!O19-税額基本情報!$D$21)*税額基本情報!$E$21,0),0) -> 0
C17: 13 | D17: =給与計算!C20 ->  | E17: =IF(AND(給与計算!O20>=税額基本情報!$D$6,給与計算!O20<税額基本情報!$D$7),VLOOKUP(給与計算!O20,税額基本情報!$D$6:$M$14,IF(基本情報!E20>=8,10,基本情報!E20+3),1)+ROUNDDOWN((給与計算!O20-税額基本情報!$D$6)*税額基本情報!$E$6,0),0) -> 0 | F17: =IF(AND(給与計算!O20>=税額基本情報!$D$7,給与計算!O20<税額基本情報!$D$8),VLOOKUP(給与計算!O20,税額基本情報!$D$6:$M$14,IF(基本情報!E20>=8,10,基本情報!E20+3),1)+ROUNDDOWN((給与計算!O20-税額基本情報!$D$7)*税額基本情報!$E$7,0),0) -> 0 | G17: =IF(AND(給与計算!O20>=税額基本情報!$D$8,給与計算!O20<税額基本情報!$D$9),VLOOKUP(給与計算!O20,税額基本情報!$D$6:$M$14,IF(基本情報!E20>=8,10,基本情報!E20+3),1)+ROUNDDOWN((給与計算!O20-税額基本情報!$D$8)*税額基本情報!$E$8,0),0) -> 0 | H17: =IF(AND(給与計算!$O20>=税額基本情報!$D$9,給与計算!$O20<税額基本情報!$D$10),VLOOKUP(給与計算!$O20,税額基本情報!$D$6:$M$14,IF(基本情報!$E20>=8,10,基本情報!$E20+3),1)+ROUNDDOWN((給与計算!$O20-税額基本情報!$D$9)*税額基本情報!$E$9,0),0) -> 0 | I17: =IF(AND(給与計算!$O20>=税額基本情報!$D$10,給与計算!$O20<税額基本情報!$D$11),VLOOKUP(給与計算!$O20,税額基本情報!$D$6:$M$14,IF(基本情報!$E20>=8,10,基本情報!$E20+3),1)+ROUNDDOWN((給与計算!$O20-税額基本情報!$D$10)*税額基本情報!$E$10,0),0) -> 0 | J17: =IF(AND(給与計算!$O20>=税額基本情報!$D$11,給与計算!$O20<税額基本情報!$D$12),VLOOKUP(給与計算!$O20,税額基本情報!$D$6:$M$14,IF(基本情報!$E20>=8,10,基本情報!$E20+3),1)+ROUNDDOWN((給与計算!$O20-税額基本情報!$D$11)*税額基本情報!$E$11,0),0) -> 0 | K17: =IF(AND(給与計算!$O20>=税額基本情報!$D$12,給与計算!$O20<税額基本情報!$D$13),VLOOKUP(給与計算!$O20,税額基本情報!$D$6:$M$14,IF(基本情報!$E20>=8,10,基本情報!$E20+3),1)+ROUNDDOWN((給与計算!$O20-税額基本情報!$D$12)*税額基本情報!$E$12,0),0) -> 0 | L17: =IF(AND(給与計算!$O20>=税額基本情報!$D$13,給与計算!$O20<税額基本情報!$D$14),VLOOKUP(給与計算!$O20,税額基本情報!$D$6:$M$14,IF(基本情報!$E20>=8,10,基本情報!$E20+3),1)+ROUNDDOWN((給与計算!$O20-税額基本情報!$D$13)*税額基本情報!$E$13,0),0) -> 0 | M17: =IF(給与計算!O20>=税額基本情報!$D$14,VLOOKUP(給与計算!O20,税額基本情報!$D$6:$M$14,IF(基本情報!E20>=8,10,基本情報!E20+3),1)+ROUNDDOWN((給与計算!O20-税額基本情報!$D$14)*税額基本情報!$E$14,0),0) -> 0 | S17: =IF(AND(給与計算!$O20>=税額基本情報!$D$19,給与計算!$O20<税額基本情報!$D$20),税額基本情報!$F$19+ROUNDDOWN((給与計算!$O20-税額基本情報!$D$19)*税額基本情報!$E$19,0),0) -> 0 | T17: =IF(AND(給与計算!$O20>=税額基本情報!$D$20,給与計算!$O20<税額基本情報!$D$21),税額基本情報!$F$20+ROUNDDOWN((給与計算!$O20-税額基本情報!$D$20)*税額基本情報!$E$20,0),0) -> 0 | U17: =IF(給与計算!O20>=税額基本情報!$D$21,税額基本情報!$F$21+ROUNDDOWN((給与計算!O20-税額基本情報!$D$21)*税額基本情報!$E$21,0),0) -> 0
C18: 14 | D18: =給与計算!C21 ->  | E18: =IF(AND(給与計算!O21>=税額基本情報!$D$6,給与計算!O21<税額基本情報!$D$7),VLOOKUP(給与計算!O21,税額基本情報!$D$6:$M$14,IF(基本情報!E21>=8,10,基本情報!E21+3),1)+ROUNDDOWN((給与計算!O21-税額基本情報!$D$6)*税額基本情報!$E$6,0),0) -> 0 | F18: =IF(AND(給与計算!O21>=税額基本情報!$D$7,給与計算!O21<税額基本情報!$D$8),VLOOKUP(給与計算!O21,税額基本情報!$D$6:$M$14,IF(基本情報!E21>=8,10,基本情報!E21+3),1)+ROUNDDOWN((給与計算!O21-税額基本情報!$D$7)*税額基本情報!$E$7,0),0) -> 0 | G18: =IF(AND(給与計算!O21>=税額基本情報!$D$8,給与計算!O21<税額基本情報!$D$9),VLOOKUP(給与計算!O21,税額基本情報!$D$6:$M$14,IF(基本情報!E21>=8,10,基本情報!E21+3),1)+ROUNDDOWN((給与計算!O21-税額基本情報!$D$8)*税額基本情報!$E$8,0),0) -> 0 | H18: =IF(AND(給与計算!$O21>=税額基本情報!$D$9,給与計算!$O21<税額基本情報!$D$10),VLOOKUP(給与計算!$O21,税額基本情報!$D$6:$M$14,IF(基本情報!$E21>=8,10,基本情報!$E21+3),1)+ROUNDDOWN((給与計算!$O21-税額基本情報!$D$9)*税額基本情報!$E$9,0),0) -> 0 | I18: =IF(AND(給与計算!$O21>=税額基本情報!$D$10,給与計算!$O21<税額基本情報!$D$11),VLOOKUP(給与計算!$O21,税額基本情報!$D$6:$M$14,IF(基本情報!$E21>=8,10,基本情報!$E21+3),1)+ROUNDDOWN((給与計算!$O21-税額基本情報!$D$10)*税額基本情報!$E$10,0),0) -> 0 | J18: =IF(AND(給与計算!$O21>=税額基本情報!$D$11,給与計算!$O21<税額基本情報!$D$12),VLOOKUP(給与計算!$O21,税額基本情報!$D$6:$M$14,IF(基本情報!$E21>=8,10,基本情報!$E21+3),1)+ROUNDDOWN((給与計算!$O21-税額基本情報!$D$11)*税額基本情報!$E$11,0),0) -> 0 | K18: =IF(AND(給与計算!$O21>=税額基本情報!$D$12,給与計算!$O21<税額基本情報!$D$13),VLOOKUP(給与計算!$O21,税額基本情報!$D$6:$M$14,IF(基本情報!$E21>=8,10,基本情報!$E21+3),1)+ROUNDDOWN((給与計算!$O21-税額基本情報!$D$12)*税額基本情報!$E$12,0),0) -> 0 | L18: =IF(AND(給与計算!$O21>=税額基本情報!$D$13,給与計算!$O21<税額基本情報!$D$14),VLOOKUP(給与計算!$O21,税額基本情報!$D$6:$M$14,IF(基本情報!$E21>=8,10,基本情報!$E21+3),1)+ROUNDDOWN((給与計算!$O21-税額基本情報!$D$13)*税額基本情報!$E$13,0),0) -> 0 | M18: =IF(給与計算!O21>=税額基本情報!$D$14,VLOOKUP(給与計算!O21,税額基本情報!$D$6:$M$14,IF(基本情報!E21>=8,10,基本情報!E21+3),1)+ROUNDDOWN((給与計算!O21-税額基本情報!$D$14)*税額基本情報!$E$14,0),0) -> 0 | S18: =IF(AND(給与計算!$O21>=税額基本情報!$D$19,給与計算!$O21<税額基本情報!$D$20),税額基本情報!$F$19+ROUNDDOWN((給与計算!$O21-税額基本情報!$D$19)*税額基本情報!$E$19,0),0) -> 0 | T18: =IF(AND(給与計算!$O21>=税額基本情報!$D$20,給与計算!$O21<税額基本情報!$D$21),税額基本情報!$F$20+ROUNDDOWN((給与計算!$O21-税額基本情報!$D$20)*税額基本情報!$E$20,0),0) -> 0 | U18: =IF(給与計算!O21>=税額基本情報!$D$21,税額基本情報!$F$21+ROUNDDOWN((給与計算!O21-税額基本情報!$D$21)*税額基本情報!$E$21,0),0) -> 0
C19: 15 | D19: =給与計算!C22 ->  | E19: =IF(AND(給与計算!O22>=税額基本情報!$D$6,給与計算!O22<税額基本情報!$D$7),VLOOKUP(給与計算!O22,税額基本情報!$D$6:$M$14,IF(基本情報!E22>=8,10,基本情報!E22+3),1)+ROUNDDOWN((給与計算!O22-税額基本情報!$D$6)*税額基本情報!$E$6,0),0) -> 0 | F19: =IF(AND(給与計算!O22>=税額基本情報!$D$7,給与計算!O22<税額基本情報!$D$8),VLOOKUP(給与計算!O22,税額基本情報!$D$6:$M$14,IF(基本情報!E22>=8,10,基本情報!E22+3),1)+ROUNDDOWN((給与計算!O22-税額基本情報!$D$7)*税額基本情報!$E$7,0),0) -> 0 | G19: =IF(AND(給与計算!O22>=税額基本情報!$D$8,給与計算!O22<税額基本情報!$D$9),VLOOKUP(給与計算!O22,税額基本情報!$D$6:$M$14,IF(基本情報!E22>=8,10,基本情報!E22+3),1)+ROUNDDOWN((給与計算!O22-税額基本情報!$D$8)*税額基本情報!$E$8,0),0) -> 0 | H19: =IF(AND(給与計算!$O22>=税額基本情報!$D$9,給与計算!$O22<税額基本情報!$D$10),VLOOKUP(給与計算!$O22,税額基本情報!$D$6:$M$14,IF(基本情報!$E22>=8,10,基本情報!$E22+3),1)+ROUNDDOWN((給与計算!$O22-税額基本情報!$D$9)*税額基本情報!$E$9,0),0) -> 0 | I19: =IF(AND(給与計算!$O22>=税額基本情報!$D$10,給与計算!$O22<税額基本情報!$D$11),VLOOKUP(給与計算!$O22,税額基本情報!$D$6:$M$14,IF(基本情報!$E22>=8,10,基本情報!$E22+3),1)+ROUNDDOWN((給与計算!$O22-税額基本情報!$D$10)*税額基本情報!$E$10,0),0) -> 0 | J19: =IF(AND(給与計算!$O22>=税額基本情報!$D$11,給与計算!$O22<税額基本情報!$D$12),VLOOKUP(給与計算!$O22,税額基本情報!$D$6:$M$14,IF(基本情報!$E22>=8,10,基本情報!$E22+3),1)+ROUNDDOWN((給与計算!$O22-税額基本情報!$D$11)*税額基本情報!$E$11,0),0) -> 0 | K19: =IF(AND(給与計算!$O22>=税額基本情報!$D$12,給与計算!$O22<税額基本情報!$D$13),VLOOKUP(給与計算!$O22,税額基本情報!$D$6:$M$14,IF(基本情報!$E22>=8,10,基本情報!$E22+3),1)+ROUNDDOWN((給与計算!$O22-税額基本情報!$D$12)*税額基本情報!$E$12,0),0) -> 0 | L19: =IF(AND(給与計算!$O22>=税額基本情報!$D$13,給与計算!$O22<税額基本情報!$D$14),VLOOKUP(給与計算!$O22,税額基本情報!$D$6:$M$14,IF(基本情報!$E22>=8,10,基本情報!$E22+3),1)+ROUNDDOWN((給与計算!$O22-税額基本情報!$D$13)*税額基本情報!$E$13,0),0) -> 0 | M19: =IF(給与計算!O22>=税額基本情報!$D$14,VLOOKUP(給与計算!O22,税額基本情報!$D$6:$M$14,IF(基本情報!E22>=8,10,基本情報!E22+3),1)+ROUNDDOWN((給与計算!O22-税額基本情報!$D$14)*税額基本情報!$E$14,0),0) -> 0 | S19: =IF(AND(給与計算!$O22>=税額基本情報!$D$19,給与計算!$O22<税額基本情報!$D$20),税額基本情報!$F$19+ROUNDDOWN((給与計算!$O22-税額基本情報!$D$19)*税額基本情報!$E$19,0),0) -> 0 | T19: =IF(AND(給与計算!$O22>=税額基本情報!$D$20,給与計算!$O22<税額基本情報!$D$21),税額基本情報!$F$20+ROUNDDOWN((給与計算!$O22-税額基本情報!$D$20)*税額基本情報!$E$20,0),0) -> 0 | U19: =IF(給与計算!O22>=税額基本情報!$D$21,税額基本情報!$F$21+ROUNDDOWN((給与計算!O22-税額基本情報!$D$21)*税額基本情報!$E$21,0),0) -> 0
C20: 16 | D20: =給与計算!C23 ->  | E20: =IF(AND(給与計算!O23>=税額基本情報!$D$6,給与計算!O23<税額基本情報!$D$7),VLOOKUP(給与計算!O23,税額基本情報!$D$6:$M$14,IF(基本情報!E23>=8,10,基本情報!E23+3),1)+ROUNDDOWN((給与計算!O23-税額基本情報!$D$6)*税額基本情報!$E$6,0),0) -> 0 | F20: =IF(AND(給与計算!O23>=税額基本情報!$D$7,給与計算!O23<税額基本情報!$D$8),VLOOKUP(給与計算!O23,税額基本情報!$D$6:$M$14,IF(基本情報!E23>=8,10,基本情報!E23+3),1)+ROUNDDOWN((給与計算!O23-税額基本情報!$D$7)*税額基本情報!$E$7,0),0) -> 0 | G20: =IF(AND(給与計算!O23>=税額基本情報!$D$8,給与計算!O23<税額基本情報!$D$9),VLOOKUP(給与計算!O23,税額基本情報!$D$6:$M$14,IF(基本情報!E23>=8,10,基本情報!E23+3),1)+ROUNDDOWN((給与計算!O23-税額基本情報!$D$8)*税額基本情報!$E$8,0),0) -> 0 | H20: =IF(AND(給与計算!$O23>=税額基本情報!$D$9,給与計算!$O23<税額基本情報!$D$10),VLOOKUP(給与計算!$O23,税額基本情報!$D$6:$M$14,IF(基本情報!$E23>=8,10,基本情報!$E23+3),1)+ROUNDDOWN((給与計算!$O23-税額基本情報!$D$9)*税額基本情報!$E$9,0),0) -> 0 | I20: =IF(AND(給与計算!$O23>=税額基本情報!$D$10,給与計算!$O23<税額基本情報!$D$11),VLOOKUP(給与計算!$O23,税額基本情報!$D$6:$M$14,IF(基本情報!$E23>=8,10,基本情報!$E23+3),1)+ROUNDDOWN((給与計算!$O23-税額基本情報!$D$10)*税額基本情報!$E$10,0),0) -> 0 | J20: =IF(AND(給与計算!$O23>=税額基本情報!$D$11,給与計算!$O23<税額基本情報!$D$12),VLOOKUP(給与計算!$O23,税額基本情報!$D$6:$M$14,IF(基本情報!$E23>=8,10,基本情報!$E23+3),1)+ROUNDDOWN((給与計算!$O23-税額基本情報!$D$11)*税額基本情報!$E$11,0),0) -> 0 | K20: =IF(AND(給与計算!$O23>=税額基本情報!$D$12,給与計算!$O23<税額基本情報!$D$13),VLOOKUP(給与計算!$O23,税額基本情報!$D$6:$M$14,IF(基本情報!$E23>=8,10,基本情報!$E23+3),1)+ROUNDDOWN((給与計算!$O23-税額基本情報!$D$12)*税額基本情報!$E$12,0),0) -> 0 | L20: =IF(AND(給与計算!$O23>=税額基本情報!$D$13,給与計算!$O23<税額基本情報!$D$14),VLOOKUP(給与計算!$O23,税額基本情報!$D$6:$M$14,IF(基本情報!$E23>=8,10,基本情報!$E23+3),1)+ROUNDDOWN((給与計算!$O23-税額基本情報!$D$13)*税額基本情報!$E$13,0),0) -> 0 | M20: =IF(給与計算!O23>=税額基本情報!$D$14,VLOOKUP(給与計算!O23,税額基本情報!$D$6:$M$14,IF(基本情報!E23>=8,10,基本情報!E23+3),1)+ROUNDDOWN((給与計算!O23-税額基本情報!$D$14)*税額基本情報!$E$14,0),0) -> 0 | S20: =IF(AND(給与計算!$O23>=税額基本情報!$D$19,給与計算!$O23<税額基本情報!$D$20),税額基本情報!$F$19+ROUNDDOWN((給与計算!$O23-税額基本情報!$D$19)*税額基本情報!$E$19,0),0) -> 0 | T20: =IF(AND(給与計算!$O23>=税額基本情報!$D$20,給与計算!$O23<税額基本情報!$D$21),税額基本情報!$F$20+ROUNDDOWN((給与計算!$O23-税額基本情報!$D$20)*税額基本情報!$E$20,0),0) -> 0 | U20: =IF(給与計算!O23>=税額基本情報!$D$21,税額基本情報!$F$21+ROUNDDOWN((給与計算!O23-税額基本情報!$D$21)*税額基本情報!$E$21,0),0) -> 0
C21: 17 | D21: =給与計算!C24 ->  | E21: =IF(AND(給与計算!O24>=税額基本情報!$D$6,給与計算!O24<税額基本情報!$D$7),VLOOKUP(給与計算!O24,税額基本情報!$D$6:$M$14,IF(基本情報!E24>=8,10,基本情報!E24+3),1)+ROUNDDOWN((給与計算!O24-税額基本情報!$D$6)*税額基本情報!$E$6,0),0) -> 0 | F21: =IF(AND(給与計算!O24>=税額基本情報!$D$7,給与計算!O24<税額基本情報!$D$8),VLOOKUP(給与計算!O24,税額基本情報!$D$6:$M$14,IF(基本情報!E24>=8,10,基本情報!E24+3),1)+ROUNDDOWN((給与計算!O24-税額基本情報!$D$7)*税額基本情報!$E$7,0),0) -> 0 | G21: =IF(AND(給与計算!O24>=税額基本情報!$D$8,給与計算!O24<税額基本情報!$D$9),VLOOKUP(給与計算!O24,税額基本情報!$D$6:$M$14,IF(基本情報!E24>=8,10,基本情報!E24+3),1)+ROUNDDOWN((給与計算!O24-税額基本情報!$D$8)*税額基本情報!$E$8,0),0) -> 0 | H21: =IF(AND(給与計算!$O24>=税額基本情報!$D$9,給与計算!$O24<税額基本情報!$D$10),VLOOKUP(給与計算!$O24,税額基本情報!$D$6:$M$14,IF(基本情報!$E24>=8,10,基本情報!$E24+3),1)+ROUNDDOWN((給与計算!$O24-税額基本情報!$D$9)*税額基本情報!$E$9,0),0) -> 0 | I21: =IF(AND(給与計算!$O24>=税額基本情報!$D$10,給与計算!$O24<税額基本情報!$D$11),VLOOKUP(給与計算!$O24,税額基本情報!$D$6:$M$14,IF(基本情報!$E24>=8,10,基本情報!$E24+3),1)+ROUNDDOWN((給与計算!$O24-税額基本情報!$D$10)*税額基本情報!$E$10,0),0) -> 0 | J21: =IF(AND(給与計算!$O24>=税額基本情報!$D$11,給与計算!$O24<税額基本情報!$D$12),VLOOKUP(給与計算!$O24,税額基本情報!$D$6:$M$14,IF(基本情報!$E24>=8,10,基本情報!$E24+3),1)+ROUNDDOWN((給与計算!$O24-税額基本情報!$D$11)*税額基本情報!$E$11,0),0) -> 0 | K21: =IF(AND(給与計算!$O24>=税額基本情報!$D$12,給与計算!$O24<税額基本情報!$D$13),VLOOKUP(給与計算!$O24,税額基本情報!$D$6:$M$14,IF(基本情報!$E24>=8,10,基本情報!$E24+3),1)+ROUNDDOWN((給与計算!$O24-税額基本情報!$D$12)*税額基本情報!$E$12,0),0) -> 0 | L21: =IF(AND(給与計算!$O24>=税額基本情報!$D$13,給与計算!$O24<税額基本情報!$D$14),VLOOKUP(給与計算!$O24,税額基本情報!$D$6:$M$14,IF(基本情報!$E24>=8,10,基本情報!$E24+3),1)+ROUNDDOWN((給与計算!$O24-税額基本情報!$D$13)*税額基本情報!$E$13,0),0) -> 0 | M21: =IF(給与計算!O24>=税額基本情報!$D$14,VLOOKUP(給与計算!O24,税額基本情報!$D$6:$M$14,IF(基本情報!E24>=8,10,基本情報!E24+3),1)+ROUNDDOWN((給与計算!O24-税額基本情報!$D$14)*税額基本情報!$E$14,0),0) -> 0 | S21: =IF(AND(給与計算!$O24>=税額基本情報!$D$19,給与計算!$O24<税額基本情報!$D$20),税額基本情報!$F$19+ROUNDDOWN((給与計算!$O24-税額基本情報!$D$19)*税額基本情報!$E$19,0),0) -> 0 | T21: =IF(AND(給与計算!$O24>=税額基本情報!$D$20,給与計算!$O24<税額基本情報!$D$21),税額基本情報!$F$20+ROUNDDOWN((給与計算!$O24-税額基本情報!$D$20)*税額基本情報!$E$20,0),0) -> 0 | U21: =IF(給与計算!O24>=税額基本情報!$D$21,税額基本情報!$F$21+ROUNDDOWN((給与計算!O24-税額基本情報!$D$21)*税額基本情報!$E$21,0),0) -> 0
C22: 18 | D22: =給与計算!C25 ->  | E22: =IF(AND(給与計算!O25>=税額基本情報!$D$6,給与計算!O25<税額基本情報!$D$7),VLOOKUP(給与計算!O25,税額基本情報!$D$6:$M$14,IF(基本情報!E25>=8,10,基本情報!E25+3),1)+ROUNDDOWN((給与計算!O25-税額基本情報!$D$6)*税額基本情報!$E$6,0),0) -> 0 | F22: =IF(AND(給与計算!O25>=税額基本情報!$D$7,給与計算!O25<税額基本情報!$D$8),VLOOKUP(給与計算!O25,税額基本情報!$D$6:$M$14,IF(基本情報!E25>=8,10,基本情報!E25+3),1)+ROUNDDOWN((給与計算!O25-税額基本情報!$D$7)*税額基本情報!$E$7,0),0) -> 0 | G22: =IF(AND(給与計算!O25>=税額基本情報!$D$8,給与計算!O25<税額基本情報!$D$9),VLOOKUP(給与計算!O25,税額基本情報!$D$6:$M$14,IF(基本情報!E25>=8,10,基本情報!E25+3),1)+ROUNDDOWN((給与計算!O25-税額基本情報!$D$8)*税額基本情報!$E$8,0),0) -> 0 | H22: =IF(AND(給与計算!$O25>=税額基本情報!$D$9,給与計算!$O25<税額基本情報!$D$10),VLOOKUP(給与計算!$O25,税額基本情報!$D$6:$M$14,IF(基本情報!$E25>=8,10,基本情報!$E25+3),1)+ROUNDDOWN((給与計算!$O25-税額基本情報!$D$9)*税額基本情報!$E$9,0),0) -> 0 | I22: =IF(AND(給与計算!$O25>=税額基本情報!$D$10,給与計算!$O25<税額基本情報!$D$11),VLOOKUP(給与計算!$O25,税額基本情報!$D$6:$M$14,IF(基本情報!$E25>=8,10,基本情報!$E25+3),1)+ROUNDDOWN((給与計算!$O25-税額基本情報!$D$10)*税額基本情報!$E$10,0),0) -> 0 | J22: =IF(AND(給与計算!$O25>=税額基本情報!$D$11,給与計算!$O25<税額基本情報!$D$12),VLOOKUP(給与計算!$O25,税額基本情報!$D$6:$M$14,IF(基本情報!$E25>=8,10,基本情報!$E25+3),1)+ROUNDDOWN((給与計算!$O25-税額基本情報!$D$11)*税額基本情報!$E$11,0),0) -> 0 | K22: =IF(AND(給与計算!$O25>=税額基本情報!$D$12,給与計算!$O25<税額基本情報!$D$13),VLOOKUP(給与計算!$O25,税額基本情報!$D$6:$M$14,IF(基本情報!$E25>=8,10,基本情報!$E25+3),1)+ROUNDDOWN((給与計算!$O25-税額基本情報!$D$12)*税額基本情報!$E$12,0),0) -> 0 | L22: =IF(AND(給与計算!$O25>=税額基本情報!$D$13,給与計算!$O25<税額基本情報!$D$14),VLOOKUP(給与計算!$O25,税額基本情報!$D$6:$M$14,IF(基本情報!$E25>=8,10,基本情報!$E25+3),1)+ROUNDDOWN((給与計算!$O25-税額基本情報!$D$13)*税額基本情報!$E$13,0),0) -> 0 | M22: =IF(給与計算!O25>=税額基本情報!$D$14,VLOOKUP(給与計算!O25,税額基本情報!$D$6:$M$14,IF(基本情報!E25>=8,10,基本情報!E25+3),1)+ROUNDDOWN((給与計算!O25-税額基本情報!$D$14)*税額基本情報!$E$14,0),0) -> 0 | S22: =IF(AND(給与計算!$O25>=税額基本情報!$D$19,給与計算!$O25<税額基本情報!$D$20),税額基本情報!$F$19+ROUNDDOWN((給与計算!$O25-税額基本情報!$D$19)*税額基本情報!$E$19,0),0) -> 0 | T22: =IF(AND(給与計算!$O25>=税額基本情報!$D$20,給与計算!$O25<税額基本情報!$D$21),税額基本情報!$F$20+ROUNDDOWN((給与計算!$O25-税額基本情報!$D$20)*税額基本情報!$E$20,0),0) -> 0 | U22: =IF(給与計算!O25>=税額基本情報!$D$21,税額基本情報!$F$21+ROUNDDOWN((給与計算!O25-税額基本情報!$D$21)*税額基本情報!$E$21,0),0) -> 0
C23: 19 | D23: =給与計算!C26 ->  | E23: =IF(AND(給与計算!O26>=税額基本情報!$D$6,給与計算!O26<税額基本情報!$D$7),VLOOKUP(給与計算!O26,税額基本情報!$D$6:$M$14,IF(基本情報!E26>=8,10,基本情報!E26+3),1)+ROUNDDOWN((給与計算!O26-税額基本情報!$D$6)*税額基本情報!$E$6,0),0) -> 0 | F23: =IF(AND(給与計算!O26>=税額基本情報!$D$7,給与計算!O26<税額基本情報!$D$8),VLOOKUP(給与計算!O26,税額基本情報!$D$6:$M$14,IF(基本情報!E26>=8,10,基本情報!E26+3),1)+ROUNDDOWN((給与計算!O26-税額基本情報!$D$7)*税額基本情報!$E$7,0),0) -> 0 | G23: =IF(AND(給与計算!O26>=税額基本情報!$D$8,給与計算!O26<税額基本情報!$D$9),VLOOKUP(給与計算!O26,税額基本情報!$D$6:$M$14,IF(基本情報!E26>=8,10,基本情報!E26+3),1)+ROUNDDOWN((給与計算!O26-税額基本情報!$D$8)*税額基本情報!$E$8,0),0) -> 0 | H23: =IF(AND(給与計算!$O26>=税額基本情報!$D$9,給与計算!$O26<税額基本情報!$D$10),VLOOKUP(給与計算!$O26,税額基本情報!$D$6:$M$14,IF(基本情報!$E26>=8,10,基本情報!$E26+3),1)+ROUNDDOWN((給与計算!$O26-税額基本情報!$D$9)*税額基本情報!$E$9,0),0) -> 0 | I23: =IF(AND(給与計算!$O26>=税額基本情報!$D$10,給与計算!$O26<税額基本情報!$D$11),VLOOKUP(給与計算!$O26,税額基本情報!$D$6:$M$14,IF(基本情報!$E26>=8,10,基本情報!$E26+3),1)+ROUNDDOWN((給与計算!$O26-税額基本情報!$D$10)*税額基本情報!$E$10,0),0) -> 0 | J23: =IF(AND(給与計算!$O26>=税額基本情報!$D$11,給与計算!$O26<税額基本情報!$D$12),VLOOKUP(給与計算!$O26,税額基本情報!$D$6:$M$14,IF(基本情報!$E26>=8,10,基本情報!$E26+3),1)+ROUNDDOWN((給与計算!$O26-税額基本情報!$D$11)*税額基本情報!$E$11,0),0) -> 0 | K23: =IF(AND(給与計算!$O26>=税額基本情報!$D$12,給与計算!$O26<税額基本情報!$D$13),VLOOKUP(給与計算!$O26,税額基本情報!$D$6:$M$14,IF(基本情報!$E26>=8,10,基本情報!$E26+3),1)+ROUNDDOWN((給与計算!$O26-税額基本情報!$D$12)*税額基本情報!$E$12,0),0) -> 0 | L23: =IF(AND(給与計算!$O26>=税額基本情報!$D$13,給与計算!$O26<税額基本情報!$D$14),VLOOKUP(給与計算!$O26,税額基本情報!$D$6:$M$14,IF(基本情報!$E26>=8,10,基本情報!$E26+3),1)+ROUNDDOWN((給与計算!$O26-税額基本情報!$D$13)*税額基本情報!$E$13,0),0) -> 0 | M23: =IF(給与計算!O26>=税額基本情報!$D$14,VLOOKUP(給与計算!O26,税額基本情報!$D$6:$M$14,IF(基本情報!E26>=8,10,基本情報!E26+3),1)+ROUNDDOWN((給与計算!O26-税額基本情報!$D$14)*税額基本情報!$E$14,0),0) -> 0 | S23: =IF(AND(給与計算!$O26>=税額基本情報!$D$19,給与計算!$O26<税額基本情報!$D$20),税額基本情報!$F$19+ROUNDDOWN((給与計算!$O26-税額基本情報!$D$19)*税額基本情報!$E$19,0),0) -> 0 | T23: =IF(AND(給与計算!$O26>=税額基本情報!$D$20,給与計算!$O26<税額基本情報!$D$21),税額基本情報!$F$20+ROUNDDOWN((給与計算!$O26-税額基本情報!$D$20)*税額基本情報!$E$20,0),0) -> 0 | U23: =IF(給与計算!O26>=税額基本情報!$D$21,税額基本情報!$F$21+ROUNDDOWN((給与計算!O26-税額基本情報!$D$21)*税額基本情報!$E$21,0),0) -> 0
C24: 20 | D24: =給与計算!C27 ->  | E24: =IF(AND(給与計算!O27>=税額基本情報!$D$6,給与計算!O27<税額基本情報!$D$7),VLOOKUP(給与計算!O27,税額基本情報!$D$6:$M$14,IF(基本情報!E27>=8,10,基本情報!E27+3),1)+ROUNDDOWN((給与計算!O27-税額基本情報!$D$6)*税額基本情報!$E$6,0),0) -> 0 | F24: =IF(AND(給与計算!O27>=税額基本情報!$D$7,給与計算!O27<税額基本情報!$D$8),VLOOKUP(給与計算!O27,税額基本情報!$D$6:$M$14,IF(基本情報!E27>=8,10,基本情報!E27+3),1)+ROUNDDOWN((給与計算!O27-税額基本情報!$D$7)*税額基本情報!$E$7,0),0) -> 0 | G24: =IF(AND(給与計算!O27>=税額基本情報!$D$8,給与計算!O27<税額基本情報!$D$9),VLOOKUP(給与計算!O27,税額基本情報!$D$6:$M$14,IF(基本情報!E27>=8,10,基本情報!E27+3),1)+ROUNDDOWN((給与計算!O27-税額基本情報!$D$8)*税額基本情報!$E$8,0),0) -> 0 | H24: =IF(AND(給与計算!$O27>=税額基本情報!$D$9,給与計算!$O27<税額基本情報!$D$10),VLOOKUP(給与計算!$O27,税額基本情報!$D$6:$M$14,IF(基本情報!$E27>=8,10,基本情報!$E27+3),1)+ROUNDDOWN((給与計算!$O27-税額基本情報!$D$9)*税額基本情報!$E$9,0),0) -> 0 | I24: =IF(AND(給与計算!$O27>=税額基本情報!$D$10,給与計算!$O27<税額基本情報!$D$11),VLOOKUP(給与計算!$O27,税額基本情報!$D$6:$M$14,IF(基本情報!$E27>=8,10,基本情報!$E27+3),1)+ROUNDDOWN((給与計算!$O27-税額基本情報!$D$10)*税額基本情報!$E$10,0),0) -> 0 | J24: =IF(AND(給与計算!$O27>=税額基本情報!$D$11,給与計算!$O27<税額基本情報!$D$12),VLOOKUP(給与計算!$O27,税額基本情報!$D$6:$M$14,IF(基本情報!$E27>=8,10,基本情報!$E27+3),1)+ROUNDDOWN((給与計算!$O27-税額基本情報!$D$11)*税額基本情報!$E$11,0),0) -> 0 | K24: =IF(AND(給与計算!$O27>=税額基本情報!$D$12,給与計算!$O27<税額基本情報!$D$13),VLOOKUP(給与計算!$O27,税額基本情報!$D$6:$M$14,IF(基本情報!$E27>=8,10,基本情報!$E27+3),1)+ROUNDDOWN((給与計算!$O27-税額基本情報!$D$12)*税額基本情報!$E$12,0),0) -> 0 | L24: =IF(AND(給与計算!$O27>=税額基本情報!$D$13,給与計算!$O27<税額基本情報!$D$14),VLOOKUP(給与計算!$O27,税額基本情報!$D$6:$M$14,IF(基本情報!$E27>=8,10,基本情報!$E27+3),1)+ROUNDDOWN((給与計算!$O27-税額基本情報!$D$13)*税額基本情報!$E$13,0),0) -> 0 | M24: =IF(給与計算!O27>=税額基本情報!$D$14,VLOOKUP(給与計算!O27,税額基本情報!$D$6:$M$14,IF(基本情報!E27>=8,10,基本情報!E27+3),1)+ROUNDDOWN((給与計算!O27-税額基本情報!$D$14)*税額基本情報!$E$14,0),0) -> 0 | S24: =IF(AND(給与計算!$O27>=税額基本情報!$D$19,給与計算!$O27<税額基本情報!$D$20),税額基本情報!$F$19+ROUNDDOWN((給与計算!$O27-税額基本情報!$D$19)*税額基本情報!$E$19,0),0) -> 0 | T24: =IF(AND(給与計算!$O27>=税額基本情報!$D$20,給与計算!$O27<税額基本情報!$D$21),税額基本情報!$F$20+ROUNDDOWN((給与計算!$O27-税額基本情報!$D$20)*税額基本情報!$E$20,0),0) -> 0 | U24: =IF(給与計算!O27>=税額基本情報!$D$21,税額基本情報!$F$21+ROUNDDOWN((給与計算!O27-税額基本情報!$D$21)*税額基本情報!$E$21,0),0) -> 0
C25: 21 | D25: =給与計算!C28 ->  | E25: =IF(AND(給与計算!O28>=税額基本情報!$D$6,給与計算!O28<税額基本情報!$D$7),VLOOKUP(給与計算!O28,税額基本情報!$D$6:$M$14,IF(基本情報!E28>=8,10,基本情報!E28+3),1)+ROUNDDOWN((給与計算!O28-税額基本情報!$D$6)*税額基本情報!$E$6,0),0) -> 0 | F25: =IF(AND(給与計算!O28>=税額基本情報!$D$7,給与計算!O28<税額基本情報!$D$8),VLOOKUP(給与計算!O28,税額基本情報!$D$6:$M$14,IF(基本情報!E28>=8,10,基本情報!E28+3),1)+ROUNDDOWN((給与計算!O28-税額基本情報!$D$7)*税額基本情報!$E$7,0),0) -> 0 | G25: =IF(AND(給与計算!O28>=税額基本情報!$D$8,給与計算!O28<税額基本情報!$D$9),VLOOKUP(給与計算!O28,税額基本情報!$D$6:$M$14,IF(基本情報!E28>=8,10,基本情報!E28+3),1)+ROUNDDOWN((給与計算!O28-税額基本情報!$D$8)*税額基本情報!$E$8,0),0) -> 0 | H25: =IF(AND(給与計算!$O28>=税額基本情報!$D$9,給与計算!$O28<税額基本情報!$D$10),VLOOKUP(給与計算!$O28,税額基本情報!$D$6:$M$14,IF(基本情報!$E28>=8,10,基本情報!$E28+3),1)+ROUNDDOWN((給与計算!$O28-税額基本情報!$D$9)*税額基本情報!$E$9,0),0) -> 0 | I25: =IF(AND(給与計算!$O28>=税額基本情報!$D$10,給与計算!$O28<税額基本情報!$D$11),VLOOKUP(給与計算!$O28,税額基本情報!$D$6:$M$14,IF(基本情報!$E28>=8,10,基本情報!$E28+3),1)+ROUNDDOWN((給与計算!$O28-税額基本情報!$D$10)*税額基本情報!$E$10,0),0) -> 0 | J25: =IF(AND(給与計算!$O28>=税額基本情報!$D$11,給与計算!$O28<税額基本情報!$D$12),VLOOKUP(給与計算!$O28,税額基本情報!$D$6:$M$14,IF(基本情報!$E28>=8,10,基本情報!$E28+3),1)+ROUNDDOWN((給与計算!$O28-税額基本情報!$D$11)*税額基本情報!$E$11,0),0) -> 0 | K25: =IF(AND(給与計算!$O28>=税額基本情報!$D$12,給与計算!$O28<税額基本情報!$D$13),VLOOKUP(給与計算!$O28,税額基本情報!$D$6:$M$14,IF(基本情報!$E28>=8,10,基本情報!$E28+3),1)+ROUNDDOWN((給与計算!$O28-税額基本情報!$D$12)*税額基本情報!$E$12,0),0) -> 0 | L25: =IF(AND(給与計算!$O28>=税額基本情報!$D$13,給与計算!$O28<税額基本情報!$D$14),VLOOKUP(給与計算!$O28,税額基本情報!$D$6:$M$14,IF(基本情報!$E28>=8,10,基本情報!$E28+3),1)+ROUNDDOWN((給与計算!$O28-税額基本情報!$D$13)*税額基本情報!$E$13,0),0) -> 0 | M25: =IF(給与計算!O28>=税額基本情報!$D$14,VLOOKUP(給与計算!O28,税額基本情報!$D$6:$M$14,IF(基本情報!E28>=8,10,基本情報!E28+3),1)+ROUNDDOWN((給与計算!O28-税額基本情報!$D$14)*税額基本情報!$E$14,0),0) -> 0 | S25: =IF(AND(給与計算!$O28>=税額基本情報!$D$19,給与計算!$O28<税額基本情報!$D$20),税額基本情報!$F$19+ROUNDDOWN((給与計算!$O28-税額基本情報!$D$19)*税額基本情報!$E$19,0),0) -> 0 | T25: =IF(AND(給与計算!$O28>=税額基本情報!$D$20,給与計算!$O28<税額基本情報!$D$21),税額基本情報!$F$20+ROUNDDOWN((給与計算!$O28-税額基本情報!$D$20)*税額基本情報!$E$20,0),0) -> 0 | U25: =IF(給与計算!O28>=税額基本情報!$D$21,税額基本情報!$F$21+ROUNDDOWN((給与計算!O28-税額基本情報!$D$21)*税額基本情報!$E$21,0),0) -> 0
C26: 22 | D26: =給与計算!C29 ->  | E26: =IF(AND(給与計算!O29>=税額基本情報!$D$6,給与計算!O29<税額基本情報!$D$7),VLOOKUP(給与計算!O29,税額基本情報!$D$6:$M$14,IF(基本情報!E29>=8,10,基本情報!E29+3),1)+ROUNDDOWN((給与計算!O29-税額基本情報!$D$6)*税額基本情報!$E$6,0),0) -> 0 | F26: =IF(AND(給与計算!O29>=税額基本情報!$D$7,給与計算!O29<税額基本情報!$D$8),VLOOKUP(給与計算!O29,税額基本情報!$D$6:$M$14,IF(基本情報!E29>=8,10,基本情報!E29+3),1)+ROUNDDOWN((給与計算!O29-税額基本情報!$D$7)*税額基本情報!$E$7,0),0) -> 0 | G26: =IF(AND(給与計算!O29>=税額基本情報!$D$8,給与計算!O29<税額基本情報!$D$9),VLOOKUP(給与計算!O29,税額基本情報!$D$6:$M$14,IF(基本情報!E29>=8,10,基本情報!E29+3),1)+ROUNDDOWN((給与計算!O29-税額基本情報!$D$8)*税額基本情報!$E$8,0),0) -> 0 | H26: =IF(AND(給与計算!$O29>=税額基本情報!$D$9,給与計算!$O29<税額基本情報!$D$10),VLOOKUP(給与計算!$O29,税額基本情報!$D$6:$M$14,IF(基本情報!$E29>=8,10,基本情報!$E29+3),1)+ROUNDDOWN((給与計算!$O29-税額基本情報!$D$9)*税額基本情報!$E$9,0),0) -> 0 | I26: =IF(AND(給与計算!$O29>=税額基本情報!$D$10,給与計算!$O29<税額基本情報!$D$11),VLOOKUP(給与計算!$O29,税額基本情報!$D$6:$M$14,IF(基本情報!$E29>=8,10,基本情報!$E29+3),1)+ROUNDDOWN((給与計算!$O29-税額基本情報!$D$10)*税額基本情報!$E$10,0),0) -> 0 | J26: =IF(AND(給与計算!$O29>=税額基本情報!$D$11,給与計算!$O29<税額基本情報!$D$12),VLOOKUP(給与計算!$O29,税額基本情報!$D$6:$M$14,IF(基本情報!$E29>=8,10,基本情報!$E29+3),1)+ROUNDDOWN((給与計算!$O29-税額基本情報!$D$11)*税額基本情報!$E$11,0),0) -> 0 | K26: =IF(AND(給与計算!$O29>=税額基本情報!$D$12,給与計算!$O29<税額基本情報!$D$13),VLOOKUP(給与計算!$O29,税額基本情報!$D$6:$M$14,IF(基本情報!$E29>=8,10,基本情報!$E29+3),1)+ROUNDDOWN((給与計算!$O29-税額基本情報!$D$12)*税額基本情報!$E$12,0),0) -> 0 | L26: =IF(AND(給与計算!$O29>=税額基本情報!$D$13,給与計算!$O29<税額基本情報!$D$14),VLOOKUP(給与計算!$O29,税額基本情報!$D$6:$M$14,IF(基本情報!$E29>=8,10,基本情報!$E29+3),1)+ROUNDDOWN((給与計算!$O29-税額基本情報!$D$13)*税額基本情報!$E$13,0),0) -> 0 | M26: =IF(給与計算!O29>=税額基本情報!$D$14,VLOOKUP(給与計算!O29,税額基本情報!$D$6:$M$14,IF(基本情報!E29>=8,10,基本情報!E29+3),1)+ROUNDDOWN((給与計算!O29-税額基本情報!$D$14)*税額基本情報!$E$14,0),0) -> 0 | S26: =IF(AND(給与計算!$O29>=税額基本情報!$D$19,給与計算!$O29<税額基本情報!$D$20),税額基本情報!$F$19+ROUNDDOWN((給与計算!$O29-税額基本情報!$D$19)*税額基本情報!$E$19,0),0) -> 0 | T26: =IF(AND(給与計算!$O29>=税額基本情報!$D$20,給与計算!$O29<税額基本情報!$D$21),税額基本情報!$F$20+ROUNDDOWN((給与計算!$O29-税額基本情報!$D$20)*税額基本情報!$E$20,0),0) -> 0 | U26: =IF(給与計算!O29>=税額基本情報!$D$21,税額基本情報!$F$21+ROUNDDOWN((給与計算!O29-税額基本情報!$D$21)*税額基本情報!$E$21,0),0) -> 0
C27: 23 | D27: =給与計算!C30 ->  | E27: =IF(AND(給与計算!O30>=税額基本情報!$D$6,給与計算!O30<税額基本情報!$D$7),VLOOKUP(給与計算!O30,税額基本情報!$D$6:$M$14,IF(基本情報!E30>=8,10,基本情報!E30+3),1)+ROUNDDOWN((給与計算!O30-税額基本情報!$D$6)*税額基本情報!$E$6,0),0) -> 0 | F27: =IF(AND(給与計算!O30>=税額基本情報!$D$7,給与計算!O30<税額基本情報!$D$8),VLOOKUP(給与計算!O30,税額基本情報!$D$6:$M$14,IF(基本情報!E30>=8,10,基本情報!E30+3),1)+ROUNDDOWN((給与計算!O30-税額基本情報!$D$7)*税額基本情報!$E$7,0),0) -> 0 | G27: =IF(AND(給与計算!O30>=税額基本情報!$D$8,給与計算!O30<税額基本情報!$D$9),VLOOKUP(給与計算!O30,税額基本情報!$D$6:$M$14,IF(基本情報!E30>=8,10,基本情報!E30+3),1)+ROUNDDOWN((給与計算!O30-税額基本情報!$D$8)*税額基本情報!$E$8,0),0) -> 0 | H27: =IF(AND(給与計算!$O30>=税額基本情報!$D$9,給与計算!$O30<税額基本情報!$D$10),VLOOKUP(給与計算!$O30,税額基本情報!$D$6:$M$14,IF(基本情報!$E30>=8,10,基本情報!$E30+3),1)+ROUNDDOWN((給与計算!$O30-税額基本情報!$D$9)*税額基本情報!$E$9,0),0) -> 0 | I27: =IF(AND(給与計算!$O30>=税額基本情報!$D$10,給与計算!$O30<税額基本情報!$D$11),VLOOKUP(給与計算!$O30,税額基本情報!$D$6:$M$14,IF(基本情報!$E30>=8,10,基本情報!$E30+3),1)+ROUNDDOWN((給与計算!$O30-税額基本情報!$D$10)*税額基本情報!$E$10,0),0) -> 0 | J27: =IF(AND(給与計算!$O30>=税額基本情報!$D$11,給与計算!$O30<税額基本情報!$D$12),VLOOKUP(給与計算!$O30,税額基本情報!$D$6:$M$14,IF(基本情報!$E30>=8,10,基本情報!$E30+3),1)+ROUNDDOWN((給与計算!$O30-税額基本情報!$D$11)*税額基本情報!$E$11,0),0) -> 0 | K27: =IF(AND(給与計算!$O30>=税額基本情報!$D$12,給与計算!$O30<税額基本情報!$D$13),VLOOKUP(給与計算!$O30,税額基本情報!$D$6:$M$14,IF(基本情報!$E30>=8,10,基本情報!$E30+3),1)+ROUNDDOWN((給与計算!$O30-税額基本情報!$D$12)*税額基本情報!$E$12,0),0) -> 0 | L27: =IF(AND(給与計算!$O30>=税額基本情報!$D$13,給与計算!$O30<税額基本情報!$D$14),VLOOKUP(給与計算!$O30,税額基本情報!$D$6:$M$14,IF(基本情報!$E30>=8,10,基本情報!$E30+3),1)+ROUNDDOWN((給与計算!$O30-税額基本情報!$D$13)*税額基本情報!$E$13,0),0) -> 0 | M27: =IF(給与計算!O30>=税額基本情報!$D$14,VLOOKUP(給与計算!O30,税額基本情報!$D$6:$M$14,IF(基本情報!E30>=8,10,基本情報!E30+3),1)+ROUNDDOWN((給与計算!O30-税額基本情報!$D$14)*税額基本情報!$E$14,0),0) -> 0 | S27: =IF(AND(給与計算!$O30>=税額基本情報!$D$19,給与計算!$O30<税額基本情報!$D$20),税額基本情報!$F$19+ROUNDDOWN((給与計算!$O30-税額基本情報!$D$19)*税額基本情報!$E$19,0),0) -> 0 | T27: =IF(AND(給与計算!$O30>=税額基本情報!$D$20,給与計算!$O30<税額基本情報!$D$21),税額基本情報!$F$20+ROUNDDOWN((給与計算!$O30-税額基本情報!$D$20)*税額基本情報!$E$20,0),0) -> 0 | U27: =IF(給与計算!O30>=税額基本情報!$D$21,税額基本情報!$F$21+ROUNDDOWN((給与計算!O30-税額基本情報!$D$21)*税額基本情報!$E$21,0),0) -> 0
C28: 24 | D28: =給与計算!C31 ->  | E28: =IF(AND(給与計算!O31>=税額基本情報!$D$6,給与計算!O31<税額基本情報!$D$7),VLOOKUP(給与計算!O31,税額基本情報!$D$6:$M$14,IF(基本情報!E31>=8,10,基本情報!E31+3),1)+ROUNDDOWN((給与計算!O31-税額基本情報!$D$6)*税額基本情報!$E$6,0),0) -> 0 | F28: =IF(AND(給与計算!O31>=税額基本情報!$D$7,給与計算!O31<税額基本情報!$D$8),VLOOKUP(給与計算!O31,税額基本情報!$D$6:$M$14,IF(基本情報!E31>=8,10,基本情報!E31+3),1)+ROUNDDOWN((給与計算!O31-税額基本情報!$D$7)*税額基本情報!$E$7,0),0) -> 0 | G28: =IF(AND(給与計算!O31>=税額基本情報!$D$8,給与計算!O31<税額基本情報!$D$9),VLOOKUP(給与計算!O31,税額基本情報!$D$6:$M$14,IF(基本情報!E31>=8,10,基本情報!E31+3),1)+ROUNDDOWN((給与計算!O31-税額基本情報!$D$8)*税額基本情報!$E$8,0),0) -> 0 | H28: =IF(AND(給与計算!$O31>=税額基本情報!$D$9,給与計算!$O31<税額基本情報!$D$10),VLOOKUP(給与計算!$O31,税額基本情報!$D$6:$M$14,IF(基本情報!$E31>=8,10,基本情報!$E31+3),1)+ROUNDDOWN((給与計算!$O31-税額基本情報!$D$9)*税額基本情報!$E$9,0),0) -> 0 | I28: =IF(AND(給与計算!$O31>=税額基本情報!$D$10,給与計算!$O31<税額基本情報!$D$11),VLOOKUP(給与計算!$O31,税額基本情報!$D$6:$M$14,IF(基本情報!$E31>=8,10,基本情報!$E31+3),1)+ROUNDDOWN((給与計算!$O31-税額基本情報!$D$10)*税額基本情報!$E$10,0),0) -> 0 | J28: =IF(AND(給与計算!$O31>=税額基本情報!$D$11,給与計算!$O31<税額基本情報!$D$12),VLOOKUP(給与計算!$O31,税額基本情報!$D$6:$M$14,IF(基本情報!$E31>=8,10,基本情報!$E31+3),1)+ROUNDDOWN((給与計算!$O31-税額基本情報!$D$11)*税額基本情報!$E$11,0),0) -> 0 | K28: =IF(AND(給与計算!$O31>=税額基本情報!$D$12,給与計算!$O31<税額基本情報!$D$13),VLOOKUP(給与計算!$O31,税額基本情報!$D$6:$M$14,IF(基本情報!$E31>=8,10,基本情報!$E31+3),1)+ROUNDDOWN((給与計算!$O31-税額基本情報!$D$12)*税額基本情報!$E$12,0),0) -> 0 | L28: =IF(AND(給与計算!$O31>=税額基本情報!$D$13,給与計算!$O31<税額基本情報!$D$14),VLOOKUP(給与計算!$O31,税額基本情報!$D$6:$M$14,IF(基本情報!$E31>=8,10,基本情報!$E31+3),1)+ROUNDDOWN((給与計算!$O31-税額基本情報!$D$13)*税額基本情報!$E$13,0),0) -> 0 | M28: =IF(給与計算!O31>=税額基本情報!$D$14,VLOOKUP(給与計算!O31,税額基本情報!$D$6:$M$14,IF(基本情報!E31>=8,10,基本情報!E31+3),1)+ROUNDDOWN((給与計算!O31-税額基本情報!$D$14)*税額基本情報!$E$14,0),0) -> 0 | S28: =IF(AND(給与計算!$O31>=税額基本情報!$D$19,給与計算!$O31<税額基本情報!$D$20),税額基本情報!$F$19+ROUNDDOWN((給与計算!$O31-税額基本情報!$D$19)*税額基本情報!$E$19,0),0) -> 0 | T28: =IF(AND(給与計算!$O31>=税額基本情報!$D$20,給与計算!$O31<税額基本情報!$D$21),税額基本情報!$F$20+ROUNDDOWN((給与計算!$O31-税額基本情報!$D$20)*税額基本情報!$E$20,0),0) -> 0 | U28: =IF(給与計算!O31>=税額基本情報!$D$21,税額基本情報!$F$21+ROUNDDOWN((給与計算!O31-税額基本情報!$D$21)*税額基本情報!$E$21,0),0) -> 0
C29: 25 | D29: =給与計算!C32 ->  | E29: =IF(AND(給与計算!O32>=税額基本情報!$D$6,給与計算!O32<税額基本情報!$D$7),VLOOKUP(給与計算!O32,税額基本情報!$D$6:$M$14,IF(基本情報!E32>=8,10,基本情報!E32+3),1)+ROUNDDOWN((給与計算!O32-税額基本情報!$D$6)*税額基本情報!$E$6,0),0) -> 0 | F29: =IF(AND(給与計算!O32>=税額基本情報!$D$7,給与計算!O32<税額基本情報!$D$8),VLOOKUP(給与計算!O32,税額基本情報!$D$6:$M$14,IF(基本情報!E32>=8,10,基本情報!E32+3),1)+ROUNDDOWN((給与計算!O32-税額基本情報!$D$7)*税額基本情報!$E$7,0),0) -> 0 | G29: =IF(AND(給与計算!O32>=税額基本情報!$D$8,給与計算!O32<税額基本情報!$D$9),VLOOKUP(給与計算!O32,税額基本情報!$D$6:$M$14,IF(基本情報!E32>=8,10,基本情報!E32+3),1)+ROUNDDOWN((給与計算!O32-税額基本情報!$D$8)*税額基本情報!$E$8,0),0) -> 0 | H29: =IF(AND(給与計算!$O32>=税額基本情報!$D$9,給与計算!$O32<税額基本情報!$D$10),VLOOKUP(給与計算!$O32,税額基本情報!$D$6:$M$14,IF(基本情報!$E32>=8,10,基本情報!$E32+3),1)+ROUNDDOWN((給与計算!$O32-税額基本情報!$D$9)*税額基本情報!$E$9,0),0) -> 0 | I29: =IF(AND(給与計算!$O32>=税額基本情報!$D$10,給与計算!$O32<税額基本情報!$D$11),VLOOKUP(給与計算!$O32,税額基本情報!$D$6:$M$14,IF(基本情報!$E32>=8,10,基本情報!$E32+3),1)+ROUNDDOWN((給与計算!$O32-税額基本情報!$D$10)*税額基本情報!$E$10,0),0) -> 0 | J29: =IF(AND(給与計算!$O32>=税額基本情報!$D$11,給与計算!$O32<税額基本情報!$D$12),VLOOKUP(給与計算!$O32,税額基本情報!$D$6:$M$14,IF(基本情報!$E32>=8,10,基本情報!$E32+3),1)+ROUNDDOWN((給与計算!$O32-税額基本情報!$D$11)*税額基本情報!$E$11,0),0) -> 0 | K29: =IF(AND(給与計算!$O32>=税額基本情報!$D$12,給与計算!$O32<税額基本情報!$D$13),VLOOKUP(給与計算!$O32,税額基本情報!$D$6:$M$14,IF(基本情報!$E32>=8,10,基本情報!$E32+3),1)+ROUNDDOWN((給与計算!$O32-税額基本情報!$D$12)*税額基本情報!$E$12,0),0) -> 0 | L29: =IF(AND(給与計算!$O32>=税額基本情報!$D$13,給与計算!$O32<税額基本情報!$D$14),VLOOKUP(給与計算!$O32,税額基本情報!$D$6:$M$14,IF(基本情報!$E32>=8,10,基本情報!$E32+3),1)+ROUNDDOWN((給与計算!$O32-税額基本情報!$D$13)*税額基本情報!$E$13,0),0) -> 0 | M29: =IF(給与計算!O32>=税額基本情報!$D$14,VLOOKUP(給与計算!O32,税額基本情報!$D$6:$M$14,IF(基本情報!E32>=8,10,基本情報!E32+3),1)+ROUNDDOWN((給与計算!O32-税額基本情報!$D$14)*税額基本情報!$E$14,0),0) -> 0 | S29: =IF(AND(給与計算!$O32>=税額基本情報!$D$19,給与計算!$O32<税額基本情報!$D$20),税額基本情報!$F$19+ROUNDDOWN((給与計算!$O32-税額基本情報!$D$19)*税額基本情報!$E$19,0),0) -> 0 | T29: =IF(AND(給与計算!$O32>=税額基本情報!$D$20,給与計算!$O32<税額基本情報!$D$21),税額基本情報!$F$20+ROUNDDOWN((給与計算!$O32-税額基本情報!$D$20)*税額基本情報!$E$20,0),0) -> 0 | U29: =IF(給与計算!O32>=税額基本情報!$D$21,税額基本情報!$F$21+ROUNDDOWN((給与計算!O32-税額基本情報!$D$21)*税額基本情報!$E$21,0),0) -> 0
C30: 26 | D30: =給与計算!C33 ->  | E30: =IF(AND(給与計算!O33>=税額基本情報!$D$6,給与計算!O33<税額基本情報!$D$7),VLOOKUP(給与計算!O33,税額基本情報!$D$6:$M$14,IF(基本情報!E33>=8,10,基本情報!E33+3),1)+ROUNDDOWN((給与計算!O33-税額基本情報!$D$6)*税額基本情報!$E$6,0),0) -> 0 | F30: =IF(AND(給与計算!O33>=税額基本情報!$D$7,給与計算!O33<税額基本情報!$D$8),VLOOKUP(給与計算!O33,税額基本情報!$D$6:$M$14,IF(基本情報!E33>=8,10,基本情報!E33+3),1)+ROUNDDOWN((給与計算!O33-税額基本情報!$D$7)*税額基本情報!$E$7,0),0) -> 0 | G30: =IF(AND(給与計算!O33>=税額基本情報!$D$8,給与計算!O33<税額基本情報!$D$9),VLOOKUP(給与計算!O33,税額基本情報!$D$6:$M$14,IF(基本情報!E33>=8,10,基本情報!E33+3),1)+ROUNDDOWN((給与計算!O33-税額基本情報!$D$8)*税額基本情報!$E$8,0),0) -> 0 | H30: =IF(AND(給与計算!$O33>=税額基本情報!$D$9,給与計算!$O33<税額基本情報!$D$10),VLOOKUP(給与計算!$O33,税額基本情報!$D$6:$M$14,IF(基本情報!$E33>=8,10,基本情報!$E33+3),1)+ROUNDDOWN((給与計算!$O33-税額基本情報!$D$9)*税額基本情報!$E$9,0),0) -> 0 | I30: =IF(AND(給与計算!$O33>=税額基本情報!$D$10,給与計算!$O33<税額基本情報!$D$11),VLOOKUP(給与計算!$O33,税額基本情報!$D$6:$M$14,IF(基本情報!$E33>=8,10,基本情報!$E33+3),1)+ROUNDDOWN((給与計算!$O33-税額基本情報!$D$10)*税額基本情報!$E$10,0),0) -> 0 | J30: =IF(AND(給与計算!$O33>=税額基本情報!$D$11,給与計算!$O33<税額基本情報!$D$12),VLOOKUP(給与計算!$O33,税額基本情報!$D$6:$M$14,IF(基本情報!$E33>=8,10,基本情報!$E33+3),1)+ROUNDDOWN((給与計算!$O33-税額基本情報!$D$11)*税額基本情報!$E$11,0),0) -> 0 | K30: =IF(AND(給与計算!$O33>=税額基本情報!$D$12,給与計算!$O33<税額基本情報!$D$13),VLOOKUP(給与計算!$O33,税額基本情報!$D$6:$M$14,IF(基本情報!$E33>=8,10,基本情報!$E33+3),1)+ROUNDDOWN((給与計算!$O33-税額基本情報!$D$12)*税額基本情報!$E$12,0),0) -> 0 | L30: =IF(AND(給与計算!$O33>=税額基本情報!$D$13,給与計算!$O33<税額基本情報!$D$14),VLOOKUP(給与計算!$O33,税額基本情報!$D$6:$M$14,IF(基本情報!$E33>=8,10,基本情報!$E33+3),1)+ROUNDDOWN((給与計算!$O33-税額基本情報!$D$13)*税額基本情報!$E$13,0),0) -> 0 | M30: =IF(給与計算!O33>=税額基本情報!$D$14,VLOOKUP(給与計算!O33,税額基本情報!$D$6:$M$14,IF(基本情報!E33>=8,10,基本情報!E33+3),1)+ROUNDDOWN((給与計算!O33-税額基本情報!$D$14)*税額基本情報!$E$14,0),0) -> 0 | S30: =IF(AND(給与計算!$O33>=税額基本情報!$D$19,給与計算!$O33<税額基本情報!$D$20),税額基本情報!$F$19+ROUNDDOWN((給与計算!$O33-税額基本情報!$D$19)*税額基本情報!$E$19,0),0) -> 0 | T30: =IF(AND(給与計算!$O33>=税額基本情報!$D$20,給与計算!$O33<税額基本情報!$D$21),税額基本情報!$F$20+ROUNDDOWN((給与計算!$O33-税額基本情報!$D$20)*税額基本情報!$E$20,0),0) -> 0 | U30: =IF(給与計算!O33>=税額基本情報!$D$21,税額基本情報!$F$21+ROUNDDOWN((給与計算!O33-税額基本情報!$D$21)*税額基本情報!$E$21,0),0) -> 0
C31: 27 | D31: =給与計算!C34 ->  | E31: =IF(AND(給与計算!O34>=税額基本情報!$D$6,給与計算!O34<税額基本情報!$D$7),VLOOKUP(給与計算!O34,税額基本情報!$D$6:$M$14,IF(基本情報!E34>=8,10,基本情報!E34+3),1)+ROUNDDOWN((給与計算!O34-税額基本情報!$D$6)*税額基本情報!$E$6,0),0) -> 0 | F31: =IF(AND(給与計算!O34>=税額基本情報!$D$7,給与計算!O34<税額基本情報!$D$8),VLOOKUP(給与計算!O34,税額基本情報!$D$6:$M$14,IF(基本情報!E34>=8,10,基本情報!E34+3),1)+ROUNDDOWN((給与計算!O34-税額基本情報!$D$7)*税額基本情報!$E$7,0),0) -> 0 | G31: =IF(AND(給与計算!O34>=税額基本情報!$D$8,給与計算!O34<税額基本情報!$D$9),VLOOKUP(給与計算!O34,税額基本情報!$D$6:$M$14,IF(基本情報!E34>=8,10,基本情報!E34+3),1)+ROUNDDOWN((給与計算!O34-税額基本情報!$D$8)*税額基本情報!$E$8,0),0) -> 0 | H31: =IF(AND(給与計算!$O34>=税額基本情報!$D$9,給与計算!$O34<税額基本情報!$D$10),VLOOKUP(給与計算!$O34,税額基本情報!$D$6:$M$14,IF(基本情報!$E34>=8,10,基本情報!$E34+3),1)+ROUNDDOWN((給与計算!$O34-税額基本情報!$D$9)*税額基本情報!$E$9,0),0) -> 0 | I31: =IF(AND(給与計算!$O34>=税額基本情報!$D$10,給与計算!$O34<税額基本情報!$D$11),VLOOKUP(給与計算!$O34,税額基本情報!$D$6:$M$14,IF(基本情報!$E34>=8,10,基本情報!$E34+3),1)+ROUNDDOWN((給与計算!$O34-税額基本情報!$D$10)*税額基本情報!$E$10,0),0) -> 0 | J31: =IF(AND(給与計算!$O34>=税額基本情報!$D$11,給与計算!$O34<税額基本情報!$D$12),VLOOKUP(給与計算!$O34,税額基本情報!$D$6:$M$14,IF(基本情報!$E34>=8,10,基本情報!$E34+3),1)+ROUNDDOWN((給与計算!$O34-税額基本情報!$D$11)*税額基本情報!$E$11,0),0) -> 0 | K31: =IF(AND(給与計算!$O34>=税額基本情報!$D$12,給与計算!$O34<税額基本情報!$D$13),VLOOKUP(給与計算!$O34,税額基本情報!$D$6:$M$14,IF(基本情報!$E34>=8,10,基本情報!$E34+3),1)+ROUNDDOWN((給与計算!$O34-税額基本情報!$D$12)*税額基本情報!$E$12,0),0) -> 0 | L31: =IF(AND(給与計算!$O34>=税額基本情報!$D$13,給与計算!$O34<税額基本情報!$D$14),VLOOKUP(給与計算!$O34,税額基本情報!$D$6:$M$14,IF(基本情報!$E34>=8,10,基本情報!$E34+3),1)+ROUNDDOWN((給与計算!$O34-税額基本情報!$D$13)*税額基本情報!$E$13,0),0) -> 0 | M31: =IF(給与計算!O34>=税額基本情報!$D$14,VLOOKUP(給与計算!O34,税額基本情報!$D$6:$M$14,IF(基本情報!E34>=8,10,基本情報!E34+3),1)+ROUNDDOWN((給与計算!O34-税額基本情報!$D$14)*税額基本情報!$E$14,0),0) -> 0 | S31: =IF(AND(給与計算!$O34>=税額基本情報!$D$19,給与計算!$O34<税額基本情報!$D$20),税額基本情報!$F$19+ROUNDDOWN((給与計算!$O34-税額基本情報!$D$19)*税額基本情報!$E$19,0),0) -> 0 | T31: =IF(AND(給与計算!$O34>=税額基本情報!$D$20,給与計算!$O34<税額基本情報!$D$21),税額基本情報!$F$20+ROUNDDOWN((給与計算!$O34-税額基本情報!$D$20)*税額基本情報!$E$20,0),0) -> 0 | U31: =IF(給与計算!O34>=税額基本情報!$D$21,税額基本情報!$F$21+ROUNDDOWN((給与計算!O34-税額基本情報!$D$21)*税額基本情報!$E$21,0),0) -> 0
C32: 28 | D32: =給与計算!C35 ->  | E32: =IF(AND(給与計算!O35>=税額基本情報!$D$6,給与計算!O35<税額基本情報!$D$7),VLOOKUP(給与計算!O35,税額基本情報!$D$6:$M$14,IF(基本情報!E35>=8,10,基本情報!E35+3),1)+ROUNDDOWN((給与計算!O35-税額基本情報!$D$6)*税額基本情報!$E$6,0),0) -> 0 | F32: =IF(AND(給与計算!O35>=税額基本情報!$D$7,給与計算!O35<税額基本情報!$D$8),VLOOKUP(給与計算!O35,税額基本情報!$D$6:$M$14,IF(基本情報!E35>=8,10,基本情報!E35+3),1)+ROUNDDOWN((給与計算!O35-税額基本情報!$D$7)*税額基本情報!$E$7,0),0) -> 0 | G32: =IF(AND(給与計算!O35>=税額基本情報!$D$8,給与計算!O35<税額基本情報!$D$9),VLOOKUP(給与計算!O35,税額基本情報!$D$6:$M$14,IF(基本情報!E35>=8,10,基本情報!E35+3),1)+ROUNDDOWN((給与計算!O35-税額基本情報!$D$8)*税額基本情報!$E$8,0),0) -> 0 | H32: =IF(AND(給与計算!$O35>=税額基本情報!$D$9,給与計算!$O35<税額基本情報!$D$10),VLOOKUP(給与計算!$O35,税額基本情報!$D$6:$M$14,IF(基本情報!$E35>=8,10,基本情報!$E35+3),1)+ROUNDDOWN((給与計算!$O35-税額基本情報!$D$9)*税額基本情報!$E$9,0),0) -> 0 | I32: =IF(AND(給与計算!$O35>=税額基本情報!$D$10,給与計算!$O35<税額基本情報!$D$11),VLOOKUP(給与計算!$O35,税額基本情報!$D$6:$M$14,IF(基本情報!$E35>=8,10,基本情報!$E35+3),1)+ROUNDDOWN((給与計算!$O35-税額基本情報!$D$10)*税額基本情報!$E$10,0),0) -> 0 | J32: =IF(AND(給与計算!$O35>=税額基本情報!$D$11,給与計算!$O35<税額基本情報!$D$12),VLOOKUP(給与計算!$O35,税額基本情報!$D$6:$M$14,IF(基本情報!$E35>=8,10,基本情報!$E35+3),1)+ROUNDDOWN((給与計算!$O35-税額基本情報!$D$11)*税額基本情報!$E$11,0),0) -> 0 | K32: =IF(AND(給与計算!$O35>=税額基本情報!$D$12,給与計算!$O35<税額基本情報!$D$13),VLOOKUP(給与計算!$O35,税額基本情報!$D$6:$M$14,IF(基本情報!$E35>=8,10,基本情報!$E35+3),1)+ROUNDDOWN((給与計算!$O35-税額基本情報!$D$12)*税額基本情報!$E$12,0),0) -> 0 | L32: =IF(AND(給与計算!$O35>=税額基本情報!$D$13,給与計算!$O35<税額基本情報!$D$14),VLOOKUP(給与計算!$O35,税額基本情報!$D$6:$M$14,IF(基本情報!$E35>=8,10,基本情報!$E35+3),1)+ROUNDDOWN((給与計算!$O35-税額基本情報!$D$13)*税額基本情報!$E$13,0),0) -> 0 | M32: =IF(給与計算!O35>=税額基本情報!$D$14,VLOOKUP(給与計算!O35,税額基本情報!$D$6:$M$14,IF(基本情報!E35>=8,10,基本情報!E35+3),1)+ROUNDDOWN((給与計算!O35-税額基本情報!$D$14)*税額基本情報!$E$14,0),0) -> 0 | S32: =IF(AND(給与計算!$O35>=税額基本情報!$D$19,給与計算!$O35<税額基本情報!$D$20),税額基本情報!$F$19+ROUNDDOWN((給与計算!$O35-税額基本情報!$D$19)*税額基本情報!$E$19,0),0) -> 0 | T32: =IF(AND(給与計算!$O35>=税額基本情報!$D$20,給与計算!$O35<税額基本情報!$D$21),税額基本情報!$F$20+ROUNDDOWN((給与計算!$O35-税額基本情報!$D$20)*税額基本情報!$E$20,0),0) -> 0 | U32: =IF(給与計算!O35>=税額基本情報!$D$21,税額基本情報!$F$21+ROUNDDOWN((給与計算!O35-税額基本情報!$D$21)*税額基本情報!$E$21,0),0) -> 0
C33: 29 | D33: =給与計算!C36 ->  | E33: =IF(AND(給与計算!O36>=税額基本情報!$D$6,給与計算!O36<税額基本情報!$D$7),VLOOKUP(給与計算!O36,税額基本情報!$D$6:$M$14,IF(基本情報!E36>=8,10,基本情報!E36+3),1)+ROUNDDOWN((給与計算!O36-税額基本情報!$D$6)*税額基本情報!$E$6,0),0) -> 0 | F33: =IF(AND(給与計算!O36>=税額基本情報!$D$7,給与計算!O36<税額基本情報!$D$8),VLOOKUP(給与計算!O36,税額基本情報!$D$6:$M$14,IF(基本情報!E36>=8,10,基本情報!E36+3),1)+ROUNDDOWN((給与計算!O36-税額基本情報!$D$7)*税額基本情報!$E$7,0),0) -> 0 | G33: =IF(AND(給与計算!O36>=税額基本情報!$D$8,給与計算!O36<税額基本情報!$D$9),VLOOKUP(給与計算!O36,税額基本情報!$D$6:$M$14,IF(基本情報!E36>=8,10,基本情報!E36+3),1)+ROUNDDOWN((給与計算!O36-税額基本情報!$D$8)*税額基本情報!$E$8,0),0) -> 0 | H33: =IF(AND(給与計算!$O36>=税額基本情報!$D$9,給与計算!$O36<税額基本情報!$D$10),VLOOKUP(給与計算!$O36,税額基本情報!$D$6:$M$14,IF(基本情報!$E36>=8,10,基本情報!$E36+3),1)+ROUNDDOWN((給与計算!$O36-税額基本情報!$D$9)*税額基本情報!$E$9,0),0) -> 0 | I33: =IF(AND(給与計算!$O36>=税額基本情報!$D$10,給与計算!$O36<税額基本情報!$D$11),VLOOKUP(給与計算!$O36,税額基本情報!$D$6:$M$14,IF(基本情報!$E36>=8,10,基本情報!$E36+3),1)+ROUNDDOWN((給与計算!$O36-税額基本情報!$D$10)*税額基本情報!$E$10,0),0) -> 0 | J33: =IF(AND(給与計算!$O36>=税額基本情報!$D$11,給与計算!$O36<税額基本情報!$D$12),VLOOKUP(給与計算!$O36,税額基本情報!$D$6:$M$14,IF(基本情報!$E36>=8,10,基本情報!$E36+3),1)+ROUNDDOWN((給与計算!$O36-税額基本情報!$D$11)*税額基本情報!$E$11,0),0) -> 0 | K33: =IF(AND(給与計算!$O36>=税額基本情報!$D$12,給与計算!$O36<税額基本情報!$D$13),VLOOKUP(給与計算!$O36,税額基本情報!$D$6:$M$14,IF(基本情報!$E36>=8,10,基本情報!$E36+3),1)+ROUNDDOWN((給与計算!$O36-税額基本情報!$D$12)*税額基本情報!$E$12,0),0) -> 0 | L33: =IF(AND(給与計算!$O36>=税額基本情報!$D$13,給与計算!$O36<税額基本情報!$D$14),VLOOKUP(給与計算!$O36,税額基本情報!$D$6:$M$14,IF(基本情報!$E36>=8,10,基本情報!$E36+3),1)+ROUNDDOWN((給与計算!$O36-税額基本情報!$D$13)*税額基本情報!$E$13,0),0) -> 0 | M33: =IF(給与計算!O36>=税額基本情報!$D$14,VLOOKUP(給与計算!O36,税額基本情報!$D$6:$M$14,IF(基本情報!E36>=8,10,基本情報!E36+3),1)+ROUNDDOWN((給与計算!O36-税額基本情報!$D$14)*税額基本情報!$E$14,0),0) -> 0 | S33: =IF(AND(給与計算!$O36>=税額基本情報!$D$19,給与計算!$O36<税額基本情報!$D$20),税額基本情報!$F$19+ROUNDDOWN((給与計算!$O36-税額基本情報!$D$19)*税額基本情報!$E$19,0),0) -> 0 | T33: =IF(AND(給与計算!$O36>=税額基本情報!$D$20,給与計算!$O36<税額基本情報!$D$21),税額基本情報!$F$20+ROUNDDOWN((給与計算!$O36-税額基本情報!$D$20)*税額基本情報!$E$20,0),0) -> 0 | U33: =IF(給与計算!O36>=税額基本情報!$D$21,税額基本情報!$F$21+ROUNDDOWN((給与計算!O36-税額基本情報!$D$21)*税額基本情報!$E$21,0),0) -> 0
C34: 30 | D34: =給与計算!C37 ->  | E34: =IF(AND(給与計算!O37>=税額基本情報!$D$6,給与計算!O37<税額基本情報!$D$7),VLOOKUP(給与計算!O37,税額基本情報!$D$6:$M$14,IF(基本情報!E37>=8,10,基本情報!E37+3),1)+ROUNDDOWN((給与計算!O37-税額基本情報!$D$6)*税額基本情報!$E$6,0),0) -> 0 | F34: =IF(AND(給与計算!O37>=税額基本情報!$D$7,給与計算!O37<税額基本情報!$D$8),VLOOKUP(給与計算!O37,税額基本情報!$D$6:$M$14,IF(基本情報!E37>=8,10,基本情報!E37+3),1)+ROUNDDOWN((給与計算!O37-税額基本情報!$D$7)*税額基本情報!$E$7,0),0) -> 0 | G34: =IF(AND(給与計算!O37>=税額基本情報!$D$8,給与計算!O37<税額基本情報!$D$9),VLOOKUP(給与計算!O37,税額基本情報!$D$6:$M$14,IF(基本情報!E37>=8,10,基本情報!E37+3),1)+ROUNDDOWN((給与計算!O37-税額基本情報!$D$8)*税額基本情報!$E$8,0),0) -> 0 | H34: =IF(AND(給与計算!$O37>=税額基本情報!$D$9,給与計算!$O37<税額基本情報!$D$10),VLOOKUP(給与計算!$O37,税額基本情報!$D$6:$M$14,IF(基本情報!$E37>=8,10,基本情報!$E37+3),1)+ROUNDDOWN((給与計算!$O37-税額基本情報!$D$9)*税額基本情報!$E$9,0),0) -> 0 | I34: =IF(AND(給与計算!$O37>=税額基本情報!$D$10,給与計算!$O37<税額基本情報!$D$11),VLOOKUP(給与計算!$O37,税額基本情報!$D$6:$M$14,IF(基本情報!$E37>=8,10,基本情報!$E37+3),1)+ROUNDDOWN((給与計算!$O37-税額基本情報!$D$10)*税額基本情報!$E$10,0),0) -> 0 | J34: =IF(AND(給与計算!$O37>=税額基本情報!$D$11,給与計算!$O37<税額基本情報!$D$12),VLOOKUP(給与計算!$O37,税額基本情報!$D$6:$M$14,IF(基本情報!$E37>=8,10,基本情報!$E37+3),1)+ROUNDDOWN((給与計算!$O37-税額基本情報!$D$11)*税額基本情報!$E$11,0),0) -> 0 | K34: =IF(AND(給与計算!$O37>=税額基本情報!$D$12,給与計算!$O37<税額基本情報!$D$13),VLOOKUP(給与計算!$O37,税額基本情報!$D$6:$M$14,IF(基本情報!$E37>=8,10,基本情報!$E37+3),1)+ROUNDDOWN((給与計算!$O37-税額基本情報!$D$12)*税額基本情報!$E$12,0),0) -> 0 | L34: =IF(AND(給与計算!$O37>=税額基本情報!$D$13,給与計算!$O37<税額基本情報!$D$14),VLOOKUP(給与計算!$O37,税額基本情報!$D$6:$M$14,IF(基本情報!$E37>=8,10,基本情報!$E37+3),1)+ROUNDDOWN((給与計算!$O37-税額基本情報!$D$13)*税額基本情報!$E$13,0),0) -> 0 | M34: =IF(給与計算!O37>=税額基本情報!$D$14,VLOOKUP(給与計算!O37,税額基本情報!$D$6:$M$14,IF(基本情報!E37>=8,10,基本情報!E37+3),1)+ROUNDDOWN((給与計算!O37-税額基本情報!$D$14)*税額基本情報!$E$14,0),0) -> 0 | S34: =IF(AND(給与計算!$O37>=税額基本情報!$D$19,給与計算!$O37<税額基本情報!$D$20),税額基本情報!$F$19+ROUNDDOWN((給与計算!$O37-税額基本情報!$D$19)*税額基本情報!$E$19,0),0) -> 0 | T34: =IF(AND(給与計算!$O37>=税額基本情報!$D$20,給与計算!$O37<税額基本情報!$D$21),税額基本情報!$F$20+ROUNDDOWN((給与計算!$O37-税額基本情報!$D$20)*税額基本情報!$E$20,0),0) -> 0 | U34: =IF(給与計算!O37>=税額基本情報!$D$21,税額基本情報!$F$21+ROUNDDOWN((給与計算!O37-税額基本情報!$D$21)*税額基本情報!$E$21,0),0) -> 0

Sheet リスト表 (hidden)
B2: 甲・乙区分 | C2: 雇用保険区分 | E2: 社会保険料 | G2: 場所
E3: 健康保険 | F3: 厚生年金
B4: 甲欄 | C4: 無し | D4: =INDIRECT(基本情報!$D$3 & "!B" & ROW(B11)) -> 58000 | E4: 無し | F4: 無し | G4: 北海道
B5: 乙欄 | C5: 一般の事業 | D5: =INDIRECT(基本情報!$D$3 & "!B" & ROW(B12)) -> 68000 | E5: 介護保険なし | F5: 一般、坑内員・船員 | G5: 青森
B6: 乙欄（従たる給与についての扶養控除等申告書提出あり） | C6: 農林水産・清酒製造事業 | D6: =INDIRECT(基本情報!$D$3 & "!B" & ROW(B13)) -> 78000 | E6: 介護保険あり | F6: なし | G6: 岩手
C7: 建設の事業 | D7: =INDIRECT(基本情報!$D$3 & "!B" & ROW(B14)) -> 88000 | G7: 宮城
D8: =INDIRECT(基本情報!$D$3 & "!B" & ROW(B15)) -> 98000 | G8: 秋田
C9: ○ | D9: =INDIRECT(基本情報!$D$3 & "!B" & ROW(B16)) -> 104000 | G9: 山形
C10: × | D10: =INDIRECT(基本情報!$D$3 & "!B" & ROW(B17)) -> 110000 | G10: 福島
D11: =INDIRECT(基本情報!$D$3 & "!B" & ROW(B18)) -> 118000 | G11: 茨城
D12: =INDIRECT(基本情報!$D$3 & "!B" & ROW(B19)) -> 126000 | G12: 栃木
D13: =INDIRECT(基本情報!$D$3 & "!B" & ROW(B20)) -> 134000 | G13: 群馬
D14: =INDIRECT(基本情報!$D$3 & "!B" & ROW(B21)) -> 142000 | G14: 埼玉
D15: =INDIRECT(基本情報!$D$3 & "!B" & ROW(B22)) -> 150000 | G15: 千葉
D16: =INDIRECT(基本情報!$D$3 & "!B" & ROW(B23)) -> 160000 | G16: 東京
D17: =INDIRECT(基本情報!$D$3 & "!B" & ROW(B24)) -> 170000 | G17: 神奈川
D18: =INDIRECT(基本情報!$D$3 & "!B" & ROW(B25)) -> 180000 | G18: 新潟
D19: =INDIRECT(基本情報!$D$3 & "!B" & ROW(B26)) -> 190000 | G19: 富山
D20: =INDIRECT(基本情報!$D$3 & "!B" & ROW(B27)) -> 200000 | G20: 石川
D21: =INDIRECT(基本情報!$D$3 & "!B" & ROW(B28)) -> 220000 | G21: 福井
D22: =INDIRECT(基本情報!$D$3 & "!B" & ROW(B29)) -> 240000 | G22: 山梨
D23: =INDIRECT(基本情報!$D$3 & "!B" & ROW(B30)) -> 260000 | G23: 長野
D24: =INDIRECT(基本情報!$D$3 & "!B" & ROW(B31)) -> 280000 | G24: 岐阜
D25: =INDIRECT(基本情報!$D$3 & "!B" & ROW(B32)) -> 300000 | G25: 静岡
D26: =INDIRECT(基本情報!$D$3 & "!B" & ROW(B33)) -> 320000 | G26: 愛知
D27: =INDIRECT(基本情報!$D$3 & "!B" & ROW(B34)) -> 340000 | G27: 三重
D28: =INDIRECT(基本情報!$D$3 & "!B" & ROW(B35)) -> 360000 | G28: 滋賀
D29: =INDIRECT(基本情報!$D$3 & "!B" & ROW(B36)) -> 380000 | G29: 京都
D30: =INDIRECT(基本情報!$D$3 & "!B" & ROW(B37)) -> 410000 | G30: 大阪
D31: =INDIRECT(基本情報!$D$3 & "!B" & ROW(B38)) -> 440000 | G31: 兵庫
D32: =INDIRECT(基本情報!$D$3 & "!B" & ROW(B39)) -> 470000 | G32: 奈良
D33: =INDIRECT(基本情報!$D$3 & "!B" & ROW(B40)) -> 500000 | G33: 和歌山
D34: =INDIRECT(基本情報!$D$3 & "!B" & ROW(B41)) -> 530000 | G34: 鳥取
D35: =INDIRECT(基本情報!$D$3 & "!B" & ROW(B42)) -> 560000 | G35: 島根
D36: =INDIRECT(基本情報!$D$3 & "!B" & ROW(B43)) -> 590000 | G36: 岡山
D37: =INDIRECT(基本情報!$D$3 & "!B" & ROW(B44)) -> 620000 | G37: 広島
D38: =INDIRECT(基本情報!$D$3 & "!B" & ROW(B45)) -> 650000 | G38: 山口
D39: =INDIRECT(基本情報!$D$3 & "!B" & ROW(B46)) -> 680000 | G39: 徳島
D40: =INDIRECT(基本情報!$D$3 & "!B" & ROW(B47)) -> 710000 | G40: 香川
D41: =INDIRECT(基本情報!$D$3 & "!B" & ROW(B48)) -> 750000 | G41: 愛媛
D42: =INDIRECT(基本情報!$D$3 & "!B" & ROW(B49)) -> 790000 | G42: 高知
D43: =INDIRECT(基本情報!$D$3 & "!B" & ROW(B50)) -> 830000 | G43: 福岡
D44: =INDIRECT(基本情報!$D$3 & "!B" & ROW(B51)) -> 880000 | G44: 佐賀
D45: =INDIRECT(基本情報!$D$3 & "!B" & ROW(B52)) -> 930000 | G45: 長崎
D46: =INDIRECT(基本情報!$D$3 & "!B" & ROW(B53)) -> 980000 | G46: 熊本
D47: =INDIRECT(基本情報!$D$3 & "!B" & ROW(B54)) -> 1030000 | G47: 大分
D48: =INDIRECT(基本情報!$D$3 & "!B" & ROW(B55)) -> 1090000 | G48: 宮崎
D49: =INDIRECT(基本情報!$D$3 & "!B" & ROW(B56)) -> 1150000 | G49: 鹿児島
D50: =INDIRECT(基本情報!$D$3 & "!B" & ROW(B57)) -> 1210000 | G50: 沖縄
D51: =INDIRECT(基本情報!$D$3 & "!B" & ROW(B58)) -> 1270000
D52: =INDIRECT(基本情報!$D$3 & "!B" & ROW(B59)) -> 1330000
D53: =INDIRECT(基本情報!$D$3 & "!B" & ROW(B60)) -> 1390000

Sheet 税額基本情報 (hidden)
C3: 甲欄（月額給与74万円超の場合の税額基本情報）
C4: 社会保険料控除後の支給額 | D4: 超えた部分に乗じる税率 | F4: 加算する源泉徴収税額
F5: 0 | G5: 1 | H5: 2 | I5: 3 | J5: 4 | K5: 5 | L5: 6 | M5: 7 | N5: ←扶養人数
C6: =D6&"円超" -> 740000円超 | D6: 740000 | E6: 0.2042 | F6: =源泉月額表!D289 -> 71680 | G6: =源泉月額表!E289 -> 65210 | H6: =源泉月額表!F289 -> 58750 | I6: =源泉月額表!G289 -> 52290 | J6: =源泉月額表!H289 -> 45810 | K6: =源泉月額表!I289 -> 39350 | L6: =源泉月額表!J289 -> 32890 | M6: =源泉月額表!K289 -> 26410
C7: =D7&"円超" -> 790000円超 | D7: 790000 | E7: 0.23483 | F7: =源泉月額表!D302 -> 81890 | G7: =源泉月額表!E302 -> 75420 | H7: =源泉月額表!F302 -> 68960 | I7: =源泉月額表!G302 -> 62500 | J7: =源泉月額表!H302 -> 56020 | K7: =源泉月額表!I302 -> 49560 | L7: =源泉月額表!J302 -> 43100 | M7: =源泉月額表!K302 -> 36620
C8: 960000円超 | D8: 960000 | E8: 0.33693 | F8: =源泉月額表!D311 -> 121820 | G8: =源泉月額表!E311 -> 115340 | H8: =源泉月額表!F311 -> 108880 | I8: =源泉月額表!G311 -> 102420 | J8: =源泉月額表!H311 -> 95940 | K8: =源泉月額表!I311 -> 89480 | L8: =源泉月額表!J311 -> 83020 | M8: =源泉月額表!K311 -> 76540
C9: 1710000円超 | D9: 1710000 | E9: 0.4084 | F9: =源泉月額表!D320 -> 374520 | G9: =源泉月額表!E320 -> 368040 | H9: =源泉月額表!F320 -> 361580 | I9: =源泉月額表!G320 -> 355120 | J9: =源泉月額表!H320 -> 348640 | K9: =源泉月額表!I320 -> 342180 | L9: =源泉月額表!J320 -> 335720 | M9: =源泉月額表!K320 -> 329240
C10: 2130000円超 | D10: 2130000 | E10: 0.4084 | F10: =源泉月額表!D329 -> 549440 | G10: =源泉月額表!E329 -> 542970 | H10: =源泉月額表!F329 -> 536500 | I10: =源泉月額表!G329 -> 530040 | J10: =源泉月額表!H329 -> 523570 | K10: =源泉月額表!I329 -> 517110 | L10: =源泉月額表!J329 -> 510640 | M10: =源泉月額表!K329 -> 504170
C11: 2170000円超 | D11: 2170000 | E11: 0.4084 | F11: =源泉月額表!D338 -> 571220 | G11: =源泉月額表!E338 -> 564750 | H11: =源泉月額表!F338 -> 558280 | I11: =源泉月額表!G338 -> 551820 | J11: =源泉月額表!H338 -> 545350 | K11: =源泉月額表!I338 -> 538880 | L11: =源泉月額表!J338 -> 532420 | M11: =源泉月額表!K338 -> 525950
C12: 2210000円超 | D12: 2210000 | E12: 0.4084 | F12: =源泉月額表!D347 -> 593000 | G12: =源泉月額表!E347 -> 586520 | H12: =源泉月額表!F347 -> 580060 | I12: =源泉月額表!G347 -> 573600 | J12: =源泉月額表!H347 -> 567120 | K12: =源泉月額表!I347 -> 560660 | L12: =源泉月額表!J347 -> 554200 | M12: =源泉月額表!K347 -> 547730
C13: 2250000円超 | D13: 2250000 | E13: 0.4084 | F13: =源泉月額表!D356 -> 614770 | G13: =源泉月額表!E356 -> 608300 | H13: =源泉月額表!F356 -> 601840 | I13: =源泉月額表!G356 -> 595380 | J13: =源泉月額表!H356 -> 588900 | K13: =源泉月額表!I356 -> 582440 | L13: =源泉月額表!J356 -> 575980 | M13: =源泉月額表!K356 -> 569500
C14: 3500000円超 | D14: 3500000 | E14: 0.45945 | F14: =源泉月額表!D365 -> 1125270 | G14: =源泉月額表!E365 -> 1118800 | H14: =源泉月額表!F365 -> 1112340 | I14: =源泉月額表!G365 -> 1105880 | J14: =源泉月額表!H365 -> 1099400 | K14: =源泉月額表!I365 -> 1092940 | L14: =源泉月額表!J365 -> 1086480 | M14: =源泉月額表!K365 -> 1080000
C17: 乙欄（月額給与101万円超の場合の税額基本情報）
C18: 社会保険料控除後の支給額 | D18: 超えた部分に乗じる税率 | F18: 加算する源泉税額
C19: =D19&"円超" -> 740000円超 | D19: 740000 | E19: 0.4084 | F19: 259200
C20: =D20&"円超" -> 1710000円超 | D20: 1710000 | E20: 0.45945 | F20: 655400
C21: 1710000円超 | D21: 1710000 | E21: 0.45945 | F21: 655400
C22: 甲欄（扶養人数7人超の場合控除する税額）
C23: 扶養人数一人増えるごとに控除される源泉徴収税額 | D23: 1610
C25: 乙欄（従たる給与についての扶養控除等申告書提出ありの場合、控除する税額）
C26: 扶養人数一人増えるごとに控除される源泉徴収税額 | D26: 1610
C28: 乙欄（月額給与88,000円未満だった場合に乗じる税率）
C29: 月額給与105,000円未満の場合乗じる税率 | D29: 0.03063
C31: 厚生年金（最低額と最高額） | F31: 一般、坑内員・船員
C32: 標準報酬月額 | D32: 最低額 | E32: =INDIRECT(基本情報!$D$3&"!B14") -> 88000 | F32: =ROUND(INDIRECT(基本情報!$D$3&"!M14")-0.1,0) -> 8052
D33: 最高額 | E33: =INDIRECT(基本情報!$D$3&"!B45") -> 650000 | F33: =ROUND(INDIRECT(基本情報!$D$3&"!M45")-0.1,0) -> 59475
C35: 厚生年金の計算における賞与支給額の上限
C36: 厚生年金の計算における賞与支給額の上限 | D36: 1500000
C38: 健康保険の計算における賞与支給額の上限
C39: 健康保険の計算における賞与支給額の上限 | D39: 5730000
C41: 源泉月額表の範囲
C42: 源泉月額表始まりのセル | D42: 源泉月額表!$B$10:$L$500

Sheet 源泉月額表 (hidden)
B1: 給与所得の源泉徴収税額表（令和８年分）
B2: 月 額 表（平成24年３月31日財務省告示第115号別表第一（令和７年４月30日財務省告示第122号改正））
B3: その月の社会保 | D3: 甲
B4: 険料等控除後の | D4: 扶 養 親 族 等 の 数 | L4: 乙
B5: 給与等の金額 | D5: 0 人 | E5: 1 人 | F5: 2 人 | G5: 3 人 | H5: 4 人 | I5: 5 人 | J5: 6 人 | K5: 7 人
B6: 以 上 | C6: 未 満 | D6: 税 額 | L6: 税 額
B7: 円 | C7: 円 | D7: 円 | E7: 円 | F7: 円 | G7: 円 | H7: 円 | I7: 円 | J7: 円 | K7: 円 | L7: 円
B8: 105000 | C8: 円未満 | D8: 0 | E8: 0 | F8: 0 | G8: 0 | H8: 0 | I8: 0 | J8: 0 | K8: 0 | L8: その月の社会保険料等控除後の給与等の金額の3.063％に相当する金額
A10: 1 | B10: 105000 | C10: 107000 | D10: 170 | E10: 0 | F10: 0 | G10: 0 | H10: 0 | I10: 0 | J10: 0 | K10: 0 | L10: 3800
A11: 2 | B11: 107000 | C11: 109000 | D11: 280 | E11: 0 | F11: 0 | G11: 0 | H11: 0 | I11: 0 | J11: 0 | K11: 0 | L11: 3800
A12: 3 | B12: 109000 | C12: 111000 | D12: 380 | E12: 0 | F12: 0 | G12: 0 | H12: 0 | I12: 0 | J12: 0 | K12: 0 | L12: 3900
A13: 4 | B13: 111000 | C13: 113000 | D13: 480 | E13: 0 | F13: 0 | G13: 0 | H13: 0 | I13: 0 | J13: 0 | K13: 0 | L13: 4000
A14: 5 | B14: 113000 | C14: 115000 | D14: 580 | E14: 0 | F14: 0 | G14: 0 | H14: 0 | I14: 0 | J14: 0 | K14: 0 | L14: 4100
A16: 6 | B16: 115000 | C16: 117000 | D16: 680 | E16: 0 | F16: 0 | G16: 0 | H16: 0 | I16: 0 | J16: 0 | K16: 0 | L16: 4100
A17: 7 | B17: 117000 | C17: 119000 | D17: 790 | E17: 0 | F17: 0 | G17: 0 | H17: 0 | I17: 0 | J17: 0 | K17: 0 | L17: 4200
A18: 8 | B18: 119000 | C18: 121000 | D18: 890 | E18: 0 | F18: 0 | G18: 0 | H18: 0 | I18: 0 | J18: 0 | K18: 0 | L18: 4300
A19: 9 | B19: 121000 | C19: 123000 | D19: 990 | E19: 0 | F19: 0 | G19: 0 | H19: 0 | I19: 0 | J19: 0 | K19: 0 | L19: 4300
A20: 10 | B20: 123000 | C20: 125000 | D20: 1090 | E20: 0 | F20: 0 | G20: 0 | H20: 0 | I20: 0 | J20: 0 | K20: 0 | L20: 4400
A22: 11 | B22: 125000 | C22: 127000 | D22: 1190 | E22: 0 | F22: 0 | G22: 0 | H22: 0 | I22: 0 | J22: 0 | K22: 0 | L22: 4700
A23: 12 | B23: 127000 | C23: 129000 | D23: 1300 | E23: 0 | F23: 0 | G23: 0 | H23: 0 | I23: 0 | J23: 0 | K23: 0 | L23: 5000
A24: 13 | B24: 129000 | C24: 131000 | D24: 1400 | E24: 0 | F24: 0 | G24: 0 | H24: 0 | I24: 0 | J24: 0 | K24: 0 | L24: 5300
A25: 14 | B25: 131000 | C25: 133000 | D25: 1500 | E25: 0 | F25: 0 | G25: 0 | H25: 0 | I25: 0 | J25: 0 | K25: 0 | L25: 5500
A26: 15 | B26: 133000 | C26: 135000 | D26: 1600 | E26: 0 | F26: 0 | G26: 0 | H26: 0 | I26: 0 | J26: 0 | K26: 0 | L26: 5800
A28: 16 | B28: 135000 | C28: 137000 | D28: 1710 | E28: 0 | F28: 0 | G28: 0 | H28: 0 | I28: 0 | J28: 0 | K28: 0 | L28: 6100
A29: 17 | B29: 137000 | C29: 139000 | D29: 1810 | E29: 190 | F29: 0 | G29: 0 | H29: 0 | I29: 0 | J29: 0 | K29: 0 | L29: 6400
A30: 18 | B30: 139000 | C30: 141000 | D30: 1910 | E30: 300 | F30: 0 | G30: 0 | H30: 0 | I30: 0 | J30: 0 | K30: 0 | L30: 6700
A31: 19 | B31: 141000 | C31: 143000 | D31: 2010 | E31: 400 | F31: 0 | G31: 0 | H31: 0 | I31: 0 | J31: 0 | K31: 0 | L31: 7000
A32: 20 | B32: 143000 | C32: 145000 | D32: 2110 | E32: 500 | F32: 0 | G32: 0 | H32: 0 | I32: 0 | J32: 0 | K32: 0 | L32: 7400
A34: 21 | B34: 145000 | C34: 147000 | D34: 2220 | E34: 600 | F34: 0 | G34: 0 | H34: 0 | I34: 0 | J34: 0 | K34: 0 | L34: 7700
A35: 22 | B35: 147000 | C35: 149000 | D35: 2320 | E35: 700 | F35: 0 | G35: 0 | H35: 0 | I35: 0 | J35: 0 | K35: 0 | L35: 8000
A36: 23 | B36: 149000 | C36: 151000 | D36: 2420 | E36: 810 | F36: 0 | G36: 0 | H36: 0 | I36: 0 | J36: 0 | K36: 0 | L36: 8300
A37: 24 | B37: 151000 | C37: 153000 | D37: 2520 | E37: 910 | F37: 0 | G37: 0 | H37: 0 | I37: 0 | J37: 0 | K37: 0 | L37: 8600
A38: 25 | B38: 153000 | C38: 155000 | D38: 2620 | E38: 1010 | F38: 0 | G38: 0 | H38: 0 | I38: 0 | J38: 0 | K38: 0 | L38: 8900
A40: 26 | B40: 155000 | C40: 157000 | D40: 2730 | E40: 1110 | F40: 0 | G40: 0 | H40: 0 | I40: 0 | J40: 0 | K40: 0 | L40: 9200
A41: 27 | B41: 157000 | C41: 159000 | D41: 2830 | E41: 1210 | F41: 0 | G41: 0 | H41: 0 | I41: 0 | J41: 0 | K41: 0 | L41: 9500
A42: 28 | B42: 159000 | C42: 161000 | D42: 2910 | E42: 1300 | F42: 0 | G42: 0 | H42: 0 | I42: 0 | J42: 0 | K42: 0 | L42: 9800
A43: 29 | B43: 161000 | C43: 163000 | D43: 2980 | E43: 1370 | F43: 0 | G43: 0 | H43: 0 | I43: 0 | J43: 0 | K43: 0 | L43: 10100
A44: 30 | B44: 163000 | C44: 165000 | D44: 3050 | E44: 1440 | F44: 0 | G44: 0 | H44: 0 | I44: 0 | J44: 0 | K44: 0 | L44: 10400
A46: 31 | B46: 165000 | C46: 167000 | D46: 3120 | E46: 1510 | F46: 0 | G46: 0 | H46: 0 | I46: 0 | J46: 0 | K46: 0 | L46: 10700
A47: 32 | B47: 167000 | C47: 169000 | D47: 3200 | E47: 1580 | F47: 0 | G47: 0 | H47: 0 | I47: 0 | J47: 0 | K47: 0 | L47: 11000
A48: 33 | B48: 169000 | C48: 171000 | D48: 3270 | E48: 1650 | F48: 0 | G48: 0 | H48: 0 | I48: 0 | J48: 0 | K48: 0 | L48: 11300
A49: 34 | B49: 171000 | C49: 173000 | D49: 3340 | E49: 1730 | F49: 100 | G49: 0 | H49: 0 | I49: 0 | J49: 0 | K49: 0 | L49: 11500
A50: 35 | B50: 173000 | C50: 175000 | D50: 3410 | E50: 1800 | F50: 170 | G50: 0 | H50: 0 | I50: 0 | J50: 0 | K50: 0 | L50: 11800
A52: 36 | B52: 175000 | C52: 177000 | D52: 3480 | E52: 1870 | F52: 250 | G52: 0 | H52: 0 | I52: 0 | J52: 0 | K52: 0 | L52: 12100
A53: 37 | B53: 177000 | C53: 179000 | D53: 3550 | E53: 1940 | F53: 320 | G53: 0 | H53: 0 | I53: 0 | J53: 0 | K53: 0 | L53: 12500
A54: 38 | B54: 179000 | C54: 181000 | D54: 3620 | E54: 2010 | F54: 390 | G54: 0 | H54: 0 | I54: 0 | J54: 0 | K54: 0 | L54: 12800
A55: 39 | B55: 181000 | C55: 183000 | D55: 3700 | E55: 2080 | F55: 460 | G55: 0 | H55: 0 | I55: 0 | J55: 0 | K55: 0 | L55: 13300
A56: 40 | B56: 183000 | C56: 185000 | D56: 3770 | E56: 2150 | F56: 530 | G56: 0 | H56: 0 | I56: 0 | J56: 0 | K56: 0 | L56: 14000
A58: 41 | B58: 185000 | C58: 187000 | D58: 3840 | E58: 2230 | F58: 600 | G58: 0 | H58: 0 | I58: 0 | J58: 0 | K58: 0 | L58: 14700
A59: 42 | B59: 187000 | C59: 189000 | D59: 3910 | E59: 2300 | F59: 670 | G59: 0 | H59: 0 | I59: 0 | J59: 0 | K59: 0 | L59: 15400
A60: 43 | B60: 189000 | C60: 191000 | D60: 3980 | E60: 2370 | F60: 750 | G60: 0 | H60: 0 | I60: 0 | J60: 0 | K60: 0 | L60: 16100
A61: 44 | B61: 191000 | C61: 193000 | D61: 4050 | E61: 2440 | F61: 820 | G61: 0 | H61: 0 | I61: 0 | J61: 0 | K61: 0 | L61: 16800
A62: 45 | B62: 193000 | C62: 195000 | D62: 4120 | E62: 2510 | F62: 890 | G62: 0 | H62: 0 | I62: 0 | J62: 0 | K62: 0 | L62: 17600
A64: 46 | B64: 195000 | C64: 197000 | D64: 4200 | E64: 2580 | F64: 960 | G64: 0 | H64: 0 | I64: 0 | J64: 0 | K64: 0 | L64: 18300
A65: 47 | B65: 197000 | C65: 199000 | D65: 4270 | E65: 2650 | F65: 1030 | G65: 0 | H65: 0 | I65: 0 | J65: 0 | K65: 0 | L65: 19000
A66: 48 | B66: 199000 | C66: 201000 | D66: 4340 | E66: 2730 | F66: 1100 | G66: 0 | H66: 0 | I66: 0 | J66: 0 | K66: 0 | L66: 19700
A67: 49 | B67: 201000 | C67: 203000 | D67: 4410 | E67: 2800 | F67: 1170 | G67: 0 | H67: 0 | I67: 0 | J67: 0 | K67: 0 | L67: 20400
A68: 50 | B68: 203000 | C68: 205000 | D68: 4480 | E68: 2870 | F68: 1250 | G68: 0 | H68: 0 | I68: 0 | J68: 0 | K68: 0 | L68: 21000
A70: 51 | B70: 205000 | C70: 207000 | D70: 4550 | E70: 2940 | F70: 1320 | G70: 0 | H70: 0 | I70: 0 | J70: 0 | K70: 0 | L70: 21700
A71: 52 | B71: 207000 | C71: 209000 | D71: 4630 | E71: 3010 | F71: 1390 | G71: 0 | H71: 0 | I71: 0 | J71: 0 | K71: 0 | L71: 22500
A72: 53 | B72: 209000 | C72: 211000 | D72: 4700 | E72: 3080 | F72: 1460 | G72: 0 | H72: 0 | I72: 0 | J72: 0 | K72: 0 | L72: 23000
A73: 54 | B73: 211000 | C73: 213000 | D73: 4770 | E73: 3150 | F73: 1530 | G73: 0 | H73: 0 | I73: 0 | J73: 0 | K73: 0 | L73: 23600
A74: 55 | B74: 213000 | C74: 215000 | D74: 4840 | E74: 3230 | F74: 1600 | G74: 0 | H74: 0 | I74: 0 | J74: 0 | K74: 0 | L74: 24100
A76: 56 | B76: 215000 | C76: 217000 | D76: 4910 | E76: 3300 | F76: 1670 | G76: 0 | H76: 0 | I76: 0 | J76: 0 | K76: 0 | L76: 24700
A77: 57 | B77: 217000 | C77: 219000 | D77: 4980 | E77: 3370 | F77: 1750 | G77: 130 | H77: 0 | I77: 0 | J77: 0 | K77: 0 | L77: 25300
A78: 58 | B78: 219000 | C78: 221000 | D78: 5050 | E78: 3440 | F78: 1820 | G78: 200 | H78: 0 | I78: 0 | J78: 0 | K78: 0 | L78: 25800
A79: 59 | B79: 221000 | C79: 224000 | D79: 5150 | E79: 3520 | F79: 1910 | G79: 300 | H79: 0 | I79: 0 | J79: 0 | K79: 0 | L79: 26400
A80: 60 | B80: 224000 | C80: 227000 | D80: 5250 | E80: 3630 | F80: 2020 | G80: 400 | H80: 0 | I80: 0 | J80: 0 | K80: 0 | L80: 27500
A82: 61 | B82: 227000 | C82: 230000 | D82: 5360 | E82: 3740 | F82: 2120 | G82: 510 | H82: 0 | I82: 0 | J82: 0 | K82: 0 | L82: 28500
A83: 62 | B83: 230000 | C83: 233000 | D83: 5460 | E83: 3850 | F83: 2240 | G83: 610 | H83: 0 | I83: 0 | J83: 0 | K83: 0 | L83: 29500
A84: 63 | B84: 233000 | C84: 236000 | D84: 5570 | E84: 3950 | F84: 2340 | G84: 720 | H84: 0 | I84: 0 | J84: 0 | K84: 0 | L84: 30500
A85: 64 | B85: 236000 | C85: 239000 | D85: 5680 | E85: 4060 | F85: 2450 | G85: 830 | H85: 0 | I85: 0 | J85: 0 | K85: 0 | L85: 31500
A86: 65 | B86: 239000 | C86: 242000 | D86: 5790 | E86: 4170 | F86: 2550 | G86: 940 | H86: 0 | I86: 0 | J86: 0 | K86: 0 | L86: 32600
A88: 66 | B88: 242000 | C88: 245000 | D88: 5890 | E88: 4280 | F88: 2660 | G88: 1040 | H88: 0 | I88: 0 | J88: 0 | K88: 0 | L88: 33600
A89: 67 | B89: 245000 | C89: 248000 | D89: 6000 | E89: 4380 | F89: 2770 | G89: 1150 | H89: 0 | I89: 0 | J89: 0 | K89: 0 | L89: 34600
A90: 68 | B90: 248000 | C90: 251000 | D90: 6110 | E90: 4490 | F90: 2880 | G90: 1260 | H90: 0 | I90: 0 | J90: 0 | K90: 0 | L90: 35500
A91: 69 | B91: 251000 | C91: 254000 | D91: 6220 | E91: 4590 | F91: 2980 | G91: 1370 | H91: 0 | I91: 0 | J91: 0 | K91: 0 | L91: 36600
A92: 70 | B92: 254000 | C92: 257000 | D92: 6320 | E92: 4710 | F92: 3090 | G92: 1470 | H92: 0 | I92: 0 | J92: 0 | K92: 0 | L92: 37600
A94: 71 | B94: 257000 | C94: 260000 | D94: 6430 | E94: 4810 | F94: 3200 | G94: 1580 | H94: 0 | I94: 0 | J94: 0 | K94: 0 | L94: 38600
A95: 72 | B95: 260000 | C95: 263000 | D95: 6530 | E95: 4920 | F95: 3310 | G95: 1680 | H95: 0 | I95: 0 | J95: 0 | K95: 0 | L95: 39600
A96: 73 | B96: 263000 | C96: 266000 | D96: 6650 | E96: 5020 | F96: 3410 | G96: 1800 | H96: 170 | I96: 0 | J96: 0 | K96: 0 | L96: 40600
A97: 74 | B97: 266000 | C97: 269000 | D97: 6750 | E97: 5140 | F97: 3520 | G97: 1900 | H97: 290 | I97: 0 | J97: 0 | K97: 0 | L97: 41700
A98: 75 | B98: 269000 | C98: 272000 | D98: 6860 | E98: 5240 | F98: 3620 | G98: 2010 | H98: 390 | I98: 0 | J98: 0 | K98: 0 | L98: 42700
A100: 76 | B100: 272000 | C100: 275000 | D100: 6960 | E100: 5350 | F100: 3740 | G100: 2110 | H100: 500 | I100: 0 | J100: 0 | K100: 0 | L100: 43700
A101: 77 | B101: 275000 | C101: 278000 | D101: 7080 | E101: 5450 | F101: 3840 | G101: 2230 | H101: 600 | I101: 0 | J101: 0 | K101: 0 | L101: 44700
A102: 78 | B102: 278000 | C102: 281000 | D102: 7180 | E102: 5560 | F102: 3950 | G102: 2330 | H102: 710 | I102: 0 | J102: 0 | K102: 0 | L102: 45600
A103: 79 | B103: 281000 | C103: 284000 | D103: 7290 | E103: 5670 | F103: 4050 | G103: 2440 | H103: 820 | I103: 0 | J103: 0 | K103: 0 | L103: 46700
A104: 80 | B104: 284000 | C104: 287000 | D104: 7390 | E104: 5780 | F104: 4170 | G104: 2540 | H104: 930 | I104: 0 | J104: 0 | K104: 0 | L104: 47800
A106: 81 | B106: 287000 | C106: 290000 | D106: 7500 | E106: 5880 | F106: 4270 | G106: 2650 | H106: 1030 | I106: 0 | J106: 0 | K106: 0 | L106: 48900
A107: 82 | B107: 290000 | C107: 293000 | D107: 7610 | E107: 5990 | F107: 4380 | G107: 2760 | H107: 1140 | I107: 0 | J107: 0 | K107: 0 | L107: 50000
A108: 83 | B108: 293000 | C108: 296000 | D108: 7720 | E108: 6100 | F108: 4480 | G108: 2870 | H108: 1250 | I108: 0 | J108: 0 | K108: 0 | L108: 51300
A109: 84 | B109: 296000 | C109: 299000 | D109: 7820 | E109: 6210 | F109: 4590 | G109: 2970 | H109: 1360 | I109: 0 | J109: 0 | K109: 0 | L109: 52400
A110: 85 | B110: 299000 | C110: 302000 | D110: 7930 | E110: 6320 | F110: 4700 | G110: 3080 | H110: 1470 | I110: 0 | J110: 0 | K110: 0 | L110: 53600
A112: 86 | B112: 302000 | C112: 305000 | D112: 8060 | E112: 6440 | F112: 4820 | G112: 3210 | H112: 1590 | I112: 0 | J112: 0 | K112: 0 | L112: 54500
A113: 87 | B113: 305000 | C113: 308000 | D113: 8180 | E113: 6570 | F113: 4940 | G113: 3330 | H113: 1720 | I113: 0 | J113: 0 | K113: 0 | L113: 55200
A114: 88 | B114: 308000 | C114: 311000 | D114: 8300 | E114: 6690 | F114: 5060 | G114: 3450 | H114: 1840 | I114: 210 | J114: 0 | K114: 0 | L114: 56100
A115: 89 | B115: 311000 | C115: 314000 | D115: 8550 | E115: 6810 | F115: 5190 | G115: 3570 | H115: 1960 | I115: 340 | J115: 0 | K115: 0 | L115: 56900
A116: 90 | B116: 314000 | C116: 317000 | D116: 8790 | E116: 6930 | F116: 5310 | G116: 3700 | H116: 2080 | I116: 460 | J116: 0 | K116: 0 | L116: 57700
A118: 91 | B118: 317000 | C118: 320000 | D118: 9040 | E118: 7060 | F118: 5430 | G118: 3820 | H118: 2210 | I118: 580 | J118: 0 | K118: 0 | L118: 58500
A119: 92 | B119: 320000 | C119: 323000 | D119: 9280 | E119: 7180 | F119: 5550 | G119: 3940 | H119: 2330 | I119: 700 | J119: 0 | K119: 0 | L119: 59500
A120: 93 | B120: 323000 | C120: 326000 | D120: 9530 | E120: 7300 | F120: 5680 | G120: 4060 | H120: 2450 | I120: 830 | J120: 0 | K120: 0 | L120: 60500
A121: 94 | B121: 326000 | C121: 329000 | D121: 9770 | E121: 7420 | F121: 5800 | G121: 4190 | H121: 2570 | I121: 950 | J121: 0 | K121: 0 | L121: 61600
A122: 95 | B122: 329000 | C122: 332000 | D122: 10020 | E122: 7550 | F122: 5920 | G122: 4310 | H122: 2700 | I122: 1070 | J122: 0 | K122: 0 | L122: 62600
A124: 96 | B124: 332000 | C124: 335000 | D124: 10260 | E124: 7670 | F124: 6040 | G124: 4430 | H124: 2820 | I124: 1190 | J124: 0 | K124: 0 | L124: 63700
A125: 97 | B125: 335000 | C125: 338000 | D125: 10510 | E125: 7790 | F125: 6170 | G125: 4550 | H125: 2940 | I125: 1320 | J125: 0 | K125: 0 | L125: 64700
A126: 98 | B126: 338000 | C126: 341000 | D126: 10750 | E126: 7910 | F126: 6290 | G126: 4680 | H126: 3060 | I126: 1440 | J126: 0 | K126: 0 | L126: 65800
A127: 99 | B127: 341000 | C127: 344000 | D127: 11000 | E127: 8040 | F127: 6410 | G127: 4800 | H127: 3190 | I127: 1560 | J127: 0 | K127: 0 | L127: 66800
A128: 100 | B128: 344000 | C128: 347000 | D128: 11240 | E128: 8160 | F128: 6530 | G128: 4920 | H128: 3310 | I128: 1680 | J128: 0 | K128: 0 | L128: 67800
A130: 101 | B130: 347000 | C130: 350000 | D130: 11490 | E130: 8280 | F130: 6660 | G130: 5040 | H130: 3430 | I130: 1810 | J130: 190 | K130: 0 | L130: 68800
A131: 102 | B131: 350000 | C131: 353000 | D131: 11730 | E131: 8500 | F131: 6780 | G131: 5170 | H131: 3550 | I131: 1930 | J131: 320 | K131: 0 | L131: 69800
A132: 103 | B132: 353000 | C132: 356000 | D132: 11980 | E132: 8750 | F132: 6900 | G132: 5290 | H132: 3680 | I132: 2050 | J132: 440 | K132: 0 | L132: 70900
A133: 104 | B133: 356000 | C133: 359000 | D133: 12220 | E133: 9000 | F133: 7020 | G133: 5410 | H133: 3800 | I133: 2170 | J133: 560 | K133: 0 | L133: 71900
A134: 105 | B134: 359000 | C134: 362000 | D134: 12470 | E134: 9240 | F134: 7150 | G134: 5530 | H134: 3920 | I134: 2300 | J134: 680 | K134: 0 | L134: 72900
A136: 106 | B136: 362000 | C136: 365000 | D136: 12710 | E136: 9490 | F136: 7270 | G136: 5660 | H136: 4040 | I136: 2420 | J136: 810 | K136: 0 | L136: 73900
A137: 107 | B137: 365000 | C137: 368000 | D137: 12960 | E137: 9730 | F137: 7390 | G137: 5780 | H137: 4170 | I137: 2540 | J137: 930 | K137: 0 | L137: 74900
A138: 108 | B138: 368000 | C138: 371000 | D138: 13200 | E138: 9980 | F138: 7510 | G138: 5900 | H138: 4290 | I138: 2660 | J138: 1050 | K138: 0 | L138: 76000
A139: 109 | B139: 371000 | C139: 374000 | D139: 13450 | E139: 10220 | F139: 7640 | G139: 6020 | H139: 4410 | I139: 2790 | J139: 1170 | K139: 0 | L139: 76900
A140: 110 | B140: 374000 | C140: 377000 | D140: 13690 | E140: 10470 | F140: 7760 | G140: 6150 | H140: 4530 | I140: 2910 | J140: 1300 | K140: 0 | L140: 77800
A142: 111 | B142: 377000 | C142: 380000 | D142: 13940 | E142: 10710 | F142: 7880 | G142: 6270 | H142: 4660 | I142: 3030 | J142: 1420 | K142: 0 | L142: 78700
A143: 112 | B143: 380000 | C143: 383000 | D143: 14180 | E143: 10960 | F143: 8000 | G143: 6390 | H143: 4780 | I143: 3150 | J143: 1540 | K143: 0 | L143: 79600
A144: 113 | B144: 383000 | C144: 386000 | D144: 14430 | E144: 11200 | F144: 8130 | G144: 6510 | H144: 4900 | I144: 3280 | J144: 1660 | K144: 0 | L144: 80600
A145: 114 | B145: 386000 | C145: 389000 | D145: 14670 | E145: 11450 | F145: 8250 | G145: 6640 | H145: 5020 | I145: 3400 | J145: 1790 | K145: 170 | L145: 82000
A146: 115 | B146: 389000 | C146: 392000 | D146: 14920 | E146: 11690 | F146: 8450 | G146: 6760 | H146: 5150 | I146: 3520 | J146: 1910 | K146: 300 | L146: 83600
A148: 116 | B148: 392000 | C148: 395000 | D148: 15160 | E148: 11940 | F148: 8700 | G148: 6880 | H148: 5270 | I148: 3640 | J148: 2030 | K148: 420 | L148: 85400
A149: 117 | B149: 395000 | C149: 398000 | D149: 15410 | E149: 12180 | F149: 8940 | G149: 7000 | H149: 5390 | I149: 3770 | J149: 2150 | K149: 540 | L149: 87100
A150: 118 | B150: 398000 | C150: 401000 | D150: 15650 | E150: 12430 | F150: 9190 | G150: 7130 | H150: 5510 | I150: 3890 | J150: 2280 | K150: 660 | L150: 88700
A151: 119 | B151: 401000 | C151: 404000 | D151: 15900 | E151: 12670 | F151: 9430 | G151: 7250 | H151: 5640 | I151: 4010 | J151: 2400 | K151: 790 | L151: 90500
A152: 120 | B152: 404000 | C152: 407000 | D152: 16140 | E152: 12920 | F152: 9680 | G152: 7370 | H152: 5760 | I152: 4140 | J152: 2520 | K152: 910 | L152: 92200
A154: 121 | B154: 407000 | C154: 410000 | D154: 16390 | E154: 13160 | F154: 9920 | G154: 7490 | H154: 5880 | I154: 4260 | J154: 2640 | K154: 1030 | L154: 93800
A155: 122 | B155: 410000 | C155: 413000 | D155: 16630 | E155: 13410 | F155: 10170 | G155: 7620 | H155: 6000 | I155: 4380 | J155: 2770 | K155: 1150 | L155: 95600
A156: 123 | B156: 413000 | C156: 416000 | D156: 16880 | E156: 13650 | F156: 10410 | G156: 7740 | H156: 6130 | I156: 4500 | J156: 2890 | K156: 1280 | L156: 97300
A157: 124 | B157: 416000 | C157: 419000 | D157: 17120 | E157: 13900 | F157: 10660 | G157: 7860 | H157: 6250 | I157: 4630 | J157: 3010 | K157: 1400 | L157: 98900
A158: 125 | B158: 419000 | C158: 422000 | D158: 17370 | E158: 14140 | F158: 10900 | G158: 7980 | H158: 6370 | I158: 4750 | J158: 3130 | K158: 1520 | L158: 100700
A160: 126 | B160: 422000 | C160: 425000 | D160: 17610 | E160: 14390 | F160: 11150 | G160: 8110 | H160: 6490 | I160: 4870 | J160: 3260 | K160: 1640 | L160: 102400
A161: 127 | B161: 425000 | C161: 428000 | D161: 17860 | E161: 14630 | F161: 11390 | G161: 8230 | H161: 6620 | I161: 4990 | J161: 3380 | K161: 1770 | L161: 104000
A162: 128 | B162: 428000 | C162: 431000 | D162: 18100 | E162: 14880 | F162: 11640 | G162: 8400 | H162: 6740 | I162: 5120 | J162: 3500 | K162: 1890 | L162: 105800
A163: 129 | B163: 431000 | C163: 434000 | D163: 18350 | E163: 15120 | F163: 11880 | G163: 8650 | H163: 6860 | I163: 5240 | J163: 3620 | K163: 2010 | L163: 107500
A164: 130 | B164: 434000 | C164: 437000 | D164: 18590 | E164: 15370 | F164: 12130 | G164: 8890 | H164: 6980 | I164: 5360 | J164: 3750 | K164: 2130 | L164: 109100
A166: 131 | B166: 437000 | C166: 440000 | D166: 18840 | E166: 15610 | F166: 12370 | G166: 9140 | H166: 7110 | I166: 5480 | J166: 3870 | K166: 2260 | L166: 110900
A167: 132 | B167: 440000 | C167: 443000 | D167: 19080 | E167: 15860 | F167: 12620 | G167: 9380 | H167: 7230 | I167: 5610 | J167: 3990 | K167: 2380 | L167: 112600
A168: 133 | B168: 443000 | C168: 446000 | D168: 19330 | E168: 16100 | F168: 12860 | G168: 9630 | H168: 7350 | I168: 5730 | J168: 4110 | K168: 2500 | L168: 114200
A169: 134 | B169: 446000 | C169: 449000 | D169: 19570 | E169: 16350 | F169: 13110 | G169: 9870 | H169: 7470 | I169: 5850 | J169: 4240 | K169: 2620 | L169: 116000
A170: 135 | B170: 449000 | C170: 452000 | D170: 19860 | E170: 16590 | F170: 13350 | G170: 10120 | H170: 7600 | I170: 5970 | J170: 4360 | K170: 2750 | L170: 117600
A172: 136 | B172: 452000 | C172: 455000 | D172: 20350 | E172: 16840 | F172: 13600 | G172: 10360 | H172: 7720 | I172: 6100 | J172: 4480 | K172: 2870 | L172: 119400
A173: 137 | B173: 455000 | C173: 458000 | D173: 20840 | E173: 17080 | F173: 13840 | G173: 10610 | H173: 7840 | I173: 6220 | J173: 4600 | K173: 2990 | L173: 121100
A174: 138 | B174: 458000 | C174: 461000 | D174: 21330 | E174: 17330 | F174: 14090 | G174: 10850 | H174: 7960 | I174: 6340 | J174: 4730 | K174: 3110 | L174: 122700
A175: 139 | B175: 461000 | C175: 464000 | D175: 21820 | E175: 17570 | F175: 14330 | G175: 11100 | H175: 8090 | I175: 6460 | J175: 4850 | K175: 3240 | L175: 124500
A176: 140 | B176: 464000 | C176: 467000 | D176: 22310 | E176: 17820 | F176: 14580 | G176: 11340 | H176: 8210 | I176: 6590 | J176: 4970 | K176: 3360 | L176: 126200
A178: 141 | B178: 467000 | C178: 470000 | D178: 22800 | E178: 18060 | F178: 14820 | G178: 11590 | H178: 8360 | I178: 6710 | J178: 5090 | K178: 3480 | L178: 127800
A179: 142 | B179: 470000 | C179: 473000 | D179: 23290 | E179: 18310 | F179: 15070 | G179: 11830 | H179: 8610 | I179: 6830 | J179: 5220 | K179: 3600 | L179: 129600
A180: 143 | B180: 473000 | C180: 476000 | D180: 23780 | E180: 18550 | F180: 15320 | G180: 12080 | H180: 8850 | I180: 6950 | J180: 5340 | K180: 3730 | L180: 131200
A181: 144 | B181: 476000 | C181: 479000 | D181: 24270 | E181: 18800 | F181: 15560 | G181: 12320 | H181: 9100 | I181: 7080 | J181: 5460 | K181: 3850 | L181: 132800
A182: 145 | B182: 479000 | C182: 482000 | D182: 24760 | E182: 19040 | F182: 15810 | G182: 12570 | H182: 9340 | I182: 7200 | J182: 5580 | K182: 3970 | L182: 134500
A184: 146 | B184: 482000 | C184: 485000 | D184: 25250 | E184: 19290 | F184: 16050 | G184: 12810 | H184: 9590 | I184: 7320 | J184: 5710 | K184: 4090 | L184: 136100
A185: 147 | B185: 485000 | C185: 488000 | D185: 25740 | E185: 19530 | F185: 16300 | G185: 13060 | H185: 9830 | I185: 7440 | J185: 5830 | K185: 4220 | L185: 137600
A186: 148 | B186: 488000 | C186: 491000 | D186: 26230 | E186: 19780 | F186: 16540 | G186: 13300 | H186: 10080 | I186: 7570 | J186: 5950 | K186: 4340 | L186: 139300
A187: 149 | B187: 491000 | C187: 494000 | D187: 26720 | E187: 20260 | F187: 16790 | G187: 13550 | H187: 10320 | I187: 7690 | J187: 6070 | K187: 4460 | L187: 140900
A188: 150 | B188: 494000 | C188: 497000 | D188: 27210 | E188: 20750 | F188: 17030 | G188: 13790 | H188: 10570 | I188: 7810 | J188: 6200 | K188: 4580 | L188: 142500
A190: 151 | B190: 497000 | C190: 500000 | D190: 27700 | E190: 21240 | F190: 17280 | G190: 14040 | H190: 10810 | I190: 7930 | J190: 6320 | K190: 4710 | L190: 144100
A191: 152 | B191: 500000 | C191: 503000 | D191: 28190 | E191: 21730 | F191: 17520 | G191: 14280 | H191: 11060 | I191: 8060 | J191: 6440 | K191: 4830 | L191: 145700
A192: 153 | B192: 503000 | C192: 506000 | D192: 28680 | E192: 22220 | F192: 17770 | G192: 14530 | H192: 11300 | I192: 8180 | J192: 6570 | K192: 4950 | L192: 147300
A193: 154 | B193: 506000 | C193: 509000 | D193: 29170 | E193: 22710 | F193: 18010 | G193: 14770 | H193: 11550 | I193: 8310 | J193: 6690 | K193: 5070 | L193: 149000
A194: 155 | B194: 509000 | C194: 512000 | D194: 29660 | E194: 23200 | F194: 18260 | G194: 15020 | H194: 11790 | I194: 8560 | J194: 6810 | K194: 5200 | L194: 150500
A196: 156 | B196: 512000 | C196: 515000 | D196: 30150 | E196: 23690 | F196: 18500 | G196: 15260 | H196: 12040 | I196: 8800 | J196: 6930 | K196: 5320 | L196: 152100
A197: 157 | B197: 515000 | C197: 518000 | D197: 30640 | E197: 24180 | F197: 18750 | G197: 15510 | H197: 12280 | I197: 9050 | J197: 7060 | K197: 5440 | L197: 153800
A198: 158 | B198: 518000 | C198: 521000 | D198: 31130 | E198: 24670 | F198: 18990 | G198: 15750 | H198: 12530 | I198: 9290 | J198: 7180 | K198: 5560 | L198: 155400
A199: 159 | B199: 521000 | C199: 524000 | D199: 31620 | E199: 25160 | F199: 19240 | G199: 16000 | H199: 12770 | I199: 9540 | J199: 7300 | K199: 5690 | L199: 156900
A200: 160 | B200: 524000 | C200: 527000 | D200: 32110 | E200: 25650 | F200: 19480 | G200: 16240 | H200: 13020 | I200: 9780 | J200: 7420 | K200: 5810 | L200: 158600
A202: 161 | B202: 527000 | C202: 530000 | D202: 32600 | E202: 26140 | F202: 19730 | G202: 16490 | H202: 13260 | I202: 10030 | J202: 7550 | K202: 5930 | L202: 160200
A203: 162 | B203: 530000 | C203: 533000 | D203: 33090 | E203: 26630 | F203: 20160 | G203: 16730 | H203: 13510 | I203: 10270 | J203: 7670 | K203: 6050 | L203: 161600
A204: 163 | B204: 533000 | C204: 536000 | D204: 33580 | E204: 27120 | F204: 20650 | G204: 16980 | H204: 13750 | I204: 10520 | J204: 7790 | K204: 6180 | L204: 163200
A205: 164 | B205: 536000 | C205: 539000 | D205: 34070 | E205: 27610 | F205: 21140 | G205: 17220 | H205: 14000 | I205: 10760 | J205: 7910 | K205: 6300 | L205: 164600
A206: 165 | B206: 539000 | C206: 542000 | D206: 34560 | E206: 28100 | F206: 21630 | G206: 17470 | H206: 14240 | I206: 11010 | J206: 8040 | K206: 6420 | L206: 166000
A208: 166 | B208: 542000 | C208: 545000 | D208: 35050 | E208: 28590 | F208: 22130 | G208: 17710 | H208: 14490 | I208: 11250 | J208: 8160 | K208: 6540 | L208: 167500
A209: 167 | B209: 545000 | C209: 548000 | D209: 35540 | E209: 29080 | F209: 22620 | G209: 17960 | H209: 14730 | I209: 11500 | J209: 8280 | K209: 6670 | L209: 169000
A210: 168 | B210: 548000 | C210: 551000 | D210: 36030 | E210: 29570 | F210: 23110 | G210: 18200 | H210: 14980 | I210: 11740 | J210: 8500 | K210: 6790 | L210: 170500
A211: 169 | B211: 551000 | C211: 554000 | D211: 36570 | E211: 30110 | F211: 23650 | G211: 18480 | H211: 15240 | I211: 12020 | J211: 8780 | K211: 6920 | L211: 171900
A212: 170 | B212: 554000 | C212: 557000 | D212: 37120 | E212: 30660 | F212: 24200 | G212: 18760 | H212: 15520 | I212: 12290 | J212: 9060 | K212: 7060 | L212: 173400
A214: 171 | B214: 557000 | C214: 560000 | D214: 37670 | E214: 31210 | F214: 24750 | G214: 19030 | H214: 15790 | I214: 12570 | J214: 9330 | K214: 7200 | L214: 174900
A215: 172 | B215: 560000 | C215: 563000 | D215: 38230 | E215: 31760 | F215: 25300 | G215: 19310 | H215: 16070 | I215: 12840 | J215: 9610 | K215: 7330 | L215: 176300
A216: 173 | B216: 563000 | C216: 566000 | D216: 38780 | E216: 32310 | F216: 25850 | G216: 19580 | H216: 16350 | I216: 13120 | J216: 9880 | K216: 7470 | L216: 177900
A217: 174 | B217: 566000 | C217: 569000 | D217: 39330 | E217: 32870 | F217: 26400 | G217: 19930 | H217: 16620 | I217: 13400 | J217: 10160 | K217: 7610 | L217: 179300
A218: 175 | B218: 569000 | C218: 572000 | D218: 39880 | E218: 33420 | F218: 26950 | G218: 20480 | H218: 16900 | I218: 13670 | J218: 10430 | K218: 7750 | L218: 180700
A220: 176 | B220: 572000 | C220: 575000 | D220: 40430 | E220: 33970 | F220: 27510 | G220: 21030 | H220: 17170 | I220: 13950 | J220: 10710 | K220: 7880 | L220: 182200
A221: 177 | B221: 575000 | C221: 578000 | D221: 40980 | E221: 34520 | F221: 28060 | G221: 21580 | H221: 17450 | I221: 14220 | J221: 10990 | K221: 8030 | L221: 183700
A222: 178 | B222: 578000 | C222: 581000 | D222: 41530 | E222: 35070 | F222: 28610 | G222: 22140 | H222: 17720 | I222: 14500 | J222: 11260 | K222: 8160 | L222: 185200
A223: 179 | B223: 581000 | C223: 584000 | D223: 42090 | E223: 35620 | F223: 29160 | G223: 22690 | H223: 18000 | I223: 14770 | J223: 11540 | K223: 8300 | L223: 186600
A224: 180 | B224: 584000 | C224: 587000 | D224: 42640 | E224: 36170 | F224: 29710 | G224: 23240 | H224: 18280 | I224: 15050 | J224: 11810 | K224: 8580 | L224: 188100
A226: 181 | B226: 587000 | C226: 590000 | D226: 43190 | E226: 36730 | F226: 30260 | G226: 23790 | H226: 18550 | I226: 15330 | J226: 12090 | K226: 8850 | L226: 189600
A227: 182 | B227: 590000 | C227: 593000 | D227: 43740 | E227: 37280 | F227: 30810 | G227: 24340 | H227: 18830 | I227: 15600 | J227: 12360 | K227: 9130 | L227: 191000
A228: 183 | B228: 593000 | C228: 596000 | D228: 44290 | E228: 37830 | F228: 31370 | G228: 24890 | H228: 19100 | I228: 15880 | J228: 12640 | K228: 9400 | L228: 192600
A229: 184 | B229: 596000 | C229: 599000 | D229: 44840 | E229: 38380 | F229: 31920 | G229: 25440 | H229: 19380 | I229: 16150 | J229: 12920 | K229: 9680 | L229: 194000
A230: 185 | B230: 599000 | C230: 602000 | D230: 45390 | E230: 38930 | F230: 32470 | G230: 25990 | H230: 19650 | I230: 16430 | J230: 13190 | K230: 9950 | L230: 195400
A232: 186 | B232: 602000 | C232: 605000 | D232: 45950 | E232: 39480 | F232: 33020 | G232: 26550 | H232: 20080 | I232: 16700 | J232: 13470 | K232: 10230 | L232: 197000
A233: 187 | B233: 605000 | C233: 608000 | D233: 46500 | E233: 40030 | F233: 33570 | G233: 27100 | H233: 20630 | I233: 16980 | J233: 13740 | K233: 10510 | L233: 198400
A234: 188 | B234: 608000 | C234: 611000 | D234: 47050 | E234: 40580 | F234: 34120 | G234: 27650 | H234: 21190 | I234: 17250 | J234: 14020 | K234: 10780 | L234: 199900
A235: 189 | B235: 611000 | C235: 614000 | D235: 47600 | E235: 41140 | F235: 34670 | G235: 28200 | H235: 21740 | I235: 17530 | J235: 14290 | K235: 11060 | L235: 201300
A236: 190 | B236: 614000 | C236: 617000 | D236: 48150 | E236: 41690 | F236: 35220 | G236: 28750 | H236: 22290 | I236: 17810 | J236: 14570 | K236: 11330 | L236: 202800
A238: 191 | B238: 617000 | C238: 620000 | D238: 48700 | E238: 42240 | F238: 35780 | G238: 29300 | H238: 22840 | I238: 18080 | J238: 14850 | K238: 11610 | L238: 204300
A239: 192 | B239: 620000 | C239: 623000 | D239: 49250 | E239: 42790 | F239: 36330 | G239: 29850 | H239: 23390 | I239: 18360 | J239: 15120 | K239: 11880 | L239: 205700
... 129 more rows

Sheet 源泉賞与表 (hidden)
B1: 賞与に対する源泉徴収税額の算出率の表（令和８年分）
B2: （平成24年３月31日財務省告示第115号別表第三（令和７年４月30日財務省告示第122号改正））
B3: 賞与の金額に乗ずべき率 | D3: 甲 | T3: 乙
D4: 扶養親族等の数
D5: 0 人 | F5: 1 人 | H5: 2 人 | J5: 3 人 | L5: 4 人 | N5: 5 人 | P5: 6 人 | R5: 7 人 以 上
D6: 前月の社会保険料等控除後の給与等の金額 | T6: 前月の社会保険料等控除後の給与等の金額
D7: 以上 | E7: 未満 | F7: 以上 | G7: 未満 | H7: 以上 | I7: 未満 | J7: 以上 | K7: 未満 | L7: 以上 | M7: 未満 | N7: 以上 | O7: 未満 | P7: 以上 | Q7: 未満 | R7: 以上 | S7: 未満 | T7: 以上 | U7: 未満
B8: % | D8: 千円 | E8: 千円 | F8: 千円 | G8: 千円 | H8: 千円 | I8: 千円 | J8: 千円 | K8: 千円 | L8: 千円 | M8: 千円 | N8: 千円 | O8: 千円 | P8: 千円 | Q8: 千円 | R8: 千円 | S8: 千円 | T8: 千円 | U8: 千円
B9: 0 | D9: 82 | E9: 千円未満 | F9: 107 | G9: 千円未満 | H9: 143 | I9: 千円未満 | J9: 181 | K9: 千円未満 | L9: 218 | M9: 千円未満 | N9: 251 | O9: 千円未満 | P9: 284 | Q9: 千円未満 | R9: 317 | S9: 千円未満
B11: 2.042 | D11: 82 | E11: 94 | F11: 107 | G11: 250 | H11: 143 | I11: 276 | J11: 181 | K11: 300 | L11: 218 | M11: 300 | N11: 251 | O11: 304 | P11: 284 | Q11: 343 | R11: 317 | S11: 383
B12: 4.084 | D12: 94 | E12: 260 | F12: 250 | G12: 289 | H12: 276 | I12: 321 | J12: 300 | K12: 354 | L12: 300 | M12: 387 | N12: 304 | O12: 412 | P12: 343 | Q12: 438 | R12: 383 | S12: 463
B13: 6.126 | D13: 260 | E13: 309 | F13: 289 | G13: 346 | H13: 321 | I13: 377 | J13: 354 | K13: 405 | L13: 387 | M13: 431 | N13: 412 | O13: 457 | P13: 438 | Q13: 483 | R13: 463 | S13: 508
B15: 8.168 | D15: 309 | E15: 342 | F15: 346 | G15: 373 | H15: 377 | I15: 400 | J15: 405 | K15: 424 | L15: 431 | M15: 452 | N15: 457 | O15: 479 | P15: 483 | Q15: 505 | R15: 508 | S15: 529
B16: 10.21 | D16: 342 | E16: 372 | F16: 373 | G16: 401 | H16: 400 | I16: 426 | J16: 424 | K16: 452 | L16: 452 | M16: 477 | N16: 479 | O16: 503 | P16: 505 | Q16: 527 | R16: 529 | S16: 552 | T16: 224 | U16: 千円未満
B17: 12.252 | D17: 372 | E17: 402 | F17: 401 | G17: 430 | H17: 426 | I17: 457 | J17: 452 | K17: 484 | L17: 477 | M17: 509 | N17: 503 | O17: 531 | P17: 527 | Q17: 553 | R17: 552 | S17: 578
B19: 14.294 | D19: 402 | E19: 433 | F19: 430 | G19: 463 | H19: 457 | I19: 492 | J19: 484 | K19: 517 | L19: 509 | M19: 540 | N19: 531 | O19: 564 | P19: 553 | Q19: 589 | R19: 578 | S19: 614
B20: 16.336 | D20: 433 | E20: 520 | F20: 463 | G20: 520 | H20: 492 | I20: 525 | J20: 517 | K20: 550 | L20: 540 | M20: 577 | N20: 564 | O20: 604 | P20: 589 | Q20: 630 | R20: 614 | S20: 657
B21: 18.378 | D21: 520 | E21: 605 | F21: 520 | G21: 621 | H21: 525 | I21: 636 | J21: 550 | K21: 651 | L21: 577 | M21: 666 | N21: 604 | O21: 681 | P21: 630 | Q21: 697 | R21: 657 | S21: 708
B23: 20.42 | D23: 605 | E23: 684 | F23: 621 | G23: 705 | H23: 636 | I23: 728 | J23: 651 | K23: 751 | L23: 666 | M23: 774 | N23: 681 | O23: 798 | P23: 697 | Q23: 821 | R23: 708 | S23: 845 | T23: 224 | U23: 295
B24: 22.462 | D24: 684 | E24: 715 | F24: 705 | G24: 739 | H24: 728 | I24: 764 | J24: 751 | K24: 788 | L24: 774 | M24: 813 | N24: 798 | O24: 838 | P24: 821 | Q24: 862 | R24: 845 | S24: 887
B25: 24.504 | D25: 715 | E25: 752 | F25: 739 | G25: 778 | H25: 764 | I25: 804 | J25: 788 | K25: 830 | L25: 813 | M25: 856 | N25: 838 | O25: 881 | P25: 862 | Q25: 907 | R25: 887 | S25: 933
B27: 26.546 | D27: 752 | E27: 795 | F27: 778 | G27: 821 | H27: 804 | I27: 848 | J27: 830 | K27: 876 | L27: 856 | M27: 903 | N27: 881 | O27: 930 | P27: 907 | Q27: 957 | R27: 933 | S27: 985
B28: 28.588 | D28: 795 | E28: 854 | F28: 821 | G28: 882 | H28: 848 | I28: 910 | J28: 876 | K28: 938 | L28: 903 | M28: 966 | N28: 930 | O28: 994 | P28: 957 | Q28: 1022 | R28: 985 | S28: 1051
B29: 30.63 | D29: 854 | E29: 922 | F29: 882 | G29: 952 | H29: 910 | I29: 983 | J29: 938 | K29: 1013 | L29: 966 | M29: 1044 | N29: 994 | O29: 1074 | P29: 1022 | Q29: 1104 | R29: 1051 | S29: 1135 | T29: 295 | U29: 527
B31: 32.672 | D31: 922 | E31: 1318 | F31: 952 | G31: 1342 | H31: 983 | I31: 1367 | J31: 1013 | K31: 1391 | L31: 1044 | M31: 1416 | N31: 1074 | O31: 1440 | P31: 1104 | Q31: 1464 | R31: 1135 | S31: 1489
B32: 35.735 | D32: 1318 | E32: 1521 | F32: 1342 | G32: 1526 | H32: 1367 | I32: 1526 | J32: 1391 | K32: 1538 | L32: 1416 | M32: 1555 | N32: 1440 | O32: 1555 | P32: 1464 | Q32: 1555 | R32: 1489 | S32: 1583
B33: 38.798 | D33: 1521 | E33: 2621 | F33: 1526 | G33: 2645 | H33: 1526 | I33: 2669 | J33: 1538 | K33: 2693 | L33: 1555 | M33: 2716 | N33: 1555 | O33: 2740 | P33: 1555 | Q33: 2764 | R33: 1583 | S33: 2788 | T33: 527 | U33: 1118
B35: 41.861 | D35: 2621 | E35: 3495 | F35: 2645 | G35: 3527 | H35: 2669 | I35: 3559 | J35: 2693 | K35: 3590 | L35: 2716 | M35: 3622 | N35: 2740 | O35: 3654 | P35: 2764 | Q35: 3685 | R35: 2788 | S35: 3717
B37: 45.945 | D37: 3495 | E37: 千円以上 | F37: 3527 | G37: 千円以上 | H37: 3559 | I37: 千円以上 | J37: 3590 | K37: 千円以上 | L37: 3622 | M37: 千円以上 | N37: 3654 | O37: 千円以上 | P37: 3685 | Q37: 千円以上 | R37: 3717 | S37: 千円以上 | T37: 1118 | U37: 千円以上
B38: (注) この表における用語の意味は、次のとおりです。
B39: １ 「扶養親族等」とは、源泉控除対象配偶者及び源泉控除対象親族をいいます。
B40: ２ 「社会保険料等」とは、所得税法第74条第２項に規定する社会保険料及び同法第75条第２項に規定する小規模企業共済等掛金をいいます。
B41: また、「賞与の金額に乗ずべき率」の賞与の金額とは、賞与の金額から控除される社会保険料等の金額がある場合には、その社会保険料等控除後の金額をいいます。
B42: (備考） 賞与の金額に乗ずべき率の求め方は、次のとおりです。
B43: １ 「給与所得者の扶養控除等申告書」(以下この表において「扶養控除等申告書」といいます。)の提出があった人(４に該当する場合を除きます。）
B44: ⑴ まず、その人の前月中の給与等（賞与を除きます。以下この表において同じです。)の金額から、その給与等の金額から控除される社会保険料等の金額（以下この表において「前月中の社会保険料等の金額」といいます。)を控除した金額を求めます。
B45: ⑵ 次に、扶養控除等申告書により申告された扶養親族等（その申告書に記載がされていないものとされる源泉控除対象配偶者及び源泉控除対象親族を除きます。また、扶養親族等が非居住者である親族（以下この表において「国外居住親族」といいます
B46: 。）である場合には、親族に該当する旨を証する書類（その国外居住親族である扶養親族等が年齢30歳以上70歳未満の控除対象扶養親族であり、かつ、留学により国内に住所及び居所を有しなくなった人である場合には、親族に該当する旨を証する書類
B47: 及び留学により国内に住所及び居所を有しなくなった人に該当する旨を証する書類）がその申告書に添付され、又はその申告書の提出の際に提示された扶養親族等に限ります。）の数と⑴により求めた金額とに応じて甲欄の「前月の社会保険料等控除後
B48: の給与等の金額」欄の該当する行を求めます。
B49: ⑶ ⑵により求めた行と「賞与の金額に乗ずべき率」欄との交わるところに記載されている率を求めます。これが求める率です。
B50: ２ １の場合において、扶養控除等申告書にその人が障害者(特別障害者を含みます。以下この表において同じです。)、寡婦、ひとり親又は勤労学生に該当する旨の記載があるときは、扶養親族等の数にこれらの一に該当するごとに１人を加算した数を、扶
B51: 養控除等申告書にその人の同一生計配偶者又は扶養親族のうちに障害者又は同居特別障害者（障害者又は同居特別障害者が国外居住親族である場合には、親族に該当する旨を証する書類がその申告書に添付され、又はその申告書の提出の際に提示された障
B52: 害者又は同居特別障害者に限ります。）に該当する人がいる旨の記載があるときは、扶養親族等の数にこれらの一に該当するごとに１人を加算した数を、それぞれ扶養親族等の数とします。
B53: ３ 扶養控除等申告書の提出がない人（「従たる給与についての扶養控除等申告書」の提出があった人を含み、４に該当する場合を除きます。）
B54: ⑴ その人の前月中の給与等の金額から前月中の社会保険料等の金額を控除した金額を求めます。
B55: ⑵ ⑴により求めた金額に応じて乙欄の「前月の社会保険料等控除後の給与等の金額」欄の該当する行を求めます。
B56: ⑶ ⑵により求めた行と「賞与の金額に乗ずべき率」欄との交わるところに記載されている率を求めます。これが求める率です。
B57: ４ 前月中の給与等の金額がない場合や前月中の給与等の金額が前月中の社会保険料等の金額以下である場合又はその賞与の金額（その金額から控除される社会保険料等の金額がある場合には、その控除後の金額）が前月中の給与等の金額から前月中の社会
B58: 保険料等の金額を控除した金額の10倍に相当する金額を超える場合には、この表によらず、平成24年３月31日財務省告示第115号（令和７年４月30日財務省告示第122号改正）第３項第１号イ⑵若しくはロ⑵又は第２号の規定により、月額表を使って税額を
B59: 計算します。
B60: ５ １から４までの場合において、その人の受ける給与等の支給期が月の整数倍の期間ごとと定められているときは、その賞与の支払の直前に支払を受けた若しくは支払を受けるべき給与等の金額又はその給与等の金額から控除される社会保険料等の金額を
B61: その倍数で除して計算した金額を、それぞれ前月中の給与等の金額又はその金額から控除される社会保険料等の金額とみなします。

Sheet 雇用保険料率 (hidden)
C3: 雇用保険料率 | D3: 労働者負担分
D4: 0
C5: =リスト表!C5 -> 一般の事業 | D5: 0.0055
C6: =リスト表!C6 -> 農林水産・清酒製造事業 | D6: 0.0065
C7: =リスト表!C7 -> 建設の事業 | D7: 0.0065
C9: 雇用保険料の対象となる賃金は、総支給額に交通費を加算した額です。

Sheet 北海道 (hidden)
A1: 令和８年３月分（４月納付分）からの健康保険・厚生年金保険の保険料額表
A3: ・健康保険料率：令和8年3月分～適用 | E3: ・厚生年金保険料率：平成29年9月分～適用 | I3: ・子ども・子育て支援金率：令和8年4月分（5月納付分）～適用
A4: ・介護保険料率：令和8年3月分～適用 | E4: ・子ども・子育て拠出金率：令和2年4月分～適用
A5: （北海道支部） | M5: （単位：円）
A6: 標 準 報 酬 | C6: 報 酬 月 額 | F6: 全国健康保険協会管掌健康保険料・介護保険料 | J6: 子ども・子育て支援金 | L6: 厚生年金保険料 （厚生年金基金加入員を除く）
F7: 介護保険第２号被保険者 に該当しない場合 | H7: 介護保険第２号被保険者 に該当する場合 | J7: 令和８年４月分（５月納付分） から納付いただきます | L7: 一般、坑内員・船員
A8: 等級 | B8: 月 額 | F8: 0.1028 | H8: 0.119 | J8: 0.0023 | L8: 0.183
F9: 全 額 | G9: 折半額 | H9: 全 額 | I9: 折半額 | J9: 全 額 | K9: 折半額 | L9: 全 額 | M9: 折半額
C10: 円以上 | E10: 円未満
A11: 1 | B11: 58000 | D11: ～ | E11: 63000 | F11: 5962.4 | G11: 2981.2 | H11: 6902 | I11: 3451 | J11: 133.4 | K11: 66.7
A12: 2 | B12: 68000 | C12: 63000 | D12: ～ | E12: 73000 | F12: 6990.4 | G12: 3495.2 | H12: 8092 | I12: 4046 | J12: 156.4 | K12: 78.2
A13: 3 | B13: 78000 | C13: 73000 | D13: ～ | E13: 83000 | F13: 8018.4 | G13: 4009.2 | H13: 9282 | I13: 4641 | J13: 179.4 | K13: 89.7
A14: 4(1) | B14: 88000 | C14: 83000 | D14: ～ | E14: 93000 | F14: 9046.4 | G14: 4523.2 | H14: 10472 | I14: 5236 | J14: 202.4 | K14: 101.2 | L14: 16104 | M14: 8052
A15: 5(2) | B15: 98000 | C15: 93000 | D15: ～ | E15: 101000 | F15: 10074.4 | G15: 5037.2 | H15: 11662 | I15: 5831 | J15: 225.4 | K15: 112.7 | L15: 17934 | M15: 8967
A16: 6(3) | B16: 104000 | C16: 101000 | D16: ～ | E16: 107000 | F16: 10691.2 | G16: 5345.6 | H16: 12376 | I16: 6188 | J16: 239.2 | K16: 119.6 | L16: 19032 | M16: 9516
A17: 7(4) | B17: 110000 | C17: 107000 | D17: ～ | E17: 114000 | F17: 11308 | G17: 5654 | H17: 13090 | I17: 6545 | J17: 253 | K17: 126.5 | L17: 20130 | M17: 10065
A18: 8(5) | B18: 118000 | C18: 114000 | D18: ～ | E18: 122000 | F18: 12130.4 | G18: 6065.2 | H18: 14042 | I18: 7021 | J18: 271.4 | K18: 135.7 | L18: 21594 | M18: 10797
A19: 9(6) | B19: 126000 | C19: 122000 | D19: ～ | E19: 130000 | F19: 12952.8 | G19: 6476.4 | H19: 14994 | I19: 7497 | J19: 289.8 | K19: 144.9 | L19: 23058 | M19: 11529
A20: 10(7) | B20: 134000 | C20: 130000 | D20: ～ | E20: 138000 | F20: 13775.2 | G20: 6887.6 | H20: 15946 | I20: 7973 | J20: 308.2 | K20: 154.1 | L20: 24522 | M20: 12261
A21: 11(8) | B21: 142000 | C21: 138000 | D21: ～ | E21: 146000 | F21: 14597.6 | G21: 7298.8 | H21: 16898 | I21: 8449 | J21: 326.6 | K21: 163.3 | L21: 25986 | M21: 12993
A22: 12(9) | B22: 150000 | C22: 146000 | D22: ～ | E22: 155000 | F22: 15420 | G22: 7710 | H22: 17850 | I22: 8925 | J22: 345 | K22: 172.5 | L22: 27450 | M22: 13725
A23: 13(10) | B23: 160000 | C23: 155000 | D23: ～ | E23: 165000 | F23: 16448 | G23: 8224 | H23: 19040 | I23: 9520 | J23: 368 | K23: 184 | L23: 29280 | M23: 14640
A24: 14(11) | B24: 170000 | C24: 165000 | D24: ～ | E24: 175000 | F24: 17476 | G24: 8738 | H24: 20230 | I24: 10115 | J24: 391 | K24: 195.5 | L24: 31110 | M24: 15555
A25: 15(12) | B25: 180000 | C25: 175000 | D25: ～ | E25: 185000 | F25: 18504 | G25: 9252 | H25: 21420 | I25: 10710 | J25: 414 | K25: 207 | L25: 32940 | M25: 16470
A26: 16(13) | B26: 190000 | C26: 185000 | D26: ～ | E26: 195000 | F26: 19532 | G26: 9766 | H26: 22610 | I26: 11305 | J26: 437 | K26: 218.5 | L26: 34770 | M26: 17385
A27: 17(14) | B27: 200000 | C27: 195000 | D27: ～ | E27: 210000 | F27: 20560 | G27: 10280 | H27: 23800 | I27: 11900 | J27: 460 | K27: 230 | L27: 36600 | M27: 18300
A28: 18(15) | B28: 220000 | C28: 210000 | D28: ～ | E28: 230000 | F28: 22616 | G28: 11308 | H28: 26180 | I28: 13090 | J28: 506 | K28: 253 | L28: 40260 | M28: 20130
A29: 19(16) | B29: 240000 | C29: 230000 | D29: ～ | E29: 250000 | F29: 24672 | G29: 12336 | H29: 28560 | I29: 14280 | J29: 552 | K29: 276 | L29: 43920 | M29: 21960
A30: 20(17) | B30: 260000 | C30: 250000 | D30: ～ | E30: 270000 | F30: 26728 | G30: 13364 | H30: 30940 | I30: 15470 | J30: 598 | K30: 299 | L30: 47580 | M30: 23790
A31: 21(18) | B31: 280000 | C31: 270000 | D31: ～ | E31: 290000 | F31: 28784 | G31: 14392 | H31: 33320 | I31: 16660 | J31: 644 | K31: 322 | L31: 51240 | M31: 25620
A32: 22(19) | B32: 300000 | C32: 290000 | D32: ～ | E32: 310000 | F32: 30840 | G32: 15420 | H32: 35700 | I32: 17850 | J32: 690 | K32: 345 | L32: 54900 | M32: 27450
A33: 23(20) | B33: 320000 | C33: 310000 | D33: ～ | E33: 330000 | F33: 32896 | G33: 16448 | H33: 38080 | I33: 19040 | J33: 736 | K33: 368 | L33: 58560 | M33: 29280
A34: 24(21) | B34: 340000 | C34: 330000 | D34: ～ | E34: 350000 | F34: 34952 | G34: 17476 | H34: 40460 | I34: 20230 | J34: 782 | K34: 391 | L34: 62220 | M34: 31110
A35: 25(22) | B35: 360000 | C35: 350000 | D35: ～ | E35: 370000 | F35: 37008 | G35: 18504 | H35: 42840 | I35: 21420 | J35: 828 | K35: 414 | L35: 65880 | M35: 32940
A36: 26(23) | B36: 380000 | C36: 370000 | D36: ～ | E36: 395000 | F36: 39064 | G36: 19532 | H36: 45220 | I36: 22610 | J36: 874 | K36: 437 | L36: 69540 | M36: 34770
A37: 27(24) | B37: 410000 | C37: 395000 | D37: ～ | E37: 425000 | F37: 42148 | G37: 21074 | H37: 48790 | I37: 24395 | J37: 943 | K37: 471.5 | L37: 75030 | M37: 37515
A38: 28(25) | B38: 440000 | C38: 425000 | D38: ～ | E38: 455000 | F38: 45232 | G38: 22616 | H38: 52360 | I38: 26180 | J38: 1012 | K38: 506 | L38: 80520 | M38: 40260
A39: 29(26) | B39: 470000 | C39: 455000 | D39: ～ | E39: 485000 | F39: 48316 | G39: 24158 | H39: 55930 | I39: 27965 | J39: 1081 | K39: 540.5 | L39: 86010 | M39: 43005
A40: 30(27) | B40: 500000 | C40: 485000 | D40: ～ | E40: 515000 | F40: 51400 | G40: 25700 | H40: 59500 | I40: 29750 | J40: 1150 | K40: 575 | L40: 91500 | M40: 45750
A41: 31(28) | B41: 530000 | C41: 515000 | D41: ～ | E41: 545000 | F41: 54484 | G41: 27242 | H41: 63070 | I41: 31535 | J41: 1219 | K41: 609.5 | L41: 96990 | M41: 48495
A42: 32(29) | B42: 560000 | C42: 545000 | D42: ～ | E42: 575000 | F42: 57568 | G42: 28784 | H42: 66640 | I42: 33320 | J42: 1288 | K42: 644 | L42: 102480 | M42: 51240
A43: 33(30) | B43: 590000 | C43: 575000 | D43: ～ | E43: 605000 | F43: 60652 | G43: 30326 | H43: 70210 | I43: 35105 | J43: 1357 | K43: 678.5 | L43: 107970 | M43: 53985
A44: 34(31) | B44: 620000 | C44: 605000 | D44: ～ | E44: 635000 | F44: 63736 | G44: 31868 | H44: 73780 | I44: 36890 | J44: 1426 | K44: 713 | L44: 113460 | M44: 56730
A45: 35(32) | B45: 650000 | C45: 635000 | D45: ～ | E45: 665000 | F45: 66820 | G45: 33410 | H45: 77350 | I45: 38675 | J45: 1495 | K45: 747.5 | L45: 118950 | M45: 59475
A46: 36 | B46: 680000 | C46: 665000 | D46: ～ | E46: 695000 | F46: 69904 | G46: 34952 | H46: 80920 | I46: 40460 | J46: 1564 | K46: 782
A47: 37 | B47: 710000 | C47: 695000 | D47: ～ | E47: 730000 | F47: 72988 | G47: 36494 | H47: 84490 | I47: 42245 | J47: 1633 | K47: 816.5 | L47: ※厚生年金基金に加入して いる方の厚生年金保険料 率は基金ごとに定められ ている免除保険料率 （2.4％～5.0％）を控除 した率となります。 加入する基金ごとに異な りますので、免除保険料 率および厚生年金基金の 掛金については、加入す る厚生年金基金にお問い 合わせください。
A48: 38 | B48: 750000 | C48: 730000 | D48: ～ | E48: 770000 | F48: 77100 | G48: 38550 | H48: 89250 | I48: 44625 | J48: 1725 | K48: 862.5
A49: 39 | B49: 790000 | C49: 770000 | D49: ～ | E49: 810000 | F49: 81212 | G49: 40606 | H49: 94010 | I49: 47005 | J49: 1817 | K49: 908.5
A50: 40 | B50: 830000 | C50: 810000 | D50: ～ | E50: 855000 | F50: 85324 | G50: 42662 | H50: 98770 | I50: 49385 | J50: 1909 | K50: 954.5
A51: 41 | B51: 880000 | C51: 855000 | D51: ～ | E51: 905000 | F51: 90464 | G51: 45232 | H51: 104720 | I51: 52360 | J51: 2024 | K51: 1012
A52: 42 | B52: 930000 | C52: 905000 | D52: ～ | E52: 955000 | F52: 95604 | G52: 47802 | H52: 110670 | I52: 55335 | J52: 2139 | K52: 1069.5
A53: 43 | B53: 980000 | C53: 955000 | D53: ～ | E53: 1005000 | F53: 100744 | G53: 50372 | H53: 116620 | I53: 58310 | J53: 2254 | K53: 1127
A54: 44 | B54: 1030000 | C54: 1005000 | D54: ～ | E54: 1055000 | F54: 105884 | G54: 52942 | H54: 122570 | I54: 61285 | J54: 2369 | K54: 1184.5
A55: 45 | B55: 1090000 | C55: 1055000 | D55: ～ | E55: 1115000 | F55: 112052 | G55: 56026 | H55: 129710 | I55: 64855 | J55: 2507 | K55: 1253.5
A56: 46 | B56: 1150000 | C56: 1115000 | D56: ～ | E56: 1175000 | F56: 118220 | G56: 59110 | H56: 136850 | I56: 68425 | J56: 2645 | K56: 1322.5
A57: 47 | B57: 1210000 | C57: 1175000 | D57: ～ | E57: 1235000 | F57: 124388 | G57: 62194 | H57: 143990 | I57: 71995 | J57: 2783 | K57: 1391.5
A58: 48 | B58: 1270000 | C58: 1235000 | D58: ～ | E58: 1295000 | F58: 130556 | G58: 65278 | H58: 151130 | I58: 75565 | J58: 2921 | K58: 1460.5
A59: 49 | B59: 1330000 | C59: 1295000 | D59: ～ | E59: 1355000 | F59: 136724 | G59: 68362 | H59: 158270 | I59: 79135 | J59: 3059 | K59: 1529.5
A60: 50 | B60: 1390000 | C60: 1355000 | D60: ～ | F60: 142892 | G60: 71446 | H60: 165410 | I60: 82705 | J60: 3197 | K60: 1598.5
A62: ◆介護保険第２号被保険者は、40歳から64歳までの方であり、健康保険料率（10.28%）と子ども・子育て支援金率（0.23%）に介護保険料率（1.62%）が加わります。
A63: ◆等級欄の（ ）内の数字は、厚生年金保険の標準報酬月額等級です。
A64: 4（1）等級の「報酬月額」欄は、厚生年金保険の場合「93,000円未満」と読み替えてください。
A65: 35（32）等級の「報酬月額」欄は、厚生年金保険の場合「635,000円以上」と読み替えてください。
A66: ◆令和8年度の全国健康保険協会の任意継続被保険者における標準報酬月額の上限は、320,000円です。
A69: ○被保険者負担分（表の折半額の欄）に円未満の端数がある場合
A70: ①事業主が、給与から被保険者負担分を控除する場合、被保険者負担分の端数が50銭以下の場合は切り捨て、50銭を超える場合は切り上げて1円となります。
A71: ②被保険者が、被保険者負担分を事業主へ現金で支払う場合、被保険者負担分の端数が50銭未満の場合は切り捨て、50銭以上の場合は切り上げて1円となります。
A72: （注）①、②にかかわらず、事業主と被保険者間で特約がある場合には、特約に基づき端数処理をすることができます。
A74: ○納入告知書の保険料額
A75: 納入告知書の保険料額は、被保険者個々の保険料額を合算した金額になります。ただし、合算した金額に円未満の端数がある場合は、その端数を切り捨てた額となります。
A77: ○賞与に係る保険料額
A78: 賞与に係る保険料額は、賞与額から1,000円未満の端数を切り捨てた額（標準賞与額)に、保険料率を乗じた額となります。
A79: また、標準賞与額の上限は、健康保険、介護保険及び子ども・子育て支援金は年間573万円（毎年4月1日から翌年3月31日までの累計額。）となり、
A80: 厚生年金保険と子ども・子育て拠出金は月間150万円となります。
A82: ○子ども・子育て拠出金
A83: 事業主の方は、児童手当の支給に要する費用等の一部として、子ども・子育て拠出金を負担いただくことになります。（被保険者の負担はありません。）
A84: この子ども・子育て拠出金の額は、被保険者個々の厚生年金保険の標準報酬月額および標準賞与額に、拠出金率（0.36％）を乗じて得た額の総額となります。

Sheet 青森 (hidden)
A1: 令和８年３月分（４月納付分）からの健康保険・厚生年金保険の保険料額表
A3: ・健康保険料率：令和7年3月分～適用 | E3: ・厚生年金保険料率：平成29年9月分～適用 | I3: ・子ども・子育て支援金率：令和8年4月分（5月納付分）～適用
A4: ・介護保険料率：令和8年3月分～適用 | E4: ・子ども・子育て拠出金率：令和2年4月分～適用
A5: （青森支部） | M5: （単位：円）
A6: 標 準 報 酬 | C6: 報 酬 月 額 | F6: 全国健康保険協会管掌健康保険料・介護保険料 | J6: 子ども・子育て支援金 | L6: 厚生年金保険料 （厚生年金基金加入員を除く）
F7: 介護保険第２号被保険者 に該当しない場合 | H7: 介護保険第２号被保険者 に該当する場合 | J7: 令和８年４月分（５月納付分） から納付いただきます | L7: 一般、坑内員・船員
A8: 等級 | B8: 月 額 | F8: 0.0985 | H8: 0.1147 | J8: 0.0023 | L8: 0.183
F9: 全 額 | G9: 折半額 | H9: 全 額 | I9: 折半額 | J9: 全 額 | K9: 折半額 | L9: 全 額 | M9: 折半額
C10: 円以上 | E10: 円未満
A11: 1 | B11: 58000 | D11: ～ | E11: 63000 | F11: 5713 | G11: 2856.5 | H11: 6652.6 | I11: 3326.3 | J11: 133.4 | K11: 66.7
A12: 2 | B12: 68000 | C12: 63000 | D12: ～ | E12: 73000 | F12: 6698 | G12: 3349 | H12: 7799.6 | I12: 3899.8 | J12: 156.4 | K12: 78.2
A13: 3 | B13: 78000 | C13: 73000 | D13: ～ | E13: 83000 | F13: 7683 | G13: 3841.5 | H13: 8946.6 | I13: 4473.3 | J13: 179.4 | K13: 89.7
A14: 4(1) | B14: 88000 | C14: 83000 | D14: ～ | E14: 93000 | F14: 8668 | G14: 4334 | H14: 10093.6 | I14: 5046.8 | J14: 202.4 | K14: 101.2 | L14: 16104 | M14: 8052
A15: 5(2) | B15: 98000 | C15: 93000 | D15: ～ | E15: 101000 | F15: 9653 | G15: 4826.5 | H15: 11240.6 | I15: 5620.3 | J15: 225.4 | K15: 112.7 | L15: 17934 | M15: 8967
A16: 6(3) | B16: 104000 | C16: 101000 | D16: ～ | E16: 107000 | F16: 10244 | G16: 5122 | H16: 11928.8 | I16: 5964.4 | J16: 239.2 | K16: 119.6 | L16: 19032 | M16: 9516
A17: 7(4) | B17: 110000 | C17: 107000 | D17: ～ | E17: 114000 | F17: 10835 | G17: 5417.5 | H17: 12617 | I17: 6308.5 | J17: 253 | K17: 126.5 | L17: 20130 | M17: 10065
A18: 8(5) | B18: 118000 | C18: 114000 | D18: ～ | E18: 122000 | F18: 11623 | G18: 5811.5 | H18: 13534.6 | I18: 6767.3 | J18: 271.4 | K18: 135.7 | L18: 21594 | M18: 10797
A19: 9(6) | B19: 126000 | C19: 122000 | D19: ～ | E19: 130000 | F19: 12411 | G19: 6205.5 | H19: 14452.2 | I19: 7226.1 | J19: 289.8 | K19: 144.9 | L19: 23058 | M19: 11529
A20: 10(7) | B20: 134000 | C20: 130000 | D20: ～ | E20: 138000 | F20: 13199 | G20: 6599.5 | H20: 15369.8 | I20: 7684.9 | J20: 308.2 | K20: 154.1 | L20: 24522 | M20: 12261
A21: 11(8) | B21: 142000 | C21: 138000 | D21: ～ | E21: 146000 | F21: 13987 | G21: 6993.5 | H21: 16287.4 | I21: 8143.7 | J21: 326.6 | K21: 163.3 | L21: 25986 | M21: 12993
A22: 12(9) | B22: 150000 | C22: 146000 | D22: ～ | E22: 155000 | F22: 14775 | G22: 7387.5 | H22: 17205 | I22: 8602.5 | J22: 345 | K22: 172.5 | L22: 27450 | M22: 13725
A23: 13(10) | B23: 160000 | C23: 155000 | D23: ～ | E23: 165000 | F23: 15760 | G23: 7880 | H23: 18352 | I23: 9176 | J23: 368 | K23: 184 | L23: 29280 | M23: 14640
A24: 14(11) | B24: 170000 | C24: 165000 | D24: ～ | E24: 175000 | F24: 16745 | G24: 8372.5 | H24: 19499 | I24: 9749.5 | J24: 391 | K24: 195.5 | L24: 31110 | M24: 15555
A25: 15(12) | B25: 180000 | C25: 175000 | D25: ～ | E25: 185000 | F25: 17730 | G25: 8865 | H25: 20646 | I25: 10323 | J25: 414 | K25: 207 | L25: 32940 | M25: 16470
A26: 16(13) | B26: 190000 | C26: 185000 | D26: ～ | E26: 195000 | F26: 18715 | G26: 9357.5 | H26: 21793 | I26: 10896.5 | J26: 437 | K26: 218.5 | L26: 34770 | M26: 17385
A27: 17(14) | B27: 200000 | C27: 195000 | D27: ～ | E27: 210000 | F27: 19700 | G27: 9850 | H27: 22940 | I27: 11470 | J27: 460 | K27: 230 | L27: 36600 | M27: 18300
A28: 18(15) | B28: 220000 | C28: 210000 | D28: ～ | E28: 230000 | F28: 21670 | G28: 10835 | H28: 25234 | I28: 12617 | J28: 506 | K28: 253 | L28: 40260 | M28: 20130
A29: 19(16) | B29: 240000 | C29: 230000 | D29: ～ | E29: 250000 | F29: 23640 | G29: 11820 | H29: 27528 | I29: 13764 | J29: 552 | K29: 276 | L29: 43920 | M29: 21960
A30: 20(17) | B30: 260000 | C30: 250000 | D30: ～ | E30: 270000 | F30: 25610 | G30: 12805 | H30: 29822 | I30: 14911 | J30: 598 | K30: 299 | L30: 47580 | M30: 23790
A31: 21(18) | B31: 280000 | C31: 270000 | D31: ～ | E31: 290000 | F31: 27580 | G31: 13790 | H31: 32116 | I31: 16058 | J31: 644 | K31: 322 | L31: 51240 | M31: 25620
A32: 22(19) | B32: 300000 | C32: 290000 | D32: ～ | E32: 310000 | F32: 29550 | G32: 14775 | H32: 34410 | I32: 17205 | J32: 690 | K32: 345 | L32: 54900 | M32: 27450
A33: 23(20) | B33: 320000 | C33: 310000 | D33: ～ | E33: 330000 | F33: 31520 | G33: 15760 | H33: 36704 | I33: 18352 | J33: 736 | K33: 368 | L33: 58560 | M33: 29280
A34: 24(21) | B34: 340000 | C34: 330000 | D34: ～ | E34: 350000 | F34: 33490 | G34: 16745 | H34: 38998 | I34: 19499 | J34: 782 | K34: 391 | L34: 62220 | M34: 31110
A35: 25(22) | B35: 360000 | C35: 350000 | D35: ～ | E35: 370000 | F35: 35460 | G35: 17730 | H35: 41292 | I35: 20646 | J35: 828 | K35: 414 | L35: 65880 | M35: 32940
A36: 26(23) | B36: 380000 | C36: 370000 | D36: ～ | E36: 395000 | F36: 37430 | G36: 18715 | H36: 43586 | I36: 21793 | J36: 874 | K36: 437 | L36: 69540 | M36: 34770
A37: 27(24) | B37: 410000 | C37: 395000 | D37: ～ | E37: 425000 | F37: 40385 | G37: 20192.5 | H37: 47027 | I37: 23513.5 | J37: 943 | K37: 471.5 | L37: 75030 | M37: 37515
A38: 28(25) | B38: 440000 | C38: 425000 | D38: ～ | E38: 455000 | F38: 43340 | G38: 21670 | H38: 50468 | I38: 25234 | J38: 1012 | K38: 506 | L38: 80520 | M38: 40260
A39: 29(26) | B39: 470000 | C39: 455000 | D39: ～ | E39: 485000 | F39: 46295 | G39: 23147.5 | H39: 53909 | I39: 26954.5 | J39: 1081 | K39: 540.5 | L39: 86010 | M39: 43005
A40: 30(27) | B40: 500000 | C40: 485000 | D40: ～ | E40: 515000 | F40: 49250 | G40: 24625 | H40: 57350 | I40: 28675 | J40: 1150 | K40: 575 | L40: 91500 | M40: 45750
A41: 31(28) | B41: 530000 | C41: 515000 | D41: ～ | E41: 545000 | F41: 52205 | G41: 26102.5 | H41: 60791 | I41: 30395.5 | J41: 1219 | K41: 609.5 | L41: 96990 | M41: 48495
A42: 32(29) | B42: 560000 | C42: 545000 | D42: ～ | E42: 575000 | F42: 55160 | G42: 27580 | H42: 64232 | I42: 32116 | J42: 1288 | K42: 644 | L42: 102480 | M42: 51240
A43: 33(30) | B43: 590000 | C43: 575000 | D43: ～ | E43: 605000 | F43: 58115 | G43: 29057.5 | H43: 67673 | I43: 33836.5 | J43: 1357 | K43: 678.5 | L43: 107970 | M43: 53985
A44: 34(31) | B44: 620000 | C44: 605000 | D44: ～ | E44: 635000 | F44: 61070 | G44: 30535 | H44: 71114 | I44: 35557 | J44: 1426 | K44: 713 | L44: 113460 | M44: 56730
A45: 35(32) | B45: 650000 | C45: 635000 | D45: ～ | E45: 665000 | F45: 64025 | G45: 32012.5 | H45: 74555 | I45: 37277.5 | J45: 1495 | K45: 747.5 | L45: 118950 | M45: 59475
A46: 36 | B46: 680000 | C46: 665000 | D46: ～ | E46: 695000 | F46: 66980 | G46: 33490 | H46: 77996 | I46: 38998 | J46: 1564 | K46: 782
A47: 37 | B47: 710000 | C47: 695000 | D47: ～ | E47: 730000 | F47: 69935 | G47: 34967.5 | H47: 81437 | I47: 40718.5 | J47: 1633 | K47: 816.5 | L47: ※厚生年金基金に加入して いる方の厚生年金保険料 率は基金ごとに定められ ている免除保険料率 （2.4％～5.0％）を控除 した率となります。 加入する基金ごとに異な りますので、免除保険料 率および厚生年金基金の 掛金については、加入す る厚生年金基金にお問い 合わせください。
A48: 38 | B48: 750000 | C48: 730000 | D48: ～ | E48: 770000 | F48: 73875 | G48: 36937.5 | H48: 86025 | I48: 43012.5 | J48: 1725 | K48: 862.5
A49: 39 | B49: 790000 | C49: 770000 | D49: ～ | E49: 810000 | F49: 77815 | G49: 38907.5 | H49: 90613 | I49: 45306.5 | J49: 1817 | K49: 908.5
A50: 40 | B50: 830000 | C50: 810000 | D50: ～ | E50: 855000 | F50: 81755 | G50: 40877.5 | H50: 95201 | I50: 47600.5 | J50: 1909 | K50: 954.5
A51: 41 | B51: 880000 | C51: 855000 | D51: ～ | E51: 905000 | F51: 86680 | G51: 43340 | H51: 100936 | I51: 50468 | J51: 2024 | K51: 1012
A52: 42 | B52: 930000 | C52: 905000 | D52: ～ | E52: 955000 | F52: 91605 | G52: 45802.5 | H52: 106671 | I52: 53335.5 | J52: 2139 | K52: 1069.5
A53: 43 | B53: 980000 | C53: 955000 | D53: ～ | E53: 1005000 | F53: 96530 | G53: 48265 | H53: 112406 | I53: 56203 | J53: 2254 | K53: 1127
A54: 44 | B54: 1030000 | C54: 1005000 | D54: ～ | E54: 1055000 | F54: 101455 | G54: 50727.5 | H54: 118141 | I54: 59070.5 | J54: 2369 | K54: 1184.5
A55: 45 | B55: 1090000 | C55: 1055000 | D55: ～ | E55: 1115000 | F55: 107365 | G55: 53682.5 | H55: 125023 | I55: 62511.5 | J55: 2507 | K55: 1253.5
A56: 46 | B56: 1150000 | C56: 1115000 | D56: ～ | E56: 1175000 | F56: 113275 | G56: 56637.5 | H56: 131905 | I56: 65952.5 | J56: 2645 | K56: 1322.5
A57: 47 | B57: 1210000 | C57: 1175000 | D57: ～ | E57: 1235000 | F57: 119185 | G57: 59592.5 | H57: 138787 | I57: 69393.5 | J57: 2783 | K57: 1391.5
A58: 48 | B58: 1270000 | C58: 1235000 | D58: ～ | E58: 1295000 | F58: 125095 | G58: 62547.5 | H58: 145669 | I58: 72834.5 | J58: 2921 | K58: 1460.5
A59: 49 | B59: 1330000 | C59: 1295000 | D59: ～ | E59: 1355000 | F59: 131005 | G59: 65502.5 | H59: 152551 | I59: 76275.5 | J59: 3059 | K59: 1529.5
A60: 50 | B60: 1390000 | C60: 1355000 | D60: ～ | F60: 136915 | G60: 68457.5 | H60: 159433 | I60: 79716.5 | J60: 3197 | K60: 1598.5
A62: ◆介護保険第２号被保険者は、40歳から64歳までの方であり、健康保険料率（9.85%）と子ども・子育て支援金率（0.23%）に介護保険料率（1.62%）が加わります。
A63: ◆等級欄の（ ）内の数字は、厚生年金保険の標準報酬月額等級です。
A64: 4（1）等級の「報酬月額」欄は、厚生年金保険の場合「93,000円未満」と読み替えてください。
A65: 35（32）等級の「報酬月額」欄は、厚生年金保険の場合「635,000円以上」と読み替えてください。
A66: ◆令和8年度の全国健康保険協会の任意継続被保険者における標準報酬月額の上限は、320,000円です。
A69: ○被保険者負担分（表の折半額の欄）に円未満の端数がある場合
A70: ①事業主が、給与から被保険者負担分を控除する場合、被保険者負担分の端数が50銭以下の場合は切り捨て、50銭を超える場合は切り上げて1円となります。
A71: ②被保険者が、被保険者負担分を事業主へ現金で支払う場合、被保険者負担分の端数が50銭未満の場合は切り捨て、50銭以上の場合は切り上げて1円となります。
A72: （注）①、②にかかわらず、事業主と被保険者間で特約がある場合には、特約に基づき端数処理をすることができます。
A74: ○納入告知書の保険料額
A75: 納入告知書の保険料額は、被保険者個々の保険料額を合算した金額になります。ただし、合算した金額に円未満の端数がある場合は、その端数を切り捨てた額となります。
A77: ○賞与に係る保険料額
A78: 賞与に係る保険料額は、賞与額から1,000円未満の端数を切り捨てた額（標準賞与額)に、保険料率を乗じた額となります。
A79: また、標準賞与額の上限は、健康保険、介護保険及び子ども・子育て支援金は年間573万円（毎年4月1日から翌年3月31日までの累計額。）となり、
A80: 厚生年金保険と子ども・子育て拠出金は月間150万円となります。
A82: ○子ども・子育て拠出金
A83: 事業主の方は、児童手当の支給に要する費用等の一部として、子ども・子育て拠出金を負担いただくことになります。（被保険者の負担はありません。）
A84: この子ども・子育て拠出金の額は、被保険者個々の厚生年金保険の標準報酬月額および標準賞与額に、拠出金率（0.36％）を乗じて得た額の総額となります。

Sheet 岩手 (hidden)
A1: 令和８年３月分（４月納付分）からの健康保険・厚生年金保険の保険料額表
A3: ・健康保険料率：令和8年3月分～適用 | E3: ・厚生年金保険料率：平成29年9月分～適用 | I3: ・子ども・子育て支援金率：令和8年4月分（5月納付分）～適用
A4: ・介護保険料率：令和8年3月分～適用 | E4: ・子ども・子育て拠出金率：令和2年4月分～適用
A5: （岩手支部） | M5: （単位：円）
A6: 標 準 報 酬 | C6: 報 酬 月 額 | F6: 全国健康保険協会管掌健康保険料・介護保険料 | J6: 子ども・子育て支援金 | L6: 厚生年金保険料 （厚生年金基金加入員を除く）
F7: 介護保険第２号被保険者 に該当しない場合 | H7: 介護保険第２号被保険者 に該当する場合 | J7: 令和８年４月分（５月納付分） から納付いただきます | L7: 一般、坑内員・船員
A8: 等級 | B8: 月 額 | F8: 0.0951 | H8: 0.1113 | J8: 0.0023 | L8: 0.183
F9: 全 額 | G9: 折半額 | H9: 全 額 | I9: 折半額 | J9: 全 額 | K9: 折半額 | L9: 全 額 | M9: 折半額
C10: 円以上 | E10: 円未満
A11: 1 | B11: 58000 | D11: ～ | E11: 63000 | F11: 5515.8 | G11: 2757.9 | H11: 6455.4 | I11: 3227.7 | J11: 133.4 | K11: 66.7
A12: 2 | B12: 68000 | C12: 63000 | D12: ～ | E12: 73000 | F12: 6466.8 | G12: 3233.4 | H12: 7568.4 | I12: 3784.2 | J12: 156.4 | K12: 78.2
A13: 3 | B13: 78000 | C13: 73000 | D13: ～ | E13: 83000 | F13: 7417.8 | G13: 3708.9 | H13: 8681.4 | I13: 4340.7 | J13: 179.4 | K13: 89.7
A14: 4(1) | B14: 88000 | C14: 83000 | D14: ～ | E14: 93000 | F14: 8368.8 | G14: 4184.4 | H14: 9794.4 | I14: 4897.2 | J14: 202.4 | K14: 101.2 | L14: 16104 | M14: 8052
A15: 5(2) | B15: 98000 | C15: 93000 | D15: ～ | E15: 101000 | F15: 9319.8 | G15: 4659.9 | H15: 10907.4 | I15: 5453.7 | J15: 225.4 | K15: 112.7 | L15: 17934 | M15: 8967
A16: 6(3) | B16: 104000 | C16: 101000 | D16: ～ | E16: 107000 | F16: 9890.4 | G16: 4945.2 | H16: 11575.2 | I16: 5787.6 | J16: 239.2 | K16: 119.6 | L16: 19032 | M16: 9516
A17: 7(4) | B17: 110000 | C17: 107000 | D17: ～ | E17: 114000 | F17: 10461 | G17: 5230.5 | H17: 12243 | I17: 6121.5 | J17: 253 | K17: 126.5 | L17: 20130 | M17: 10065
A18: 8(5) | B18: 118000 | C18: 114000 | D18: ～ | E18: 122000 | F18: 11221.8 | G18: 5610.9 | H18: 13133.4 | I18: 6566.7 | J18: 271.4 | K18: 135.7 | L18: 21594 | M18: 10797
A19: 9(6) | B19: 126000 | C19: 122000 | D19: ～ | E19: 130000 | F19: 11982.6 | G19: 5991.3 | H19: 14023.8 | I19: 7011.9 | J19: 289.8 | K19: 144.9 | L19: 23058 | M19: 11529
A20: 10(7) | B20: 134000 | C20: 130000 | D20: ～ | E20: 138000 | F20: 12743.4 | G20: 6371.7 | H20: 14914.2 | I20: 7457.1 | J20: 308.2 | K20: 154.1 | L20: 24522 | M20: 12261
A21: 11(8) | B21: 142000 | C21: 138000 | D21: ～ | E21: 146000 | F21: 13504.2 | G21: 6752.1 | H21: 15804.6 | I21: 7902.3 | J21: 326.6 | K21: 163.3 | L21: 25986 | M21: 12993
A22: 12(9) | B22: 150000 | C22: 146000 | D22: ～ | E22: 155000 | F22: 14265 | G22: 7132.5 | H22: 16695 | I22: 8347.5 | J22: 345 | K22: 172.5 | L22: 27450 | M22: 13725
A23: 13(10) | B23: 160000 | C23: 155000 | D23: ～ | E23: 165000 | F23: 15216 | G23: 7608 | H23: 17808 | I23: 8904 | J23: 368 | K23: 184 | L23: 29280 | M23: 14640
A24: 14(11) | B24: 170000 | C24: 165000 | D24: ～ | E24: 175000 | F24: 16167 | G24: 8083.5 | H24: 18921 | I24: 9460.5 | J24: 391 | K24: 195.5 | L24: 31110 | M24: 15555
A25: 15(12) | B25: 180000 | C25: 175000 | D25: ～ | E25: 185000 | F25: 17118 | G25: 8559 | H25: 20034 | I25: 10017 | J25: 414 | K25: 207 | L25: 32940 | M25: 16470
A26: 16(13) | B26: 190000 | C26: 185000 | D26: ～ | E26: 195000 | F26: 18069 | G26: 9034.5 | H26: 21147 | I26: 10573.5 | J26: 437 | K26: 218.5 | L26: 34770 | M26: 17385
A27: 17(14) | B27: 200000 | C27: 195000 | D27: ～ | E27: 210000 | F27: 19020 | G27: 9510 | H27: 22260 | I27: 11130 | J27: 460 | K27: 230 | L27: 36600 | M27: 18300
A28: 18(15) | B28: 220000 | C28: 210000 | D28: ～ | E28: 230000 | F28: 20922 | G28: 10461 | H28: 24486 | I28: 12243 | J28: 506 | K28: 253 | L28: 40260 | M28: 20130
A29: 19(16) | B29: 240000 | C29: 230000 | D29: ～ | E29: 250000 | F29: 22824 | G29: 11412 | H29: 26712 | I29: 13356 | J29: 552 | K29: 276 | L29: 43920 | M29: 21960
A30: 20(17) | B30: 260000 | C30: 250000 | D30: ～ | E30: 270000 | F30: 24726 | G30: 12363 | H30: 28938 | I30: 14469 | J30: 598 | K30: 299 | L30: 47580 | M30: 23790
A31: 21(18) | B31: 280000 | C31: 270000 | D31: ～ | E31: 290000 | F31: 26628 | G31: 13314 | H31: 31164 | I31: 15582 | J31: 644 | K31: 322 | L31: 51240 | M31: 25620
A32: 22(19) | B32: 300000 | C32: 290000 | D32: ～ | E32: 310000 | F32: 28530 | G32: 14265 | H32: 33390 | I32: 16695 | J32: 690 | K32: 345 | L32: 54900 | M32: 27450
A33: 23(20) | B33: 320000 | C33: 310000 | D33: ～ | E33: 330000 | F33: 30432 | G33: 15216 | H33: 35616 | I33: 17808 | J33: 736 | K33: 368 | L33: 58560 | M33: 29280
A34: 24(21) | B34: 340000 | C34: 330000 | D34: ～ | E34: 350000 | F34: 32334 | G34: 16167 | H34: 37842 | I34: 18921 | J34: 782 | K34: 391 | L34: 62220 | M34: 31110
A35: 25(22) | B35: 360000 | C35: 350000 | D35: ～ | E35: 370000 | F35: 34236 | G35: 17118 | H35: 40068 | I35: 20034 | J35: 828 | K35: 414 | L35: 65880 | M35: 32940
A36: 26(23) | B36: 380000 | C36: 370000 | D36: ～ | E36: 395000 | F36: 36138 | G36: 18069 | H36: 42294 | I36: 21147 | J36: 874 | K36: 437 | L36: 69540 | M36: 34770
A37: 27(24) | B37: 410000 | C37: 395000 | D37: ～ | E37: 425000 | F37: 38991 | G37: 19495.5 | H37: 45633 | I37: 22816.5 | J37: 943 | K37: 471.5 | L37: 75030 | M37: 37515
A38: 28(25) | B38: 440000 | C38: 425000 | D38: ～ | E38: 455000 | F38: 41844 | G38: 20922 | H38: 48972 | I38: 24486 | J38: 1012 | K38: 506 | L38: 80520 | M38: 40260
A39: 29(26) | B39: 470000 | C39: 455000 | D39: ～ | E39: 485000 | F39: 44697 | G39: 22348.5 | H39: 52311 | I39: 26155.5 | J39: 1081 | K39: 540.5 | L39: 86010 | M39: 43005
A40: 30(27) | B40: 500000 | C40: 485000 | D40: ～ | E40: 515000 | F40: 47550 | G40: 23775 | H40: 55650 | I40: 27825 | J40: 1150 | K40: 575 | L40: 91500 | M40: 45750
A41: 31(28) | B41: 530000 | C41: 515000 | D41: ～ | E41: 545000 | F41: 50403 | G41: 25201.5 | H41: 58989 | I41: 29494.5 | J41: 1219 | K41: 609.5 | L41: 96990 | M41: 48495
A42: 32(29) | B42: 560000 | C42: 545000 | D42: ～ | E42: 575000 | F42: 53256 | G42: 26628 | H42: 62328 | I42: 31164 | J42: 1288 | K42: 644 | L42: 102480 | M42: 51240
A43: 33(30) | B43: 590000 | C43: 575000 | D43: ～ | E43: 605000 | F43: 56109 | G43: 28054.5 | H43: 65667 | I43: 32833.5 | J43: 1357 | K43: 678.5 | L43: 107970 | M43: 53985
A44: 34(31) | B44: 620000 | C44: 605000 | D44: ～ | E44: 635000 | F44: 58962 | G44: 29481 | H44: 69006 | I44: 34503 | J44: 1426 | K44: 713 | L44: 113460 | M44: 56730
A45: 35(32) | B45: 650000 | C45: 635000 | D45: ～ | E45: 665000 | F45: 61815 | G45: 30907.5 | H45: 72345 | I45: 36172.5 | J45: 1495 | K45: 747.5 | L45: 118950 | M45: 59475
A46: 36 | B46: 680000 | C46: 665000 | D46: ～ | E46: 695000 | F46: 64668 | G46: 32334 | H46: 75684 | I46: 37842 | J46: 1564 | K46: 782
A47: 37 | B47: 710000 | C47: 695000 | D47: ～ | E47: 730000 | F47: 67521 | G47: 33760.5 | H47: 79023 | I47: 39511.5 | J47: 1633 | K47: 816.5 | L47: ※厚生年金基金に加入して いる方の厚生年金保険料 率は基金ごとに定められ ている免除保険料率 （2.4％～5.0％）を控除 した率となります。 加入する基金ごとに異な りますので、免除保険料 率および厚生年金基金の 掛金については、加入す る厚生年金基金にお問い 合わせください。
A48: 38 | B48: 750000 | C48: 730000 | D48: ～ | E48: 770000 | F48: 71325 | G48: 35662.5 | H48: 83475 | I48: 41737.5 | J48: 1725 | K48: 862.5
A49: 39 | B49: 790000 | C49: 770000 | D49: ～ | E49: 810000 | F49: 75129 | G49: 37564.5 | H49: 87927 | I49: 43963.5 | J49: 1817 | K49: 908.5
A50: 40 | B50: 830000 | C50: 810000 | D50: ～ | E50: 855000 | F50: 78933 | G50: 39466.5 | H50: 92379 | I50: 46189.5 | J50: 1909 | K50: 954.5
A51: 41 | B51: 880000 | C51: 855000 | D51: ～ | E51: 905000 | F51: 83688 | G51: 41844 | H51: 97944 | I51: 48972 | J51: 2024 | K51: 1012
A52: 42 | B52: 930000 | C52: 905000 | D52: ～ | E52: 955000 | F52: 88443 | G52: 44221.5 | H52: 103509 | I52: 51754.5 | J52: 2139 | K52: 1069.5
A53: 43 | B53: 980000 | C53: 955000 | D53: ～ | E53: 1005000 | F53: 93198 | G53: 46599 | H53: 109074 | I53: 54537 | J53: 2254 | K53: 1127
A54: 44 | B54: 1030000 | C54: 1005000 | D54: ～ | E54: 1055000 | F54: 97953 | G54: 48976.5 | H54: 114639 | I54: 57319.5 | J54: 2369 | K54: 1184.5
A55: 45 | B55: 1090000 | C55: 1055000 | D55: ～ | E55: 1115000 | F55: 103659 | G55: 51829.5 | H55: 121317 | I55: 60658.5 | J55: 2507 | K55: 1253.5
A56: 46 | B56: 1150000 | C56: 1115000 | D56: ～ | E56: 1175000 | F56: 109365 | G56: 54682.5 | H56: 127995 | I56: 63997.5 | J56: 2645 | K56: 1322.5
A57: 47 | B57: 1210000 | C57: 1175000 | D57: ～ | E57: 1235000 | F57: 115071 | G57: 57535.5 | H57: 134673 | I57: 67336.5 | J57: 2783 | K57: 1391.5
A58: 48 | B58: 1270000 | C58: 1235000 | D58: ～ | E58: 1295000 | F58: 120777 | G58: 60388.5 | H58: 141351 | I58: 70675.5 | J58: 2921 | K58: 1460.5
A59: 49 | B59: 1330000 | C59: 1295000 | D59: ～ | E59: 1355000 | F59: 126483 | G59: 63241.5 | H59: 148029 | I59: 74014.5 | J59: 3059 | K59: 1529.5
A60: 50 | B60: 1390000 | C60: 1355000 | D60: ～ | F60: 132189 | G60: 66094.5 | H60: 154707 | I60: 77353.5 | J60: 3197 | K60: 1598.5
A62: ◆介護保険第２号被保険者は、40歳から64歳までの方であり、健康保険料率（9.51%）と子ども・子育て支援金率（0.23%）に介護保険料率（1.62%）が加わります。
A63: ◆等級欄の（ ）内の数字は、厚生年金保険の標準報酬月額等級です。
A64: 4（1）等級の「報酬月額」欄は、厚生年金保険の場合「93,000円未満」と読み替えてください。
A65: 35（32）等級の「報酬月額」欄は、厚生年金保険の場合「635,000円以上」と読み替えてください。
A66: ◆令和8年度の全国健康保険協会の任意継続被保険者における標準報酬月額の上限は、320,000円です。
A69: ○被保険者負担分（表の折半額の欄）に円未満の端数がある場合
A70: ①事業主が、給与から被保険者負担分を控除する場合、被保険者負担分の端数が50銭以下の場合は切り捨て、50銭を超える場合は切り上げて1円となります。
A71: ②被保険者が、被保険者負担分を事業主へ現金で支払う場合、被保険者負担分の端数が50銭未満の場合は切り捨て、50銭以上の場合は切り上げて1円となります。
A72: （注）①、②にかかわらず、事業主と被保険者間で特約がある場合には、特約に基づき端数処理をすることができます。
A74: ○納入告知書の保険料額
A75: 納入告知書の保険料額は、被保険者個々の保険料額を合算した金額になります。ただし、合算した金額に円未満の端数がある場合は、その端数を切り捨てた額となります。
A77: ○賞与に係る保険料額
A78: 賞与に係る保険料額は、賞与額から1,000円未満の端数を切り捨てた額（標準賞与額)に、保険料率を乗じた額となります。
A79: また、標準賞与額の上限は、健康保険、介護保険及び子ども・子育て支援金は年間573万円（毎年4月1日から翌年3月31日までの累計額。）となり、
A80: 厚生年金保険と子ども・子育て拠出金は月間150万円となります。
A82: ○子ども・子育て拠出金
A83: 事業主の方は、児童手当の支給に要する費用等の一部として、子ども・子育て拠出金を負担いただくことになります。（被保険者の負担はありません。）
A84: この子ども・子育て拠出金の額は、被保険者個々の厚生年金保険の標準報酬月額および標準賞与額に、拠出金率（0.36％）を乗じて得た額の総額となります。

Sheet 宮城 (hidden)
A1: 令和８年３月分（４月納付分）からの健康保険・厚生年金保険の保険料額表
A3: ・健康保険料率：令和8年3月分～適用 | E3: ・厚生年金保険料率：平成29年9月分～適用 | I3: ・子ども・子育て支援金率：令和8年4月分（5月納付分）～適用
A4: ・介護保険料率：令和8年3月分～適用 | E4: ・子ども・子育て拠出金率：令和2年4月分～適用
A5: （宮城支部） | M5: （単位：円）
A6: 標 準 報 酬 | C6: 報 酬 月 額 | F6: 全国健康保険協会管掌健康保険料・介護保険料 | J6: 子ども・子育て支援金 | L6: 厚生年金保険料 （厚生年金基金加入員を除く）
F7: 介護保険第２号被保険者 に該当しない場合 | H7: 介護保険第２号被保険者 に該当する場合 | J7: 令和８年４月分（５月納付分） から納付いただきます | L7: 一般、坑内員・船員
A8: 等級 | B8: 月 額 | F8: 0.101 | H8: 0.1172 | J8: 0.0023 | L8: 0.183
F9: 全 額 | G9: 折半額 | H9: 全 額 | I9: 折半額 | J9: 全 額 | K9: 折半額 | L9: 全 額 | M9: 折半額
C10: 円以上 | E10: 円未満
A11: 1 | B11: 58000 | D11: ～ | E11: 63000 | F11: 5858 | G11: 2929 | H11: 6797.6 | I11: 3398.8 | J11: 133.4 | K11: 66.7
A12: 2 | B12: 68000 | C12: 63000 | D12: ～ | E12: 73000 | F12: 6868 | G12: 3434 | H12: 7969.6 | I12: 3984.8 | J12: 156.4 | K12: 78.2
A13: 3 | B13: 78000 | C13: 73000 | D13: ～ | E13: 83000 | F13: 7878 | G13: 3939 | H13: 9141.6 | I13: 4570.8 | J13: 179.4 | K13: 89.7
A14: 4(1) | B14: 88000 | C14: 83000 | D14: ～ | E14: 93000 | F14: 8888 | G14: 4444 | H14: 10313.6 | I14: 5156.8 | J14: 202.4 | K14: 101.2 | L14: 16104 | M14: 8052
A15: 5(2) | B15: 98000 | C15: 93000 | D15: ～ | E15: 101000 | F15: 9898 | G15: 4949 | H15: 11485.6 | I15: 5742.8 | J15: 225.4 | K15: 112.7 | L15: 17934 | M15: 8967
A16: 6(3) | B16: 104000 | C16: 101000 | D16: ～ | E16: 107000 | F16: 10504 | G16: 5252 | H16: 12188.8 | I16: 6094.4 | J16: 239.2 | K16: 119.6 | L16: 19032 | M16: 9516
A17: 7(4) | B17: 110000 | C17: 107000 | D17: ～ | E17: 114000 | F17: 11110 | G17: 5555 | H17: 12892 | I17: 6446 | J17: 253 | K17: 126.5 | L17: 20130 | M17: 10065
A18: 8(5) | B18: 118000 | C18: 114000 | D18: ～ | E18: 122000 | F18: 11918 | G18: 5959 | H18: 13829.6 | I18: 6914.8 | J18: 271.4 | K18: 135.7 | L18: 21594 | M18: 10797
A19: 9(6) | B19: 126000 | C19: 122000 | D19: ～ | E19: 130000 | F19: 12726 | G19: 6363 | H19: 14767.2 | I19: 7383.6 | J19: 289.8 | K19: 144.9 | L19: 23058 | M19: 11529
A20: 10(7) | B20: 134000 | C20: 130000 | D20: ～ | E20: 138000 | F20: 13534 | G20: 6767 | H20: 15704.8 | I20: 7852.4 | J20: 308.2 | K20: 154.1 | L20: 24522 | M20: 12261
A21: 11(8) | B21: 142000 | C21: 138000 | D21: ～ | E21: 146000 | F21: 14342 | G21: 7171 | H21: 16642.4 | I21: 8321.2 | J21: 326.6 | K21: 163.3 | L21: 25986 | M21: 12993
A22: 12(9) | B22: 150000 | C22: 146000 | D22: ～ | E22: 155000 | F22: 15150 | G22: 7575 | H22: 17580 | I22: 8790 | J22: 345 | K22: 172.5 | L22: 27450 | M22: 13725
A23: 13(10) | B23: 160000 | C23: 155000 | D23: ～ | E23: 165000 | F23: 16160 | G23: 8080 | H23: 18752 | I23: 9376 | J23: 368 | K23: 184 | L23: 29280 | M23: 14640
A24: 14(11) | B24: 170000 | C24: 165000 | D24: ～ | E24: 175000 | F24: 17170 | G24: 8585 | H24: 19924 | I24: 9962 | J24: 391 | K24: 195.5 | L24: 31110 | M24: 15555
A25: 15(12) | B25: 180000 | C25: 175000 | D25: ～ | E25: 185000 | F25: 18180 | G25: 9090 | H25: 21096 | I25: 10548 | J25: 414 | K25: 207 | L25: 32940 | M25: 16470
A26: 16(13) | B26: 190000 | C26: 185000 | D26: ～ | E26: 195000 | F26: 19190 | G26: 9595 | H26: 22268 | I26: 11134 | J26: 437 | K26: 218.5 | L26: 34770 | M26: 17385
A27: 17(14) | B27: 200000 | C27: 195000 | D27: ～ | E27: 210000 | F27: 20200 | G27: 10100 | H27: 23440 | I27: 11720 | J27: 460 | K27: 230 | L27: 36600 | M27: 18300
A28: 18(15) | B28: 220000 | C28: 210000 | D28: ～ | E28: 230000 | F28: 22220 | G28: 11110 | H28: 25784 | I28: 12892 | J28: 506 | K28: 253 | L28: 40260 | M28: 20130
A29: 19(16) | B29: 240000 | C29: 230000 | D29: ～ | E29: 250000 | F29: 24240 | G29: 12120 | H29: 28128 | I29: 14064 | J29: 552 | K29: 276 | L29: 43920 | M29: 21960
A30: 20(17) | B30: 260000 | C30: 250000 | D30: ～ | E30: 270000 | F30: 26260 | G30: 13130 | H30: 30472 | I30: 15236 | J30: 598 | K30: 299 | L30: 47580 | M30: 23790
A31: 21(18) | B31: 280000 | C31: 270000 | D31: ～ | E31: 290000 | F31: 28280 | G31: 14140 | H31: 32816 | I31: 16408 | J31: 644 | K31: 322 | L31: 51240 | M31: 25620
A32: 22(19) | B32: 300000 | C32: 290000 | D32: ～ | E32: 310000 | F32: 30300 | G32: 15150 | H32: 35160 | I32: 17580 | J32: 690 | K32: 345 | L32: 54900 | M32: 27450
A33: 23(20) | B33: 320000 | C33: 310000 | D33: ～ | E33: 330000 | F33: 32320 | G33: 16160 | H33: 37504 | I33: 18752 | J33: 736 | K33: 368 | L33: 58560 | M33: 29280
A34: 24(21) | B34: 340000 | C34: 330000 | D34: ～ | E34: 350000 | F34: 34340 | G34: 17170 | H34: 39848 | I34: 19924 | J34: 782 | K34: 391 | L34: 62220 | M34: 31110
A35: 25(22) | B35: 360000 | C35: 350000 | D35: ～ | E35: 370000 | F35: 36360 | G35: 18180 | H35: 42192 | I35: 21096 | J35: 828 | K35: 414 | L35: 65880 | M35: 32940
A36: 26(23) | B36: 380000 | C36: 370000 | D36: ～ | E36: 395000 | F36: 38380 | G36: 19190 | H36: 44536 | I36: 22268 | J36: 874 | K36: 437 | L36: 69540 | M36: 34770
A37: 27(24) | B37: 410000 | C37: 395000 | D37: ～ | E37: 425000 | F37: 41410 | G37: 20705 | H37: 48052 | I37: 24026 | J37: 943 | K37: 471.5 | L37: 75030 | M37: 37515
A38: 28(25) | B38: 440000 | C38: 425000 | D38: ～ | E38: 455000 | F38: 44440 | G38: 22220 | H38: 51568 | I38: 25784 | J38: 1012 | K38: 506 | L38: 80520 | M38: 40260
A39: 29(26) | B39: 470000 | C39: 455000 | D39: ～ | E39: 485000 | F39: 47470 | G39: 23735 | H39: 55084 | I39: 27542 | J39: 1081 | K39: 540.5 | L39: 86010 | M39: 43005
A40: 30(27) | B40: 500000 | C40: 485000 | D40: ～ | E40: 515000 | F40: 50500 | G40: 25250 | H40: 58600 | I40: 29300 | J40: 1150 | K40: 575 | L40: 91500 | M40: 45750
A41: 31(28) | B41: 530000 | C41: 515000 | D41: ～ | E41: 545000 | F41: 53530 | G41: 26765 | H41: 62116 | I41: 31058 | J41: 1219 | K41: 609.5 | L41: 96990 | M41: 48495
A42: 32(29) | B42: 560000 | C42: 545000 | D42: ～ | E42: 575000 | F42: 56560 | G42: 28280 | H42: 65632 | I42: 32816 | J42: 1288 | K42: 644 | L42: 102480 | M42: 51240
A43: 33(30) | B43: 590000 | C43: 575000 | D43: ～ | E43: 605000 | F43: 59590 | G43: 29795 | H43: 69148 | I43: 34574 | J43: 1357 | K43: 678.5 | L43: 107970 | M43: 53985
A44: 34(31) | B44: 620000 | C44: 605000 | D44: ～ | E44: 635000 | F44: 62620 | G44: 31310 | H44: 72664 | I44: 36332 | J44: 1426 | K44: 713 | L44: 113460 | M44: 56730
A45: 35(32) | B45: 650000 | C45: 635000 | D45: ～ | E45: 665000 | F45: 65650 | G45: 32825 | H45: 76180 | I45: 38090 | J45: 1495 | K45: 747.5 | L45: 118950 | M45: 59475
A46: 36 | B46: 680000 | C46: 665000 | D46: ～ | E46: 695000 | F46: 68680 | G46: 34340 | H46: 79696 | I46: 39848 | J46: 1564 | K46: 782
A47: 37 | B47: 710000 | C47: 695000 | D47: ～ | E47: 730000 | F47: 71710 | G47: 35855 | H47: 83212 | I47: 41606 | J47: 1633 | K47: 816.5 | L47: ※厚生年金基金に加入して いる方の厚生年金保険料 率は基金ごとに定められ ている免除保険料率 （2.4％～5.0％）を控除 した率となります。 加入する基金ごとに異な りますので、免除保険料 率および厚生年金基金の 掛金については、加入す る厚生年金基金にお問い 合わせください。
A48: 38 | B48: 750000 | C48: 730000 | D48: ～ | E48: 770000 | F48: 75750 | G48: 37875 | H48: 87900 | I48: 43950 | J48: 1725 | K48: 862.5
A49: 39 | B49: 790000 | C49: 770000 | D49: ～ | E49: 810000 | F49: 79790 | G49: 39895 | H49: 92588 | I49: 46294 | J49: 1817 | K49: 908.5
A50: 40 | B50: 830000 | C50: 810000 | D50: ～ | E50: 855000 | F50: 83830 | G50: 41915 | H50: 97276 | I50: 48638 | J50: 1909 | K50: 954.5
A51: 41 | B51: 880000 | C51: 855000 | D51: ～ | E51: 905000 | F51: 88880 | G51: 44440 | H51: 103136 | I51: 51568 | J51: 2024 | K51: 1012
A52: 42 | B52: 930000 | C52: 905000 | D52: ～ | E52: 955000 | F52: 93930 | G52: 46965 | H52: 108996 | I52: 54498 | J52: 2139 | K52: 1069.5
A53: 43 | B53: 980000 | C53: 955000 | D53: ～ | E53: 1005000 | F53: 98980 | G53: 49490 | H53: 114856 | I53: 57428 | J53: 2254 | K53: 1127
A54: 44 | B54: 1030000 | C54: 1005000 | D54: ～ | E54: 1055000 | F54: 104030 | G54: 52015 | H54: 120716 | I54: 60358 | J54: 2369 | K54: 1184.5
A55: 45 | B55: 1090000 | C55: 1055000 | D55: ～ | E55: 1115000 | F55: 110090 | G55: 55045 | H55: 127748 | I55: 63874 | J55: 2507 | K55: 1253.5
A56: 46 | B56: 1150000 | C56: 1115000 | D56: ～ | E56: 1175000 | F56: 116150 | G56: 58075 | H56: 134780 | I56: 67390 | J56: 2645 | K56: 1322.5
A57: 47 | B57: 1210000 | C57: 1175000 | D57: ～ | E57: 1235000 | F57: 122210 | G57: 61105 | H57: 141812 | I57: 70906 | J57: 2783 | K57: 1391.5
A58: 48 | B58: 1270000 | C58: 1235000 | D58: ～ | E58: 1295000 | F58: 128270 | G58: 64135 | H58: 148844 | I58: 74422 | J58: 2921 | K58: 1460.5
A59: 49 | B59: 1330000 | C59: 1295000 | D59: ～ | E59: 1355000 | F59: 134330 | G59: 67165 | H59: 155876 | I59: 77938 | J59: 3059 | K59: 1529.5
A60: 50 | B60: 1390000 | C60: 1355000 | D60: ～ | F60: 140390 | G60: 70195 | H60: 162908 | I60: 81454 | J60: 3197 | K60: 1598.5
A62: ◆介護保険第２号被保険者は、40歳から64歳までの方であり、健康保険料率（10.10%）と子ども・子育て支援金率（0.23%）に介護保険料率（1.62%）が加わります。
A63: ◆等級欄の（ ）内の数字は、厚生年金保険の標準報酬月額等級です。
A64: 4（1）等級の「報酬月額」欄は、厚生年金保険の場合「93,000円未満」と読み替えてください。
A65: 35（32）等級の「報酬月額」欄は、厚生年金保険の場合「635,000円以上」と読み替えてください。
A66: ◆令和8年度の全国健康保険協会の任意継続被保険者における標準報酬月額の上限は、320,000円です。
A69: ○被保険者負担分（表の折半額の欄）に円未満の端数がある場合
A70: ①事業主が、給与から被保険者負担分を控除する場合、被保険者負担分の端数が50銭以下の場合は切り捨て、50銭を超える場合は切り上げて1円となります。
A71: ②被保険者が、被保険者負担分を事業主へ現金で支払う場合、被保険者負担分の端数が50銭未満の場合は切り捨て、50銭以上の場合は切り上げて1円となります。
A72: （注）①、②にかかわらず、事業主と被保険者間で特約がある場合には、特約に基づき端数処理をすることができます。
A74: ○納入告知書の保険料額
A75: 納入告知書の保険料額は、被保険者個々の保険料額を合算した金額になります。ただし、合算した金額に円未満の端数がある場合は、その端数を切り捨てた額となります。
A77: ○賞与に係る保険料額
A78: 賞与に係る保険料額は、賞与額から1,000円未満の端数を切り捨てた額（標準賞与額)に、保険料率を乗じた額となります。
A79: また、標準賞与額の上限は、健康保険、介護保険及び子ども・子育て支援金は年間573万円（毎年4月1日から翌年3月31日までの累計額。）となり、
A80: 厚生年金保険と子ども・子育て拠出金は月間150万円となります。
A82: ○子ども・子育て拠出金
A83: 事業主の方は、児童手当の支給に要する費用等の一部として、子ども・子育て拠出金を負担いただくことになります。（被保険者の負担はありません。）
A84: この子ども・子育て拠出金の額は、被保険者個々の厚生年金保険の標準報酬月額および標準賞与額に、拠出金率（0.36％）を乗じて得た額の総額となります。

Sheet 秋田 (hidden)
A1: 令和８年３月分（４月納付分）からの健康保険・厚生年金保険の保険料額表
A3: ・健康保険料率：令和7年3月分～適用 | E3: ・厚生年金保険料率：平成29年9月分～適用 | I3: ・子ども・子育て支援金率：令和8年4月分（5月納付分）～適用
A4: ・介護保険料率：令和8年3月分～適用 | E4: ・子ども・子育て拠出金率：令和2年4月分～適用
A5: （秋田支部） | M5: （単位：円）
A6: 標 準 報 酬 | C6: 報 酬 月 額 | F6: 全国健康保険協会管掌健康保険料・介護保険料 | J6: 子ども・子育て支援金 | L6: 厚生年金保険料 （厚生年金基金加入員を除く）
F7: 介護保険第２号被保険者 に該当しない場合 | H7: 介護保険第２号被保険者 に該当する場合 | J7: 令和８年４月分（５月納付分） から納付いただきます | L7: 一般、坑内員・船員
A8: 等級 | B8: 月 額 | F8: 0.1001 | H8: 0.1163 | J8: 0.0023 | L8: 0.183
F9: 全 額 | G9: 折半額 | H9: 全 額 | I9: 折半額 | J9: 全 額 | K9: 折半額 | L9: 全 額 | M9: 折半額
C10: 円以上 | E10: 円未満
A11: 1 | B11: 58000 | D11: ～ | E11: 63000 | F11: 5805.8 | G11: 2902.9 | H11: 6745.4 | I11: 3372.7 | J11: 133.4 | K11: 66.7
A12: 2 | B12: 68000 | C12: 63000 | D12: ～ | E12: 73000 | F12: 6806.8 | G12: 3403.4 | H12: 7908.4 | I12: 3954.2 | J12: 156.4 | K12: 78.2
A13: 3 | B13: 78000 | C13: 73000 | D13: ～ | E13: 83000 | F13: 7807.8 | G13: 3903.9 | H13: 9071.4 | I13: 4535.7 | J13: 179.4 | K13: 89.7
A14: 4(1) | B14: 88000 | C14: 83000 | D14: ～ | E14: 93000 | F14: 8808.8 | G14: 4404.4 | H14: 10234.4 | I14: 5117.2 | J14: 202.4 | K14: 101.2 | L14: 16104 | M14: 8052
A15: 5(2) | B15: 98000 | C15: 93000 | D15: ～ | E15: 101000 | F15: 9809.8 | G15: 4904.9 | H15: 11397.4 | I15: 5698.7 | J15: 225.4 | K15: 112.7 | L15: 17934 | M15: 8967
A16: 6(3) | B16: 104000 | C16: 101000 | D16: ～ | E16: 107000 | F16: 10410.4 | G16: 5205.2 | H16: 12095.2 | I16: 6047.6 | J16: 239.2 | K16: 119.6 | L16: 19032 | M16: 9516
A17: 7(4) | B17: 110000 | C17: 107000 | D17: ～ | E17: 114000 | F17: 11011 | G17: 5505.5 | H17: 12793 | I17: 6396.5 | J17: 253 | K17: 126.5 | L17: 20130 | M17: 10065
A18: 8(5) | B18: 118000 | C18: 114000 | D18: ～ | E18: 122000 | F18: 11811.8 | G18: 5905.9 | H18: 13723.4 | I18: 6861.7 | J18: 271.4 | K18: 135.7 | L18: 21594 | M18: 10797
A19: 9(6) | B19: 126000 | C19: 122000 | D19: ～ | E19: 130000 | F19: 12612.6 | G19: 6306.3 | H19: 14653.8 | I19: 7326.9 | J19: 289.8 | K19: 144.9 | L19: 23058 | M19: 11529
A20: 10(7) | B20: 134000 | C20: 130000 | D20: ～ | E20: 138000 | F20: 13413.4 | G20: 6706.7 | H20: 15584.2 | I20: 7792.1 | J20: 308.2 | K20: 154.1 | L20: 24522 | M20: 12261
A21: 11(8) | B21: 142000 | C21: 138000 | D21: ～ | E21: 146000 | F21: 14214.2 | G21: 7107.1 | H21: 16514.6 | I21: 8257.3 | J21: 326.6 | K21: 163.3 | L21: 25986 | M21: 12993
A22: 12(9) | B22: 150000 | C22: 146000 | D22: ～ | E22: 155000 | F22: 15015 | G22: 7507.5 | H22: 17445 | I22: 8722.5 | J22: 345 | K22: 172.5 | L22: 27450 | M22: 13725
A23: 13(10) | B23: 160000 | C23: 155000 | D23: ～ | E23: 165000 | F23: 16016 | G23: 8008 | H23: 18608 | I23: 9304 | J23: 368 | K23: 184 | L23: 29280 | M23: 14640
A24: 14(11) | B24: 170000 | C24: 165000 | D24: ～ | E24: 175000 | F24: 17017 | G24: 8508.5 | H24: 19771 | I24: 9885.5 | J24: 391 | K24: 195.5 | L24: 31110 | M24: 15555
A25: 15(12) | B25: 180000 | C25: 175000 | D25: ～ | E25: 185000 | F25: 18018 | G25: 9009 | H25: 20934 | I25: 10467 | J25: 414 | K25: 207 | L25: 32940 | M25: 16470
A26: 16(13) | B26: 190000 | C26: 185000 | D26: ～ | E26: 195000 | F26: 19019 | G26: 9509.5 | H26: 22097 | I26: 11048.5 | J26: 437 | K26: 218.5 | L26: 34770 | M26: 17385
A27: 17(14) | B27: 200000 | C27: 195000 | D27: ～ | E27: 210000 | F27: 20020 | G27: 10010 | H27: 23260 | I27: 11630 | J27: 460 | K27: 230 | L27: 36600 | M27: 18300
A28: 18(15) | B28: 220000 | C28: 210000 | D28: ～ | E28: 230000 | F28: 22022 | G28: 11011 | H28: 25586 | I28: 12793 | J28: 506 | K28: 253 | L28: 40260 | M28: 20130
A29: 19(16) | B29: 240000 | C29: 230000 | D29: ～ | E29: 250000 | F29: 24024 | G29: 12012 | H29: 27912 | I29: 13956 | J29: 552 | K29: 276 | L29: 43920 | M29: 21960
A30: 20(17) | B30: 260000 | C30: 250000 | D30: ～ | E30: 270000 | F30: 26026 | G30: 13013 | H30: 30238 | I30: 15119 | J30: 598 | K30: 299 | L30: 47580 | M30: 23790
A31: 21(18) | B31: 280000 | C31: 270000 | D31: ～ | E31: 290000 | F31: 28028 | G31: 14014 | H31: 32564 | I31: 16282 | J31: 644 | K31: 322 | L31: 51240 | M31: 25620
A32: 22(19) | B32: 300000 | C32: 290000 | D32: ～ | E32: 310000 | F32: 30030 | G32: 15015 | H32: 34890 | I32: 17445 | J32: 690 | K32: 345 | L32: 54900 | M32: 27450
A33: 23(20) | B33: 320000 | C33: 310000 | D33: ～ | E33: 330000 | F33: 32032 | G33: 16016 | H33: 37216 | I33: 18608 | J33: 736 | K33: 368 | L33: 58560 | M33: 29280
A34: 24(21) | B34: 340000 | C34: 330000 | D34: ～ | E34: 350000 | F34: 34034 | G34: 17017 | H34: 39542 | I34: 19771 | J34: 782 | K34: 391 | L34: 62220 | M34: 31110
A35: 25(22) | B35: 360000 | C35: 350000 | D35: ～ | E35: 370000 | F35: 36036 | G35: 18018 | H35: 41868 | I35: 20934 | J35: 828 | K35: 414 | L35: 65880 | M35: 32940
A36: 26(23) | B36: 380000 | C36: 370000 | D36: ～ | E36: 395000 | F36: 38038 | G36: 19019 | H36: 44194 | I36: 22097 | J36: 874 | K36: 437 | L36: 69540 | M36: 34770
A37: 27(24) | B37: 410000 | C37: 395000 | D37: ～ | E37: 425000 | F37: 41041 | G37: 20520.5 | H37: 47683 | I37: 23841.5 | J37: 943 | K37: 471.5 | L37: 75030 | M37: 37515
A38: 28(25) | B38: 440000 | C38: 425000 | D38: ～ | E38: 455000 | F38: 44044 | G38: 22022 | H38: 51172 | I38: 25586 | J38: 1012 | K38: 506 | L38: 80520 | M38: 40260
A39: 29(26) | B39: 470000 | C39: 455000 | D39: ～ | E39: 485000 | F39: 47047 | G39: 23523.5 | H39: 54661 | I39: 27330.5 | J39: 1081 | K39: 540.5 | L39: 86010 | M39: 43005
A40: 30(27) | B40: 500000 | C40: 485000 | D40: ～ | E40: 515000 | F40: 50050 | G40: 25025 | H40: 58150 | I40: 29075 | J40: 1150 | K40: 575 | L40: 91500 | M40: 45750
A41: 31(28) | B41: 530000 | C41: 515000 | D41: ～ | E41: 545000 | F41: 53053 | G41: 26526.5 | H41: 61639 | I41: 30819.5 | J41: 1219 | K41: 609.5 | L41: 96990 | M41: 48495
A42: 32(29) | B42: 560000 | C42: 545000 | D42: ～ | E42: 575000 | F42: 56056 | G42: 28028 | H42: 65128 | I42: 32564 | J42: 1288 | K42: 644 | L42: 102480 | M42: 51240
A43: 33(30) | B43: 590000 | C43: 575000 | D43: ～ | E43: 605000 | F43: 59059 | G43: 29529.5 | H43: 68617 | I43: 34308.5 | J43: 1357 | K43: 678.5 | L43: 107970 | M43: 53985
A44: 34(31) | B44: 620000 | C44: 605000 | D44: ～ | E44: 635000 | F44: 62062 | G44: 31031 | H44: 72106 | I44: 36053 | J44: 1426 | K44: 713 | L44: 113460 | M44: 56730
A45: 35(32) | B45: 650000 | C45: 635000 | D45: ～ | E45: 665000 | F45: 65065 | G45: 32532.5 | H45: 75595 | I45: 37797.5 | J45: 1495 | K45: 747.5 | L45: 118950 | M45: 59475
A46: 36 | B46: 680000 | C46: 665000 | D46: ～ | E46: 695000 | F46: 68068 | G46: 34034 | H46: 79084 | I46: 39542 | J46: 1564 | K46: 782
A47: 37 | B47: 710000 | C47: 695000 | D47: ～ | E47: 730000 | F47: 71071 | G47: 35535.5 | H47: 82573 | I47: 41286.5 | J47: 1633 | K47: 816.5 | L47: ※厚生年金基金に加入して いる方の厚生年金保険料 率は基金ごとに定められ ている免除保険料率 （2.4％～5.0％）を控除 した率となります。 加入する基金ごとに異な りますので、免除保険料 率および厚生年金基金の 掛金については、加入す る厚生年金基金にお問い 合わせください。
A48: 38 | B48: 750000 | C48: 730000 | D48: ～ | E48: 770000 | F48: 75075 | G48: 37537.5 | H48: 87225 | I48: 43612.5 | J48: 1725 | K48: 862.5
A49: 39 | B49: 790000 | C49: 770000 | D49: ～ | E49: 810000 | F49: 79079 | G49: 39539.5 | H49: 91877 | I49: 45938.5 | J49: 1817 | K49: 908.5
A50: 40 | B50: 830000 | C50: 810000 | D50: ～ | E50: 855000 | F50: 83083 | G50: 41541.5 | H50: 96529 | I50: 48264.5 | J50: 1909 | K50: 954.5
A51: 41 | B51: 880000 | C51: 855000 | D51: ～ | E51: 905000 | F51: 88088 | G51: 44044 | H51: 102344 | I51: 51172 | J51: 2024 | K51: 1012
A52: 42 | B52: 930000 | C52: 905000 | D52: ～ | E52: 955000 | F52: 93093 | G52: 46546.5 | H52: 108159 | I52: 54079.5 | J52: 2139 | K52: 1069.5
A53: 43 | B53: 980000 | C53: 955000 | D53: ～ | E53: 1005000 | F53: 98098 | G53: 49049 | H53: 113974 | I53: 56987 | J53: 2254 | K53: 1127
A54: 44 | B54: 1030000 | C54: 1005000 | D54: ～ | E54: 1055000 | F54: 103103 | G54: 51551.5 | H54: 119789 | I54: 59894.5 | J54: 2369 | K54: 1184.5
A55: 45 | B55: 1090000 | C55: 1055000 | D55: ～ | E55: 1115000 | F55: 109109 | G55: 54554.5 | H55: 126767 | I55: 63383.5 | J55: 2507 | K55: 1253.5
A56: 46 | B56: 1150000 | C56: 1115000 | D56: ～ | E56: 1175000 | F56: 115115 | G56: 57557.5 | H56: 133745 | I56: 66872.5 | J56: 2645 | K56: 1322.5
A57: 47 | B57: 1210000 | C57: 1175000 | D57: ～ | E57: 1235000 | F57: 121121 | G57: 60560.5 | H57: 140723 | I57: 70361.5 | J57: 2783 | K57: 1391.5
A58: 48 | B58: 1270000 | C58: 1235000 | D58: ～ | E58: 1295000 | F58: 127127 | G58: 63563.5 | H58: 147701 | I58: 73850.5 | J58: 2921 | K58: 1460.5
A59: 49 | B59: 1330000 | C59: 1295000 | D59: ～ | E59: 1355000 | F59: 133133 | G59: 66566.5 | H59: 154679 | I59: 77339.5 | J59: 3059 | K59: 1529.5
A60: 50 | B60: 1390000 | C60: 1355000 | D60: ～ | F60: 139139 | G60: 69569.5 | H60: 161657 | I60: 80828.5 | J60: 3197 | K60: 1598.5
A62: ◆介護保険第２号被保険者は、40歳から64歳までの方であり、健康保険料率（10.01%）と子ども・子育て支援金率（0.23%）に介護保険料率（1.62%）が加わります。
A63: ◆等級欄の（ ）内の数字は、厚生年金保険の標準報酬月額等級です。
A64: 4（1）等級の「報酬月額」欄は、厚生年金保険の場合「93,000円未満」と読み替えてください。
A65: 35（32）等級の「報酬月額」欄は、厚生年金保険の場合「635,000円以上」と読み替えてください。
A66: ◆令和8年度の全国健康保険協会の任意継続被保険者における標準報酬月額の上限は、320,000円です。
A69: ○被保険者負担分（表の折半額の欄）に円未満の端数がある場合
A70: ①事業主が、給与から被保険者負担分を控除する場合、被保険者負担分の端数が50銭以下の場合は切り捨て、50銭を超える場合は切り上げて1円となります。
A71: ②被保険者が、被保険者負担分を事業主へ現金で支払う場合、被保険者負担分の端数が50銭未満の場合は切り捨て、50銭以上の場合は切り上げて1円となります。
A72: （注）①、②にかかわらず、事業主と被保険者間で特約がある場合には、特約に基づき端数処理をすることができます。
A74: ○納入告知書の保険料額
A75: 納入告知書の保険料額は、被保険者個々の保険料額を合算した金額になります。ただし、合算した金額に円未満の端数がある場合は、その端数を切り捨てた額となります。
A77: ○賞与に係る保険料額
A78: 賞与に係る保険料額は、賞与額から1,000円未満の端数を切り捨てた額（標準賞与額)に、保険料率を乗じた額となります。
A79: また、標準賞与額の上限は、健康保険、介護保険及び子ども・子育て支援金は年間573万円（毎年4月1日から翌年3月31日までの累計額。）となり、
A80: 厚生年金保険と子ども・子育て拠出金は月間150万円となります。
A82: ○子ども・子育て拠出金
A83: 事業主の方は、児童手当の支給に要する費用等の一部として、子ども・子育て拠出金を負担いただくことになります。（被保険者の負担はありません。）
A84: この子ども・子育て拠出金の額は、被保険者個々の厚生年金保険の標準報酬月額および標準賞与額に、拠出金率（0.36％）を乗じて得た額の総額となります。

Sheet 山形 (hidden)
A1: 令和８年３月分（４月納付分）からの健康保険・厚生年金保険の保険料額表
A3: ・健康保険料率：令和7年3月分～適用 | E3: ・厚生年金保険料率：平成29年9月分～適用 | I3: ・子ども・子育て支援金率：令和8年4月分（5月納付分）～適用
A4: ・介護保険料率：令和8年3月分～適用 | E4: ・子ども・子育て拠出金率：令和2年4月分～適用
A5: （山形支部） | M5: （単位：円）
A6: 標 準 報 酬 | C6: 報 酬 月 額 | F6: 全国健康保険協会管掌健康保険料・介護保険料 | J6: 子ども・子育て支援金 | L6: 厚生年金保険料 （厚生年金基金加入員を除く）
F7: 介護保険第２号被保険者 に該当しない場合 | H7: 介護保険第２号被保険者 に該当する場合 | J7: 令和８年４月分（５月納付分） から納付いただきます | L7: 一般、坑内員・船員
A8: 等級 | B8: 月 額 | F8: 0.0975 | H8: 0.1137 | J8: 0.0023 | L8: 0.183
F9: 全 額 | G9: 折半額 | H9: 全 額 | I9: 折半額 | J9: 全 額 | K9: 折半額 | L9: 全 額 | M9: 折半額
C10: 円以上 | E10: 円未満
A11: 1 | B11: 58000 | D11: ～ | E11: 63000 | F11: 5655 | G11: 2827.5 | H11: 6594.6 | I11: 3297.3 | J11: 133.4 | K11: 66.7
A12: 2 | B12: 68000 | C12: 63000 | D12: ～ | E12: 73000 | F12: 6630 | G12: 3315 | H12: 7731.6 | I12: 3865.8 | J12: 156.4 | K12: 78.2
A13: 3 | B13: 78000 | C13: 73000 | D13: ～ | E13: 83000 | F13: 7605 | G13: 3802.5 | H13: 8868.6 | I13: 4434.3 | J13: 179.4 | K13: 89.7
A14: 4(1) | B14: 88000 | C14: 83000 | D14: ～ | E14: 93000 | F14: 8580 | G14: 4290 | H14: 10005.6 | I14: 5002.8 | J14: 202.4 | K14: 101.2 | L14: 16104 | M14: 8052
A15: 5(2) | B15: 98000 | C15: 93000 | D15: ～ | E15: 101000 | F15: 9555 | G15: 4777.5 | H15: 11142.6 | I15: 5571.3 | J15: 225.4 | K15: 112.7 | L15: 17934 | M15: 8967
A16: 6(3) | B16: 104000 | C16: 101000 | D16: ～ | E16: 107000 | F16: 10140 | G16: 5070 | H16: 11824.8 | I16: 5912.4 | J16: 239.2 | K16: 119.6 | L16: 19032 | M16: 9516
A17: 7(4) | B17: 110000 | C17: 107000 | D17: ～ | E17: 114000 | F17: 10725 | G17: 5362.5 | H17: 12507 | I17: 6253.5 | J17: 253 | K17: 126.5 | L17: 20130 | M17: 10065
A18: 8(5) | B18: 118000 | C18: 114000 | D18: ～ | E18: 122000 | F18: 11505 | G18: 5752.5 | H18: 13416.6 | I18: 6708.3 | J18: 271.4 | K18: 135.7 | L18: 21594 | M18: 10797
A19: 9(6) | B19: 126000 | C19: 122000 | D19: ～ | E19: 130000 | F19: 12285 | G19: 6142.5 | H19: 14326.2 | I19: 7163.1 | J19: 289.8 | K19: 144.9 | L19: 23058 | M19: 11529
A20: 10(7) | B20: 134000 | C20: 130000 | D20: ～ | E20: 138000 | F20: 13065 | G20: 6532.5 | H20: 15235.8 | I20: 7617.9 | J20: 308.2 | K20: 154.1 | L20: 24522 | M20: 12261
A21: 11(8) | B21: 142000 | C21: 138000 | D21: ～ | E21: 146000 | F21: 13845 | G21: 6922.5 | H21: 16145.4 | I21: 8072.7 | J21: 326.6 | K21: 163.3 | L21: 25986 | M21: 12993
A22: 12(9) | B22: 150000 | C22: 146000 | D22: ～ | E22: 155000 | F22: 14625 | G22: 7312.5 | H22: 17055 | I22: 8527.5 | J22: 345 | K22: 172.5 | L22: 27450 | M22: 13725
A23: 13(10) | B23: 160000 | C23: 155000 | D23: ～ | E23: 165000 | F23: 15600 | G23: 7800 | H23: 18192 | I23: 9096 | J23: 368 | K23: 184 | L23: 29280 | M23: 14640
A24: 14(11) | B24: 170000 | C24: 165000 | D24: ～ | E24: 175000 | F24: 16575 | G24: 8287.5 | H24: 19329 | I24: 9664.5 | J24: 391 | K24: 195.5 | L24: 31110 | M24: 15555
A25: 15(12) | B25: 180000 | C25: 175000 | D25: ～ | E25: 185000 | F25: 17550 | G25: 8775 | H25: 20466 | I25: 10233 | J25: 414 | K25: 207 | L25: 32940 | M25: 16470
A26: 16(13) | B26: 190000 | C26: 185000 | D26: ～ | E26: 195000 | F26: 18525 | G26: 9262.5 | H26: 21603 | I26: 10801.5 | J26: 437 | K26: 218.5 | L26: 34770 | M26: 17385
A27: 17(14) | B27: 200000 | C27: 195000 | D27: ～ | E27: 210000 | F27: 19500 | G27: 9750 | H27: 22740 | I27: 11370 | J27: 460 | K27: 230 | L27: 36600 | M27: 18300
A28: 18(15) | B28: 220000 | C28: 210000 | D28: ～ | E28: 230000 | F28: 21450 | G28: 10725 | H28: 25014 | I28: 12507 | J28: 506 | K28: 253 | L28: 40260 | M28: 20130
A29: 19(16) | B29: 240000 | C29: 230000 | D29: ～ | E29: 250000 | F29: 23400 | G29: 11700 | H29: 27288 | I29: 13644 | J29: 552 | K29: 276 | L29: 43920 | M29: 21960
A30: 20(17) | B30: 260000 | C30: 250000 | D30: ～ | E30: 270000 | F30: 25350 | G30: 12675 | H30: 29562 | I30: 14781 | J30: 598 | K30: 299 | L30: 47580 | M30: 23790
A31: 21(18) | B31: 280000 | C31: 270000 | D31: ～ | E31: 290000 | F31: 27300 | G31: 13650 | H31: 31836 | I31: 15918 | J31: 644 | K31: 322 | L31: 51240 | M31: 25620
A32: 22(19) | B32: 300000 | C32: 290000 | D32: ～ | E32: 310000 | F32: 29250 | G32: 14625 | H32: 34110 | I32: 17055 | J32: 690 | K32: 345 | L32: 54900 | M32: 27450
A33: 23(20) | B33: 320000 | C33: 310000 | D33: ～ | E33: 330000 | F33: 31200 | G33: 15600 | H33: 36384 | I33: 18192 | J33: 736 | K33: 368 | L33: 58560 | M33: 29280
A34: 24(21) | B34: 340000 | C34: 330000 | D34: ～ | E34: 350000 | F34: 33150 | G34: 16575 | H34: 38658 | I34: 19329 | J34: 782 | K34: 391 | L34: 62220 | M34: 31110
A35: 25(22) | B35: 360000 | C35: 350000 | D35: ～ | E35: 370000 | F35: 35100 | G35: 17550 | H35: 40932 | I35: 20466 | J35: 828 | K35: 414 | L35: 65880 | M35: 32940
A36: 26(23) | B36: 380000 | C36: 370000 | D36: ～ | E36: 395000 | F36: 37050 | G36: 18525 | H36: 43206 | I36: 21603 | J36: 874 | K36: 437 | L36: 69540 | M36: 34770
A37: 27(24) | B37: 410000 | C37: 395000 | D37: ～ | E37: 425000 | F37: 39975 | G37: 19987.5 | H37: 46617 | I37: 23308.5 | J37: 943 | K37: 471.5 | L37: 75030 | M37: 37515
A38: 28(25) | B38: 440000 | C38: 425000 | D38: ～ | E38: 455000 | F38: 42900 | G38: 21450 | H38: 50028 | I38: 25014 | J38: 1012 | K38: 506 | L38: 80520 | M38: 40260
A39: 29(26) | B39: 470000 | C39: 455000 | D39: ～ | E39: 485000 | F39: 45825 | G39: 22912.5 | H39: 53439 | I39: 26719.5 | J39: 1081 | K39: 540.5 | L39: 86010 | M39: 43005
A40: 30(27) | B40: 500000 | C40: 485000 | D40: ～ | E40: 515000 | F40: 48750 | G40: 24375 | H40: 56850 | I40: 28425 | J40: 1150 | K40: 575 | L40: 91500 | M40: 45750
A41: 31(28) | B41: 530000 | C41: 515000 | D41: ～ | E41: 545000 | F41: 51675 | G41: 25837.5 | H41: 60261 | I41: 30130.5 | J41: 1219 | K41: 609.5 | L41: 96990 | M41: 48495
A42: 32(29) | B42: 560000 | C42: 545000 | D42: ～ | E42: 575000 | F42: 54600 | G42: 27300 | H42: 63672 | I42: 31836 | J42: 1288 | K42: 644 | L42: 102480 | M42: 51240
A43: 33(30) | B43: 590000 | C43: 575000 | D43: ～ | E43: 605000 | F43: 57525 | G43: 28762.5 | H43: 67083 | I43: 33541.5 | J43: 1357 | K43: 678.5 | L43: 107970 | M43: 53985
A44: 34(31) | B44: 620000 | C44: 605000 | D44: ～ | E44: 635000 | F44: 60450 | G44: 30225 | H44: 70494 | I44: 35247 | J44: 1426 | K44: 713 | L44: 113460 | M44: 56730
A45: 35(32) | B45: 650000 | C45: 635000 | D45: ～ | E45: 665000 | F45: 63375 | G45: 31687.5 | H45: 73905 | I45: 36952.5 | J45: 1495 | K45: 747.5 | L45: 118950 | M45: 59475
A46: 36 | B46: 680000 | C46: 665000 | D46: ～ | E46: 695000 | F46: 66300 | G46: 33150 | H46: 77316 | I46: 38658 | J46: 1564 | K46: 782
A47: 37 | B47: 710000 | C47: 695000 | D47: ～ | E47: 730000 | F47: 69225 | G47: 34612.5 | H47: 80727 | I47: 40363.5 | J47: 1633 | K47: 816.5 | L47: ※厚生年金基金に加入して いる方の厚生年金保険料 率は基金ごとに定められ ている免除保険料率 （2.4％～5.0％）を控除 した率となります。 加入する基金ごとに異な りますので、免除保険料 率および厚生年金基金の 掛金については、加入す る厚生年金基金にお問い 合わせください。
A48: 38 | B48: 750000 | C48: 730000 | D48: ～ | E48: 770000 | F48: 73125 | G48: 36562.5 | H48: 85275 | I48: 42637.5 | J48: 1725 | K48: 862.5
A49: 39 | B49: 790000 | C49: 770000 | D49: ～ | E49: 810000 | F49: 77025 | G49: 38512.5 | H49: 89823 | I49: 44911.5 | J49: 1817 | K49: 908.5
A50: 40 | B50: 830000 | C50: 810000 | D50: ～ | E50: 855000 | F50: 80925 | G50: 40462.5 | H50: 94371 | I50: 47185.5 | J50: 1909 | K50: 954.5
A51: 41 | B51: 880000 | C51: 855000 | D51: ～ | E51: 905000 | F51: 85800 | G51: 42900 | H51: 100056 | I51: 50028 | J51: 2024 | K51: 1012
A52: 42 | B52: 930000 | C52: 905000 | D52: ～ | E52: 955000 | F52: 90675 | G52: 45337.5 | H52: 105741 | I52: 52870.5 | J52: 2139 | K52: 1069.5
A53: 43 | B53: 980000 | C53: 955000 | D53: ～ | E53: 1005000 | F53: 95550 | G53: 47775 | H53: 111426 | I53: 55713 | J53: 2254 | K53: 1127
A54: 44 | B54: 1030000 | C54: 1005000 | D54: ～ | E54: 1055000 | F54: 100425 | G54: 50212.5 | H54: 117111 | I54: 58555.5 | J54: 2369 | K54: 1184.5
A55: 45 | B55: 1090000 | C55: 1055000 | D55: ～ | E55: 1115000 | F55: 106275 | G55: 53137.5 | H55: 123933 | I55: 61966.5 | J55: 2507 | K55: 1253.5
A56: 46 | B56: 1150000 | C56: 1115000 | D56: ～ | E56: 1175000 | F56: 112125 | G56: 56062.5 | H56: 130755 | I56: 65377.5 | J56: 2645 | K56: 1322.5
A57: 47 | B57: 1210000 | C57: 1175000 | D57: ～ | E57: 1235000 | F57: 117975 | G57: 58987.5 | H57: 137577 | I57: 68788.5 | J57: 2783 | K57: 1391.5
A58: 48 | B58: 1270000 | C58: 1235000 | D58: ～ | E58: 1295000 | F58: 123825 | G58: 61912.5 | H58: 144399 | I58: 72199.5 | J58: 2921 | K58: 1460.5
A59: 49 | B59: 1330000 | C59: 1295000 | D59: ～ | E59: 1355000 | F59: 129675 | G59: 64837.5 | H59: 151221 | I59: 75610.5 | J59: 3059 | K59: 1529.5
A60: 50 | B60: 1390000 | C60: 1355000 | D60: ～ | F60: 135525 | G60: 67762.5 | H60: 158043 | I60: 79021.5 | J60: 3197 | K60: 1598.5
A62: ◆介護保険第２号被保険者は、40歳から64歳までの方であり、健康保険料率（9.75%）と子ども・子育て支援金率（0.23%）に介護保険料率（1.62%）が加わります。
A63: ◆等級欄の（ ）内の数字は、厚生年金保険の標準報酬月額等級です。
A64: 4（1）等級の「報酬月額」欄は、厚生年金保険の場合「93,000円未満」と読み替えてください。
A65: 35（32）等級の「報酬月額」欄は、厚生年金保険の場合「635,000円以上」と読み替えてください。
A66: ◆令和8年度の全国健康保険協会の任意継続被保険者における標準報酬月額の上限は、320,000円です。
A69: ○被保険者負担分（表の折半額の欄）に円未満の端数がある場合
A70: ①事業主が、給与から被保険者負担分を控除する場合、被保険者負担分の端数が50銭以下の場合は切り捨て、50銭を超える場合は切り上げて1円となります。
A71: ②被保険者が、被保険者負担分を事業主へ現金で支払う場合、被保険者負担分の端数が50銭未満の場合は切り捨て、50銭以上の場合は切り上げて1円となります。
A72: （注）①、②にかかわらず、事業主と被保険者間で特約がある場合には、特約に基づき端数処理をすることができます。
A74: ○納入告知書の保険料額
A75: 納入告知書の保険料額は、被保険者個々の保険料額を合算した金額になります。ただし、合算した金額に円未満の端数がある場合は、その端数を切り捨てた額となります。
A77: ○賞与に係る保険料額
A78: 賞与に係る保険料額は、賞与額から1,000円未満の端数を切り捨てた額（標準賞与額)に、保険料率を乗じた額となります。
A79: また、標準賞与額の上限は、健康保険、介護保険及び子ども・子育て支援金は年間573万円（毎年4月1日から翌年3月31日までの累計額。）となり、
A80: 厚生年金保険と子ども・子育て拠出金は月間150万円となります。
A82: ○子ども・子育て拠出金
A83: 事業主の方は、児童手当の支給に要する費用等の一部として、子ども・子育て拠出金を負担いただくことになります。（被保険者の負担はありません。）
A84: この子ども・子育て拠出金の額は、被保険者個々の厚生年金保険の標準報酬月額および標準賞与額に、拠出金率（0.36％）を乗じて得た額の総額となります。

Sheet 福島 (hidden)
A1: 令和８年３月分（４月納付分）からの健康保険・厚生年金保険の保険料額表
A3: ・健康保険料率：令和8年3月分～適用 | E3: ・厚生年金保険料率：平成29年9月分～適用 | I3: ・子ども・子育て支援金率：令和8年4月分（5月納付分）～適用
A4: ・介護保険料率：令和8年3月分～適用 | E4: ・子ども・子育て拠出金率：令和2年4月分～適用
A5: （福島支部） | M5: （単位：円）
A6: 標 準 報 酬 | C6: 報 酬 月 額 | F6: 全国健康保険協会管掌健康保険料・介護保険料 | J6: 子ども・子育て支援金 | L6: 厚生年金保険料 （厚生年金基金加入員を除く）
F7: 介護保険第２号被保険者 に該当しない場合 | H7: 介護保険第２号被保険者 に該当する場合 | J7: 令和８年４月分（５月納付分） から納付いただきます | L7: 一般、坑内員・船員
A8: 等級 | B8: 月 額 | F8: 0.095 | H8: 0.1112 | J8: 0.0023 | L8: 0.183
F9: 全 額 | G9: 折半額 | H9: 全 額 | I9: 折半額 | J9: 全 額 | K9: 折半額 | L9: 全 額 | M9: 折半額
C10: 円以上 | E10: 円未満
A11: 1 | B11: 58000 | D11: ～ | E11: 63000 | F11: 5510 | G11: 2755 | H11: 6449.6 | I11: 3224.8 | J11: 133.4 | K11: 66.7
A12: 2 | B12: 68000 | C12: 63000 | D12: ～ | E12: 73000 | F12: 6460 | G12: 3230 | H12: 7561.6 | I12: 3780.8 | J12: 156.4 | K12: 78.2
A13: 3 | B13: 78000 | C13: 73000 | D13: ～ | E13: 83000 | F13: 7410 | G13: 3705 | H13: 8673.6 | I13: 4336.8 | J13: 179.4 | K13: 89.7
A14: 4(1) | B14: 88000 | C14: 83000 | D14: ～ | E14: 93000 | F14: 8360 | G14: 4180 | H14: 9785.6 | I14: 4892.8 | J14: 202.4 | K14: 101.2 | L14: 16104 | M14: 8052
A15: 5(2) | B15: 98000 | C15: 93000 | D15: ～ | E15: 101000 | F15: 9310 | G15: 4655 | H15: 10897.6 | I15: 5448.8 | J15: 225.4 | K15: 112.7 | L15: 17934 | M15: 8967
A16: 6(3) | B16: 104000 | C16: 101000 | D16: ～ | E16: 107000 | F16: 9880 | G16: 4940 | H16: 11564.8 | I16: 5782.4 | J16: 239.2 | K16: 119.6 | L16: 19032 | M16: 9516
A17: 7(4) | B17: 110000 | C17: 107000 | D17: ～ | E17: 114000 | F17: 10450 | G17: 5225 | H17: 12232 | I17: 6116 | J17: 253 | K17: 126.5 | L17: 20130 | M17: 10065
A18: 8(5) | B18: 118000 | C18: 114000 | D18: ～ | E18: 122000 | F18: 11210 | G18: 5605 | H18: 13121.6 | I18: 6560.8 | J18: 271.4 | K18: 135.7 | L18: 21594 | M18: 10797
A19: 9(6) | B19: 126000 | C19: 122000 | D19: ～ | E19: 130000 | F19: 11970 | G19: 5985 | H19: 14011.2 | I19: 7005.6 | J19: 289.8 | K19: 144.9 | L19: 23058 | M19: 11529
A20: 10(7) | B20: 134000 | C20: 130000 | D20: ～ | E20: 138000 | F20: 12730 | G20: 6365 | H20: 14900.8 | I20: 7450.4 | J20: 308.2 | K20: 154.1 | L20: 24522 | M20: 12261
A21: 11(8) | B21: 142000 | C21: 138000 | D21: ～ | E21: 146000 | F21: 13490 | G21: 6745 | H21: 15790.4 | I21: 7895.2 | J21: 326.6 | K21: 163.3 | L21: 25986 | M21: 12993
A22: 12(9) | B22: 150000 | C22: 146000 | D22: ～ | E22: 155000 | F22: 14250 | G22: 7125 | H22: 16680 | I22: 8340 | J22: 345 | K22: 172.5 | L22: 27450 | M22: 13725
A23: 13(10) | B23: 160000 | C23: 155000 | D23: ～ | E23: 165000 | F23: 15200 | G23: 7600 | H23: 17792 | I23: 8896 | J23: 368 | K23: 184 | L23: 29280 | M23: 14640
A24: 14(11) | B24: 170000 | C24: 165000 | D24: ～ | E24: 175000 | F24: 16150 | G24: 8075 | H24: 18904 | I24: 9452 | J24: 391 | K24: 195.5 | L24: 31110 | M24: 15555
A25: 15(12) | B25: 180000 | C25: 175000 | D25: ～ | E25: 185000 | F25: 17100 | G25: 8550 | H25: 20016 | I25: 10008 | J25: 414 | K25: 207 | L25: 32940 | M25: 16470
A26: 16(13) | B26: 190000 | C26: 185000 | D26: ～ | E26: 195000 | F26: 18050 | G26: 9025 | H26: 21128 | I26: 10564 | J26: 437 | K26: 218.5 | L26: 34770 | M26: 17385
A27: 17(14) | B27: 200000 | C27: 195000 | D27: ～ | E27: 210000 | F27: 19000 | G27: 9500 | H27: 22240 | I27: 11120 | J27: 460 | K27: 230 | L27: 36600 | M27: 18300
A28: 18(15) | B28: 220000 | C28: 210000 | D28: ～ | E28: 230000 | F28: 20900 | G28: 10450 | H28: 24464 | I28: 12232 | J28: 506 | K28: 253 | L28: 40260 | M28: 20130
A29: 19(16) | B29: 240000 | C29: 230000 | D29: ～ | E29: 250000 | F29: 22800 | G29: 11400 | H29: 26688 | I29: 13344 | J29: 552 | K29: 276 | L29: 43920 | M29: 21960
A30: 20(17) | B30: 260000 | C30: 250000 | D30: ～ | E30: 270000 | F30: 24700 | G30: 12350 | H30: 28912 | I30: 14456 | J30: 598 | K30: 299 | L30: 47580 | M30: 23790
A31: 21(18) | B31: 280000 | C31: 270000 | D31: ～ | E31: 290000 | F31: 26600 | G31: 13300 | H31: 31136 | I31: 15568 | J31: 644 | K31: 322 | L31: 51240 | M31: 25620
A32: 22(19) | B32: 300000 | C32: 290000 | D32: ～ | E32: 310000 | F32: 28500 | G32: 14250 | H32: 33360 | I32: 16680 | J32: 690 | K32: 345 | L32: 54900 | M32: 27450
A33: 23(20) | B33: 320000 | C33: 310000 | D33: ～ | E33: 330000 | F33: 30400 | G33: 15200 | H33: 35584 | I33: 17792 | J33: 736 | K33: 368 | L33: 58560 | M33: 29280
A34: 24(21) | B34: 340000 | C34: 330000 | D34: ～ | E34: 350000 | F34: 32300 | G34: 16150 | H34: 37808 | I34: 18904 | J34: 782 | K34: 391 | L34: 62220 | M34: 31110
A35: 25(22) | B35: 360000 | C35: 350000 | D35: ～ | E35: 370000 | F35: 34200 | G35: 17100 | H35: 40032 | I35: 20016 | J35: 828 | K35: 414 | L35: 65880 | M35: 32940
